Workbook

Sheet Check List
B2: Check List Calculo Consolidado Anual
B4: 1 | C4: Borrar
B5: 1.1 | C5: En caso de necesitar borrar datos de un mes en específico, seleccionar mes y año y ejecutar la macro borrar mes
B6: 1.2 | C6: En caso de necesitar borrar datos de todo el año, seleccionar año y ejecutar la macro borrar año
B8: 2 | C8: Traspaso de datos
B9: 2.1 | C9: Revisar que las tablas de las hojas de cáclulo verde tengas los mismos datos que los de la tabla dinámica ubicada en la columna B de la hoja Unidades
B10: 2.2 | C10: En caso de necesitar traspasar datos de un mes en específico, seleccionar mes y año y ejecutar la macro traspasar mes
B11: 2.3 | C11: En caso de necesitar traspasar datos de todo el año, seleccionar año y ejecutar la macro traspasar año
B13: 3 | C13: Calcular Impuesto por central
B14: 3.1 | C14: Una vez cargados todos los datos del año proceder la macro "Impuesto" caclculo el impuesto por unidad generadora.

Sheet Macros
B4: 1. Datos | F4: 2. Borrar datos anteriores | J4: 3. Traspasar datos desde planillas mensuales | N4: 3. Calcular Impuesto por central
B6: Mes: | C6: 01_Enero
B7: Año: | C7: 2019

Sheet Lista completa
B2: Listados de Fuentes de Generación
B4: Empresa | C4: Rut | D4: Nombre Establecimiento | E4: ID RECT (VU) | F4: Unidad Generadora | G4: Fuente | H4: N° registro de emisiones de Fuentes Fijas (F138) | I4: Nombre unidad Peajes | J4: Nombre central Peajes | K4: Nombre central TCV | L4: Nombre unidad TCV | M4: Nombre configuración TCV | N4: Combustible | O4: Barra Generación CMg | P4: Autoproductor | Q4: Excedente | R4: N° medidores involucrados | S4: Medida 1 | T4: Medida 2 | U4: Medida 3
B5: AES_GENER | C5: 94.272.000-9 | D5: CENTRAL TERMOELÉCTRICA NUEVA TOCOPILLA | E5: 5441369 | F5: TERMOELÉCTRICA NUEVA TOCOPILLA (NTO1) | G5: UGE NT-01 | H5: GE000005-5 | I5: NTO1 | J5: TERMOELÉCTRICA NORGENER | K5: Norgener | L5: NTO1 | M5: NORGENER-NTO1_CAR | N5: Carbón | O5: NORGENER______220 | P5: No | R5: 1 | S5: 12243200000IF | T5: - | U5: -
B6: AES_GENER | C6: 94.272.000-9 | D6: CENTRAL TERMOELÉCTRICA NUEVA TOCOPILLA | E6: 5441369 | F6: TERMOELÉCTRICA NUEVA TOCOPILLA (NTO2) | G6: UGE NT-02 | H6: GE000006-3 | I6: NTO2 | J6: TERMOELÉCTRICA NORGENER | K6: Norgener | L6: NTO2 | M6: NORGENER-NTO2_CAR | N6: Carbón | O6: NORGENER______220 | P6: No | R6: 1 | S6: 12243200000IF | T6: - | U6: -
B7: GMETROPOLITANA | C7: 76.538.731-0 | D7: CENTRAL LOS VIENTOS | E7: 386023 | F7: LOS VIENTOS TG | G7: UGE LOS VIENTOS TG | H7: PC000023-4 | I7: LOS VIENTOS 1 | J7: LOS VIENTOS | K7: Los Vientos | L7: Los Vientos | M7: LOSVIENTOS_DIESEL | N7: Diésel | O7: L.VEGAS_______110 | P7: No | R7: 1 | S7: G_VIENT | T7: - | U7: -
B8: GMETROPOLITANA | C8: 76.538.731-0 | D8: CENTRAL LOS VIENTOS | E8: 386023 | F8: LOS VIENTOS TG | G8: UGE LOS VIENTOS TG | H8: PC000023-4 | I8: LOS VIENTOS 1 | J8: LOS VIENTOS | K8: Los Vientos | L8: Los Vientos | M8: LOSVIENTOS_DIESEL_CNAVIA | N8: Diésel | O8: L.VEGAS2______110 | P8: No | R8: 1 | S8: G_VIENT | T8: - | U8: -
B9: AES_GENER | C9: 94.272.000-9 | D9: VENTANA IV (EX CENTRAL CAMPICHE) | E9: 4917485 | F9: CAMPICHE (VENTANAS 4) | G9: UGE Ventanas 4 | H9: GE000124-8 | I9: CAMPICHE | J9: CAMPICHE | K9: Termoeléctrica Ventanas | L9: Campiche | M9: CAMPICHE_CAR | N9: Carbón | O9: VENTANAS______220 | P9: No | R9: 1 | S9: G_CAMPICHE | T9: - | U9: -
B10: AES_GENER | C10: 94.272.000-9 | D10: CENTRAL TERMOELECTRICA NUEVA VENTANAS UNIDAD 3 | E10: 309729 | F10: NUEVA VENTANAS (VENTANAS 3) | G10: UGE Ventanas 3 | H10: GE000072-1 | I10: NUEVA VENTANAS | J10: NUEVA VENTANAS | K10: Termoeléctrica Ventanas | L10: Nueva Ventanas | M10: NUEVAVENTANAS_CAR | N10: Carbón | O10: VENTANAS______220 | P10: No | R10: 1 | S10: G_NVENTANAS | T10: - | U10: -
B11: AES_GENER | C11: 94.272.000-9 | D11: CENTRAL TERMOELECTRICA VENTANAS UNIDADES 1 Y 2 | E11: 85823 | F11: VENTANAS U1 | G11: UGE Ventanas U1 | H11: GE000035-7 | I11: VENTANAS 1 | J11: VENTANAS 1 | K11: Termoeléctrica Ventanas | L11: Ventanas 1 | M11: VENTANAS-1_CAR | N11: Carbón | O11: VENTANAS______110 | P11: No | R11: 2 | S11: G_VENT_1A | T11: G_VENT_1B | U11: -
B12: AES_GENER | C12: 94.272.000-9 | D12: CENTRAL TERMOELECTRICA VENTANAS UNIDADES 1 Y 2 | E12: 85823 | F12: VENTANAS U2 | G12: UGE Ventanas U2 | H12: GE000036-5 | I12: VENTANAS 2 | J12: VENTANAS 2 | K12: Termoeléctrica Ventanas | L12: Ventanas 2 | M12: VENTANAS-2_CAR | N12: Carbón | O12: VENTANAS______110 | P12: No | R12: 2 | S12: G_VENT_2A | T12: G_VENT_2B | U12: -
B13: AES_GENER | C13: 94.272.000-9 | D13: CENTRAL TERMOELECTRICA LAGUNA VERDE | E13: 85824 | F13: LAGUNA VERDE TG | G13: UGE Laguna Verde TG | H13: PC000603-8 | I13: LAGUNA VERDE TG | J13: LAGUNA VERDE | K13: Laguna Verde | L13: Laguna Verde TG | M13: LAGVERDE-TG_DIESEL | N13: Diésel | O13: L.VERDE_______110 | P13: No | R13: 1 | S13: L. VERDE_TG | T13: - | U13: -
B14: AES_GENER | C14: 94.272.000-9 | D14: CENTRAL TERMOELECTRICA LAGUNA VERDE | E14: 85824 | F14: LAGUNA VERDE TV Brown Boveri I | G14: UGE Laguna VerdeTV Brown Boveri | H14: GE000039-k | I14: LAGUNA VERDE TV1 | J14: LAGUNA VERDE | K14: Laguna Verde | L14: Laguna Verde TV | M14: LAGVERDE-TV_DIESEL | N14: Diésel | O14: L.VERDE_______110 | P14: No | R14: 1 | S14: L. VERDE_TV | T14: - | U14: -
B15: AES_GENER | C15: 94.272.000-9 | D15: CENTRAL TERMOELECTRICA LAGUNA VERDE | E15: 85824 | F15: LAGUNA VERDE TV Brown Boveri II | G15: UGE Laguna VerdeTV Brown Boveri | H15: GE000040-3 | I15: LAGUNA VERDE TV2 | J15: LAGUNA VERDE | K15: Laguna Verde | L15: Laguna Verde TV | M15: LAGVERDE-TV_DIESEL | N15: Diésel | O15: L.VERDE_______110 | P15: No | R15: 1 | S15: L. VERDE_TV | T15: - | U15: -
B16: AES_GENER | C16: 94.272.000-9 | D16: CENTRAL TERMOELECTRICA LAGUNA VERDE | E16: 85824 | F16: LAGUNA VERDE TV AEG I | G16: UGE Laguna Verde TV AEG | H16: GE000037-3 | I16: LAGUNA VERDE TV1 | J16: LAGUNA VERDE | K16: Laguna Verde | L16: Laguna Verde TV | M16: LAGVERDE-TV_DIESEL | N16: Diésel | O16: L.VERDE_______110 | P16: No | R16: 1 | S16: L. VERDE_TV | T16: - | U16: -
B17: AES_GENER | C17: 94.272.000-9 | D17: CENTRAL TERMOELECTRICA LAGUNA VERDE | E17: 85824 | F17: LAGUNA VERDE TV AEG II | G17: UGE Laguna Verde TV AEG | H17: GE000038-1 | I17: LAGUNA VERDE TV2 | J17: LAGUNA VERDE | K17: Laguna Verde | L17: Laguna Verde TV | M17: LAGVERDE-TV_DIESEL | N17: Diésel | O17: L.VERDE_______110 | P17: No | R17: 1 | S17: L. VERDE_TV | T17: - | U17: -
B18: AES_GENER | C18: 94.272.000-9 | D18: CENTRAL TERMOELECTRICA LAJA | E18: 386458 | F18: LAJA EVE | G18: Caldera | H18: GE000116-7 | I18: LAJA 1 | J18: LAJA | K18: Laja | L18: Laja | M18: LAJAEVE-1_COGEN | N18: Biomasa | O18: CHARRUA_______066 | P18: Sí | R18: 1 | S18: G_LAJA | T18: - | U18: -
B19: AES_GENER | C19: 94.272.000-9 | D19: CENTRAL TERMOELECTRICA LAJA | E19: 386458 | F19: LAJA EVE | G19: Caldera | H19: GE000116-7 | I19: LAJA 2 | J19: LAJA | K19: Laja | L19: Laja | M19: LAJAEVE-2_COGEN | N19: Biomasa | O19: CHARRUA_______066 | P19: Sí | R19: 1 | S19: G_LAJA | T19: - | U19: -
B20: GMETROPOLITANA | C20: 76.538.731-0 | D20: SANTA LIDIA | E20: 3188001 | F20: SANTA LIDIA | G20: UGE SANTA LIDIA | H20: PC000846-4 | I20: SANTA LIDIA 1 | J20: SANTA LIDIA | K20: Santa Lidia | L20: Santa Lidia | M20: SANTALIDIA_DIESEL | N20: Diésel | O20: CHARRUA_______220 | P20: No | R20: 1 | S20: G_SLIDIA | T20: - | U20: -
B21: GMETROPOLITANA | C21: 76.538.731-0 | D21: SOCIEDAD ELÉCTRICA SANTIAGO S.A. | E21: 9778 | F21: NUEVA RENCA | G21: UGE Nueva Renca | H21: IN001115-4 | I21: NUEVA RENCA | J21: NUEVA RENCA | K21: Nueva Renca | L21: Nueva Renca | M21: NUEVARENCA_TG1+TV1+FA1_GNL_INFLEX | N21: GNL | O21: RENCA_________110 | P21: No | R21: 1 | S21: GENNREN | T21: - | U21: -
B22: GMETROPOLITANA | C22: 76.538.731-0 | D22: SOCIEDAD ELÉCTRICA SANTIAGO S.A. | E22: 9778 | F22: NUEVA RENCA | G22: UGE Nueva Renca | H22: IN001115-4 | I22: NUEVA RENCA | J22: NUEVA RENCA | K22: Nueva Renca | L22: Nueva Renca | M22: NUEVARENCA_TG1+TV1_GNL_INFLEX | N22: GNL | O22: RENCA_________110 | P22: No | R22: 1 | S22: GENNREN | T22: - | U22: -
B23: GMETROPOLITANA | C23: 76.538.731-0 | D23: SOCIEDAD ELÉCTRICA SANTIAGO S.A. | E23: 9778 | F23: NUEVA RENCA | G23: UGE Nueva Renca | H23: IN001115-4 | I23: NUEVA RENCA | J23: NUEVA RENCA | K23: Nueva Renca | L23: Nueva Renca | M23: NUEVARENCA_TG1+TV1_GNL_B | N23: GNL | O23: RENCA_________110 | P23: No | R23: 1 | S23: GENNREN | T23: - | U23: -
B24: GMETROPOLITANA | C24: 76.538.731-0 | D24: SOCIEDAD ELÉCTRICA SANTIAGO S.A. | E24: 9778 | F24: NUEVA RENCA | G24: UGE Nueva Renca | H24: IN001115-4 | I24: NUEVA RENCA | J24: NUEVA RENCA | K24: Nueva Renca | L24: Nueva Renca | M24: NUEVARENCA_TG1+TV1_GNL_E | N24: GNL | O24: RENCA_________110 | P24: No | R24: 1 | S24: GENNREN | T24: - | U24: -
B25: GMETROPOLITANA | C25: 76.538.731-0 | D25: SOCIEDAD ELÉCTRICA SANTIAGO S.A. | E25: 9778 | F25: NUEVA RENCA | G25: UGE Nueva Renca | H25: IN001115-4 | I25: NUEVA RENCA | J25: NUEVA RENCA | K25: Nueva Renca | L25: Nueva Renca | M25: NUEVARENCA_TG1+TV1_GNL_C | N25: GNL | O25: RENCA_________110 | P25: No | R25: 1 | S25: GENNREN | T25: - | U25: -
B26: GMETROPOLITANA | C26: 76.538.731-0 | D26: SOCIEDAD ELÉCTRICA SANTIAGO S.A. | E26: 9778 | F26: NUEVA RENCA | G26: UGE Nueva Renca | H26: IN001115-4 | I26: NUEVA RENCA | J26: NUEVA RENCA | K26: Nueva Renca | L26: Nueva Renca | M26: NUEVARENCA_TG1+TV1_GNL_D | N26: GNL | O26: RENCA_________110 | P26: No | R26: 1 | S26: GENNREN | T26: - | U26: -
B27: GMETROPOLITANA | C27: 76.538.731-0 | D27: SOCIEDAD ELÉCTRICA SANTIAGO S.A. | E27: 9778 | F27: NUEVA RENCA | G27: UGE Nueva Renca | H27: IN001115-4 | I27: NUEVA RENCA | J27: NUEVA RENCA | K27: Nueva Renca | L27: Nueva Renca | M27: NUEVARENCA_TG1+TV1_GNL_A | N27: GNL | O27: RENCA_________110 | P27: No | R27: 1 | S27: GENNREN | T27: - | U27: -
B28: GMETROPOLITANA | C28: 76.538.731-0 | D28: SOCIEDAD ELÉCTRICA SANTIAGO S.A. | E28: 9778 | F28: NUEVA RENCA | G28: UGE Nueva Renca | H28: IN001115-4 | I28: NUEVA RENCA | J28: NUEVA RENCA | K28: Nueva Renca | L28: Nueva Renca | M28: NUEVARENCA_TG1+TV1+FA1_GNL_A | N28: GNL | O28: RENCA_________110 | P28: No | R28: 1 | S28: GENNREN | T28: - | U28: -
B29: GMETROPOLITANA | C29: 76.538.731-0 | D29: SOCIEDAD ELÉCTRICA SANTIAGO S.A. | E29: 9778 | F29: NUEVA RENCA | G29: UGE Nueva Renca | H29: IN001115-4 | I29: NUEVA RENCA | J29: NUEVA RENCA | K29: Nueva Renca | L29: Nueva Renca | M29: NUEVARENCA_TG1+TV1_DIESEL | N29: Diésel | O29: RENCA_________110 | P29: No | R29: 1 | S29: GENNREN | T29: - | U29: -
B30: GMETROPOLITANA | C30: 76.538.731-0 | D30: SOCIEDAD ELÉCTRICA SANTIAGO S.A. | E30: 9778 | F30: NUEVA RENCA | G30: UGE Nueva Renca | H30: IN001115-4 | I30: NUEVA RENCA | J30: NUEVA RENCA | K30: Nueva Renca | L30: Nueva Renca | M30: NUEVARENCA_TG1+TV1+FA1_GLP | N30: GLP | O30: RENCA_________110 | P30: No | R30: 1 | S30: GENNREN | T30: - | U30: -
B31: GMETROPOLITANA | C31: 76.538.731-0 | D31: SOCIEDAD ELÉCTRICA SANTIAGO S.A. | E31: 9778 | F31: NUEVA RENCA | G31: UGE Nueva Renca | H31: IN001115-4 | I31: NUEVA RENCA | J31: NUEVA RENCA | K31: Nueva Renca | L31: Nueva Renca | M31: NUEVARENCA_TG1+TV1+FA1_GNL_P | N31: GNL | O31: RENCA_________110 | P31: No | R31: 1 | S31: GENNREN | T31: - | U31: -
B32: GMETROPOLITANA | C32: 76.538.731-0 | D32: SOCIEDAD ELÉCTRICA SANTIAGO S.A. | E32: 9778 | F32: NUEVA RENCA | G32: UGE Nueva Renca | H32: IN001115-4 | I32: NUEVA RENCA | J32: NUEVA RENCA | K32: Nueva Renca | L32: Nueva Renca | M32: NUEVARENCA_TG1+TV1_GNL_P | N32: GN | O32: RENCA_________110 | P32: No | R32: 1 | S32: GENNREN | T32: - | U32: -
B33: GMETROPOLITANA | C33: 76.538.731-0 | D33: SOCIEDAD ELÉCTRICA SANTIAGO S.A. | E33: 9778 | F33: NUEVA RENCA | G33: UGE Nueva Renca | H33: IN001115-4 | I33: NUEVA RENCA | J33: NUEVA RENCA | K33: Nueva Renca | L33: Nueva Renca | M33: NUEVARENCA_TG1+TV1_GN_A | N33: GN | O33: RENCA_________110 | P33: No | R33: 1 | S33: GENNREN | T33: - | U33: -
B34: GMETROPOLITANA | C34: 76.538.731-0 | D34: SOCIEDAD ELÉCTRICA SANTIAGO S.A. | E34: 9778 | F34: NUEVA RENCA | G34: UGE Nueva Renca | H34: IN001115-4 | I34: NUEVA RENCA | J34: NUEVA RENCA | K34: Nueva Renca | L34: Nueva Renca | M34: NUEVARENCA_TG1+TV1+FA1_GN_A | N34: GNL | O34: RENCA_________110 | P34: No | R34: 1 | S34: GENNREN | T34: - | U34: -
B35: GMETROPOLITANA | C35: 76.538.731-0 | D35: SOCIEDAD ELÉCTRICA SANTIAGO S.A. | E35: 9778 | F35: RENCA U1 | G35: UGE RENCA U1 | H35: IN001131-6 | I35: RENCA 1 | J35: RENCA | K35: Renca | L35: Renca U1 | M35: RENCA-1_DIESEL | N35: Diésel | O35: RENCA_________110 | P35: No | R35: 1 | S35: RENCARB1 | T35: - | U35: -
B36: GMETROPOLITANA | C36: 76.538.731-0 | D36: SOCIEDAD ELÉCTRICA SANTIAGO S.A. | E36: 9778 | F36: RENCA U2 | G36: UGE RENCA U2 | H36: IN001132-4 | I36: RENCA 2 | J36: RENCA | K36: Renca | L36: Renca U2 | M36: RENCA-2_DIESEL | N36: Diésel | O36: RENCA_________110 | P36: No | R36: 1 | S36: RENCARB1 | T36: - | U36: -
B37: ANDINA | C37: 76.708.710-1 | D37: CENTRAL TERMICA ANDINA | E37: 436492 | F37: CENTRAL TERMOELÉCTRICA ANDINA (CTA) | G37: UGE CTA | H37: GE000251-8 | I37: CTA1 | J37: TERMOELÉCTRICA ANDINA | K37: Andina | L37: CTA | M37: ANDINA-CTA_CAR | N37: Carbón | O37: CHACAYA_______220 | P37: No | R37: 1 | S37: 02427500000IF | T37: - | U37: -
B38: ANGAMOS | C38: 76.004.976-K | D38: EMPRESA ELÉCTRICA ANGAMOS S.A. | E38: 5452292 | F38: TERMOELÉCTRICA ANGAMOS 1 (ANG1) | G38: UGE ANGAMOS 1 | H38: GE000103-5 | I38: ANG1 | J38: TERMOELÉCTRICA ANGAMOS | K38: Angamos | L38: ANG1 | M38: ANGAMOS-ANG1_CAR | N38: Carbón | O38: ANGAMOS_______220 | P38: No | R38: 1 | S38: 22040700000IF | T38: - | U38: -
B39: ANGAMOS | C39: 76.004.976-K | D39: EMPRESA ELÉCTRICA ANGAMOS S.A. | E39: 5452292 | F39: TERMOELÉCTRICA ANGAMOS 2 (ANG2) | G39: UGE ANGAMOS 2 | H39: GE000104-3 | I39: ANG2 | J39: TERMOELÉCTRICA ANGAMOS | K39: Angamos | L39: ANG2 | M39: ANGAMOS-ANG2_CAR | N39: Carbón | O39: ANGAMOS_______220 | P39: No | R39: 1 | S39: 22040800000IF | T39: - | U39: -
B40: ARAUCO BIO | C40: 96.547.510-9 | D40: PLANTA VIÑALES | E40: 4473 | F40: VIÑALES | G40: caldera de poder | H40: GE000085-3 | I40: VIÑALES | J40: VIÑALES | K40: Viñales | L40: Viñales | M40: VINALES_BL1_COGEN | N40: Biomasa | O40: CONSTIT.______066 | P40: Sí | R40: 1 | S40: G_VINALES | T40: - | U40: -
B41: ARAUCO BIO | C41: 96.547.510-9 | D41: PLANTA VIÑALES | E41: 4473 | F41: VIÑALES | G41: caldera de poder | H41: GE000085-3 | I41: VIÑALES | J41: VIÑALES | K41: Viñales | L41: Viñales | M41: VINALES_BL1+BL2_COGEN | N41: Biomasa | O41: CONSTIT.______066 | P41: Sí | R41: 1 | S41: G_VINALES | T41: - | U41: -
B42: ARAUCO BIO | C42: 96.547.510-9 | D42: CELULOSA ARAUCO Y CONSTITUCIÓN -PLANTA CONSTITUCIÓN | E42: 2396 | F42: CELCO | G42: Caldera de poder | H42: IN000211-2 | I42: CELCO TG2 | J42: CELCO | K42: Celco | L42: Celco | M42: CELCO_BL1_COGEN | N42: Biomasa | O42: CONSTIT.______066 | P42: Sí | R42: 1 | S42: G_CELCO | T42: - | U42: -
B43: ARAUCO BIO | C43: 96.547.510-9 | D43: CELULOSA ARAUCO Y CONSTITUCIÓN -PLANTA CONSTITUCIÓN | E43: 2396 | F43: CELCO | G43: Caldera de poder | H43: IN000211-2 | I43: CELCO TG2 | J43: CELCO | K43: Celco | L43: Celco | M43: CELCO_BL1+BL2_COGEN | N43: Diésel | O43: CONSTIT.______066 | P43: Sí | R43: 1 | S43: G_CELCO | T43: - | U43: -
B44: ARAUCO BIO | C44: 96.547.510-9 | D44: CELULOSA ARAUCO Y CONSTITUCIÓN -PLANTA CONSTITUCIÓN | E44: 2396 | F44: CELCO | G44: Caldera recuperadora | H44: IN000212-0 | I44: CELCO TG2 | J44: CELCO | K44: Celco | L44: Celco | M44: CELCO_BL1_COGEN | N44: Biomasa | O44: CONSTIT.______066 | P44: Sí | R44: 1 | S44: G_CELCO | T44: - | U44: -
B45: ARAUCO BIO | C45: 96.547.510-9 | D45: CELULOSA ARAUCO Y CONSTITUCIÓN -PLANTA CONSTITUCIÓN | E45: 2396 | F45: CELCO | G45: Caldera recuperadora | H45: IN000212-0 | I45: CELCO TG2 | J45: CELCO | K45: Celco | L45: Celco | M45: CELCO_BL1+BL2_COGEN | N45: Diésel | O45: CONSTIT.______066 | P45: Sí | R45: 1 | S45: G_CELCO | T45: - | U45: -
B46: ARAUCO BIO | C46: 96.547.510-9 | D46: PLANTA LICANCEL | E46: 85016 | F46: LICANTEN | G46: Caldera recuperadora | H46: IN000224-4 | I46: LICANTEN TG2 | J46: LICANTEN | K46: Licanten | L46: Licantén | M46: LICANTEN_COGEN | N46: Biomasa | O46: LICANTEN______066 | P46: Sí | R46: 1 | S46: G_LICAN | T46: - | U46: -
B47: ARAUCO BIO | C47: 96.547.510-9 | D47: PLANTA LICANCEL | E47: 85016 | F47: LICANTEN | G47: Caldera de poder | H47: IN000225-2 | I47: LICANTEN TG2 | J47: LICANTEN | K47: Licanten | L47: Licantén | M47: LICANTEN_COGEN | N47: Biomasa | O47: LICANTEN______066 | P47: Sí | R47: 1 | S47: G_LICAN | T47: - | U47: -
B48: ARAUCO BIO | C48: 96.547.510-9 | D48: CENTRAL HORCONES | E48: 88406 | F48: HORCONES | G48: TURBOGENERADOR | H48: PC002440-0 | I48: HORCONES TG | J48: HORCONES TG | K48: Horcones TG | L48: Horcones | M48: HORCONES_DIESEL | N48: Diésel | O48: HORCONES______066 | P48: No | R48: 1 | S48: G_HORCO | T48: - | U48: -
B49: ARAUCO BIO | C49: 96.547.510-9 | D49: CELULOSA ARAUCO Y CONSTITUCIÓN -PLANTA ARAUCO | E49: 2397 | F49: ARAUCO | G49: CALDERA DE PODER 1 | H49: IN000213-9 | I49: ARAUCO TG4/5 | J49: ARAUCO | K49: Arauco | L49: Arauco | M49: ARAUCO_COGEN | N49: Biomasa | O49: HORCONES______066 | P49: Sí | R49: 1 | S49: G_ARAUC | T49: - | U49: -
B50: ARAUCO BIO | C50: 96.547.510-9 | D50: CELULOSA ARAUCO Y CONSTITUCIÓN -PLANTA ARAUCO | E50: 2397 | F50: ARAUCO | G50: CALDERA DE PODER 1 | H50: IN000213-9 | I50: ARAUCO TG6 | J50: ARAUCO | K50: Arauco | L50: Arauco | M50: ARAUCO_COGEN | N50: Biomasa | O50: HORCONES______066 | P50: Sí | R50: 1 | S50: G_ARAUC | T50: - | U50: -
B51: ARAUCO BIO | C51: 96.547.510-9 | D51: CELULOSA ARAUCO Y CONSTITUCIÓN -PLANTA ARAUCO | E51: 2397 | F51: ARAUCO | G51: CALDERA RECUPERADORA 1 | H51: IN000214-7 | I51: ARAUCO TG4/5 | J51: ARAUCO | K51: Arauco | L51: Arauco | M51: ARAUCO_COGEN | N51: Biomasa | O51: HORCONES______066 | P51: Sí | R51: 1 | S51: G_ARAUC | T51: - | U51: -
B52: ARAUCO BIO | C52: 96.547.510-9 | D52: CELULOSA ARAUCO Y CONSTITUCIÓN -PLANTA ARAUCO | E52: 2397 | F52: ARAUCO | G52: CALDERA RECUPERADORA 1 | H52: IN000214-7 | I52: ARAUCO TG4/5 | J52: ARAUCO | K52: Arauco | L52: Arauco | M52: ARAUCO_COGEN | N52: Biomasa | O52: HORCONES______066 | P52: Sí | R52: 1 | S52: G_ARAUC | T52: - | U52: -
B53: ARAUCO BIO | C53: 96.547.510-9 | D53: CELULOSA ARAUCO Y CONSTITUCIÓN -PLANTA ARAUCO | E53: 2397 | F53: ARAUCO | G53: CALDERA DE PODER 3 | H53: IN000215-5 | I53: ARAUCO TG6 | J53: ARAUCO | K53: Arauco | L53: Arauco | M53: ARAUCO_COGEN | N53: Biomasa | O53: HORCONES______066 | P53: Sí | R53: 1 | S53: G_ARAUC | T53: - | U53: -
B54: ARAUCO BIO | C54: 96.547.510-9 | D54: CELULOSA ARAUCO Y CONSTITUCIÓN -PLANTA ARAUCO | E54: 2397 | F54: ARAUCO | G54: CALDERA DE PODER 2 | H54: IN000216-3 | I54: ARAUCO TG4/5 | J54: ARAUCO | K54: Arauco | L54: Arauco | M54: ARAUCO_COGEN | N54: Biomasa | O54: HORCONES______066 | P54: Sí | R54: 1 | S54: G_ARAUC | T54: - | U54: -
B55: ARAUCO BIO | C55: 96.547.510-9 | D55: CELULOSA ARAUCO Y CONSTITUCIÓN -PLANTA ARAUCO | E55: 2397 | F55: ARAUCO | G55: CALDERA DE PODER 2 | H55: IN000216-3 | I55: ARAUCO TG6 | J55: ARAUCO | K55: Arauco | L55: Arauco | M55: ARAUCO_COGEN | N55: Biomasa | O55: HORCONES______066 | P55: Sí | R55: 1 | S55: G_ARAUC | T55: - | U55: -
B56: ARAUCO BIO | C56: 96.547.510-9 | D56: CELULOSA ARAUCO Y CONSTITUCIÓN -PLANTA ARAUCO | E56: 2397 | F56: ARAUCO | G56: CALDERA RECUPERADORA 2 | H56: IN000217-1 | I56: ARAUCO TG4/5 | J56: ARAUCO | K56: Arauco | L56: Arauco | M56: ARAUCO_COGEN | N56: Biomasa | O56: HORCONES______066 | P56: Sí | R56: 1 | S56: G_ARAUC | T56: - | U56: -
B57: ARAUCO BIO | C57: 96.547.510-9 | D57: CELULOSA ARAUCO Y CONSTITUCIÓN -PLANTA ARAUCO | E57: 2397 | F57: ARAUCO | G57: CALDERA RECUPERADORA 2 | H57: IN000217-1 | I57: ARAUCO TG6 | J57: ARAUCO | K57: Arauco | L57: Arauco | M57: ARAUCO_COGEN | N57: Biomasa | O57: HORCONES______066 | P57: Sí | R57: 1 | S57: G_ARAUC | T57: - | U57: -
B58: ARAUCO BIO | C58: 96.547.510-9 | D58: CELULOSA ARAUCO Y CONSTITUCIÓN -PLANTA ARAUCO | E58: 2397 | F58: ARAUCO | G58: CALDERA DE PODER 4 | H58: IN001365-3 | I58: ARAUCO TG4/5 | J58: ARAUCO | K58: Arauco | L58: Arauco | M58: ARAUCO_COGEN | N58: Biomasa | O58: HORCONES______066 | P58: Sí | R58: 1 | S58: G_ARAUC | T58: - | U58: -
B59: ARAUCO BIO | C59: 96.547.510-9 | D59: CELULOSA ARAUCO Y CONSTITUCIÓN -PLANTA ARAUCO | E59: 2397 | F59: ARAUCO | G59: CALDERA DE PODER 4 | H59: IN001365-3 | I59: ARAUCO TG6 | J59: ARAUCO | K59: Arauco | L59: Arauco | M59: ARAUCO_COGEN | N59: Biomasa | O59: HORCONES______066 | P59: Sí | R59: 1 | S59: G_ARAUC | T59: - | U59: -
B60: ARAUCO BIO | C60: 96.547.510-9 | D60: NUEVA ALDEA (1 Y 3) | E60: 85017 | F60: NUEVA ALDEA (1 y 3) | G60: TURBOGENERADOR | H60: EL019740-9 | I60: NUEVA ALDEA I | J60: NUEVA ALDEA I | K60: Nueva Aldea I | L60: Nueva Aldea I | M60: NUEVAALDEA-1_BL1_COGEN | N60: Biomasa | O60: STA.ELVIRA____066 | P60: Sí | R60: 2 | S60: G_NALDEA1 | T60: G_NALDEA3 | U60: -
B61: ARAUCO BIO | C61: 96.547.510-9 | D61: NUEVA ALDEA (1 Y 3) | E61: 85017 | F61: NUEVA ALDEA (1 y 3) | G61: TURBOGENERADOR | H61: EL019740-9 | I61: NUEVA ALDEA I | J61: NUEVA ALDEA I | K61: Nueva Aldea I | L61: Nueva Aldea I | M61: NUEVAALDEA-1_BL1+BL2_COGEN | N61: Biomasa | O61: STA.ELVIRA____066 | P61: Sí | R61: 2 | S61: G_NALDEA1 | T61: G_NALDEA3 | U61: -
B62: ARAUCO BIO | C62: 96.547.510-9 | D62: NUEVA ALDEA (1 Y 3) | E62: 85017 | F62: NUEVA ALDEA (1 y 3) | G62: TURBOGENERADOR | H62: EL019740-9 | I62: NUEVA ALDEA III | J62: NUEVA ALDEA III | K62: Nueva Aldea III | L62: Nueva Aldea III | M62: NUEVAALDEA-3_COGEN | N62: Biomasa | O62: STA.ELVIRA____066 | P62: Sí | R62: 2 | S62: G_NALDEA1 | T62: G_NALDEA3 | U62: -
B63: ARAUCO BIO | C63: 96.547.510-9 | D63: NUEVA ALDEA (1 Y 3) | E63: 85017 | F63: NUEVA ALDEA (1 y 3) | G63: CALDERA RECUPERADORA | H63: IN000218-k | I63: NUEVA ALDEA I | J63: NUEVA ALDEA I | K63: Nueva Aldea I | L63: Nueva Aldea I | M63: NUEVAALDEA-1_BL1_COGEN | N63: Biomasa | O63: STA.ELVIRA____066 | P63: Sí | R63: 2 | S63: G_NALDEA1 | T63: G_NALDEA3 | U63: -
B64: ARAUCO BIO | C64: 96.547.510-9 | D64: NUEVA ALDEA (1 Y 3) | E64: 85017 | F64: NUEVA ALDEA (1 y 3) | G64: CALDERA RECUPERADORA | H64: IN000218-k | I64: NUEVA ALDEA I | J64: NUEVA ALDEA I | K64: Nueva Aldea I | L64: Nueva Aldea I | M64: NUEVAALDEA-1_BL1+BL2_COGEN | N64: Biomasa | O64: STA.ELVIRA____066 | P64: Sí | R64: 2 | S64: G_NALDEA1 | T64: G_NALDEA3 | U64: -
B65: ARAUCO BIO | C65: 96.547.510-9 | D65: NUEVA ALDEA (1 Y 3) | E65: 85017 | F65: NUEVA ALDEA (1 y 3) | G65: CALDERA RECUPERADORA | H65: IN000218-k | I65: NUEVA ALDEA III | J65: NUEVA ALDEA III | K65: Nueva Aldea III | L65: Nueva Aldea III | M65: NUEVAALDEA-3_COGEN | N65: Biomasa | O65: STA.ELVIRA____066 | P65: Sí | R65: 2 | S65: G_NALDEA1 | T65: G_NALDEA3 | U65: -
B66: ARAUCO BIO | C66: 96.547.510-9 | D66: NUEVA ALDEA (1 Y 3) | E66: 85017 | F66: NUEVA ALDEA (1 y 3) | G66: CALDERA DE PODER | H66: IN002622-4 | I66: NUEVA ALDEA I | J66: NUEVA ALDEA I | K66: Nueva Aldea I | L66: Nueva Aldea I | M66: NUEVAALDEA-1_BL1_COGEN | N66: Biomasa | O66: STA.ELVIRA____066 | P66: Sí | R66: 2 | S66: G_NALDEA1 | T66: G_NALDEA3 | U66: -
B67: ARAUCO BIO | C67: 96.547.510-9 | D67: NUEVA ALDEA (1 Y 3) | E67: 85017 | F67: NUEVA ALDEA (1 y 3) | G67: CALDERA DE PODER | H67: IN002622-4 | I67: NUEVA ALDEA I | J67: NUEVA ALDEA I | K67: Nueva Aldea I | L67: Nueva Aldea I | M67: NUEVAALDEA-1_BL1+BL2_COGEN | N67: Biomasa | O67: STA.ELVIRA____066 | P67: Sí | R67: 2 | S67: G_NALDEA1 | T67: G_NALDEA3 | U67: -
B68: ARAUCO BIO | C68: 96.547.510-9 | D68: NUEVA ALDEA (1 Y 3) | E68: 85017 | F68: NUEVA ALDEA (1 y 3) | G68: CALDERA DE PODER | H68: IN002622-4 | I68: NUEVA ALDEA III | J68: NUEVA ALDEA III | K68: Nueva Aldea III | L68: Nueva Aldea III | M68: NUEVAALDEA-3_COGEN | N68: Biomasa | O68: STA.ELVIRA____066 | P68: Sí | R68: 2 | S68: G_NALDEA1 | T68: G_NALDEA3 | U68: -
B69: ARAUCO BIO | C69: 96.547.510-9 | D69: PLANTA TRUPÁN/CHOLGUÁN | E69: 4586116 | F69: CHOLGUÁN | H69: IN000611-8 | I69: CHOLGUAN TG | J69: CHOLGUAN | K69: Cholguan | L69: Cholguán | M69: CHOLGUAN_BL1_COGEN | N69: Biomasa | O69: CHOLGUAN______066 | P69: Sí | R69: 1 | S69: PANEL_I | T69: - | U69: -
B70: ARAUCO BIO | C70: 96.547.510-9 | D70: PLANTA TRUPÁN/CHOLGUÁN | E70: 4586116 | F70: CHOLGUÁN | H70: IN000611-8 | I70: CHOLGUAN TG | J70: CHOLGUAN | K70: Cholguan | L70: Cholguán | M70: CHOLGUAN_BL1+BL2_COGEN | N70: Diésel | O70: CHOLGUAN______066 | P70: Sí | R70: 1 | S70: PANEL_I | T70: - | U70: -
B71: ARAUCO BIO | C71: 96.547.510-9 | D71: PLANTA TRUPÁN/CHOLGUÁN | E71: 4586116 | F71: CHOLGUÁN | H71: IN003326-k | I71: CHOLGUAN TG | J71: CHOLGUAN | K71: Cholguan | L71: Cholguán | M71: CHOLGUAN_BL1_COGEN | N71: Biomasa | O71: CHOLGUAN______066 | P71: Sí | R71: 1 | S71: PANEL_I | T71: - | U71: -
B72: ARAUCO BIO | C72: 96.547.510-9 | D72: PLANTA TRUPÁN/CHOLGUÁN | E72: 4586116 | F72: CHOLGUÁN | H72: IN003326-k | I72: CHOLGUAN TG | J72: CHOLGUAN | K72: Cholguan | L72: Cholguán | M72: CHOLGUAN_BL1+BL2_COGEN | N72: Diésel | O72: CHOLGUAN______066 | P72: Sí | R72: 1 | S72: PANEL_I | T72: - | U72: -
B73: ARAUCO BIO | C73: 96.547.510-9 | D73: PLANTA TRUPÁN/CHOLGUÁN | E73: 4586116 | F73: CHOLGUÁN | H73: IN003325-1 | I73: CHOLGUAN TG | J73: CHOLGUAN | K73: Cholguan | L73: Cholguán | M73: CHOLGUAN_BL1_COGEN | N73: Biomasa | O73: CHOLGUAN______066 | P73: Sí | R73: 1 | S73: PANEL_I | T73: - | U73: -
B74: ARAUCO BIO | C74: 96.547.510-9 | D74: PLANTA TRUPÁN/CHOLGUÁN | E74: 4586116 | F74: CHOLGUÁN | H74: IN003325-1 | I74: CHOLGUAN TG | J74: CHOLGUAN | K74: Cholguan | L74: Cholguán | M74: CHOLGUAN_BL1+BL2_COGEN | N74: Diésel | O74: CHOLGUAN______066 | P74: Sí | R74: 1 | S74: PANEL_I | T74: - | U74: -
B75: ARAUCO BIO | C75: 96.547.510-9 | D75: CELULOSA ARAUCO Y CONSTITUCIÓN - PLANTA VALDIVIA | E75: 85018 | F75: VALDIVIA | G75: CALDERA RECUPERADORA | H75: IN000219-8 | I75: VALDIVIA | J75: VALDIVIA | K75: Valdivia | L75: Valdivia | M75: VALDIVIA_BL1_COGEN_PINO | N75: Biomasa | O75: CIRUELOS______220 | P75: Sí | R75: 1 | S75: VALDI_I | T75: - | U75: -
B76: ARAUCO BIO | C76: 96.547.510-9 | D76: CELULOSA ARAUCO Y CONSTITUCIÓN - PLANTA VALDIVIA | E76: 85018 | F76: VALDIVIA | G76: CALDERA RECUPERADORA | H76: IN000219-8 | I76: VALDIVIA | J76: VALDIVIA | K76: Valdivia | L76: Valdivia | M76: VALDIVIA_BL1_COGEN_EUCA | N76: Biomasa | O76: CIRUELOS______220 | P76: Sí | R76: 1 | S76: VALDI_I | T76: - | U76: -
B77: ARAUCO BIO | C77: 96.547.510-9 | D77: CELULOSA ARAUCO Y CONSTITUCIÓN - PLANTA VALDIVIA | E77: 85018 | F77: VALDIVIA | G77: CALDERA RECUPERADORA | H77: IN000219-8 | I77: VALDIVIA | J77: VALDIVIA | K77: Valdivia | L77: Valdivia | M77: VALDIVIA_BL1+BL2_COGEN_PINO | N77: Biomasa | O77: CIRUELOS______220 | P77: Sí | R77: 1 | S77: VALDI_I | T77: - | U77: -
B78: ARAUCO BIO | C78: 96.547.510-9 | D78: CELULOSA ARAUCO Y CONSTITUCIÓN - PLANTA VALDIVIA | E78: 85018 | F78: VALDIVIA | G78: CALDERA RECUPERADORA | H78: IN000219-8 | I78: VALDIVIA | J78: VALDIVIA | K78: Valdivia | L78: Valdivia | M78: VALDIVIA_BL1+BL2_COGEN_EUCA | N78: Biomasa | O78: CIRUELOS______220 | P78: Sí | R78: 1 | S78: VALDI_I | T78: - | U78: -
B79: ARAUCO BIO | C79: 96.547.510-9 | D79: CELULOSA ARAUCO Y CONSTITUCIÓN - PLANTA VALDIVIA | E79: 85018 | F79: VALDIVIA | G79: CALDERA RECUPERADORA | H79: IN000219-8 | I79: VALDIVIA | J79: VALDIVIA | K79: Valdivia | L79: Valdivia | M79: VALDIVIA_BL1+BL2+BL3_COGEN_PINO | N79: Biomasa | O79: CIRUELOS______220 | P79: Sí | R79: 1 | S79: VALDI_I | T79: - | U79: -
B80: ARAUCO BIO | C80: 96.547.510-9 | D80: CELULOSA ARAUCO Y CONSTITUCIÓN - PLANTA VALDIVIA | E80: 85018 | F80: VALDIVIA | G80: CALDERA RECUPERADORA | H80: IN000219-8 | I80: VALDIVIA | J80: VALDIVIA | K80: Valdivia | L80: Valdivia | M80: VALDIVIA_BL1+BL2+BL3_COGEN_EUCA | N80: Biomasa | O80: CIRUELOS______220 | P80: Sí | R80: 1 | S80: VALDI_I | T80: - | U80: -
B81: ARAUCO BIO | C81: 96.547.510-9 | D81: CELULOSA ARAUCO Y CONSTITUCIÓN - PLANTA VALDIVIA | E81: 85018 | F81: VALDIVIA | G81: CALDERA RECUPERADORA | H81: IN000219-8 | I81: VALDIVIA | J81: VALDIVIA | K81: Valdivia | L81: Valdivia | M81: VALDIVIA_BL1+BL2+BL3+BL4_COGEN_PINO | N81: Diésel | O81: CIRUELOS______220 | P81: Sí | R81: 1 | S81: VALDI_I | T81: - | U81: -
B82: ARAUCO BIO | C82: 96.547.510-9 | D82: CELULOSA ARAUCO Y CONSTITUCIÓN - PLANTA VALDIVIA | E82: 85018 | F82: VALDIVIA | G82: CALDERA RECUPERADORA | H82: IN000219-8 | I82: VALDIVIA | J82: VALDIVIA | K82: Valdivia | L82: Valdivia | M82: VALDIVIA_BL1+BL2+BL3+BL4_COGEN_EUCA | N82: Diésel | O82: CIRUELOS______220 | P82: Sí | R82: 1 | S82: VALDI_I | T82: - | U82: -
B83: ARAUCO BIO | C83: 96.547.510-9 | D83: CELULOSA ARAUCO Y CONSTITUCIÓN - PLANTA VALDIVIA | E83: 85018 | F83: VALDIVIA | G83: CALDERA DE PODER | H83: IN000220-1 | I83: VALDIVIA | J83: VALDIVIA | K83: Valdivia | L83: Valdivia | M83: VALDIVIA_BL1_COGEN_PINO | N83: Biomasa | O83: CIRUELOS______220 | P83: Sí | R83: 1 | S83: VALDI_I | T83: - | U83: -
B84: ARAUCO BIO | C84: 96.547.510-9 | D84: CELULOSA ARAUCO Y CONSTITUCIÓN - PLANTA VALDIVIA | E84: 85018 | F84: VALDIVIA | G84: CALDERA DE PODER | H84: IN000220-1 | I84: VALDIVIA | J84: VALDIVIA | K84: Valdivia | L84: Valdivia | M84: VALDIVIA_BL1_COGEN_EUCA | N84: Biomasa | O84: CIRUELOS______220 | P84: Sí | R84: 1 | S84: VALDI_I | T84: - | U84: -
B85: ARAUCO BIO | C85: 96.547.510-9 | D85: CELULOSA ARAUCO Y CONSTITUCIÓN - PLANTA VALDIVIA | E85: 85018 | F85: VALDIVIA | G85: CALDERA DE PODER | H85: IN000220-1 | I85: VALDIVIA | J85: VALDIVIA | K85: Valdivia | L85: Valdivia | M85: VALDIVIA_BL1+BL2_COGEN_PINO | N85: Biomasa | O85: CIRUELOS______220 | P85: Sí | R85: 1 | S85: VALDI_I | T85: - | U85: -
B86: ARAUCO BIO | C86: 96.547.510-9 | D86: CELULOSA ARAUCO Y CONSTITUCIÓN - PLANTA VALDIVIA | E86: 85018 | F86: VALDIVIA | G86: CALDERA DE PODER | H86: IN000220-1 | I86: VALDIVIA | J86: VALDIVIA | K86: Valdivia | L86: Valdivia | M86: VALDIVIA_BL1+BL2_COGEN_EUCA | N86: Biomasa | O86: CIRUELOS______220 | P86: Sí | R86: 1 | S86: VALDI_I | T86: - | U86: -
B87: ARAUCO BIO | C87: 96.547.510-9 | D87: CELULOSA ARAUCO Y CONSTITUCIÓN - PLANTA VALDIVIA | E87: 85018 | F87: VALDIVIA | G87: CALDERA DE PODER | H87: IN000220-1 | I87: VALDIVIA | J87: VALDIVIA | K87: Valdivia | L87: Valdivia | M87: VALDIVIA_BL1+BL2+BL3_COGEN_PINO | N87: Biomasa | O87: CIRUELOS______220 | P87: Sí | R87: 1 | S87: VALDI_I | T87: - | U87: -
B88: ARAUCO BIO | C88: 96.547.510-9 | D88: CELULOSA ARAUCO Y CONSTITUCIÓN - PLANTA VALDIVIA | E88: 85018 | F88: VALDIVIA | G88: CALDERA DE PODER | H88: IN000220-1 | I88: VALDIVIA | J88: VALDIVIA | K88: Valdivia | L88: Valdivia | M88: VALDIVIA_BL1+BL2+BL3_COGEN_EUCA | N88: Biomasa | O88: CIRUELOS______220 | P88: Sí | R88: 1 | S88: VALDI_I | T88: - | U88: -
B89: ARAUCO BIO | C89: 96.547.510-9 | D89: CELULOSA ARAUCO Y CONSTITUCIÓN - PLANTA VALDIVIA | E89: 85018 | F89: VALDIVIA | G89: CALDERA DE PODER | H89: IN000220-1 | I89: VALDIVIA | J89: VALDIVIA | K89: Valdivia | L89: Valdivia | M89: VALDIVIA_BL1+BL2+BL3+BL4_COGEN_PINO | N89: Diésel | O89: CIRUELOS______220 | P89: Sí | R89: 1 | S89: VALDI_I | T89: - | U89: -
B90: ARAUCO BIO | C90: 96.547.510-9 | D90: CELULOSA ARAUCO Y CONSTITUCIÓN - PLANTA VALDIVIA | E90: 85018 | F90: VALDIVIA | G90: CALDERA DE PODER | H90: IN000220-1 | I90: VALDIVIA | J90: VALDIVIA | K90: Valdivia | L90: Valdivia | M90: VALDIVIA_BL1+BL2+BL3+BL4_COGEN_EUCA | N90: Diésel | O90: CIRUELOS______220 | P90: Sí | R90: 1 | S90: VALDI_I | T90: - | U90: -
B91: BE FORESTALES | C91: 76.188.197-3 | D91: CMPC CELULOSA PLANTA LAJA | E91: 3216 | F91: CMPC LAJA | G91: Caldera Recuperadora N° 6 | H91: IN001988-0 | I91: CMPC LAJA 1 | J91: CMPC LAJA | K91: CMPC Laja | L91: CMPC Laja | M91: CMPCLAJA_BL1_COGEN | N91: Biomasa | O91: LAJA__________220 | P91: Sí | R91: 1 | S91: G_CMPC LAJA | T91: - | U91: -
B92: BE FORESTALES | C92: 76.188.197-3 | D92: CMPC CELULOSA PLANTA LAJA | E92: 3216 | F92: CMPC LAJA | G92: Caldera Recuperadora N° 6 | H92: IN001988-0 | I92: CMPC LAJA 1 | J92: CMPC LAJA | K92: CMPC Laja | L92: CMPC Laja | M92: CMPCLAJA_BL1+BL2_COGEN | N92: Biomasa | O92: LAJA__________220 | P92: Sí | R92: 1 | S92: G_CMPC LAJA | T92: - | U92: -
B93: BE FORESTALES | C93: 76.188.197-3 | D93: CMPC CELULOSA PLANTA LAJA | E93: 3216 | F93: CMPC LAJA | G93: Caldera Recuperadora N° 6 | H93: IN001988-0 | I93: CMPC LAJA 1 | J93: CMPC LAJA | K93: CMPC Laja | L93: CMPC Laja | M93: CMPCLAJA_BL1+BL2+BL3_COGEN | N93: Biomasa | O93: LAJA__________220 | P93: Sí | R93: 1 | S93: G_CMPC LAJA | T93: - | U93: -
B94: BE FORESTALES | C94: 76.188.197-3 | D94: CMPC CELULOSA PLANTA LAJA | E94: 3216 | F94: CMPC LAJA | G94: Caldera Recuperadora N° 6 | H94: IN001988-0 | I94: CMPC LAJA 2 | J94: CMPC LAJA | K94: CMPC Laja | L94: CMPC Laja | M94: CMPCLAJA_BL1_COGEN | N94: Biomasa | O94: LAJA__________220 | P94: Sí | R94: 1 | S94: G_CMPC LAJA | T94: - | U94: -
B95: BE FORESTALES | C95: 76.188.197-3 | D95: CMPC CELULOSA PLANTA LAJA | E95: 3216 | F95: CMPC LAJA | G95: Caldera Recuperadora N° 6 | H95: IN001988-0 | I95: CMPC LAJA 2 | J95: CMPC LAJA | K95: CMPC Laja | L95: CMPC Laja | M95: CMPCLAJA_BL1+BL2_COGEN | N95: Biomasa | O95: LAJA__________220 | P95: Sí | R95: 1 | S95: G_CMPC LAJA | T95: - | U95: -
B96: BE FORESTALES | C96: 76.188.197-3 | D96: CMPC CELULOSA PLANTA LAJA | E96: 3216 | F96: CMPC LAJA | G96: Caldera Recuperadora N° 6 | H96: IN001988-0 | I96: CMPC LAJA 2 | J96: CMPC LAJA | K96: CMPC Laja | L96: CMPC Laja | M96: CMPCLAJA_BL1+BL2+BL3_COGEN | N96: Biomasa | O96: LAJA__________220 | P96: Sí | R96: 1 | S96: G_CMPC LAJA | T96: - | U96: -
B97: BE FORESTALES | C97: 76.188.197-3 | D97: CMPC CELULOSA PLANTA LAJA | E97: 3216 | F97: CMPC LAJA | G97: Caldera de Biomasa 3 | H97: IN002371-3 | I97: CMPC LAJA 1 | J97: CMPC LAJA | K97: CMPC Laja | L97: CMPC Laja | M97: CMPCLAJA_BL1_COGEN | N97: Biomasa | O97: LAJA__________220 | P97: Sí | R97: 1 | S97: G_CMPC LAJA | T97: - | U97: -
B98: BE FORESTALES | C98: 76.188.197-3 | D98: CMPC CELULOSA PLANTA LAJA | E98: 3216 | F98: CMPC LAJA | G98: Caldera de Biomasa 3 | H98: IN002371-3 | I98: CMPC LAJA 1 | J98: CMPC LAJA | K98: CMPC Laja | L98: CMPC Laja | M98: CMPCLAJA_BL1+BL2_COGEN | N98: Biomasa | O98: LAJA__________220 | P98: Sí | R98: 1 | S98: G_CMPC LAJA | T98: - | U98: -
B99: BE FORESTALES | C99: 76.188.197-3 | D99: CMPC CELULOSA PLANTA LAJA | E99: 3216 | F99: CMPC LAJA | G99: Caldera de Biomasa 3 | H99: IN002371-3 | I99: CMPC LAJA 1 | J99: CMPC LAJA | K99: CMPC Laja | L99: CMPC Laja | M99: CMPCLAJA_BL1+BL2+BL3_COGEN | N99: Biomasa | O99: LAJA__________220 | P99: Sí | R99: 1 | S99: G_CMPC LAJA | T99: - | U99: -
B100: BE FORESTALES | C100: 76.188.197-3 | D100: CMPC CELULOSA PLANTA LAJA | E100: 3216 | F100: CMPC LAJA | G100: Caldera de Biomasa 3 | H100: IN002371-3 | I100: CMPC LAJA 2 | J100: CMPC LAJA | K100: CMPC Laja | L100: CMPC Laja | M100: CMPCLAJA_BL1_COGEN | N100: Biomasa | O100: LAJA__________220 | P100: Sí | R100: 1 | S100: G_CMPC LAJA | T100: - | U100: -
B101: BE FORESTALES | C101: 76.188.197-3 | D101: CMPC CELULOSA PLANTA LAJA | E101: 3216 | F101: CMPC LAJA | G101: Caldera de Biomasa 3 | H101: IN002371-3 | I101: CMPC LAJA 2 | J101: CMPC LAJA | K101: CMPC Laja | L101: CMPC Laja | M101: CMPCLAJA_BL1+BL2_COGEN | N101: Biomasa | O101: LAJA__________220 | P101: Sí | R101: 1 | S101: G_CMPC LAJA | T101: - | U101: -
B102: BE FORESTALES | C102: 76.188.197-3 | D102: CMPC CELULOSA PLANTA LAJA | E102: 3216 | F102: CMPC LAJA | G102: Caldera de Biomasa 3 | H102: IN002371-3 | I102: CMPC LAJA 2 | J102: CMPC LAJA | K102: CMPC Laja | L102: CMPC Laja | M102: CMPCLAJA_BL1+BL2+BL3_COGEN | N102: Biomasa | O102: LAJA__________220 | P102: Sí | R102: 1 | S102: G_CMPC LAJA | T102: - | U102: -
B103: BE FORESTALES | C103: 76.188.197-3 | D103: CMPC CELULOSA PLANTA SANTA FE | E103: 3522 | F103: CMPC SANTA FE | G103: CALDERA RECUPERADORA LINEA 1 | H103: IN000638-k | I103: CELULOSA SANTA FE 1 | J103: CMPC SANTA FE | K103: Santa Fe | L103: CMPC Santa Fe | M103: SANTAFE_BL1_COGEN | N103: Biomasa | O103: NACIMIENTO____220 | P103: Sí | R103: 1 | S103: G_CMPC SANTA FE | T103: - | U103: -
B104: BE FORESTALES | C104: 76.188.197-3 | D104: CMPC CELULOSA PLANTA SANTA FE | E104: 3522 | F104: CMPC SANTA FE | G104: CALDERA RECUPERADORA LINEA 1 | H104: IN000638-k | I104: CELULOSA SANTA FE 1 | J104: CMPC SANTA FE | K104: Santa Fe | L104: CMPC Santa Fe | M104: SANTAFE_BL1+BL2_COGEN | N104: Biomasa | O104: NACIMIENTO____220 | P104: Sí | R104: 1 | S104: G_CMPC SANTA FE | T104: - | U104: -
B105: BE FORESTALES | C105: 76.188.197-3 | D105: CMPC CELULOSA PLANTA SANTA FE | E105: 3522 | F105: CMPC SANTA FE | G105: CALDERA RECUPERADORA LINEA 1 | H105: IN000638-k | I105: CELULOSA SANTA FE 1 | J105: CMPC SANTA FE | K105: Santa Fe | L105: CMPC Santa Fe | M105: SANTAFE_BL1+BL2+BL3_COGEN | N105: Biomasa | O105: NACIMIENTO____220 | P105: Sí | R105: 1 | S105: G_CMPC SANTA FE | T105: - | U105: -
B106: BE FORESTALES | C106: 76.188.197-3 | D106: CMPC CELULOSA PLANTA SANTA FE | E106: 3522 | F106: CMPC SANTA FE | G106: CALDERA RECUPERADORA LINEA 1 | H106: IN000638-k | I106: CELULOSA SANTA FE 1 | J106: CMPC SANTA FE | K106: Santa Fe | L106: CMPC Santa Fe | M106: SANTAFE_BL1+BL2+BL3+BL4_COGEN | N106: Biomasa | O106: NACIMIENTO____220 | P106: Sí | R106: 1 | S106: G_CMPC SANTA FE | T106: - | U106: -
B107: BE FORESTALES | C107: 76.188.197-3 | D107: CMPC CELULOSA PLANTA SANTA FE | E107: 3522 | F107: CMPC SANTA FE | G107: CALDERA RECUPERADORA LINEA 1 | H107: IN000638-k | I107: CELULOSA SANTA FE 2 | J107: CMPC SANTA FE | K107: Santa Fe | L107: CMPC Santa Fe | M107: SANTAFE_BL1_COGEN | N107: Biomasa | O107: NACIMIENTO____220 | P107: Sí | R107: 1 | S107: G_CMPC SANTA FE | T107: - | U107: -
B108: BE FORESTALES | C108: 76.188.197-3 | D108: CMPC CELULOSA PLANTA SANTA FE | E108: 3522 | F108: CMPC SANTA FE | G108: CALDERA RECUPERADORA LINEA 1 | H108: IN000638-k | I108: CELULOSA SANTA FE 2 | J108: CMPC SANTA FE | K108: Santa Fe | L108: CMPC Santa Fe | M108: SANTAFE_BL1+BL2_COGEN | N108: Biomasa | O108: NACIMIENTO____220 | P108: Sí | R108: 1 | S108: G_CMPC SANTA FE | T108: - | U108: -
B109: BE FORESTALES | C109: 76.188.197-3 | D109: CMPC CELULOSA PLANTA SANTA FE | E109: 3522 | F109: CMPC SANTA FE | G109: CALDERA RECUPERADORA LINEA 1 | H109: IN000638-k | I109: CELULOSA SANTA FE 2 | J109: CMPC SANTA FE | K109: Santa Fe | L109: CMPC Santa Fe | M109: SANTAFE_BL1+BL2+BL3_COGEN | N109: Biomasa | O109: NACIMIENTO____220 | P109: Sí | R109: 1 | S109: G_CMPC SANTA FE | T109: - | U109: -
B110: BE FORESTALES | C110: 76.188.197-3 | D110: CMPC CELULOSA PLANTA SANTA FE | E110: 3522 | F110: CMPC SANTA FE | G110: CALDERA RECUPERADORA LINEA 1 | H110: IN000638-k | I110: CELULOSA SANTA FE 2 | J110: CMPC SANTA FE | K110: Santa Fe | L110: CMPC Santa Fe | M110: SANTAFE_BL1+BL2+BL3+BL4_COGEN | N110: Biomasa | O110: NACIMIENTO____220 | P110: Sí | R110: 1 | S110: G_CMPC SANTA FE | T110: - | U110: -
B111: BE FORESTALES | C111: 76.188.197-3 | D111: CMPC CELULOSA PLANTA SANTA FE | E111: 3522 | F111: CMPC SANTA FE | G111: CALDERA RECUPERADORA LINEA 1 | H111: IN000638-k | I111: CELULOSA SANTA FE 3 | J111: CMPC SANTA FE | K111: Santa Fe | L111: CMPC Santa Fe | M111: SANTAFE_BL1_COGEN | N111: Biomasa | O111: NACIMIENTO____220 | P111: Sí | R111: 1 | S111: G_CMPC SANTA FE | T111: - | U111: -
B112: BE FORESTALES | C112: 76.188.197-3 | D112: CMPC CELULOSA PLANTA SANTA FE | E112: 3522 | F112: CMPC SANTA FE | G112: CALDERA RECUPERADORA LINEA 1 | H112: IN000638-k | I112: CELULOSA SANTA FE 3 | J112: CMPC SANTA FE | K112: Santa Fe | L112: CMPC Santa Fe | M112: SANTAFE_BL1+BL2_COGEN | N112: Biomasa | O112: NACIMIENTO____220 | P112: Sí | R112: 1 | S112: G_CMPC SANTA FE | T112: - | U112: -
B113: BE FORESTALES | C113: 76.188.197-3 | D113: CMPC CELULOSA PLANTA SANTA FE | E113: 3522 | F113: CMPC SANTA FE | G113: CALDERA RECUPERADORA LINEA 1 | H113: IN000638-k | I113: CELULOSA SANTA FE 3 | J113: CMPC SANTA FE | K113: Santa Fe | L113: CMPC Santa Fe | M113: SANTAFE_BL1+BL2+BL3_COGEN | N113: Biomasa | O113: NACIMIENTO____220 | P113: Sí | R113: 1 | S113: G_CMPC SANTA FE | T113: - | U113: -
B114: BE FORESTALES | C114: 76.188.197-3 | D114: CMPC CELULOSA PLANTA SANTA FE | E114: 3522 | F114: CMPC SANTA FE | G114: CALDERA RECUPERADORA LINEA 1 | H114: IN000638-k | I114: CELULOSA SANTA FE 3 | J114: CMPC SANTA FE | K114: Santa Fe | L114: CMPC Santa Fe | M114: SANTAFE_BL1+BL2+BL3+BL4_COGEN | N114: Biomasa | O114: NACIMIENTO____220 | P114: Sí | R114: 1 | S114: G_CMPC SANTA FE | T114: - | U114: -
B115: BE FORESTALES | C115: 76.188.197-3 | D115: CMPC CELULOSA PLANTA SANTA FE | E115: 3522 | F115: CMPC SANTA FE | G115: CALDERA DE BIOMASA LINEA 1 | H115: IN000639-8 | I115: CELULOSA SANTA FE 1 | J115: CMPC SANTA FE | K115: Santa Fe | L115: CMPC Santa Fe | M115: SANTAFE_BL1_COGEN | N115: Biomasa | O115: NACIMIENTO____220 | P115: Sí | R115: 1 | S115: G_CMPC SANTA FE | T115: - | U115: -
B116: BE FORESTALES | C116: 76.188.197-3 | D116: CMPC CELULOSA PLANTA SANTA FE | E116: 3522 | F116: CMPC SANTA FE | G116: CALDERA DE BIOMASA LINEA 1 | H116: IN000639-8 | I116: CELULOSA SANTA FE 1 | J116: CMPC SANTA FE | K116: Santa Fe | L116: CMPC Santa Fe | M116: SANTAFE_BL1+BL2_COGEN | N116: Biomasa | O116: NACIMIENTO____220 | P116: Sí | R116: 1 | S116: G_CMPC SANTA FE | T116: - | U116: -
B117: BE FORESTALES | C117: 76.188.197-3 | D117: CMPC CELULOSA PLANTA SANTA FE | E117: 3522 | F117: CMPC SANTA FE | G117: CALDERA DE BIOMASA LINEA 1 | H117: IN000639-8 | I117: CELULOSA SANTA FE 1 | J117: CMPC SANTA FE | K117: Santa Fe | L117: CMPC Santa Fe | M117: SANTAFE_BL1+BL2+BL3_COGEN | N117: Biomasa | O117: NACIMIENTO____220 | P117: Sí | R117: 1 | S117: G_CMPC SANTA FE | T117: - | U117: -
B118: BE FORESTALES | C118: 76.188.197-3 | D118: CMPC CELULOSA PLANTA SANTA FE | E118: 3522 | F118: CMPC SANTA FE | G118: CALDERA DE BIOMASA LINEA 1 | H118: IN000639-8 | I118: CELULOSA SANTA FE 1 | J118: CMPC SANTA FE | K118: Santa Fe | L118: CMPC Santa Fe | M118: SANTAFE_BL1+BL2+BL3+BL4_COGEN | N118: Biomasa | O118: NACIMIENTO____220 | P118: Sí | R118: 1 | S118: G_CMPC SANTA FE | T118: - | U118: -
B119: BE FORESTALES | C119: 76.188.197-3 | D119: CMPC CELULOSA PLANTA SANTA FE | E119: 3522 | F119: CMPC SANTA FE | G119: CALDERA DE BIOMASA LINEA 1 | H119: IN000639-8 | I119: CELULOSA SANTA FE 2 | J119: CMPC SANTA FE | K119: Santa Fe | L119: CMPC Santa Fe | M119: SANTAFE_BL1_COGEN | N119: Biomasa | O119: NACIMIENTO____220 | P119: Sí | R119: 1 | S119: G_CMPC SANTA FE | T119: - | U119: -
B120: BE FORESTALES | C120: 76.188.197-3 | D120: CMPC CELULOSA PLANTA SANTA FE | E120: 3522 | F120: CMPC SANTA FE | G120: CALDERA DE BIOMASA LINEA 1 | H120: IN000639-8 | I120: CELULOSA SANTA FE 2 | J120: CMPC SANTA FE | K120: Santa Fe | L120: CMPC Santa Fe | M120: SANTAFE_BL1+BL2_COGEN | N120: Biomasa | O120: NACIMIENTO____220 | P120: Sí | R120: 1 | S120: G_CMPC SANTA FE | T120: - | U120: -
B121: BE FORESTALES | C121: 76.188.197-3 | D121: CMPC CELULOSA PLANTA SANTA FE | E121: 3522 | F121: CMPC SANTA FE | G121: CALDERA DE BIOMASA LINEA 1 | H121: IN000639-8 | I121: CELULOSA SANTA FE 2 | J121: CMPC SANTA FE | K121: Santa Fe | L121: CMPC Santa Fe | M121: SANTAFE_BL1+BL2+BL3_COGEN | N121: Biomasa | O121: NACIMIENTO____220 | P121: Sí | R121: 1 | S121: G_CMPC SANTA FE | T121: - | U121: -
B122: BE FORESTALES | C122: 76.188.197-3 | D122: CMPC CELULOSA PLANTA SANTA FE | E122: 3522 | F122: CMPC SANTA FE | G122: CALDERA DE BIOMASA LINEA 1 | H122: IN000639-8 | I122: CELULOSA SANTA FE 2 | J122: CMPC SANTA FE | K122: Santa Fe | L122: CMPC Santa Fe | M122: SANTAFE_BL1+BL2+BL3+BL4_COGEN | N122: Biomasa | O122: NACIMIENTO____220 | P122: Sí | R122: 1 | S122: G_CMPC SANTA FE | T122: - | U122: -
B123: BE FORESTALES | C123: 76.188.197-3 | D123: CMPC CELULOSA PLANTA SANTA FE | E123: 3522 | F123: CMPC SANTA FE | G123: CALDERA DE BIOMASA LINEA 1 | H123: IN000639-8 | I123: CELULOSA SANTA FE 3 | J123: CMPC SANTA FE | K123: Santa Fe | L123: CMPC Santa Fe | M123: SANTAFE_BL1_COGEN | N123: Biomasa | O123: NACIMIENTO____220 | P123: Sí | R123: 1 | S123: G_CMPC SANTA FE | T123: - | U123: -
B124: BE FORESTALES | C124: 76.188.197-3 | D124: CMPC CELULOSA PLANTA SANTA FE | E124: 3522 | F124: CMPC SANTA FE | G124: CALDERA DE BIOMASA LINEA 1 | H124: IN000639-8 | I124: CELULOSA SANTA FE 3 | J124: CMPC SANTA FE | K124: Santa Fe | L124: CMPC Santa Fe | M124: SANTAFE_BL1+BL2_COGEN | N124: Biomasa | O124: NACIMIENTO____220 | P124: Sí | R124: 1 | S124: G_CMPC SANTA FE | T124: - | U124: -
B125: BE FORESTALES | C125: 76.188.197-3 | D125: CMPC CELULOSA PLANTA SANTA FE | E125: 3522 | F125: CMPC SANTA FE | G125: CALDERA DE BIOMASA LINEA 1 | H125: IN000639-8 | I125: CELULOSA SANTA FE 3 | J125: CMPC SANTA FE | K125: Santa Fe | L125: CMPC Santa Fe | M125: SANTAFE_BL1+BL2+BL3_COGEN | N125: Biomasa | O125: NACIMIENTO____220 | P125: Sí | R125: 1 | S125: G_CMPC SANTA FE | T125: - | U125: -
B126: BE FORESTALES | C126: 76.188.197-3 | D126: CMPC CELULOSA PLANTA SANTA FE | E126: 3522 | F126: CMPC SANTA FE | G126: CALDERA DE BIOMASA LINEA 1 | H126: IN000639-8 | I126: CELULOSA SANTA FE 3 | J126: CMPC SANTA FE | K126: Santa Fe | L126: CMPC Santa Fe | M126: SANTAFE_BL1+BL2+BL3+BL4_COGEN | N126: Biomasa | O126: NACIMIENTO____220 | P126: Sí | R126: 1 | S126: G_CMPC SANTA FE | T126: - | U126: -
B127: BE FORESTALES | C127: 76.188.197-3 | D127: CMPC CELULOSA PLANTA SANTA FE | E127: 3522 | F127: CMPC SANTA FE | G127: CALDERA RECUPERADORA LINEA 2 | H127: IN000640-1 | I127: CELULOSA SANTA FE 1 | J127: CMPC SANTA FE | K127: Santa Fe | L127: CMPC Santa Fe | M127: SANTAFE_BL1_COGEN | N127: Biomasa | O127: NACIMIENTO____220 | P127: Sí | R127: 1 | S127: G_CMPC SANTA FE | T127: - | U127: -
B128: BE FORESTALES | C128: 76.188.197-3 | D128: CMPC CELULOSA PLANTA SANTA FE | E128: 3522 | F128: CMPC SANTA FE | G128: CALDERA RECUPERADORA LINEA 2 | H128: IN000640-1 | I128: CELULOSA SANTA FE 1 | J128: CMPC SANTA FE | K128: Santa Fe | L128: CMPC Santa Fe | M128: SANTAFE_BL1+BL2_COGEN | N128: Biomasa | O128: NACIMIENTO____220 | P128: Sí | R128: 1 | S128: G_CMPC SANTA FE | T128: - | U128: -
B129: BE FORESTALES | C129: 76.188.197-3 | D129: CMPC CELULOSA PLANTA SANTA FE | E129: 3522 | F129: CMPC SANTA FE | G129: CALDERA RECUPERADORA LINEA 2 | H129: IN000640-1 | I129: CELULOSA SANTA FE 1 | J129: CMPC SANTA FE | K129: Santa Fe | L129: CMPC Santa Fe | M129: SANTAFE_BL1+BL2+BL3_COGEN | N129: Biomasa | O129: NACIMIENTO____220 | P129: Sí | R129: 1 | S129: G_CMPC SANTA FE | T129: - | U129: -
B130: BE FORESTALES | C130: 76.188.197-3 | D130: CMPC CELULOSA PLANTA SANTA FE | E130: 3522 | F130: CMPC SANTA FE | G130: CALDERA RECUPERADORA LINEA 2 | H130: IN000640-1 | I130: CELULOSA SANTA FE 1 | J130: CMPC SANTA FE | K130: Santa Fe | L130: CMPC Santa Fe | M130: SANTAFE_BL1+BL2+BL3+BL4_COGEN | N130: Biomasa | O130: NACIMIENTO____220 | P130: Sí | R130: 1 | S130: G_CMPC SANTA FE | T130: - | U130: -
B131: BE FORESTALES | C131: 76.188.197-3 | D131: CMPC CELULOSA PLANTA SANTA FE | E131: 3522 | F131: CMPC SANTA FE | G131: CALDERA RECUPERADORA LINEA 2 | H131: IN000640-1 | I131: CELULOSA SANTA FE 2 | J131: CMPC SANTA FE | K131: Santa Fe | L131: CMPC Santa Fe | M131: SANTAFE_BL1_COGEN | N131: Biomasa | O131: NACIMIENTO____220 | P131: Sí | R131: 1 | S131: G_CMPC SANTA FE | T131: - | U131: -
B132: BE FORESTALES | C132: 76.188.197-3 | D132: CMPC CELULOSA PLANTA SANTA FE | E132: 3522 | F132: CMPC SANTA FE | G132: CALDERA RECUPERADORA LINEA 2 | H132: IN000640-1 | I132: CELULOSA SANTA FE 2 | J132: CMPC SANTA FE | K132: Santa Fe | L132: CMPC Santa Fe | M132: SANTAFE_BL1+BL2_COGEN | N132: Biomasa | O132: NACIMIENTO____220 | P132: Sí | R132: 1 | S132: G_CMPC SANTA FE | T132: - | U132: -
B133: BE FORESTALES | C133: 76.188.197-3 | D133: CMPC CELULOSA PLANTA SANTA FE | E133: 3522 | F133: CMPC SANTA FE | G133: CALDERA RECUPERADORA LINEA 2 | H133: IN000640-1 | I133: CELULOSA SANTA FE 2 | J133: CMPC SANTA FE | K133: Santa Fe | L133: CMPC Santa Fe | M133: SANTAFE_BL1+BL2+BL3_COGEN | N133: Biomasa | O133: NACIMIENTO____220 | P133: Sí | R133: 1 | S133: G_CMPC SANTA FE | T133: - | U133: -
B134: BE FORESTALES | C134: 76.188.197-3 | D134: CMPC CELULOSA PLANTA SANTA FE | E134: 3522 | F134: CMPC SANTA FE | G134: CALDERA RECUPERADORA LINEA 2 | H134: IN000640-1 | I134: CELULOSA SANTA FE 2 | J134: CMPC SANTA FE | K134: Santa Fe | L134: CMPC Santa Fe | M134: SANTAFE_BL1+BL2+BL3+BL4_COGEN | N134: Biomasa | O134: NACIMIENTO____220 | P134: Sí | R134: 1 | S134: G_CMPC SANTA FE | T134: - | U134: -
B135: BE FORESTALES | C135: 76.188.197-3 | D135: CMPC CELULOSA PLANTA SANTA FE | E135: 3522 | F135: CMPC SANTA FE | G135: CALDERA RECUPERADORA LINEA 2 | H135: IN000640-1 | I135: CELULOSA SANTA FE 3 | J135: CMPC SANTA FE | K135: Santa Fe | L135: CMPC Santa Fe | M135: SANTAFE_BL1_COGEN | N135: Biomasa | O135: NACIMIENTO____220 | P135: Sí | R135: 1 | S135: G_CMPC SANTA FE | T135: - | U135: -
B136: BE FORESTALES | C136: 76.188.197-3 | D136: CMPC CELULOSA PLANTA SANTA FE | E136: 3522 | F136: CMPC SANTA FE | G136: CALDERA RECUPERADORA LINEA 2 | H136: IN000640-1 | I136: CELULOSA SANTA FE 3 | J136: CMPC SANTA FE | K136: Santa Fe | L136: CMPC Santa Fe | M136: SANTAFE_BL1+BL2_COGEN | N136: Biomasa | O136: NACIMIENTO____220 | P136: Sí | R136: 1 | S136: G_CMPC SANTA FE | T136: - | U136: -
B137: BE FORESTALES | C137: 76.188.197-3 | D137: CMPC CELULOSA PLANTA SANTA FE | E137: 3522 | F137: CMPC SANTA FE | G137: CALDERA RECUPERADORA LINEA 2 | H137: IN000640-1 | I137: CELULOSA SANTA FE 3 | J137: CMPC SANTA FE | K137: Santa Fe | L137: CMPC Santa Fe | M137: SANTAFE_BL1+BL2+BL3_COGEN | N137: Biomasa | O137: NACIMIENTO____220 | P137: Sí | R137: 1 | S137: G_CMPC SANTA FE | T137: - | U137: -
B138: BE FORESTALES | C138: 76.188.197-3 | D138: CMPC CELULOSA PLANTA SANTA FE | E138: 3522 | F138: CMPC SANTA FE | G138: CALDERA RECUPERADORA LINEA 2 | H138: IN000640-1 | I138: CELULOSA SANTA FE 3 | J138: CMPC SANTA FE | K138: Santa Fe | L138: CMPC Santa Fe | M138: SANTAFE_BL1+BL2+BL3+BL4_COGEN | N138: Biomasa | O138: NACIMIENTO____220 | P138: Sí | R138: 1 | S138: G_CMPC SANTA FE | T138: - | U138: -
B139: BE FORESTALES | C139: 76.188.197-3 | D139: CMPC CELULOSA PLANTA PACIFICO | E139: 322488 | F139: CMPC PACIFICO | G139: CALDERA BIOMASA | H139: GE000015-2 | I139: CMPC PACIFICO 1 | J139: CMPC PACIFICO | K139: CMPC Pacífico | L139: CMPC Pacífico | M139: CMPCPACIFICO_BL1_COGEN | N139: Biomasa | O139: MININCO_______220 | P139: Sí | R139: 1 | S139: G_CMPC_PACIFICO | T139: - | U139: -
B140: BE FORESTALES | C140: 76.188.197-3 | D140: CMPC CELULOSA PLANTA PACIFICO | E140: 322488 | F140: CMPC PACIFICO | G140: CALDERA BIOMASA | H140: GE000015-2 | I140: CMPC PACIFICO 1 | J140: CMPC PACIFICO | K140: CMPC Pacífico | L140: CMPC Pacífico | M140: CMPCPACIFICO_BL1+BL2_COGEN | N140: Biomasa | O140: MININCO_______220 | P140: Sí | R140: 1 | S140: G_CMPC_PACIFICO | T140: - | U140: -
B141: BE FORESTALES | C141: 76.188.197-3 | D141: CMPC CELULOSA PLANTA PACIFICO | E141: 322488 | F141: CMPC PACIFICO | G141: CALDERA BIOMASA | H141: GE000015-2 | I141: CMPC PACIFICO 1 | J141: CMPC PACIFICO | K141: CMPC Pacífico | L141: CMPC Pacífico | M141: CMPCPACIFICO_BL1+BL2+BL3_COGEN | N141: Diésel | O141: MININCO_______220 | P141: Sí | R141: 1 | S141: G_CMPC_PACIFICO | T141: - | U141: -
B142: BE FORESTALES | C142: 76.188.197-3 | D142: CMPC CELULOSA PLANTA PACIFICO | E142: 322488 | F142: CMPC PACIFICO | G142: CALDERA BIOMASA | H142: GE000015-2 | I142: CMPC PACIFICO 2 | J142: CMPC PACIFICO | K142: CMPC Pacífico | L142: CMPC Pacífico | M142: CMPCPACIFICO_BL1_COGEN | N142: Biomasa | O142: MININCO_______220 | P142: Sí | R142: 1 | S142: G_CMPC_PACIFICO | T142: - | U142: -
B143: BE FORESTALES | C143: 76.188.197-3 | D143: CMPC CELULOSA PLANTA PACIFICO | E143: 322488 | F143: CMPC PACIFICO | G143: CALDERA BIOMASA | H143: GE000015-2 | I143: CMPC PACIFICO 2 | J143: CMPC PACIFICO | K143: CMPC Pacífico | L143: CMPC Pacífico | M143: CMPCPACIFICO_BL1+BL2_COGEN | N143: Biomasa | O143: MININCO_______220 | P143: Sí | R143: 1 | S143: G_CMPC_PACIFICO | T143: - | U143: -
B144: BE FORESTALES | C144: 76.188.197-3 | D144: CMPC CELULOSA PLANTA PACIFICO | E144: 322488 | F144: CMPC PACIFICO | G144: CALDERA BIOMASA | H144: GE000015-2 | I144: CMPC PACIFICO 2 | J144: CMPC PACIFICO | K144: CMPC Pacífico | L144: CMPC Pacífico | M144: CMPCPACIFICO_BL1+BL2+BL3_COGEN | N144: Diésel | O144: MININCO_______220 | P144: Sí | R144: 1 | S144: G_CMPC_PACIFICO | T144: - | U144: -
B145: BE FORESTALES | C145: 76.188.197-3 | D145: CMPC CELULOSA PLANTA PACIFICO | E145: 322488 | F145: CMPC PACIFICO | G145: CALDERA BIOMASA | H145: GE000015-2 | I145: CMPC PACIFICO 3 | J145: CMPC PACIFICO | K145: CMPC Pacífico | L145: CMPC Pacífico | M145: CMPCPACIFICO_BL1_COGEN | N145: Biomasa | O145: MININCO_______220 | P145: Sí | R145: 1 | S145: G_CMPC_PACIFICO | T145: - | U145: -
B146: BE FORESTALES | C146: 76.188.197-3 | D146: CMPC CELULOSA PLANTA PACIFICO | E146: 322488 | F146: CMPC PACIFICO | G146: CALDERA BIOMASA | H146: GE000015-2 | I146: CMPC PACIFICO 3 | J146: CMPC PACIFICO | K146: CMPC Pacífico | L146: CMPC Pacífico | M146: CMPCPACIFICO_BL1+BL2_COGEN | N146: Biomasa | O146: MININCO_______220 | P146: Sí | R146: 1 | S146: G_CMPC_PACIFICO | T146: - | U146: -
B147: BE FORESTALES | C147: 76.188.197-3 | D147: CMPC CELULOSA PLANTA PACIFICO | E147: 322488 | F147: CMPC PACIFICO | G147: CALDERA BIOMASA | H147: GE000015-2 | I147: CMPC PACIFICO 3 | J147: CMPC PACIFICO | K147: CMPC Pacífico | L147: CMPC Pacífico | M147: CMPCPACIFICO_BL1+BL2+BL3_COGEN | N147: Diésel | O147: MININCO_______220 | P147: Sí | R147: 1 | S147: G_CMPC_PACIFICO | T147: - | U147: -
B148: BE FORESTALES | C148: 76.188.197-3 | D148: CMPC CELULOSA PLANTA PACIFICO | E148: 322488 | F148: CMPC PACIFICO | G148: CALDERA AUXILIAR N°1 | H148: IN000334-8 | I148: CMPC PACIFICO 1 | J148: CMPC PACIFICO | K148: CMPC Pacífico | L148: CMPC Pacífico | M148: CMPCPACIFICO_BL1_COGEN | N148: Biomasa | O148: MININCO_______220 | P148: Sí | R148: 1 | S148: G_CMPC_PACIFICO | T148: - | U148: -
B149: BE FORESTALES | C149: 76.188.197-3 | D149: CMPC CELULOSA PLANTA PACIFICO | E149: 322488 | F149: CMPC PACIFICO | G149: CALDERA AUXILIAR N°1 | H149: IN000334-8 | I149: CMPC PACIFICO 1 | J149: CMPC PACIFICO | K149: CMPC Pacífico | L149: CMPC Pacífico | M149: CMPCPACIFICO_BL1+BL2_COGEN | N149: Biomasa | O149: MININCO_______220 | P149: Sí | R149: 1 | S149: G_CMPC_PACIFICO | T149: - | U149: -
B150: BE FORESTALES | C150: 76.188.197-3 | D150: CMPC CELULOSA PLANTA PACIFICO | E150: 322488 | F150: CMPC PACIFICO | G150: CALDERA AUXILIAR N°1 | H150: IN000334-8 | I150: CMPC PACIFICO 1 | J150: CMPC PACIFICO | K150: CMPC Pacífico | L150: CMPC Pacífico | M150: CMPCPACIFICO_BL1+BL2+BL3_COGEN | N150: Diésel | O150: MININCO_______220 | P150: Sí | R150: 1 | S150: G_CMPC_PACIFICO | T150: - | U150: -
B151: BE FORESTALES | C151: 76.188.197-3 | D151: CMPC CELULOSA PLANTA PACIFICO | E151: 322488 | F151: CMPC PACIFICO | G151: CALDERA AUXILIAR N°1 | H151: IN000334-8 | I151: CMPC PACIFICO 2 | J151: CMPC PACIFICO | K151: CMPC Pacífico | L151: CMPC Pacífico | M151: CMPCPACIFICO_BL1_COGEN | N151: Biomasa | O151: MININCO_______220 | P151: Sí | R151: 1 | S151: G_CMPC_PACIFICO | T151: - | U151: -
B152: BE FORESTALES | C152: 76.188.197-3 | D152: CMPC CELULOSA PLANTA PACIFICO | E152: 322488 | F152: CMPC PACIFICO | G152: CALDERA AUXILIAR N°1 | H152: IN000334-8 | I152: CMPC PACIFICO 2 | J152: CMPC PACIFICO | K152: CMPC Pacífico | L152: CMPC Pacífico | M152: CMPCPACIFICO_BL1+BL2_COGEN | N152: Biomasa | O152: MININCO_______220 | P152: Sí | R152: 1 | S152: G_CMPC_PACIFICO | T152: - | U152: -
B153: BE FORESTALES | C153: 76.188.197-3 | D153: CMPC CELULOSA PLANTA PACIFICO | E153: 322488 | F153: CMPC PACIFICO | G153: CALDERA AUXILIAR N°1 | H153: IN000334-8 | I153: CMPC PACIFICO 2 | J153: CMPC PACIFICO | K153: CMPC Pacífico | L153: CMPC Pacífico | M153: CMPCPACIFICO_BL1+BL2+BL3_COGEN | N153: Diésel | O153: MININCO_______220 | P153: Sí | R153: 1 | S153: G_CMPC_PACIFICO | T153: - | U153: -
B154: BE FORESTALES | C154: 76.188.197-3 | D154: CMPC CELULOSA PLANTA PACIFICO | E154: 322488 | F154: CMPC PACIFICO | G154: CALDERA AUXILIAR N°1 | H154: IN000334-8 | I154: CMPC PACIFICO 3 | J154: CMPC PACIFICO | K154: CMPC Pacífico | L154: CMPC Pacífico | M154: CMPCPACIFICO_BL1_COGEN | N154: Biomasa | O154: MININCO_______220 | P154: Sí | R154: 1 | S154: G_CMPC_PACIFICO | T154: - | U154: -
B155: BE FORESTALES | C155: 76.188.197-3 | D155: CMPC CELULOSA PLANTA PACIFICO | E155: 322488 | F155: CMPC PACIFICO | G155: CALDERA AUXILIAR N°1 | H155: IN000334-8 | I155: CMPC PACIFICO 3 | J155: CMPC PACIFICO | K155: CMPC Pacífico | L155: CMPC Pacífico | M155: CMPCPACIFICO_BL1+BL2_COGEN | N155: Biomasa | O155: MININCO_______220 | P155: Sí | R155: 1 | S155: G_CMPC_PACIFICO | T155: - | U155: -
B156: BE FORESTALES | C156: 76.188.197-3 | D156: CMPC CELULOSA PLANTA PACIFICO | E156: 322488 | F156: CMPC PACIFICO | G156: CALDERA AUXILIAR N°1 | H156: IN000334-8 | I156: CMPC PACIFICO 3 | J156: CMPC PACIFICO | K156: CMPC Pacífico | L156: CMPC Pacífico | M156: CMPCPACIFICO_BL1+BL2+BL3_COGEN | N156: Diésel | O156: MININCO_______220 | P156: Sí | R156: 1 | S156: G_CMPC_PACIFICO | T156: - | U156: -
B157: BE FORESTALES | C157: 76.188.197-3 | D157: CMPC CELULOSA PLANTA PACIFICO | E157: 322488 | F157: CMPC PACIFICO | G157: CALDERA AUXILIAR N°2 | H157: IN000335-6 | I157: CMPC PACIFICO 1 | J157: CMPC PACIFICO | K157: CMPC Pacífico | L157: CMPC Pacífico | M157: CMPCPACIFICO_BL1_COGEN | N157: Biomasa | O157: MININCO_______220 | P157: Sí | R157: 1 | S157: G_CMPC_PACIFICO | T157: - | U157: -
B158: BE FORESTALES | C158: 76.188.197-3 | D158: CMPC CELULOSA PLANTA PACIFICO | E158: 322488 | F158: CMPC PACIFICO | G158: CALDERA AUXILIAR N°2 | H158: IN000335-6 | I158: CMPC PACIFICO 1 | J158: CMPC PACIFICO | K158: CMPC Pacífico | L158: CMPC Pacífico | M158: CMPCPACIFICO_BL1+BL2_COGEN | N158: Biomasa | O158: MININCO_______220 | P158: Sí | R158: 1 | S158: G_CMPC_PACIFICO | T158: - | U158: -
B159: BE FORESTALES | C159: 76.188.197-3 | D159: CMPC CELULOSA PLANTA PACIFICO | E159: 322488 | F159: CMPC PACIFICO | G159: CALDERA AUXILIAR N°2 | H159: IN000335-6 | I159: CMPC PACIFICO 1 | J159: CMPC PACIFICO | K159: CMPC Pacífico | L159: CMPC Pacífico | M159: CMPCPACIFICO_BL1+BL2+BL3_COGEN | N159: Diésel | O159: MININCO_______220 | P159: Sí | R159: 1 | S159: G_CMPC_PACIFICO | T159: - | U159: -
B160: BE FORESTALES | C160: 76.188.197-3 | D160: CMPC CELULOSA PLANTA PACIFICO | E160: 322488 | F160: CMPC PACIFICO | G160: CALDERA AUXILIAR N°2 | H160: IN000335-6 | I160: CMPC PACIFICO 2 | J160: CMPC PACIFICO | K160: CMPC Pacífico | L160: CMPC Pacífico | M160: CMPCPACIFICO_BL1_COGEN | N160: Biomasa | O160: MININCO_______220 | P160: Sí | R160: 1 | S160: G_CMPC_PACIFICO | T160: - | U160: -
B161: BE FORESTALES | C161: 76.188.197-3 | D161: CMPC CELULOSA PLANTA PACIFICO | E161: 322488 | F161: CMPC PACIFICO | G161: CALDERA AUXILIAR N°2 | H161: IN000335-6 | I161: CMPC PACIFICO 2 | J161: CMPC PACIFICO | K161: CMPC Pacífico | L161: CMPC Pacífico | M161: CMPCPACIFICO_BL1+BL2_COGEN | N161: Biomasa | O161: MININCO_______220 | P161: Sí | R161: 1 | S161: G_CMPC_PACIFICO | T161: - | U161: -
B162: BE FORESTALES | C162: 76.188.197-3 | D162: CMPC CELULOSA PLANTA PACIFICO | E162: 322488 | F162: CMPC PACIFICO | G162: CALDERA AUXILIAR N°2 | H162: IN000335-6 | I162: CMPC PACIFICO 2 | J162: CMPC PACIFICO | K162: CMPC Pacífico | L162: CMPC Pacífico | M162: CMPCPACIFICO_BL1+BL2+BL3_COGEN | N162: Diésel | O162: MININCO_______220 | P162: Sí | R162: 1 | S162: G_CMPC_PACIFICO | T162: - | U162: -
B163: BE FORESTALES | C163: 76.188.197-3 | D163: CMPC CELULOSA PLANTA PACIFICO | E163: 322488 | F163: CMPC PACIFICO | G163: CALDERA AUXILIAR N°2 | H163: IN000335-6 | I163: CMPC PACIFICO 3 | J163: CMPC PACIFICO | K163: CMPC Pacífico | L163: CMPC Pacífico | M163: CMPCPACIFICO_BL1_COGEN | N163: Biomasa | O163: MININCO_______220 | P163: Sí | R163: 1 | S163: G_CMPC_PACIFICO | T163: - | U163: -
B164: BE FORESTALES | C164: 76.188.197-3 | D164: CMPC CELULOSA PLANTA PACIFICO | E164: 322488 | F164: CMPC PACIFICO | G164: CALDERA AUXILIAR N°2 | H164: IN000335-6 | I164: CMPC PACIFICO 3 | J164: CMPC PACIFICO | K164: CMPC Pacífico | L164: CMPC Pacífico | M164: CMPCPACIFICO_BL1+BL2_COGEN | N164: Biomasa | O164: MININCO_______220 | P164: Sí | R164: 1 | S164: G_CMPC_PACIFICO | T164: - | U164: -
B165: BE FORESTALES | C165: 76.188.197-3 | D165: CMPC CELULOSA PLANTA PACIFICO | E165: 322488 | F165: CMPC PACIFICO | G165: CALDERA AUXILIAR N°2 | H165: IN000335-6 | I165: CMPC PACIFICO 3 | J165: CMPC PACIFICO | K165: CMPC Pacífico | L165: CMPC Pacífico | M165: CMPCPACIFICO_BL1+BL2+BL3_COGEN | N165: Diésel | O165: MININCO_______220 | P165: Sí | R165: 1 | S165: G_CMPC_PACIFICO | T165: - | U165: -
B166: BE FORESTALES | C166: 76.188.197-3 | D166: CMPC CELULOSA PLANTA PACIFICO | E166: 322488 | F166: CMPC PACIFICO | G166: CALDERA RECUPERADORA | H166: IN000336-4 | I166: CMPC PACIFICO 1 | J166: CMPC PACIFICO | K166: CMPC Pacífico | L166: CMPC Pacífico | M166: CMPCPACIFICO_BL1_COGEN | N166: Biomasa | O166: MININCO_______220 | P166: Sí | R166: 1 | S166: G_CMPC_PACIFICO | T166: - | U166: -
B167: BE FORESTALES | C167: 76.188.197-3 | D167: CMPC CELULOSA PLANTA PACIFICO | E167: 322488 | F167: CMPC PACIFICO | G167: CALDERA RECUPERADORA | H167: IN000336-4 | I167: CMPC PACIFICO 1 | J167: CMPC PACIFICO | K167: CMPC Pacífico | L167: CMPC Pacífico | M167: CMPCPACIFICO_BL1+BL2_COGEN | N167: Biomasa | O167: MININCO_______220 | P167: Sí | R167: 1 | S167: G_CMPC_PACIFICO | T167: - | U167: -
B168: BE FORESTALES | C168: 76.188.197-3 | D168: CMPC CELULOSA PLANTA PACIFICO | E168: 322488 | F168: CMPC PACIFICO | G168: CALDERA RECUPERADORA | H168: IN000336-4 | I168: CMPC PACIFICO 1 | J168: CMPC PACIFICO | K168: CMPC Pacífico | L168: CMPC Pacífico | M168: CMPCPACIFICO_BL1+BL2+BL3_COGEN | N168: Diésel | O168: MININCO_______220 | P168: Sí | R168: 1 | S168: G_CMPC_PACIFICO | T168: - | U168: -
B169: BE FORESTALES | C169: 76.188.197-3 | D169: CMPC CELULOSA PLANTA PACIFICO | E169: 322488 | F169: CMPC PACIFICO | G169: CALDERA RECUPERADORA | H169: IN000336-4 | I169: CMPC PACIFICO 2 | J169: CMPC PACIFICO | K169: CMPC Pacífico | L169: CMPC Pacífico | M169: CMPCPACIFICO_BL1_COGEN | N169: Biomasa | O169: MININCO_______220 | P169: Sí | R169: 1 | S169: G_CMPC_PACIFICO | T169: - | U169: -
B170: BE FORESTALES | C170: 76.188.197-3 | D170: CMPC CELULOSA PLANTA PACIFICO | E170: 322488 | F170: CMPC PACIFICO | G170: CALDERA RECUPERADORA | H170: IN000336-4 | I170: CMPC PACIFICO 2 | J170: CMPC PACIFICO | K170: CMPC Pacífico | L170: CMPC Pacífico | M170: CMPCPACIFICO_BL1+BL2_COGEN | N170: Biomasa | O170: MININCO_______220 | P170: Sí | R170: 1 | S170: G_CMPC_PACIFICO | T170: - | U170: -
B171: BE FORESTALES | C171: 76.188.197-3 | D171: CMPC CELULOSA PLANTA PACIFICO | E171: 322488 | F171: CMPC PACIFICO | G171: CALDERA RECUPERADORA | H171: IN000336-4 | I171: CMPC PACIFICO 2 | J171: CMPC PACIFICO | K171: CMPC Pacífico | L171: CMPC Pacífico | M171: CMPCPACIFICO_BL1+BL2+BL3_COGEN | N171: Diésel | O171: MININCO_______220 | P171: Sí | R171: 1 | S171: G_CMPC_PACIFICO | T171: - | U171: -
B172: BE FORESTALES | C172: 76.188.197-3 | D172: CMPC CELULOSA PLANTA PACIFICO | E172: 322488 | F172: CMPC PACIFICO | G172: CALDERA RECUPERADORA | H172: IN000336-4 | I172: CMPC PACIFICO 3 | J172: CMPC PACIFICO | K172: CMPC Pacífico | L172: CMPC Pacífico | M172: CMPCPACIFICO_BL1_COGEN | N172: Biomasa | O172: MININCO_______220 | P172: Sí | R172: 1 | S172: G_CMPC_PACIFICO | T172: - | U172: -
B173: BE FORESTALES | C173: 76.188.197-3 | D173: CMPC CELULOSA PLANTA PACIFICO | E173: 322488 | F173: CMPC PACIFICO | G173: CALDERA RECUPERADORA | H173: IN000336-4 | I173: CMPC PACIFICO 3 | J173: CMPC PACIFICO | K173: CMPC Pacífico | L173: CMPC Pacífico | M173: CMPCPACIFICO_BL1+BL2_COGEN | N173: Biomasa | O173: MININCO_______220 | P173: Sí | R173: 1 | S173: G_CMPC_PACIFICO | T173: - | U173: -
B174: BE FORESTALES | C174: 76.188.197-3 | D174: CMPC CELULOSA PLANTA PACIFICO | E174: 322488 | F174: CMPC PACIFICO | G174: CALDERA RECUPERADORA | H174: IN000336-4 | I174: CMPC PACIFICO 3 | J174: CMPC PACIFICO | K174: CMPC Pacífico | L174: CMPC Pacífico | M174: CMPCPACIFICO_BL1+BL2+BL3_COGEN | N174: Diésel | O174: MININCO_______220 | P174: Sí | R174: 1 | S174: G_CMPC_PACIFICO | T174: - | U174: -
B175: BE FORESTALES | C175: 76.188.197-3 | D175: CMPC CELULOSA PLANTA PACIFICO | E175: 322488 | F175: CMPC PACIFICO | G175: INCINERADOR DEDICADO | H175: PC001041-8 | I175: CMPC PACIFICO 1 | J175: CMPC PACIFICO | K175: CMPC Pacífico | L175: CMPC Pacífico | M175: CMPCPACIFICO_BL1_COGEN | N175: Biomasa | O175: MININCO_______220 | P175: Sí | R175: 1 | S175: G_CMPC_PACIFICO | T175: - | U175: -
B176: BE FORESTALES | C176: 76.188.197-3 | D176: CMPC CELULOSA PLANTA PACIFICO | E176: 322488 | F176: CMPC PACIFICO | G176: INCINERADOR DEDICADO | H176: PC001041-8 | I176: CMPC PACIFICO 1 | J176: CMPC PACIFICO | K176: CMPC Pacífico | L176: CMPC Pacífico | M176: CMPCPACIFICO_BL1+BL2_COGEN | N176: Biomasa | O176: MININCO_______220 | P176: Sí | R176: 1 | S176: G_CMPC_PACIFICO | T176: - | U176: -
B177: BE FORESTALES | C177: 76.188.197-3 | D177: CMPC CELULOSA PLANTA PACIFICO | E177: 322488 | F177: CMPC PACIFICO | G177: INCINERADOR DEDICADO | H177: PC001041-8 | I177: CMPC PACIFICO 1 | J177: CMPC PACIFICO | K177: CMPC Pacífico | L177: CMPC Pacífico | M177: CMPCPACIFICO_BL1+BL2+BL3_COGEN | N177: Diésel | O177: MININCO_______220 | P177: Sí | R177: 1 | S177: G_CMPC_PACIFICO | T177: - | U177: -
B178: BE FORESTALES | C178: 76.188.197-3 | D178: CMPC CELULOSA PLANTA PACIFICO | E178: 322488 | F178: CMPC PACIFICO | G178: INCINERADOR DEDICADO | H178: PC001041-8 | I178: CMPC PACIFICO 2 | J178: CMPC PACIFICO | K178: CMPC Pacífico | L178: CMPC Pacífico | M178: CMPCPACIFICO_BL1_COGEN | N178: Biomasa | O178: MININCO_______220 | P178: Sí | R178: 1 | S178: G_CMPC_PACIFICO | T178: - | U178: -
B179: BE FORESTALES | C179: 76.188.197-3 | D179: CMPC CELULOSA PLANTA PACIFICO | E179: 322488 | F179: CMPC PACIFICO | G179: INCINERADOR DEDICADO | H179: PC001041-8 | I179: CMPC PACIFICO 2 | J179: CMPC PACIFICO | K179: CMPC Pacífico | L179: CMPC Pacífico | M179: CMPCPACIFICO_BL1+BL2_COGEN | N179: Biomasa | O179: MININCO_______220 | P179: Sí | R179: 1 | S179: G_CMPC_PACIFICO | T179: - | U179: -
B180: BE FORESTALES | C180: 76.188.197-3 | D180: CMPC CELULOSA PLANTA PACIFICO | E180: 322488 | F180: CMPC PACIFICO | G180: INCINERADOR DEDICADO | H180: PC001041-8 | I180: CMPC PACIFICO 2 | J180: CMPC PACIFICO | K180: CMPC Pacífico | L180: CMPC Pacífico | M180: CMPCPACIFICO_BL1+BL2+BL3_COGEN | N180: Diésel | O180: MININCO_______220 | P180: Sí | R180: 1 | S180: G_CMPC_PACIFICO | T180: - | U180: -
B181: BE FORESTALES | C181: 76.188.197-3 | D181: CMPC CELULOSA PLANTA PACIFICO | E181: 322488 | F181: CMPC PACIFICO | G181: INCINERADOR DEDICADO | H181: PC001041-8 | I181: CMPC PACIFICO 3 | J181: CMPC PACIFICO | K181: CMPC Pacífico | L181: CMPC Pacífico | M181: CMPCPACIFICO_BL1_COGEN | N181: Biomasa | O181: MININCO_______220 | P181: Sí | R181: 1 | S181: G_CMPC_PACIFICO | T181: - | U181: -
B182: BE FORESTALES | C182: 76.188.197-3 | D182: CMPC CELULOSA PLANTA PACIFICO | E182: 322488 | F182: CMPC PACIFICO | G182: INCINERADOR DEDICADO | H182: PC001041-8 | I182: CMPC PACIFICO 3 | J182: CMPC PACIFICO | K182: CMPC Pacífico | L182: CMPC Pacífico | M182: CMPCPACIFICO_BL1+BL2_COGEN | N182: Biomasa | O182: MININCO_______220 | P182: Sí | R182: 1 | S182: G_CMPC_PACIFICO | T182: - | U182: -
B183: BE FORESTALES | C183: 76.188.197-3 | D183: CMPC CELULOSA PLANTA PACIFICO | E183: 322488 | F183: CMPC PACIFICO | G183: INCINERADOR DEDICADO | H183: PC001041-8 | I183: CMPC PACIFICO 3 | J183: CMPC PACIFICO | K183: CMPC Pacífico | L183: CMPC Pacífico | M183: CMPCPACIFICO_BL1+BL2+BL3_COGEN | N183: Diésel | O183: MININCO_______220 | P183: Sí | R183: 1 | S183: G_CMPC_PACIFICO | T183: - | U183: -
B184: BE FORESTALES | C184: 76.188.197-3 | D184: PAPELES CORDILLERA S.A. | E184: 2897 | F184: CMPC CORDILLERA | G184: CALDERA 1 | H184: IN001148-0 | I184: CMPC CORDILLERA | J184: CMPC CORDILLERA | K184: CMPC Cordillera | L184: CMPC Cordillera | M184: CMPCCORDILLERA_BL1_COGEN | N184: GNL | O184: PALTO_________110 | P184: Sí | R184: 1 | S184: G_CMPC CORDILLERA | T184: - | U184: -
B185: BE FORESTALES | C185: 76.188.197-3 | D185: PAPELES CORDILLERA S.A. | E185: 2897 | F185: CMPC CORDILLERA | G185: CALDERA 1 | H185: IN001148-0 | I185: CMPC CORDILLERA | J185: CMPC CORDILLERA | K185: CMPC Cordillera | L185: CMPC Cordillera | M185: CMPCCORDILLERA_BL1+BL2_COGEN | N185: GNL | O185: PALTO_________110 | P185: Sí | R185: 1 | S185: G_CMPC CORDILLERA | T185: - | U185: -
B186: BE FORESTALES | C186: 76.188.197-3 | D186: PAPELES CORDILLERA S.A. | E186: 2897 | F186: CMPC CORDILLERA | G186: CALDERA 1 | H186: IN001148-0 | I186: CMPC CORDILLERA | J186: CMPC CORDILLERA | K186: CMPC Cordillera | L186: CMPC Cordillera | M186: CMPCCORDILLERA_BL1+BL2+BL3_COGEN | N186: GNL | O186: PALTO_________110 | P186: Sí | R186: 1 | S186: G_CMPC CORDILLERA | T186: - | U186: -
B187: BE FORESTALES | C187: 76.188.197-3 | D187: PAPELES CORDILLERA S.A. | E187: 2897 | F187: CMPC CORDILLERA | G187: CALDERA 2 | H187: IN001149-9 | I187: CMPC CORDILLERA | J187: CMPC CORDILLERA | K187: CMPC Cordillera | L187: CMPC Cordillera | M187: CMPCCORDILLERA_BL1_COGEN | N187: GNL | O187: PALTO_________110 | P187: Sí | R187: 1 | S187: G_CMPC CORDILLERA | T187: - | U187: -
B188: BE FORESTALES | C188: 76.188.197-3 | D188: PAPELES CORDILLERA S.A. | E188: 2897 | F188: CMPC CORDILLERA | G188: CALDERA 2 | H188: IN001149-9 | I188: CMPC CORDILLERA | J188: CMPC CORDILLERA | K188: CMPC Cordillera | L188: CMPC Cordillera | M188: CMPCCORDILLERA_BL1+BL2_COGEN | N188: GNL | O188: PALTO_________110 | P188: Sí | R188: 1 | S188: G_CMPC CORDILLERA | T188: - | U188: -
B189: BE FORESTALES | C189: 76.188.197-3 | D189: PAPELES CORDILLERA S.A. | E189: 2897 | F189: CMPC CORDILLERA | G189: CALDERA 2 | H189: IN001149-9 | I189: CMPC CORDILLERA | J189: CMPC CORDILLERA | K189: CMPC Cordillera | L189: CMPC Cordillera | M189: CMPCCORDILLERA_BL1+BL2+BL3_COGEN | N189: GNL | O189: PALTO_________110 | P189: Sí | R189: 1 | S189: G_CMPC CORDILLERA | T189: - | U189: -
B190: BE FORESTALES | C190: 76.188.197-3 | D190: PAPELES CORDILLERA S.A. | E190: 2897 | F190: CMPC CORDILLERA | G190: CALDERA 3 | H190: IN001150-2 | I190: CMPC CORDILLERA | J190: CMPC CORDILLERA | K190: CMPC Cordillera | L190: CMPC Cordillera | M190: CMPCCORDILLERA_BL1_COGEN | N190: GNL | O190: PALTO_________110 | P190: Sí | R190: 1 | S190: G_CMPC CORDILLERA | T190: - | U190: -
B191: BE FORESTALES | C191: 76.188.197-3 | D191: PAPELES CORDILLERA S.A. | E191: 2897 | F191: CMPC CORDILLERA | G191: CALDERA 3 | H191: IN001150-2 | I191: CMPC CORDILLERA | J191: CMPC CORDILLERA | K191: CMPC Cordillera | L191: CMPC Cordillera | M191: CMPCCORDILLERA_BL1+BL2_COGEN | N191: GNL | O191: PALTO_________110 | P191: Sí | R191: 1 | S191: G_CMPC CORDILLERA | T191: - | U191: -
B192: BE FORESTALES | C192: 76.188.197-3 | D192: PAPELES CORDILLERA S.A. | E192: 2897 | F192: CMPC CORDILLERA | G192: CALDERA 3 | H192: IN001150-2 | I192: CMPC CORDILLERA | J192: CMPC CORDILLERA | K192: CMPC Cordillera | L192: CMPC Cordillera | M192: CMPCCORDILLERA_BL1+BL2+BL3_COGEN | N192: GNL | O192: PALTO_________110 | P192: Sí | R192: 1 | S192: G_CMPC CORDILLERA | T192: - | U192: -
B193: BE FORESTALES | C193: 76.188.197-3 | D193: PAPELES CORDILLERA S.A. | E193: 2897 | F193: CMPC CORDILLERA | G193: TURBINA | H193: PC003526-2 | I193: CMPC CORDILLERA | J193: CMPC CORDILLERA | K193: CMPC Cordillera | L193: CMPC Cordillera | M193: CMPCCORDILLERA_BL1_COGEN | N193: GNL | O193: PALTO_________110 | P193: Sí | R193: 1 | S193: G_CMPC CORDILLERA | T193: - | U193: -
B194: BE FORESTALES | C194: 76.188.197-3 | D194: PAPELES CORDILLERA S.A. | E194: 2897 | F194: CMPC CORDILLERA | G194: TURBINA | H194: PC003526-2 | I194: CMPC CORDILLERA | J194: CMPC CORDILLERA | K194: CMPC Cordillera | L194: CMPC Cordillera | M194: CMPCCORDILLERA_BL1+BL2_COGEN | N194: GNL | O194: PALTO_________110 | P194: Sí | R194: 1 | S194: G_CMPC CORDILLERA | T194: - | U194: -
B195: BE FORESTALES | C195: 76.188.197-3 | D195: PAPELES CORDILLERA S.A. | E195: 2897 | F195: CMPC CORDILLERA | G195: TURBINA | H195: PC003526-2 | I195: CMPC CORDILLERA | J195: CMPC CORDILLERA | K195: CMPC Cordillera | L195: CMPC Cordillera | M195: CMPCCORDILLERA_BL1+BL2+BL3_COGEN | N195: GNL | O195: PALTO_________110 | P195: Sí | R195: 1 | S195: G_CMPC CORDILLERA | T195: - | U195: -
B196: BE FORESTALES | C196: 76.188.197-3 | D196: CMPC TISSUE S.A. | E196: 9898 | F196: CMPC TISSUE | H196: IN002463-9 | I196: CMPC TISSUE | J196: CMPC TISSUE | L196: CMPC TISSUE | P196: Sí | R196: 1 | S196: G_CMPC TISSUE | T196: - | U196: -
B197: BE FORESTALES | C197: 76.188.197-3 | D197: CMPC TISSUE S.A. | E197: 9898 | F197: CMPC TISSUE | H197: PC003087-7 | I197: CMPC TISSUE | J197: CMPC TISSUE | L197: CMPC TISSUE | P197: Sí | R197: 1 | S197: G_CMPC TISSUE | T197: - | U197: -
B198: BE FORESTALES | C198: 76.188.197-3 | D198: CMPC TISSUE S.A. | E198: 9898 | F198: CMPC TISSUE | G198: TURBINA AERODERIVATIVA | H198: PR15149 | I198: CMPC TISSUE | J198: CMPC TISSUE | L198: CMPC TISSUE | P198: Sí | R198: 1 | S198: G_CMPC TISSUE | T198: - | U198: -
B199: CARDONES SA | C199: 76.550.580-1 | D199: CENTRAL CARDONES | E199: 245656 | F199: CENTRAL CARDONES | G199: UGE Cardones | H199: PC001834-6 | I199: CARDONES (EX TIERRA AMARILLA) | J199: CARDONES | K199: Cardones | L199: Cardones | M199: CARDONES_DIESEL | N199: Diésel | O199: CARDONES______220 | P199: No | R199: 1 | S199: CTRL_TAMARILLA | T199: - | U199: -
B200: COCHRANE | C200: 76.085.254-6 | D200: CENTRAL TERMOELÉCTRICA COCHRANE | E200: 5452233 | F200: COCHRANE (CCH2) | G200: UGE CCH-2 | H200: GE000235-6 | I200: CCR2 | J200: Cochrane | K200: Cochrane | L200: CCH2 | M200: COCHRANE-CCH2_CAR | N200: Carbón | O200: COCHRANE______220 | P200: No | R200: 1 | S200: 04337700000IF | T200: - | U200: -
B201: COCHRANE | C201: 76.085.254-6 | D201: CENTRAL TERMOELÉCTRICA COCHRANE | E201: 5452233 | F201: COCHRANE (CCH1) | G201: UGE CCH-1 | H201: GE000234-8 | I201: CCR1 | J201: Cochrane | K201: Cochrane | L201: CCH1 | M201: COCHRANE-CCH1_CAR | N201: Carbón | O201: COCHRANE______220 | P201: No | R201: 1 | S201: 04338100000IF | T201: - | U201: -
B202: COLBUN | C202: 96.505.760-9 | D202: TERMOELECTRICA NEHUENCO SA | E202: 28770 | F202: NEHUENCO 1 | G202: UGE Nehuenco I | H202: PC001510-0 | I202: NEHUENCO | J202: NEHUENCO | K202: Nehuenco | L202: Nehuenco | M202: NEHUENCO-1_TG1_GNL_INFLEX | N202: GNL | O202: S.LUIS2_______220 | P202: No | R202: 3 | S202: NEHUENCO_1_DIE | T202: NEHUENCO_1_GNL | U202: NEHUENCO_1_GNL_CA
... 477 more rows

Sheet Unidades
B2: Lista Unidades TCV
B5: Nombre unidad TCV | C5: Nombre central TCV | D5: Empresa | E5: Autoproductor | F5: Total
B6: ANG1 | C6: Angamos | D6: ANGAMOS | E6: No | F6: 1
B7: ANG2 | C7: Angamos | D7: ANGAMOS | E7: No | F7: 1
B8: Antilhue TG U1 | C8: Antilhue TG | D8: COLBUN | E8: No | F8: 2
B9: Antilhue TG U2 | C9: Antilhue TG | D9: COLBUN | E9: No | F9: 2
B10: Arauco | C10: Arauco | D10: ARAUCO BIO | E10: Sí | F10: 11
B11: Bocamina | C11: Termoeléctrica Bocamina | D11: ENEL_GENERACION | E11: No | F11: 1
B12: Bocamina II | C12: Termoeléctrica Bocamina | D12: ENEL_GENERACION | E12: No | F12: 1
B13: Campiche | C13: Termoeléctrica Ventanas | D13: AES_GENER | E13: No | F13: 1
B14: Candelaria 1 | C14: Candelaria | D14: COLBUN | E14: No | F14: 10
B15: Candelaria 2 | C15: Candelaria | D15: COLBUN | E15: No | F15: 10
B16: Cardones | C16: Cardones | D16: CARDONES SA | E16: No | F16: 1
B17: CC KELAR | C17: Kelar | D17: TAMAKAYA_ENERGIA | E17: No | F17: 48
B18: CC1 | C18: Atacama | D18: ENEL_GENERACION | E18: No | F18: 68
B19: CC2 | C19: Atacama | D19: ENEL_GENERACION | E19: No | F19: 72
B20: CCH1 | C20: Cochrane | D20: COCHRANE | E20: No | F20: 1
B21: CCH2 | C21: Cochrane | D21: COCHRANE | E21: No | F21: 1
B22: CD Iquique | C22: (en blanco) | D22: ENGIE | E22: No
B23: Celco | C23: Celco | D23: ARAUCO BIO | E23: Sí | F23: 4
B24: Cholguán | C24: Cholguan | D24: ARAUCO BIO | E24: Sí | F24: 6
B25: CMPC Cordillera | C25: CMPC Cordillera | D25: BE FORESTALES | E25: Sí | F25: 12
B26: CMPC Laja | C26: CMPC Laja | D26: BE FORESTALES | E26: Sí | F26: 12
B27: CMPC Pacífico | C27: CMPC Pacífico | D27: BE FORESTALES | E27: Sí | F27: 45
B28: CMPC Santa Fe | C28: Santa Fe | D28: BE FORESTALES | E28: Sí | F28: 36
B29: CMPC TISSUE | C29: (en blanco) | D29: BE FORESTALES | E29: Sí
B30: Colmito | C30: Colmito | D30: COLMITO | E30: No | F30: 3
B31: CTA | C31: Andina | D31: ANDINA | E31: No | F31: 1
B32: CTH | C32: Hornitos | D32: HORNITOS | E32: No | F32: 2
B33: CTM1 | C33: Mejillones | D33: ENGIE | E33: No | F33: 1
B34: CTM2 | C34: Mejillones | D34: ENGIE | E34: No | F34: 1
B35: CTM3 | C35: Mejillones | D35: ENGIE | E35: No | F35: 12
B36: CTTAR | C36: Tarapacá | D36: ENEL_GENERACION | E36: No | F36: 1
B37: Diego de Almagro | C37: Diego de Almagro | D37: ENEL_GENERACION | E37: No | F37: 1
B38: El Salvador | C38: El Salvador | D38: SWO | E38: No | F38: 1
B39: Emelda U1 | C39: Emelda | D39: EMELDA | E39: No | F39: 1
B40: Emelda U2 | C40: Emelda | D40: EMELDA | E40: No | F40: 1
B41: Energía Pacífico | C41: Energía Pacífico | D41: ENERGIA PACIFICO | E41: Sí | F41: 1
B42: Escuadrón | C42: Escuadron | D42: NUEVA ENERGIA | E42: No | F42: 2
B43: Esperanza TG | C43: Esperanza | D43: ENORCHILE | E43: No | F43: 1
B44: Guacolda 1 | C44: Guacolda | D44: GUACOLDA | E44: No | F44: 1
B45: Guacolda 2 | C45: Guacolda | D45: GUACOLDA | E45: No | F45: 1
B46: Guacolda 3 | C46: Guacolda | D46: GUACOLDA | E46: No | F46: 1
B47: Guacolda 4 | C47: Guacolda | D47: GUACOLDA | E47: No | F47: 1
B48: Guacolda 5 | C48: Guacolda | D48: GUACOLDA | E48: No | F48: 1
B49: Horcones | C49: Horcones TG | D49: ARAUCO BIO | E49: No | F49: 1
B50: Huasco TG | C50: Huasco TG | D50: ENEL_GENERACION | E50: No | F50: 6
B51: IEM | C51: Mejillones | D51: ENGIE | E51: No | F51: 1
B52: Laguna Verde TG | C52: Laguna Verde | D52: AES_GENER | E52: No | F52: 1
B53: Laguna Verde TV | C53: Laguna Verde | D53: AES_GENER | E53: No | F53: 4
B54: Laja | C54: Laja | D54: AES_GENER | E54: Sí | F54: 2
B55: Lautaro-Comasa | C55: Lautaro | D55: COMASA | E55: No | F55: 2
B56: Lautaro-Comasa 2 | C56: Lautaro | D56: COMASA | E56: No | F56: 1
B57: Licantén | C57: Licanten | D57: ARAUCO BIO | E57: Sí | F57: 2
B58: Los Guindos | C58: Los Guindos | D58: LOS_GUINDOS | E58: No | F58: 1
B59: Los Pinos | C59: Los Pinos | D59: COLBUN | E59: No | F59: 1
B60: Los Vientos | C60: Los Vientos | D60: GMETROPOLITANA | E60: No | F60: 2
B61: Masisa (Cabrero) | C61: Masisa | D61: NEOMAS | E61: Sí | F61: 5
B62: Nehuenco | C62: Nehuenco | D62: COLBUN | E62: No | F62: 42
B63: Nehuenco II | C63: Nehuenco | D63: COLBUN | E63: No | F63: 19
B64: Nehuenco TG 9B | C64: Nehuenco | D64: COLBUN | E64: No | F64: 10
B65: NTO1 | C65: Norgener | D65: AES_GENER | E65: No | F65: 1
B66: NTO2 | C66: Norgener | D66: AES_GENER | E66: No | F66: 1
B67: Nueva Aldea I | C67: Nueva Aldea I | D67: ARAUCO BIO | E67: Sí | F67: 6
B68: Nueva Aldea III | C68: Nueva Aldea III | D68: ARAUCO BIO | E68: Sí | F68: 3
B69: Nueva Renca | C69: Nueva Renca | D69: GMETROPOLITANA | E69: No | F69: 14
B70: Nueva Ventanas | C70: Termoeléctrica Ventanas | D70: AES_GENER | E70: No | F70: 1
B71: Petropower | C71: Petropower | D71: ERSA | E71: Sí | F71: 1
B72: Quintero A | C72: Quintero | D72: ENEL_GENERACION | E72: No | F72: 7
B73: Quintero B | C73: Quintero | D73: ENEL_GENERACION | E73: No | F73: 7
B74: Renca U1 | C74: Renca | D74: GMETROPOLITANA | E74: No | F74: 1
B75: Renca U2 | C75: Renca | D75: GMETROPOLITANA | E75: No | F75: 1
B76: San Isidro | C76: San Isidro | D76: ENEL_GENERACION | E76: No | F76: 27
B77: San Isidro II | C77: San Isidro 2 | D77: ENEL_GENERACION | E77: No | F77: 21
B78: San Lorenzo de D. de Almagro U1 | C78: San Lorenzo de D. de Almagro | D78: ENLASA | E78: No | F78: 1
B79: San Lorenzo de D. de Almagro U2 | C79: San Lorenzo de D. de Almagro | D79: ENLASA | E79: No | F79: 1
B80: Santa Lidia | C80: Santa Lidia | D80: GMETROPOLITANA | E80: No | F80: 1
B81: Santa María | C81: Santa María | D81: COLBUN | E81: No | F81: 2
B82: Taltal 1 | C82: Taltal | D82: ENEL_GENERACION | E82: No | F82: 7
B83: Taltal 2 | C83: Taltal | D83: ENEL_GENERACION | E83: No | F83: 7
B84: TG_Coronel | C84: Coronel | D84: SGA | E84: No | F84: 3
B85: TG1 | C85: Tocopilla | D85: ENGIE | E85: No | F85: 1
B86: TG2 | C86: Tocopilla | D86: ENGIE | E86: No | F86: 1
B87: TG3 | C87: Tocopilla | D87: ENGIE | E87: No | F87: 5
B88: TGTAR | C88: Tarapacá | D88: ENEL_GENERACION | E88: No | F88: 1
B89: U12 | C89: Tocopilla | D89: ENGIE | E89: No | F89: 1
B90: U13 | C90: Tocopilla | D90: ENGIE | E90: No | F90: 1
B91: U14 | C91: Tocopilla | D91: ENGIE | E91: No | F91: 1
B92: U15 | C92: Tocopilla | D92: ENGIE | E92: No | F92: 1
B93: U16 | C93: Tocopilla | D93: ENGIE | E93: No | F93: 11
B94: Valdivia | C94: Valdivia | D94: ARAUCO BIO | E94: Sí | F94: 16
B95: Ventanas 1 | C95: Termoeléctrica Ventanas | D95: AES_GENER | E95: No | F95: 1
B96: Ventanas 2 | C96: Termoeléctrica Ventanas | D96: AES_GENER | E96: No | F96: 1
B97: Viñales | C97: Viñales | D97: ARAUCO BIO | E97: Sí | F97: 2
B98: Yungay 1 | C98: Yungay | D98: ORAZUL_CHILE | E98: No | F98: 4
B99: Yungay 2 | C99: Yungay | D99: ORAZUL_CHILE | E99: No | F99: 4
B100: Yungay 3 | C100: Yungay | D100: ORAZUL_CHILE | E100: No | F100: 4
B101: Yungay 4 ca | C101: Yungay | D101: ORAZUL_CHILE | E101: No | F101: 1
B102: Los Guindos 2 | C102: Los Guindos | D102: LOS_GUINDOS | E102: No | F102: 1
B103: Total general | F103: 650

Sheet Retiros Anuales
B2: Empresa | C2: Medida_kWh | D2: Prorrata | F2: Empresa | G2: Energía Retirada kWh | H2: Prorrata | I2: Pago CLP
B3: AASA_ENERGIA | C3: -1407677.175 | D3: =+TablaRetiros[[#This Row],[Medida_kWh]]/SUM(TablaRetiros[Medida_kWh]) -> 1.98032067e-05 | F3: =+TablaRetiros[[#This Row],[Empresa]] -> AASA_ENERGIA | G3: =+TablaRetiros[[#This Row],[Medida_kWh]]*-1 -> 1407677.175 | H3: =+TablaRetiros[[#This Row],[Prorrata]] -> 1.98032067e-05 | I3: =+H3*GETPIVOTDATA("Compensación",Resultados!$Q$4) -> 440020.7787
B4: ABASTIBLE | C4: -261711.415 | D4: =+TablaRetiros[[#This Row],[Medida_kWh]]/SUM(TablaRetiros[Medida_kWh]) -> 3.681756968e-06 | F4: =+TablaRetiros[[#This Row],[Empresa]] -> ABASTIBLE | G4: =+TablaRetiros[[#This Row],[Medida_kWh]]*-1 -> 261711.415 | H4: =+TablaRetiros[[#This Row],[Prorrata]] -> 3.681756968e-06 | I4: =+H4*GETPIVOTDATA("Compensación",Resultados!$Q$4) -> 81807.43616
B5: ACCIONA_ENERGIA | C5: -829375473.7 | D5: =+TablaRetiros[[#This Row],[Medida_kWh]]/SUM(TablaRetiros[Medida_kWh]) -> 0.01166765664 | F5: =+TablaRetiros[[#This Row],[Empresa]] -> ACCIONA_ENERGIA | G5: =+TablaRetiros[[#This Row],[Medida_kWh]]*-1 -> 829375473.7 | H5: =+TablaRetiros[[#This Row],[Prorrata]] -> 0.01166765664 | I5: =+H5*GETPIVOTDATA("Compensación",Resultados!$Q$4) -> 259251516.1
B6: AELA_GENERACION | C6: -486005905.9 | D6: =+TablaRetiros[[#This Row],[Medida_kWh]]/SUM(TablaRetiros[Medida_kWh]) -> 0.006837132537 | F6: =+TablaRetiros[[#This Row],[Empresa]] -> AELA_GENERACION | G6: =+TablaRetiros[[#This Row],[Medida_kWh]]*-1 -> 486005905.9 | H6: =+TablaRetiros[[#This Row],[Prorrata]] -> 0.006837132537 | I6: =+H6*GETPIVOTDATA("Compensación",Resultados!$Q$4) -> 151918849.7
B7: AES_GENER | C7: -8190075542 | D7: =+TablaRetiros[[#This Row],[Medida_kWh]]/SUM(TablaRetiros[Medida_kWh]) -> 0.1152180072 | F7: =+TablaRetiros[[#This Row],[Empresa]] -> AES_GENER | G7: =+TablaRetiros[[#This Row],[Medida_kWh]]*-1 -> 8190075542 | H7: =+TablaRetiros[[#This Row],[Prorrata]] -> 0.1152180072 | I7: =+H7*GETPIVOTDATA("Compensación",Resultados!$Q$4) -> 2560106452
B8: AGSA | C8: -8994469.273 | D8: =+TablaRetiros[[#This Row],[Medida_kWh]]/SUM(TablaRetiros[Medida_kWh]) -> 0.0001265342206 | F8: =+TablaRetiros[[#This Row],[Empresa]] -> AGSA | G8: =+TablaRetiros[[#This Row],[Medida_kWh]]*-1 -> 8994469.273 | H8: =+TablaRetiros[[#This Row],[Prorrata]] -> 0.0001265342206 | I8: =+H8*GETPIVOTDATA("Compensación",Resultados!$Q$4) -> 2811549.014
B9: ALBA | C9: -6713532.703 | D9: =+TablaRetiros[[#This Row],[Medida_kWh]]/SUM(TablaRetiros[Medida_kWh]) -> 9.444599813e-05 | F9: =+TablaRetiros[[#This Row],[Empresa]] -> ALBA | G9: =+TablaRetiros[[#This Row],[Medida_kWh]]*-1 -> 6713532.703 | H9: =+TablaRetiros[[#This Row],[Prorrata]] -> 9.444599813e-05 | I9: =+H9*GETPIVOTDATA("Compensación",Resultados!$Q$4) -> 2098559.201
B10: ALLIPEN | C10: -33248827.55 | D10: =+TablaRetiros[[#This Row],[Medida_kWh]]/SUM(TablaRetiros[Medida_kWh]) -> 0.0004677446054 | F10: =+TablaRetiros[[#This Row],[Empresa]] -> ALLIPEN | G10: =+TablaRetiros[[#This Row],[Medida_kWh]]*-1 -> 33248827.55 | H10: =+TablaRetiros[[#This Row],[Prorrata]] -> 0.0004677446054 | I10: =+H10*GETPIVOTDATA("Compensación",Resultados!$Q$4) -> 10393132.21
B11: ALMEYDA | C11: -71500981.92 | D11: =+TablaRetiros[[#This Row],[Medida_kWh]]/SUM(TablaRetiros[Medida_kWh]) -> 0.001005876027 | F11: =+TablaRetiros[[#This Row],[Empresa]] -> ALMEYDA | G11: =+TablaRetiros[[#This Row],[Medida_kWh]]*-1 -> 71500981.92 | H11: =+TablaRetiros[[#This Row],[Prorrata]] -> 0.001005876027 | I11: =+H11*GETPIVOTDATA("Compensación",Resultados!$Q$4) -> 22350236.48
B12: ANDINA | C12: -1002855919 | D12: =+TablaRetiros[[#This Row],[Medida_kWh]]/SUM(TablaRetiros[Medida_kWh]) -> 0.01410818007 | F12: =+TablaRetiros[[#This Row],[Empresa]] -> ANDINA | G12: =+TablaRetiros[[#This Row],[Medida_kWh]]*-1 -> 1002855919 | H12: =+TablaRetiros[[#This Row],[Prorrata]] -> 0.01410818007 | I12: =+H12*GETPIVOTDATA("Compensación",Resultados!$Q$4) -> 313479148.8
B13: ANGAMOS | C13: -3148920685 | D13: =+TablaRetiros[[#This Row],[Medida_kWh]]/SUM(TablaRetiros[Medida_kWh]) -> 0.0442990256 | F13: =+TablaRetiros[[#This Row],[Empresa]] -> ANGAMOS | G13: =+TablaRetiros[[#This Row],[Medida_kWh]]*-1 -> 3148920685 | H13: =+TablaRetiros[[#This Row],[Prorrata]] -> 0.0442990256 | I13: =+H13*GETPIVOTDATA("Compensación",Resultados!$Q$4) -> 984309866.2
B14: ARAUCO BIO | C14: -459954344.5 | D14: =+TablaRetiros[[#This Row],[Medida_kWh]]/SUM(TablaRetiros[Medida_kWh]) -> 0.006470639094 | F14: =+TablaRetiros[[#This Row],[Empresa]] -> ARAUCO BIO | G14: =+TablaRetiros[[#This Row],[Medida_kWh]]*-1 -> 459954344.5 | H14: =+TablaRetiros[[#This Row],[Prorrata]] -> 0.006470639094 | I14: =+H14*GETPIVOTDATA("Compensación",Resultados!$Q$4) -> 143775485.2
B15: ARRAYAN_EOLICO | C15: -232961822.3 | D15: =+TablaRetiros[[#This Row],[Medida_kWh]]/SUM(TablaRetiros[Medida_kWh]) -> 0.003277307612 | F15: =+TablaRetiros[[#This Row],[Empresa]] -> ARRAYAN_EOLICO | G15: =+TablaRetiros[[#This Row],[Medida_kWh]]*-1 -> 232961822.3 | H15: =+TablaRetiros[[#This Row],[Prorrata]] -> 0.003277307612 | I15: =+H15*GETPIVOTDATA("Compensación",Resultados!$Q$4) -> 72820703.69
B16: ATACAMA_GX_CHILE | C16: -199268067.2 | D16: =+TablaRetiros[[#This Row],[Medida_kWh]]/SUM(TablaRetiros[Medida_kWh]) -> 0.002803303764 | F16: =+TablaRetiros[[#This Row],[Empresa]] -> ATACAMA_GX_CHILE | G16: =+TablaRetiros[[#This Row],[Medida_kWh]]*-1 -> 199268067.2 | H16: =+TablaRetiros[[#This Row],[Prorrata]] -> 0.002803303764 | I16: =+H16*GETPIVOTDATA("Compensación",Resultados!$Q$4) -> 62288493.16
B17: ATRIA_ENERGIA | C17: -26517518.42 | D17: =+TablaRetiros[[#This Row],[Medida_kWh]]/SUM(TablaRetiros[Medida_kWh]) -> 0.0003730485284 | F17: =+TablaRetiros[[#This Row],[Empresa]] -> ATRIA_ENERGIA | G17: =+TablaRetiros[[#This Row],[Medida_kWh]]*-1 -> 26517518.42 | H17: =+TablaRetiros[[#This Row],[Prorrata]] -> 0.0003730485284 | I17: =+H17*GETPIVOTDATA("Compensación",Resultados!$Q$4) -> 8289016.34
B18: BE FORESTALES | C18: -44857847.32 | D18: =+TablaRetiros[[#This Row],[Medida_kWh]]/SUM(TablaRetiros[Medida_kWh]) -> 0.0006310603302 | F18: =+TablaRetiros[[#This Row],[Empresa]] -> BE FORESTALES | G18: =+TablaRetiros[[#This Row],[Medida_kWh]]*-1 -> 44857847.32 | H18: =+TablaRetiros[[#This Row],[Prorrata]] -> 0.0006310603302 | I18: =+H18*GETPIVOTDATA("Compensación",Resultados!$Q$4) -> 14021954.22
B19: BESALCO | C19: -98162643.12 | D19: =+TablaRetiros[[#This Row],[Medida_kWh]]/SUM(TablaRetiros[Medida_kWh]) -> 0.001380952357 | F19: =+TablaRetiros[[#This Row],[Empresa]] -> BESALCO | G19: =+TablaRetiros[[#This Row],[Medida_kWh]]*-1 -> 98162643.12 | H19: =+TablaRetiros[[#This Row],[Prorrata]] -> 0.001380952357 | I19: =+H19*GETPIVOTDATA("Compensación",Resultados!$Q$4) -> 30684309.89
B20: CABO_LEONES | C20: -130450313.9 | D20: =+TablaRetiros[[#This Row],[Medida_kWh]]/SUM(TablaRetiros[Medida_kWh]) -> 0.001835175406 | F20: =+TablaRetiros[[#This Row],[Empresa]] -> CABO_LEONES | G20: =+TablaRetiros[[#This Row],[Medida_kWh]]*-1 -> 130450313.9 | H20: =+TablaRetiros[[#This Row],[Prorrata]] -> 0.001835175406 | I20: =+H20*GETPIVOTDATA("Compensación",Resultados!$Q$4) -> 40776997.56
B21: CARBOMET | C21: -18163094.87 | D21: =+TablaRetiros[[#This Row],[Medida_kWh]]/SUM(TablaRetiros[Medida_kWh]) -> 0.0002555184728 | F21: =+TablaRetiros[[#This Row],[Empresa]] -> CARBOMET | G21: =+TablaRetiros[[#This Row],[Medida_kWh]]*-1 -> 18163094.87 | H21: =+TablaRetiros[[#This Row],[Prorrata]] -> 0.0002555184728 | I21: =+H21*GETPIVOTDATA("Compensación",Resultados!$Q$4) -> 5677536.93
B22: CAREN | C22: -69746771.65 | D22: =+TablaRetiros[[#This Row],[Medida_kWh]]/SUM(TablaRetiros[Medida_kWh]) -> 0.000981197792 | F22: =+TablaRetiros[[#This Row],[Empresa]] -> CAREN | G22: =+TablaRetiros[[#This Row],[Medida_kWh]]*-1 -> 69746771.65 | H22: =+TablaRetiros[[#This Row],[Prorrata]] -> 0.000981197792 | I22: =+H22*GETPIVOTDATA("Compensación",Resultados!$Q$4) -> 21801894.16
B23: CCAMPESINO | C23: -209067210.1 | D23: =+TablaRetiros[[#This Row],[Medida_kWh]]/SUM(TablaRetiros[Medida_kWh]) -> 0.002941158137 | F23: =+TablaRetiros[[#This Row],[Empresa]] -> CCAMPESINO | G23: =+TablaRetiros[[#This Row],[Medida_kWh]]*-1 -> 209067210.1 | H23: =+TablaRetiros[[#This Row],[Prorrata]] -> 0.002941158137 | I23: =+H23*GETPIVOTDATA("Compensación",Resultados!$Q$4) -> 65351572.25
B24: CERRO_DOMINADOR_CSP | C24: -89175039.85 | D24: =+TablaRetiros[[#This Row],[Medida_kWh]]/SUM(TablaRetiros[Medida_kWh]) -> 0.001254514727 | F24: =+TablaRetiros[[#This Row],[Empresa]] -> CERRO_DOMINADOR_CSP | G24: =+TablaRetiros[[#This Row],[Medida_kWh]]*-1 -> 89175039.85 | H24: =+TablaRetiros[[#This Row],[Prorrata]] -> 0.001254514727 | I24: =+H24*GETPIVOTDATA("Compensación",Resultados!$Q$4) -> 27874907.1
B25: CHACAYES | C25: -454764676.5 | D25: =+TablaRetiros[[#This Row],[Medida_kWh]]/SUM(TablaRetiros[Medida_kWh]) -> 0.006397630829 | F25: =+TablaRetiros[[#This Row],[Empresa]] -> CHACAYES | G25: =+TablaRetiros[[#This Row],[Medida_kWh]]*-1 -> 454764676.5 | H25: =+TablaRetiros[[#This Row],[Prorrata]] -> 0.006397630829 | I25: =+H25*GETPIVOTDATA("Compensación",Resultados!$Q$4) -> 142153265.4
B26: CHUNGUNGO | C26: -105963361.4 | D26: =+TablaRetiros[[#This Row],[Medida_kWh]]/SUM(TablaRetiros[Medida_kWh]) -> 0.001490692885 | F26: =+TablaRetiros[[#This Row],[Empresa]] -> CHUNGUNGO | G26: =+TablaRetiros[[#This Row],[Medida_kWh]]*-1 -> 105963361.4 | H26: =+TablaRetiros[[#This Row],[Prorrata]] -> 0.001490692885 | I26: =+H26*GETPIVOTDATA("Compensación",Resultados!$Q$4) -> 33122708.54
B27: COCHRANE | C27: -1775675671 | D27: =+TablaRetiros[[#This Row],[Medida_kWh]]/SUM(TablaRetiros[Medida_kWh]) -> 0.02498021064 | F27: =+TablaRetiros[[#This Row],[Empresa]] -> COCHRANE | G27: =+TablaRetiros[[#This Row],[Medida_kWh]]*-1 -> 1775675671 | H27: =+TablaRetiros[[#This Row],[Prorrata]] -> 0.02498021064 | I27: =+H27*GETPIVOTDATA("Compensación",Resultados!$Q$4) -> 555052113.7
B28: COLBUN | C28: -1.080704721e+10 | D28: =+TablaRetiros[[#This Row],[Medida_kWh]]/SUM(TablaRetiros[Medida_kWh]) -> 0.1520335725 | F28: =+TablaRetiros[[#This Row],[Empresa]] -> COLBUN | G28: =+TablaRetiros[[#This Row],[Medida_kWh]]*-1 -> 1.080704721e+10 | H28: =+TablaRetiros[[#This Row],[Prorrata]] -> 0.1520335725 | I28: =+H28*GETPIVOTDATA("Compensación",Resultados!$Q$4) -> 3378136277
B29: COMASA | C29: -49292657.83 | D29: =+TablaRetiros[[#This Row],[Medida_kWh]]/SUM(TablaRetiros[Medida_kWh]) -> 0.0006934492576 | F29: =+TablaRetiros[[#This Row],[Empresa]] -> COMASA | G29: =+TablaRetiros[[#This Row],[Medida_kWh]]*-1 -> 49292657.83 | H29: =+TablaRetiros[[#This Row],[Prorrata]] -> 0.0006934492576 | I29: =+H29*GETPIVOTDATA("Compensación",Resultados!$Q$4) -> 15408215.8
B30: CONEJO_SOLAR | C30: -210637301.8 | D30: =+TablaRetiros[[#This Row],[Medida_kWh]]/SUM(TablaRetiros[Medida_kWh]) -> 0.002963246192 | F30: =+TablaRetiros[[#This Row],[Empresa]] -> CONEJO_SOLAR | G30: =+TablaRetiros[[#This Row],[Medida_kWh]]*-1 -> 210637301.8 | H30: =+TablaRetiros[[#This Row],[Prorrata]] -> 0.002963246192 | I30: =+H30*GETPIVOTDATA("Compensación",Resultados!$Q$4) -> 65842361.6
B31: COYANCO | C31: -40958662.83 | D31: =+TablaRetiros[[#This Row],[Medida_kWh]]/SUM(TablaRetiros[Medida_kWh]) -> 0.0005762065911 | F31: =+TablaRetiros[[#This Row],[Empresa]] -> COYANCO | G31: =+TablaRetiros[[#This Row],[Medida_kWh]]*-1 -> 40958662.83 | H31: =+TablaRetiros[[#This Row],[Prorrata]] -> 0.0005762065911 | I31: =+H31*GETPIVOTDATA("Compensación",Resultados!$Q$4) -> 12803122.08
B32: CUMPEO | C32: -906747.375 | D32: =+TablaRetiros[[#This Row],[Medida_kWh]]/SUM(TablaRetiros[Medida_kWh]) -> 1.275612478e-05 | F32: =+TablaRetiros[[#This Row],[Empresa]] -> CUMPEO | G32: =+TablaRetiros[[#This Row],[Medida_kWh]]*-1 -> 906747.375 | H32: =+TablaRetiros[[#This Row],[Prorrata]] -> 1.275612478e-05 | I32: =+H32*GETPIVOTDATA("Compensación",Resultados!$Q$4) -> 283436.9223
B33: DUQUECO | C33: -221861691.3 | D33: =+TablaRetiros[[#This Row],[Medida_kWh]]/SUM(TablaRetiros[Medida_kWh]) -> 0.003121150936 | F33: =+TablaRetiros[[#This Row],[Empresa]] -> DUQUECO | G33: =+TablaRetiros[[#This Row],[Medida_kWh]]*-1 -> 221861691.3 | H33: =+TablaRetiros[[#This Row],[Prorrata]] -> 0.003121150936 | I33: =+H33*GETPIVOTDATA("Compensación",Resultados!$Q$4) -> 69350953.4
B34: EGP_SUR | C34: -2545728.565 | D34: =+TablaRetiros[[#This Row],[Medida_kWh]]/SUM(TablaRetiros[Medida_kWh]) -> 3.581331706e-05 | F34: =+TablaRetiros[[#This Row],[Empresa]] -> EGP_SUR | G34: =+TablaRetiros[[#This Row],[Medida_kWh]]*-1 -> 2545728.565 | H34: =+TablaRetiros[[#This Row],[Prorrata]] -> 3.581331706e-05 | I34: =+H34*GETPIVOTDATA("Compensación",Resultados!$Q$4) -> 795760.1967
B35: EL_CAMPESINO_I | C35: -134996.951 | D35: =+TablaRetiros[[#This Row],[Medida_kWh]]/SUM(TablaRetiros[Medida_kWh]) -> 1.89913751e-06 | F35: =+TablaRetiros[[#This Row],[Empresa]] -> EL_CAMPESINO_I | G35: =+TablaRetiros[[#This Row],[Medida_kWh]]*-1 -> 134996.951 | H35: =+TablaRetiros[[#This Row],[Prorrata]] -> 1.89913751e-06 | I35: =+H35*GETPIVOTDATA("Compensación",Resultados!$Q$4) -> 42198.21459
B36: EL_MORADO | C36: -22310710.45 | D36: =+TablaRetiros[[#This Row],[Medida_kWh]]/SUM(TablaRetiros[Medida_kWh]) -> 0.0003138671413 | F36: =+TablaRetiros[[#This Row],[Empresa]] -> EL_MORADO | G36: =+TablaRetiros[[#This Row],[Medida_kWh]]*-1 -> 22310710.45 | H36: =+TablaRetiros[[#This Row],[Prorrata]] -> 0.0003138671413 | I36: =+H36*GETPIVOTDATA("Compensación",Resultados!$Q$4) -> 6974025.267
B37: EL_PELICANO | C37: -217229979.3 | D37: =+TablaRetiros[[#This Row],[Medida_kWh]]/SUM(TablaRetiros[Medida_kWh]) -> 0.003055991999 | F37: =+TablaRetiros[[#This Row],[Empresa]] -> EL_PELICANO | G37: =+TablaRetiros[[#This Row],[Medida_kWh]]*-1 -> 217229979.3 | H37: =+TablaRetiros[[#This Row],[Prorrata]] -> 0.003055991999 | I37: =+H37*GETPIVOTDATA("Compensación",Resultados!$Q$4) -> 67903143.12
B38: ELECTRICA CENIZAS | C38: -100417720.7 | D38: =+TablaRetiros[[#This Row],[Medida_kWh]]/SUM(TablaRetiros[Medida_kWh]) -> 0.001412676795 | F38: =+TablaRetiros[[#This Row],[Empresa]] -> ELECTRICA CENIZAS | G38: =+TablaRetiros[[#This Row],[Medida_kWh]]*-1 -> 100417720.7 | H38: =+TablaRetiros[[#This Row],[Prorrata]] -> 0.001412676795 | I38: =+H38*GETPIVOTDATA("Compensación",Resultados!$Q$4) -> 31389216.54
B39: EMBALSE_ANCOA | C39: -10638523.23 | D39: =+TablaRetiros[[#This Row],[Medida_kWh]]/SUM(TablaRetiros[Medida_kWh]) -> 0.0001496627766 | F39: =+TablaRetiros[[#This Row],[Empresa]] -> EMBALSE_ANCOA | G39: =+TablaRetiros[[#This Row],[Medida_kWh]]*-1 -> 10638523.23 | H39: =+TablaRetiros[[#This Row],[Prorrata]] -> 0.0001496627766 | I39: =+H39*GETPIVOTDATA("Compensación",Resultados!$Q$4) -> 3325457.966
B40: EMELDA | C40: -137959598.7 | D40: =+TablaRetiros[[#This Row],[Medida_kWh]]/SUM(TablaRetiros[Medida_kWh]) -> 0.001940816047 | F40: =+TablaRetiros[[#This Row],[Empresa]] -> EMELDA | G40: =+TablaRetiros[[#This Row],[Medida_kWh]]*-1 -> 137959598.7 | H40: =+TablaRetiros[[#This Row],[Prorrata]] -> 0.001940816047 | I40: =+H40*GETPIVOTDATA("Compensación",Resultados!$Q$4) -> 43124298.05
B41: ENEL_GENERACION | C41: -1.847581682e+10 | D41: =+TablaRetiros[[#This Row],[Medida_kWh]]/SUM(TablaRetiros[Medida_kWh]) -> 0.2599178463 | F41: =+TablaRetiros[[#This Row],[Empresa]] -> ENEL_GENERACION | G41: =+TablaRetiros[[#This Row],[Medida_kWh]]*-1 -> 1.847581682e+10 | H41: =+TablaRetiros[[#This Row],[Prorrata]] -> 0.2599178463 | I41: =+H41*GETPIVOTDATA("Compensación",Resultados!$Q$4) -> 5775289570
B42: ENERGIA PACIFICO | C42: -46962807.24 | D42: =+TablaRetiros[[#This Row],[Medida_kWh]]/SUM(TablaRetiros[Medida_kWh]) -> 0.0006606729126 | F42: =+TablaRetiros[[#This Row],[Empresa]] -> ENERGIA PACIFICO | G42: =+TablaRetiros[[#This Row],[Medida_kWh]]*-1 -> 46962807.24 | H42: =+TablaRetiros[[#This Row],[Prorrata]] -> 0.0006606729126 | I42: =+H42*GETPIVOTDATA("Compensación",Resultados!$Q$4) -> 14679936.12
B43: ENERGIA_LEON | C43: -11978641.4 | D43: =+TablaRetiros[[#This Row],[Medida_kWh]]/SUM(TablaRetiros[Medida_kWh]) -> 0.000168515563 | F43: =+TablaRetiros[[#This Row],[Empresa]] -> ENERGIA_LEON | G43: =+TablaRetiros[[#This Row],[Medida_kWh]]*-1 -> 11978641.4 | H43: =+TablaRetiros[[#This Row],[Prorrata]] -> 0.000168515563 | I43: =+H43*GETPIVOTDATA("Compensación",Resultados!$Q$4) -> 3744360.717
B44: ENGIE | C44: -8741551493 | D44: =+TablaRetiros[[#This Row],[Medida_kWh]]/SUM(TablaRetiros[Medida_kWh]) -> 0.1229761725 | F44: =+TablaRetiros[[#This Row],[Empresa]] -> ENGIE | G44: =+TablaRetiros[[#This Row],[Medida_kWh]]*-1 -> 8741551493 | H44: =+TablaRetiros[[#This Row],[Prorrata]] -> 0.1229761725 | I44: =+H44*GETPIVOTDATA("Compensación",Resultados!$Q$4) -> 2732490349
B45: ENORCHILE | C45: -379271729.2 | D45: =+TablaRetiros[[#This Row],[Medida_kWh]]/SUM(TablaRetiros[Medida_kWh]) -> 0.00533559582 | F45: =+TablaRetiros[[#This Row],[Empresa]] -> ENORCHILE | G45: =+TablaRetiros[[#This Row],[Medida_kWh]]*-1 -> 379271729.2 | H45: =+TablaRetiros[[#This Row],[Prorrata]] -> 0.00533559582 | I45: =+H45*GETPIVOTDATA("Compensación",Resultados!$Q$4) -> 118555194.7
B46: EOLICA_ESPERANZA | C46: -35639839.54 | D46: =+TablaRetiros[[#This Row],[Medida_kWh]]/SUM(TablaRetiros[Medida_kWh]) -> 0.0005013813692 | F46: =+TablaRetiros[[#This Row],[Empresa]] -> EOLICA_ESPERANZA | G46: =+TablaRetiros[[#This Row],[Medida_kWh]]*-1 -> 35639839.54 | H46: =+TablaRetiros[[#This Row],[Prorrata]] -> 0.0005013813692 | I46: =+H46*GETPIVOTDATA("Compensación",Resultados!$Q$4) -> 11140530.11
B47: ERNC1 | C47: -40594701.47 | D47: =+TablaRetiros[[#This Row],[Medida_kWh]]/SUM(TablaRetiros[Medida_kWh]) -> 0.0005710863816 | F47: =+TablaRetiros[[#This Row],[Empresa]] -> ERNC1 | G47: =+TablaRetiros[[#This Row],[Medida_kWh]]*-1 -> 40594701.47 | H47: =+TablaRetiros[[#This Row],[Prorrata]] -> 0.0005710863816 | I47: =+H47*GETPIVOTDATA("Compensación",Resultados!$Q$4) -> 12689352.69
B48: ERSA | C48: -311316348.3 | D48: =+TablaRetiros[[#This Row],[Medida_kWh]]/SUM(TablaRetiros[Medida_kWh]) -> 0.004379599319 | F48: =+TablaRetiros[[#This Row],[Empresa]] -> ERSA | G48: =+TablaRetiros[[#This Row],[Medida_kWh]]*-1 -> 311316348.3 | H48: =+TablaRetiros[[#This Row],[Prorrata]] -> 0.004379599319 | I48: =+H48*GETPIVOTDATA("Compensación",Resultados!$Q$4) -> 97313265.04
B49: ESTANCILLA SPA | C49: -156635.282 | D49: =+TablaRetiros[[#This Row],[Medida_kWh]]/SUM(TablaRetiros[Medida_kWh]) -> 2.203545615e-06 | F49: =+TablaRetiros[[#This Row],[Empresa]] -> ESTANCILLA SPA | G49: =+TablaRetiros[[#This Row],[Medida_kWh]]*-1 -> 156635.282 | H49: =+TablaRetiros[[#This Row],[Prorrata]] -> 2.203545615e-06 | I49: =+H49*GETPIVOTDATA("Compensación",Resultados!$Q$4) -> 48962.06317
B50: GAS SUR | C50: -1501622.428 | D50: =+TablaRetiros[[#This Row],[Medida_kWh]]/SUM(TablaRetiros[Medida_kWh]) -> 2.11248288e-05 | F50: =+TablaRetiros[[#This Row],[Empresa]] -> GAS SUR | G50: =+TablaRetiros[[#This Row],[Medida_kWh]]*-1 -> 1501622.428 | H50: =+TablaRetiros[[#This Row],[Prorrata]] -> 2.11248288e-05 | I50: =+H50*GETPIVOTDATA("Compensación",Resultados!$Q$4) -> 469386.7897
B51: GASATACAMA | C51: -845814731.7 | D51: =+TablaRetiros[[#This Row],[Medida_kWh]]/SUM(TablaRetiros[Medida_kWh]) -> 0.01189892417 | F51: =+TablaRetiros[[#This Row],[Empresa]] -> GASATACAMA | G51: =+TablaRetiros[[#This Row],[Medida_kWh]]*-1 -> 845814731.7 | H51: =+TablaRetiros[[#This Row],[Prorrata]] -> 0.01189892417 | I51: =+H51*GETPIVOTDATA("Compensación",Resultados!$Q$4) -> 264390205
B52: GM_HOLDINGS | C52: -1018295474 | D52: =+TablaRetiros[[#This Row],[Medida_kWh]]/SUM(TablaRetiros[Medida_kWh]) -> 0.01432538377 | F52: =+TablaRetiros[[#This Row],[Empresa]] -> GM_HOLDINGS | G52: =+TablaRetiros[[#This Row],[Medida_kWh]]*-1 -> 1018295474 | H52: =+TablaRetiros[[#This Row],[Prorrata]] -> 0.01432538377 | I52: =+H52*GETPIVOTDATA("Compensación",Resultados!$Q$4) -> 318305344
B53: GUACOLDA | C53: -3529543686 | D53: =+TablaRetiros[[#This Row],[Medida_kWh]]/SUM(TablaRetiros[Medida_kWh]) -> 0.04965363112 | F53: =+TablaRetiros[[#This Row],[Empresa]] -> GUACOLDA | G53: =+TablaRetiros[[#This Row],[Medida_kWh]]*-1 -> 3529543686 | H53: =+TablaRetiros[[#This Row],[Prorrata]] -> 0.04965363112 | I53: =+H53*GETPIVOTDATA("Compensación",Resultados!$Q$4) -> 1103287450
B54: HELIO_ATACAMA_TRES | C54: -16872440.82 | D54: =+TablaRetiros[[#This Row],[Medida_kWh]]/SUM(TablaRetiros[Medida_kWh]) -> 0.0002373615479 | F54: =+TablaRetiros[[#This Row],[Empresa]] -> HELIO_ATACAMA_TRES | G54: =+TablaRetiros[[#This Row],[Medida_kWh]]*-1 -> 16872440.82 | H54: =+TablaRetiros[[#This Row],[Prorrata]] -> 0.0002373615479 | I54: =+H54*GETPIVOTDATA("Compensación",Resultados!$Q$4) -> 5274095.995
B55: HIDROLIRCAY | C55: -127499361.3 | D55: =+TablaRetiros[[#This Row],[Medida_kWh]]/SUM(TablaRetiros[Medida_kWh]) -> 0.001793661395 | F55: =+TablaRetiros[[#This Row],[Empresa]] -> HIDROLIRCAY | G55: =+TablaRetiros[[#This Row],[Medida_kWh]]*-1 -> 127499361.3 | H55: =+TablaRetiros[[#This Row],[Prorrata]] -> 0.001793661395 | I55: =+H55*GETPIVOTDATA("Compensación",Resultados!$Q$4) -> 39854569.8
B56: HORNITOS | C56: -1293362761 | D56: =+TablaRetiros[[#This Row],[Medida_kWh]]/SUM(TablaRetiros[Medida_kWh]) -> 0.01819503119 | F56: =+TablaRetiros[[#This Row],[Empresa]] -> HORNITOS | G56: =+TablaRetiros[[#This Row],[Medida_kWh]]*-1 -> 1293362761 | H56: =+TablaRetiros[[#This Row],[Prorrata]] -> 0.01819503119 | I56: =+H56*GETPIVOTDATA("Compensación",Resultados!$Q$4) -> 404287644.6
B57: HUAJACHE | C57: -18655316.11 | D57: =+TablaRetiros[[#This Row],[Medida_kWh]]/SUM(TablaRetiros[Medida_kWh]) -> 0.0002624430428 | F57: =+TablaRetiros[[#This Row],[Empresa]] -> HUAJACHE | G57: =+TablaRetiros[[#This Row],[Medida_kWh]]*-1 -> 18655316.11 | H57: =+TablaRetiros[[#This Row],[Prorrata]] -> 0.0002624430428 | I57: =+H57*GETPIVOTDATA("Compensación",Resultados!$Q$4) -> 5831398.611
B58: IMELSA_ENERGIA | C58: -142188600.8 | D58: =+TablaRetiros[[#This Row],[Medida_kWh]]/SUM(TablaRetiros[Medida_kWh]) -> 0.002000309661 | F58: =+TablaRetiros[[#This Row],[Empresa]] -> IMELSA_ENERGIA | G58: =+TablaRetiros[[#This Row],[Medida_kWh]]*-1 -> 142188600.8 | H58: =+TablaRetiros[[#This Row],[Prorrata]] -> 0.002000309661 | I58: =+H58*GETPIVOTDATA("Compensación",Resultados!$Q$4) -> 44446226.71
B59: JAVIERA | C59: -186818834.3 | D59: =+TablaRetiros[[#This Row],[Medida_kWh]]/SUM(TablaRetiros[Medida_kWh]) -> 0.002628167919 | F59: =+TablaRetiros[[#This Row],[Empresa]] -> JAVIERA | G59: =+TablaRetiros[[#This Row],[Medida_kWh]]*-1 -> 186818834.3 | H59: =+TablaRetiros[[#This Row],[Prorrata]] -> 0.002628167919 | I59: =+H59*GETPIVOTDATA("Compensación",Resultados!$Q$4) -> 58397031.94
B60: KALTEMP | C60: -3367828.688 | D60: =+TablaRetiros[[#This Row],[Medida_kWh]]/SUM(TablaRetiros[Medida_kWh]) -> 4.737862405e-05 | F60: =+TablaRetiros[[#This Row],[Empresa]] -> KALTEMP | G60: =+TablaRetiros[[#This Row],[Medida_kWh]]*-1 -> 3367828.688 | H60: =+TablaRetiros[[#This Row],[Prorrata]] -> 4.737862405e-05 | I60: =+H60*GETPIVOTDATA("Compensación",Resultados!$Q$4) -> 1052737.537
B61: KDM_ENERGIA | C61: -127129641.4 | D61: =+TablaRetiros[[#This Row],[Medida_kWh]]/SUM(TablaRetiros[Medida_kWh]) -> 0.001788460175 | F61: =+TablaRetiros[[#This Row],[Empresa]] -> KDM_ENERGIA | G61: =+TablaRetiros[[#This Row],[Medida_kWh]]*-1 -> 127129641.4 | H61: =+TablaRetiros[[#This Row],[Prorrata]] -> 0.001788460175 | I61: =+H61*GETPIVOTDATA("Compensación",Resultados!$Q$4) -> 39739000.38
B62: LA ARENA SPA | C62: -73062285.82 | D62: =+TablaRetiros[[#This Row],[Medida_kWh]]/SUM(TablaRetiros[Medida_kWh]) -> 0.001027840455 | F62: =+TablaRetiros[[#This Row],[Empresa]] -> LA ARENA SPA | G62: =+TablaRetiros[[#This Row],[Medida_kWh]]*-1 -> 73062285.82 | H62: =+TablaRetiros[[#This Row],[Prorrata]] -> 0.001027840455 | I62: =+H62*GETPIVOTDATA("Compensación",Resultados!$Q$4) -> 22838278.88
B63: LA CONFLUENCIA | C63: -245576173.3 | D63: =+TablaRetiros[[#This Row],[Medida_kWh]]/SUM(TablaRetiros[Medida_kWh]) -> 0.003454766341 | F63: =+TablaRetiros[[#This Row],[Empresa]] -> LA CONFLUENCIA | G63: =+TablaRetiros[[#This Row],[Medida_kWh]]*-1 -> 245576173.3 | H63: =+TablaRetiros[[#This Row],[Prorrata]] -> 0.003454766341 | I63: =+H63*GETPIVOTDATA("Compensación",Resultados!$Q$4) -> 76763778.62
B64: LA HIGUERA | C64: -269801369.3 | D64: =+TablaRetiros[[#This Row],[Medida_kWh]]/SUM(TablaRetiros[Medida_kWh]) -> 0.00379556647 | F64: =+TablaRetiros[[#This Row],[Empresa]] -> LA HIGUERA | G64: =+TablaRetiros[[#This Row],[Medida_kWh]]*-1 -> 269801369.3 | H64: =+TablaRetiros[[#This Row],[Prorrata]] -> 0.00379556647 | I64: =+H64*GETPIVOTDATA("Compensación",Resultados!$Q$4) -> 84336246.08
B65: LIPIGAS | C65: -63604496.27 | D65: =+TablaRetiros[[#This Row],[Medida_kWh]]/SUM(TablaRetiros[Medida_kWh]) -> 0.0008947882436 | F65: =+TablaRetiros[[#This Row],[Empresa]] -> LIPIGAS | G65: =+TablaRetiros[[#This Row],[Medida_kWh]]*-1 -> 63604496.27 | H65: =+TablaRetiros[[#This Row],[Prorrata]] -> 0.0008947882436 | I65: =+H65*GETPIVOTDATA("Compensación",Resultados!$Q$4) -> 19881902.24
B66: LOS_CURUROS | C66: -13982408.94 | D66: =+TablaRetiros[[#This Row],[Medida_kWh]]/SUM(TablaRetiros[Medida_kWh]) -> 0.0001967045707 | F66: =+TablaRetiros[[#This Row],[Empresa]] -> LOS_CURUROS | G66: =+TablaRetiros[[#This Row],[Medida_kWh]]*-1 -> 13982408.94 | H66: =+TablaRetiros[[#This Row],[Prorrata]] -> 0.0001967045707 | I66: =+H66*GETPIVOTDATA("Compensación",Resultados!$Q$4) -> 4370711.253
B67: LUZ_DEL_NORTE | C67: -122244787.9 | D67: =+TablaRetiros[[#This Row],[Medida_kWh]]/SUM(TablaRetiros[Medida_kWh]) -> 0.001719740042 | F67: =+TablaRetiros[[#This Row],[Empresa]] -> LUZ_DEL_NORTE | G67: =+TablaRetiros[[#This Row],[Medida_kWh]]*-1 -> 122244787.9 | H67: =+TablaRetiros[[#This Row],[Prorrata]] -> 0.001719740042 | I67: =+H67*GETPIVOTDATA("Compensación",Resultados!$Q$4) -> 38212061.5
B68: MALLARAUCO | C68: -1322142.276 | D68: =+TablaRetiros[[#This Row],[Medida_kWh]]/SUM(TablaRetiros[Medida_kWh]) -> 1.859990149e-05 | F68: =+TablaRetiros[[#This Row],[Empresa]] -> MALLARAUCO | G68: =+TablaRetiros[[#This Row],[Medida_kWh]]*-1 -> 1322142.276 | H68: =+TablaRetiros[[#This Row],[Prorrata]] -> 1.859990149e-05 | I68: =+H68*GETPIVOTDATA("Compensación",Resultados!$Q$4) -> 413283.7303
B69: MONTE REDONDO | C69: -189694456.9 | D69: =+TablaRetiros[[#This Row],[Medida_kWh]]/SUM(TablaRetiros[Medida_kWh]) -> 0.002668622186 | F69: =+TablaRetiros[[#This Row],[Empresa]] -> MONTE REDONDO | G69: =+TablaRetiros[[#This Row],[Medida_kWh]]*-1 -> 189694456.9 | H69: =+TablaRetiros[[#This Row],[Prorrata]] -> 0.002668622186 | I69: =+H69*GETPIVOTDATA("Compensación",Resultados!$Q$4) -> 59295912.53
B70: NEOMAS | C70: -69566407.39 | D70: =+TablaRetiros[[#This Row],[Medida_kWh]]/SUM(TablaRetiros[Medida_kWh]) -> 0.0009786604271 | F70: =+TablaRetiros[[#This Row],[Empresa]] -> NEOMAS | G70: =+TablaRetiros[[#This Row],[Medida_kWh]]*-1 -> 69566407.39 | H70: =+TablaRetiros[[#This Row],[Prorrata]] -> 0.0009786604271 | I70: =+H70*GETPIVOTDATA("Compensación",Resultados!$Q$4) -> 21745514.74
B71: NORACID | C71: -19652679.44 | D71: =+TablaRetiros[[#This Row],[Medida_kWh]]/SUM(TablaRetiros[Medida_kWh]) -> 0.0002764739531 | F71: =+TablaRetiros[[#This Row],[Empresa]] -> NORACID | G71: =+TablaRetiros[[#This Row],[Medida_kWh]]*-1 -> 19652679.44 | H71: =+TablaRetiros[[#This Row],[Prorrata]] -> 0.0002764739531 | I71: =+H71*GETPIVOTDATA("Compensación",Resultados!$Q$4) -> 6143160.849
B72: NORVIND | C72: -33679394.39 | D72: =+TablaRetiros[[#This Row],[Medida_kWh]]/SUM(TablaRetiros[Medida_kWh]) -> 0.000473801821 | F72: =+TablaRetiros[[#This Row],[Empresa]] -> NORVIND | G72: =+TablaRetiros[[#This Row],[Medida_kWh]]*-1 -> 33679394.39 | H72: =+TablaRetiros[[#This Row],[Prorrata]] -> 0.000473801821 | I72: =+H72*GETPIVOTDATA("Compensación",Resultados!$Q$4) -> 10527721.56
B73: NUEVA ENERGIA | C73: -57960935.1 | D73: =+TablaRetiros[[#This Row],[Medida_kWh]]/SUM(TablaRetiros[Medida_kWh]) -> 0.0008153946083 | F73: =+TablaRetiros[[#This Row],[Empresa]] -> NUEVA ENERGIA | G73: =+TablaRetiros[[#This Row],[Medida_kWh]]*-1 -> 57960935.1 | H73: =+TablaRetiros[[#This Row],[Prorrata]] -> 0.0008153946083 | I73: =+H73*GETPIVOTDATA("Compensación",Resultados!$Q$4) -> 18117801.62
B74: ON GROUP | C74: -25724970.34 | D74: =+TablaRetiros[[#This Row],[Medida_kWh]]/SUM(TablaRetiros[Medida_kWh]) -> 0.0003618989596 | F74: =+TablaRetiros[[#This Row],[Empresa]] -> ON GROUP | G74: =+TablaRetiros[[#This Row],[Medida_kWh]]*-1 -> 25724970.34 | H74: =+TablaRetiros[[#This Row],[Prorrata]] -> 0.0003618989596 | I74: =+H74*GETPIVOTDATA("Compensación",Resultados!$Q$4) -> 8041276.568
B75: ORAZUL_DUQUECO | C75: -27180531.93 | D75: =+TablaRetiros[[#This Row],[Medida_kWh]]/SUM(TablaRetiros[Medida_kWh]) -> 0.0003823758044 | F75: =+TablaRetiros[[#This Row],[Empresa]] -> ORAZUL_DUQUECO | G75: =+TablaRetiros[[#This Row],[Medida_kWh]]*-1 -> 27180531.93 | H75: =+TablaRetiros[[#This Row],[Prorrata]] -> 0.0003823758044 | I75: =+H75*GETPIVOTDATA("Compensación",Resultados!$Q$4) -> 8496265.364
B76: PACIFIC HYDRO | C76: -8167012.452 | D76: =+TablaRetiros[[#This Row],[Medida_kWh]]/SUM(TablaRetiros[Medida_kWh]) -> 0.0001148935556 | F76: =+TablaRetiros[[#This Row],[Empresa]] -> PACIFIC HYDRO | G76: =+TablaRetiros[[#This Row],[Medida_kWh]]*-1 -> 8167012.452 | H76: =+TablaRetiros[[#This Row],[Prorrata]] -> 0.0001148935556 | I76: =+H76*GETPIVOTDATA("Compensación",Resultados!$Q$4) -> 2552897.243
B77: PANGUIPULLI | C77: -437124563 | D77: =+TablaRetiros[[#This Row],[Medida_kWh]]/SUM(TablaRetiros[Medida_kWh]) -> 0.006149469659 | F77: =+TablaRetiros[[#This Row],[Empresa]] -> PANGUIPULLI | G77: =+TablaRetiros[[#This Row],[Medida_kWh]]*-1 -> 437124563 | H77: =+TablaRetiros[[#This Row],[Prorrata]] -> 0.006149469659 | I77: =+H77*GETPIVOTDATA("Compensación",Resultados!$Q$4) -> 136639205.4
B78: PARQUE_EOLICO_LEBU | C78: -16097704.28 | D78: =+TablaRetiros[[#This Row],[Medida_kWh]]/SUM(TablaRetiros[Medida_kWh]) -> 0.0002264625519 | F78: =+TablaRetiros[[#This Row],[Empresa]] -> PARQUE_EOLICO_LEBU | G78: =+TablaRetiros[[#This Row],[Medida_kWh]]*-1 -> 16097704.28 | H78: =+TablaRetiros[[#This Row],[Prorrata]] -> 0.0002264625519 | I78: =+H78*GETPIVOTDATA("Compensación",Resultados!$Q$4) -> 5031923.866
B79: PEHUENCHE | C79: -334814830.1 | D79: =+TablaRetiros[[#This Row],[Medida_kWh]]/SUM(TablaRetiros[Medida_kWh]) -> 0.004710176031 | F79: =+TablaRetiros[[#This Row],[Empresa]] -> PEHUENCHE | G79: =+TablaRetiros[[#This Row],[Medida_kWh]]*-1 -> 334814830.1 | H79: =+TablaRetiros[[#This Row],[Prorrata]] -> 0.004710176031 | I79: =+H79*GETPIVOTDATA("Compensación",Resultados!$Q$4) -> 104658571.5
B80: POZO_ALMONTE_SOLAR_2 | C80: -21271603.87 | D80: =+TablaRetiros[[#This Row],[Medida_kWh]]/SUM(TablaRetiros[Medida_kWh]) -> 0.0002992489869 | F80: =+TablaRetiros[[#This Row],[Empresa]] -> POZO_ALMONTE_SOLAR_2 | G80: =+TablaRetiros[[#This Row],[Medida_kWh]]*-1 -> 21271603.87 | H80: =+TablaRetiros[[#This Row],[Prorrata]] -> 0.0002992489869 | I80: =+H80*GETPIVOTDATA("Compensación",Resultados!$Q$4) -> 6649214.655
B81: POZO_ALMONTE_SOLAR_3 | C81: -38667343.85 | D81: =+TablaRetiros[[#This Row],[Medida_kWh]]/SUM(TablaRetiros[Medida_kWh]) -> 0.0005439723089 | F81: =+TablaRetiros[[#This Row],[Empresa]] -> POZO_ALMONTE_SOLAR_3 | G81: =+TablaRetiros[[#This Row],[Medida_kWh]]*-1 -> 38667343.85 | H81: =+TablaRetiros[[#This Row],[Prorrata]] -> 0.0005439723089 | I81: =+H81*GETPIVOTDATA("Compensación",Resultados!$Q$4) -> 12086886.86
B82: PUCLARO | C82: -12174402.49 | D82: =+TablaRetiros[[#This Row],[Medida_kWh]]/SUM(TablaRetiros[Medida_kWh]) -> 0.0001712695307 | F82: =+TablaRetiros[[#This Row],[Empresa]] -> PUCLARO | G82: =+TablaRetiros[[#This Row],[Medida_kWh]]*-1 -> 12174402.49 | H82: =+TablaRetiros[[#This Row],[Prorrata]] -> 0.0001712695307 | I82: =+H82*GETPIVOTDATA("Compensación",Resultados!$Q$4) -> 3805552.978
B83: PUNTILLA | C83: -168121892.3 | D83: =+TablaRetiros[[#This Row],[Medida_kWh]]/SUM(TablaRetiros[Medida_kWh]) -> 0.002365139284 | F83: =+TablaRetiros[[#This Row],[Empresa]] -> PUNTILLA | G83: =+TablaRetiros[[#This Row],[Medida_kWh]]*-1 -> 168121892.3 | H83: =+TablaRetiros[[#This Row],[Prorrata]] -> 0.002365139284 | I83: =+H83*GETPIVOTDATA("Compensación",Resultados!$Q$4) -> 52552621.65
B84: RAKI | C84: -25068686.07 | D84: =+TablaRetiros[[#This Row],[Medida_kWh]]/SUM(TablaRetiros[Medida_kWh]) -> 0.0003526663505 | F84: =+TablaRetiros[[#This Row],[Empresa]] -> RAKI | G84: =+TablaRetiros[[#This Row],[Medida_kWh]]*-1 -> 25068686.07 | H84: =+TablaRetiros[[#This Row],[Prorrata]] -> 0.0003526663505 | I84: =+H84*GETPIVOTDATA("Compensación",Resultados!$Q$4) -> 7836131.012
B85: RIO_COLORADO | C85: -20564255.99 | D85: =+TablaRetiros[[#This Row],[Medida_kWh]]/SUM(TablaRetiros[Medida_kWh]) -> 0.0002892980147 | F85: =+TablaRetiros[[#This Row],[Empresa]] -> RIO_COLORADO | G85: =+TablaRetiros[[#This Row],[Medida_kWh]]*-1 -> 20564255.99 | H85: =+TablaRetiros[[#This Row],[Prorrata]] -> 0.0002892980147 | I85: =+H85*GETPIVOTDATA("Compensación",Resultados!$Q$4) -> 6428107.307
B86: RUCATAYO | C86: -241831487.2 | D86: =+TablaRetiros[[#This Row],[Medida_kWh]]/SUM(TablaRetiros[Medida_kWh]) -> 0.003402086084 | F86: =+TablaRetiros[[#This Row],[Empresa]] -> RUCATAYO | G86: =+TablaRetiros[[#This Row],[Medida_kWh]]*-1 -> 241831487.2 | H86: =+TablaRetiros[[#This Row],[Prorrata]] -> 0.003402086084 | I86: =+H86*GETPIVOTDATA("Compensación",Resultados!$Q$4) -> 75593240.54
B87: SAFIRA_ENERGIA_CHILE | C87: -10157963.57 | D87: =+TablaRetiros[[#This Row],[Medida_kWh]]/SUM(TablaRetiros[Medida_kWh]) -> 0.0001429022619 | F87: =+TablaRetiros[[#This Row],[Empresa]] -> SAFIRA_ENERGIA_CHILE | G87: =+TablaRetiros[[#This Row],[Medida_kWh]]*-1 -> 10157963.57 | H87: =+TablaRetiros[[#This Row],[Prorrata]] -> 0.0001429022619 | I87: =+H87*GETPIVOTDATA("Compensación",Resultados!$Q$4) -> 3175241.541
B88: SAN_JUAN_LAP | C88: -453729558.7 | D88: =+TablaRetiros[[#This Row],[Medida_kWh]]/SUM(TablaRetiros[Medida_kWh]) -> 0.006383068787 | F88: =+TablaRetiros[[#This Row],[Empresa]] -> SAN_JUAN_LAP | G88: =+TablaRetiros[[#This Row],[Medida_kWh]]*-1 -> 453729558.7 | H88: =+TablaRetiros[[#This Row],[Prorrata]] -> 0.006383068787 | I88: =+H88*GETPIVOTDATA("Compensación",Resultados!$Q$4) -> 141829701.6
B89: SANTIAGO_SOLAR | C89: -66929357.43 | D89: =+TablaRetiros[[#This Row],[Medida_kWh]]/SUM(TablaRetiros[Medida_kWh]) -> 0.0009415624003 | F89: =+TablaRetiros[[#This Row],[Empresa]] -> SANTIAGO_SOLAR | G89: =+TablaRetiros[[#This Row],[Medida_kWh]]*-1 -> 66929357.43 | H89: =+TablaRetiros[[#This Row],[Prorrata]] -> 0.0009415624003 | I89: =+H89*GETPIVOTDATA("Compensación",Resultados!$Q$4) -> 20921208.71
B90: SGA | C90: -128698399 | D90: =+TablaRetiros[[#This Row],[Medida_kWh]]/SUM(TablaRetiros[Medida_kWh]) -> 0.001810529462 | F90: =+TablaRetiros[[#This Row],[Empresa]] -> SGA | G90: =+TablaRetiros[[#This Row],[Medida_kWh]]*-1 -> 128698399 | H90: =+TablaRetiros[[#This Row],[Prorrata]] -> 0.001810529462 | I90: =+H90*GETPIVOTDATA("Compensación",Resultados!$Q$4) -> 40229372.73
B91: SPVP4 | C91: -11099435.24 | D91: =+TablaRetiros[[#This Row],[Medida_kWh]]/SUM(TablaRetiros[Medida_kWh]) -> 0.0001561468881 | F91: =+TablaRetiros[[#This Row],[Empresa]] -> SPVP4 | G91: =+TablaRetiros[[#This Row],[Medida_kWh]]*-1 -> 11099435.24 | H91: =+TablaRetiros[[#This Row],[Prorrata]] -> 0.0001561468881 | I91: =+H91*GETPIVOTDATA("Compensación",Resultados!$Q$4) -> 3469532.804
B92: TACORA_ENERGY | C92: -3257243.1 | D92: =+TablaRetiros[[#This Row],[Medida_kWh]]/SUM(TablaRetiros[Medida_kWh]) -> 4.582290567e-05 | F92: =+TablaRetiros[[#This Row],[Empresa]] -> TACORA_ENERGY | G92: =+TablaRetiros[[#This Row],[Medida_kWh]]*-1 -> 3257243.1 | H92: =+TablaRetiros[[#This Row],[Prorrata]] -> 4.582290567e-05 | I92: =+H92*GETPIVOTDATA("Compensación",Resultados!$Q$4) -> 1018169.983
B93: TAMAKAYA_ENERGIA | C93: -2804407738 | D93: =+TablaRetiros[[#This Row],[Medida_kWh]]/SUM(TablaRetiros[Medida_kWh]) -> 0.03945241644 | F93: =+TablaRetiros[[#This Row],[Empresa]] -> TAMAKAYA_ENERGIA | G93: =+TablaRetiros[[#This Row],[Medida_kWh]]*-1 -> 2804407738 | H93: =+TablaRetiros[[#This Row],[Prorrata]] -> 0.03945241644 | I93: =+H93*GETPIVOTDATA("Compensación",Resultados!$Q$4) -> 876619795.2
B94: TECNORED | C94: -187408353.3 | D94: =+TablaRetiros[[#This Row],[Medida_kWh]]/SUM(TablaRetiros[Medida_kWh]) -> 0.002636461274 | F94: =+TablaRetiros[[#This Row],[Empresa]] -> TECNORED | G94: =+TablaRetiros[[#This Row],[Medida_kWh]]*-1 -> 187408353.3 | H94: =+TablaRetiros[[#This Row],[Prorrata]] -> 0.002636461274 | I94: =+H94*GETPIVOTDATA("Compensación",Resultados!$Q$4) -> 58581307.58
B95: UCUQUER_DOS | C95: -10279711.95 | D95: =+TablaRetiros[[#This Row],[Medida_kWh]]/SUM(TablaRetiros[Medida_kWh]) -> 0.0001446150185 | F95: =+TablaRetiros[[#This Row],[Empresa]] -> UCUQUER_DOS | G95: =+TablaRetiros[[#This Row],[Medida_kWh]]*-1 -> 10279711.95 | H95: =+TablaRetiros[[#This Row],[Prorrata]] -> 0.0001446150185 | I95: =+H95*GETPIVOTDATA("Compensación",Resultados!$Q$4) -> 3213298.432
B96: Total general | C96: =+SUM(TablaRetiros[Medida_kWh]) -> -7.108329454e+10 | D96: =+SUM(TablaRetiros[Prorrata]) -> 1 | F96: Total general | G96: =SUM(G3:G95) -> 7.108329454e+10 | H96: =SUM(H3:H95) -> 1 | I96: =SUM(I3:I95) -> 2.221967307e+10

Sheet Impuestos SII
C2: Impuesto a Emisiones 2019
C3: Fuente Oficial Servicio de Impuesto Internos | O3: Matriz 1: Unidades, Gx Anual e Impuestos | T3: Matriz 2: Fuente e Impuestos | W3: Matriz 3: Relación Fuente Emisora con Unidades Generadoras | AB3: Matriz 4: Distribución Impuesto
A5: RUT | B5: DV | C5: ESTABLECIMIENTO | D5: CÓDIGO FUENTE | E5: MONTO IMPUESTO USD | F5: TIPO DE CAMBIO | G5: FOLIO | H5: ID FOLIO | I5: PERIODO | J5: FECHA MODIFICACIÓN | K5: Planta Generación Eléctrica SEN | O5: =+Unidades!B5 -> Nombre unidad TCV | P5: N° Caso | Q5: Gx Anual [kWh] | R5: Impuesto por central CLP | T5: N° Fuente | U5: Impuesto por fuente CLP | W5: Fuente Emisora | X5: N° Unidades | Y5: Unidad Generadora 1 | Z5: Unidad Generadora 2 | AB5: Fuente Emisora | AC5: Unidad Generadora 1 | AD5: Unidad Generadora 2
A6: 96510970 | B6: 6 | C6: PLANTA TRUPÁN/CHOLGUAN | D6: IN000611-8 | E6: 170136.27 | F6: 852.03 | G6: 3657035 | H6: 212660058 | I6: 202004 | J6: 2020-04-01 | K6: 1 | O6: =+Unidades!B6 -> ANG1 | P6: 1 | Q6: =+VLOOKUP(O6,TablaGxN_NTH1[],14,0) -> 2068339331 | R6: 7130520711 | T6: =+D6 -> IN000611-8 | U6: =+K6*F6*E6 -> 144961206.1 | W6: GE000103-5 | X6: =+COUNTA(Y6:Z6) -> 2 | Y6: ANG1 | Z6: ANG2 | AB6: =+W6 -> GE000103-5 | AC6: 7130520711 | AD6: 7311026707
A7: 96510970 | B7: 6 | C7: PLANTA TRUPÁN/CHOLGUAN | D7: IN003326-K | E7: 2896.61 | F7: 852.03 | G7: 3657037 | H7: 212660064 | I7: 202004 | J7: 2020-04-01 | K7: 1 | O7: =+Unidades!B7 -> ANG2 | P7: 1 | Q7: =+VLOOKUP(O7,TablaGxN_NTH1[],14,0) -> 2120698432 | R7: 7311026707 | T7: =+D7 -> IN003326-K | U7: =+K7*F7*E7 -> 2467998.618 | W7: GE000277-1 | X7: =+COUNTA(Y7:Z7) -> 1 | Y7: IEM | AB7: =+W7 -> GE000277-1 | AC7: 5501904708
A8: 96510970 | B8: 6 | C8: PLANTA TRUPÁN/CHOLGUAN | D8: IN003325-1 | E8: 16150.48 | F8: 852.03 | G8: 3657039 | H8: 212660066 | I8: 202004 | J8: 2020-04-01 | K8: 1 | O8: =+Unidades!B8 -> Antilhue TG U1 | P8: 2 | Q8: =+VLOOKUP(O8,TablaGxN_NTH1[],14,0) -> 31212629.97 | R8: 121233798 | T8: IN003325-1 | U8: 13760693.47 | W8: GE000043-8 | X8: 1 | Y8: Bocamina | AB8: GE000043-8 | AC8: 2541576691
A9: 96802690 | B9: 9 | C9: PLANTA CABRERO DIVISION MADERAS | D9: CA010879-0 | E9: 161.07 | F9: 852.03 | G9: 3657041 | H9: 212660068 | I9: 202004 | J9: 2020-04-01 | K9: 1 | O9: =+Unidades!B9 -> Antilhue TG U2 | P9: 2 | Q9: =+VLOOKUP(O9,TablaGxN_NTH1[],14,0) -> 20710645.63 | R9: 117409333.5 | T9: CA010879-0 | U9: 137236.4721 | W9: GE000106-k | X9: 1 | Y9: Bocamina II | AB9: GE000106-k | AC9: 1.053414315e+10
A10: 96802690 | B10: 9 | C10: PLANTA CABRERO DIVISION MADERAS | D10: GE000130-2 | E10: 29800.28 | F10: 852.03 | G10: 3657043 | H10: 212660070 | I10: 202004 | J10: 2020-04-01 | K10: 1 | O10: =+Unidades!B10 -> Arauco | P10: 2 | Q10: =+VLOOKUP(O10,TablaGxN_NTH1[],14,0) -> 45303256.93 | R10: 1965836675 | T10: GE000130-2 | U10: 25390732.57 | W10: GE000124-8 | X10: 1 | Y10: Campiche | AB10: GE000124-8 | AC10: 6370837756
A11: 96802690 | B11: 9 | C11: PLANTA CABRERO DIVISION MADERAS | D11: IN002653-4 | E11: 6185.41 | F11: 852.03 | G11: 3657045 | H11: 212660072 | I11: 202004 | J11: 2020-04-01 | K11: 1 | O11: =+Unidades!B11 -> Bocamina | P11: 1 | Q11: =+VLOOKUP(O11,TablaGxN_NTH1[],14,0) -> 549260409.7 | R11: 2541576691 | T11: IN002653-4 | U11: 5270154.882 | W11: PC001834-6 | X11: 1 | Y11: Cardones | AB11: PC001834-6 | AC11: 152768.979
A12: 96802690 | B12: 9 | C12: PLANTA CABRERO DIVISION MADERAS | D12: IN002647-K | E12: 7367.07 | F12: 852.03 | G12: 3657047 | H12: 212660074 | I12: 202004 | J12: 2020-04-01 | K12: 1 | O12: =+Unidades!B12 -> Bocamina II | P12: 1 | Q12: =+VLOOKUP(O12,TablaGxN_NTH1[],14,0) -> 2123734390 | R12: 1.053414315e+10 | T12: IN002647-K | U12: 6276964.652 | W12: GE000234-8 | X12: 2 | Y12: CCH1 | Z12: CCH2 | AB12: GE000234-8 | AC12: 5736884739 | AD12: 5748596491
A13: 96802690 | B13: 9 | C13: PLANTA CABRERO DIVISION MADERAS | D13: CA010880-4 | E13: 123.57 | F13: 852.03 | G13: 3657049 | H13: 212660076 | I13: 202004 | J13: 2020-04-01 | K13: 1 | O13: =+Unidades!B13 -> Campiche | P13: 1 | Q13: =+VLOOKUP(O13,TablaGxN_NTH1[],14,0) -> 1566513230 | R13: 6370837756 | T13: CA010880-4 | U13: 105285.3471 | W13: PC003590-4 | X13: =+COUNTA(Y13:Z13) -> 1 | Y13: CENTRAL DIÉSEL IQUIQUE | AB13: PC003590-4
A14: 78932860 | B14: 9 | C14: CENTRAL TARAPACÁ | D14: GE000013-6 | E14: 3819707.02 | F14: 852.03 | G14: 3657051 | H14: 212660078 | I14: 202004 | J14: 2020-04-01 | K14: 1 | O14: =+Unidades!B14 -> Candelaria 1 | P14: 1 | Q14: =+VLOOKUP(O14,TablaGxN_NTH1[],14,0) -> 47777558.4 | R14: 149792122.5 | T14: GE000013-6 | U14: 3254504972 | W14: IN002463-9 | X14: 1 | Y14: CMPC TISSUE | AB14: IN002463-9 | AC14: 9933016.862
A15: 78932860 | B15: 9 | C15: CENTRAL TARAPACÁ | D15: PC000103-6 | E15: 1036.42 | F15: 852.03 | G15: 3657053 | H15: 212660080 | I15: 202004 | J15: 2020-04-01 | K15: 1 | O15: =+Unidades!B15 -> Candelaria 2 | P15: 1 | Q15: =+VLOOKUP(O15,TablaGxN_NTH1[],14,0) -> 36631821.09 | R15: 108844199.7 | T15: PC000103-6 | U15: 883060.9326 | W15: PC003087-7 | X15: 1 | Y15: CMPC TISSUE | AB15: PC003087-7 | AC15: 346300675
A16: 78932860 | B16: 9 | C16: CENTRAL SAN ISIDRO I | D16: PC000319-5 | E16: 2486901.94 | F16: 852.03 | G16: 3657055 | H16: 212660082 | I16: 202004 | J16: 2020-04-01 | K16: 1 | O16: =+Unidades!B16 -> Cardones | P16: 1 | Q16: =+VLOOKUP(O16,TablaGxN_NTH1[],14,0) -> 4.163 | R16: 152768.98 | T16: PC000319-5 | U16: 2118915060 | W16: GE000251-8 | X16: 1 | Y16: CTA | AB16: GE000251-8 | AC16: 3090384807
A17: 61704000 | B17: K | C17: DIVISIÓN CHUQUICAMATA | D17: CF000116-3 | E17: 36386.9 | F17: 852.03 | G17: 3657057 | H17: 212660084 | I17: 202004 | J17: 2020-04-01 | K17: 0 | O17: =+Unidades!B17 -> CC KELAR | P17: 2 | Q17: =+VLOOKUP(O17,TablaGxN_NTH1[],14,0) -> 1540101476 | R17: 2812750320 | T17: CF000116-3 | U17: 0 | W17: GE000100-0 | X17: 1 | Y17: CTH | AB17: GE000100-0 | AC17: 4090706785
A18: 61704000 | B18: K | C18: DIVISIÓN CHUQUICAMATA | D18: PC001459-6 | E18: 1354.75 | F18: 852.03 | G18: 3657059 | H18: 212660086 | I18: 202004 | J18: 2020-04-01 | K18: 0 | O18: =+Unidades!B18 -> CC1 | P18: 2 | Q18: =+VLOOKUP(O18,TablaGxN_NTH1[],14,0) -> 221875084.6 | R18: 549818333 | T18: PC001459-6 | U18: 0 | W18: GE000018-7 | X18: 2 | Y18: CTM1 | Z18: CTM2 | AB18: GE000018-7 | AC18: 839287289.3 | AD18: 734409914
A19: 61704000 | B19: K | C19: DIVISIÓN CHUQUICAMATA | D19: PC001460-K | E19: 1094.31 | F19: 852.03 | G19: 3657061 | H19: 212660088 | I19: 202004 | J19: 2020-04-01 | K19: 0 | O19: =+Unidades!B19 -> CC2 | P19: 2 | Q19: =+VLOOKUP(O19,TablaGxN_NTH1[],14,0) -> 85313347.54 | R19: 213473066.2 | T19: PC001460-K | U19: 0 | W19: GE000019-5 | X19: 0 | AB19: GE000019-5
A20: 61704000 | B20: K | C20: DIVISIÓN CHUQUICAMATA | D20: PC001461-8 | E20: 1449.6 | F20: 852.03 | G20: 3657063 | H20: 212660090 | I20: 202004 | J20: 2020-04-01 | K20: 0 | O20: =+Unidades!B20 -> CCH1 | P20: 1 | Q20: =+VLOOKUP(O20,TablaGxN_NTH1[],14,0) -> 1428661264 | R20: 5736884739 | T20: PC001461-8 | U20: 0 | W20: GE000250-K | X20: 1 | Y20: CTM3 | AB20: GE000250-K | AC20: 1316739585
A21: 61704000 | B21: K | C21: DIVISIÓN CHUQUICAMATA | D21: IN000975-3 | E21: 56913.25 | F21: 852.03 | G21: 3657065 | H21: 212660092 | I21: 202004 | J21: 2020-04-01 | K21: 0 | O21: =+Unidades!B21 -> CCH2 | P21: 1 | Q21: =+VLOOKUP(O21,TablaGxN_NTH1[],14,0) -> 1431577852 | R21: 5748596491 | T21: IN000975-3 | U21: 0 | W21: GE000013-6 | X21: 1 | Y21: CTTAR | AB21: GE000013-6 | AC21: 3254504972
A22: 61704000 | B22: K | C22: DIVISIÓN CHUQUICAMATA | D22: IN000976-1 | E22: 187612.77 | F22: 852.03 | G22: 3657067 | H22: 212660098 | I22: 202004 | J22: 2020-04-01 | K22: 0 | O22: =+Unidades!B22 -> CD Iquique | P22: 1 | Q22: =+VLOOKUP(O22,TablaGxN_NTH1[],14,0) -> 0 | R22: 0 | T22: IN000976-1 | U22: 0 | W22: PC000355-1 | X22: 1 | Y22: Diego de Almagro | AB22: PC000355-1 | AC22: 1309936.483
A23: 61704000 | B23: K | C23: DIVISIÓN CHUQUICAMATA | D23: IN003562-9 | E23: 29577.61 | F23: 852.03 | G23: 3657069 | H23: 212660100 | I23: 202004 | J23: 2020-04-01 | K23: 0 | O23: =+Unidades!B23 -> Celco | P23: 2 | Q23: =+VLOOKUP(O23,TablaGxN_NTH1[],14,0) -> 49517976.81 | R23: 551581745.5 | T23: IN003562-9 | U23: 0 | W23: PC003725-7 | X23: 1 | Y23: El Salvador | AB23: PC003725-7 | AC23: 1040925.051
A24: 61704000 | B24: K | C24: DIVISIÓN CHUQUICAMATA | D24: IN003641-2 | E24: 13022.78 | F24: 852.03 | G24: 3657071 | H24: 212660102 | I24: 202004 | J24: 2020-04-01 | K24: 0 | O24: =+Unidades!B24 -> Cholguán | P24: 2 | Q24: =+VLOOKUP(O24,TablaGxN_NTH1[],14,0) -> 35718370.79 | R24: 161189898.2 | T24: IN003641-2 | U24: 0 | W24: EL029919-7 | X24: 1 | Y24: Emelda U1 | AB24: EL029919-7 | AC24: 1038070.75
A25: 76186388 | B25: 6 | C25: CENTRAL CORONEL | D25: PC000146-K | E25: 53493.07 | F25: 852.03 | G25: 3657073 | H25: 212660104 | I25: 202004 | J25: 2020-04-01 | K25: 1 | O25: =+Unidades!B25 -> CMPC Cordillera | P25: 2 | Q25: =+VLOOKUP(O25,TablaGxN_NTH1[],14,0) -> 1324445.224 | R25: 875895948.2 | T25: PC000146-K | U25: 45577700.43 | W25: EL029922-7 | X25: 1 | Y25: Emelda U2 | AB25: EL029922-7 | AC25: 2601187.948
A26: 76085254 | B26: 6 | C26: CENTRAL TERMOELÉCTRICA COCHRANE | D26: GE000234-8 | E26: 13480137.12 | F26: 852.03 | G26: 3657075 | H26: 212660106 | I26: 202004 | J26: 2020-04-01 | K26: 1 | O26: =+Unidades!B26 -> CMPC Laja | P26: 2 | Q26: =+VLOOKUP(O26,TablaGxN_NTH1[],14,0) -> 158052021.2 | R26: 100316563.8 | T26: GE000234-8 | U26: 1.148548123e+10 | W26: GE000102-7 | X26: 1 | Y26: Energía Pacífico | AB26: GE000102-7 | AC26: 34547780.15
A27: 96505760 | B27: 9 | C27: CENTRAL TERMOELÉCTRICA CANDELARIA | D27: PC000387-K | E27: 175806.16 | F27: 852.03 | G27: 3657077 | H27: 212660108 | I27: 202004 | J27: 2020-04-01 | K27: 1 | O27: =+Unidades!B27 -> CMPC Pacífico | P27: 2 | Q27: =+VLOOKUP(O27,TablaGxN_NTH1[],14,0) -> 118029547.8 | R27: 469412594.2 | T27: PC000387-K | U27: 149792122.5 | W27: PC003595-5 | X27: 1 | Y27: Esperanza TG | AB27: PC003595-5 | AC27: 784702.5894
A28: 96505760 | B28: 9 | C28: CENTRAL TERMOELÉCTRICA CANDELARIA | D28: PC000388-8 | E28: 127746.91 | F28: 852.03 | G28: 3657079 | H28: 212660110 | I28: 202004 | J28: 2020-04-01 | K28: 1 | O28: =+Unidades!B28 -> CMPC Santa Fe | P28: 2 | Q28: =+VLOOKUP(O28,TablaGxN_NTH1[],14,0) -> 0 | R28: 269498963.5 | T28: PC000388-8 | U28: 108844199.7 | W28: GE000016-0 | X28: 2 | Y28: Guacolda 1 | Z28: Guacolda 2 | AB28: GE000016-0 | AC28: 4943516689 | AD28: 4434469717
A29: 96505760 | B29: 9 | C29: COMPLEJO TERMOELÉCTRICO NEHUENCO | D29: PC001510-0 | E29: 3352964.7 | F29: 852.03 | G29: 3657081 | H29: 212660116 | I29: 202004 | J29: 2020-04-01 | K29: 1 | O29: =+Unidades!B29 -> CMPC TISSUE | P29: 2 | Q29: =+VLOOKUP(O29,TablaGxN_NTH1[],14,0) -> 21051963.48 | R29: 356233691.9 | T29: PC001510-0 | U29: 2856826513 | W29: PC004352-4 | X29: 1 | Y29: Los Guindos 2 | AB29: PC004352-4 | AC29: 0
A30: 96505760 | B30: 9 | C30: COMPLEJO TERMOELÉCTRICO NEHUENCO | D30: IN000473-5 | E30: 2280.86 | F30: 852.03 | G30: 3657083 | H30: 212660118 | I30: 202004 | J30: 2020-04-01 | K30: 1 | O30: =+Unidades!B30 -> Colmito | P30: 1 | Q30: =+VLOOKUP(O30,TablaGxN_NTH1[],14,0) -> 58022215.54 | R30: 214764309.2 | T30: IN000473-5 | U30: 1943361.146 | W30: GE000079-9 | X30: 1 | Y30: Guacolda 3 | AB30: GE000079-9 | AC30: 3876669198
A31: 96505760 | B31: 9 | C31: COMPLEJO TERMOELÉCTRICO NEHUENCO | D31: PC001511-0 | E31: 5856696.49 | F31: 852.03 | G31: 3657085 | H31: 212660120 | I31: 202004 | J31: 2020-04-01 | K31: 1 | O31: =+Unidades!B31 -> CTA | P31: 1 | Q31: =+VLOOKUP(O31,TablaGxN_NTH1[],14,0) -> 654454952 | R31: 3090384807 | T31: PC001511-0 | U31: 4990081110 | W31: GE000080-2 | X31: 1 | Y31: Guacolda 4 | AB31: GE000080-2 | AC31: 4228110076
A32: 96505760 | B32: 9 | C32: COMPLEJO TERMOELÉCTRICO NEHUENCO | D32: PC001512-0 | E32: 8880.18 | F32: 852.03 | G32: 3657087 | H32: 212660122 | I32: 202004 | J32: 2020-04-01 | K32: 1 | O32: =+Unidades!B32 -> CTH | P32: 1 | Q32: =+VLOOKUP(O32,TablaGxN_NTH1[],14,0) -> 777068043.1 | R32: 4090706785 | T32: PC001512-0 | U32: 7566179.765 | W32: GE000215-1 | X32: 1 | Y32: Guacolda 5 | AB32: GE000215-1 | AC32: 4288915240
A33: 96505760 | B33: 9 | C33: CENTRAL TERMOELÉCTRICA LOS PINOS | D33: PC000507-4 | E33: 37559.56 | F33: 852.03 | G33: 3657089 | H33: 212660124 | I33: 202004 | J33: 2020-04-01 | K33: 1 | O33: =+Unidades!B33 -> CTM1 | P33: 1 | Q33: =+VLOOKUP(O33,TablaGxN_NTH1[],14,0) -> 228523245.4 | R33: 839287289.3 | T33: PC000507-4 | U33: 32001871.91 | W33: PC002440-0 | X33: 1 | Y33: Horcones | AB33: PC002440-0 | AC33: 679340.5596
A34: 96505760 | B34: 9 | C34: COMPLEJO TERMOELECTRICO SANTA MARIA | D34: GE000094-2 | E34: 11198454.1 | F34: 852.03 | G34: 3657091 | H34: 212660126 | I34: 202004 | J34: 2020-04-01 | K34: 1 | O34: =+Unidades!B34 -> CTM2 | P34: 1 | Q34: =+VLOOKUP(O34,TablaGxN_NTH1[],14,0) -> 199966970.9 | R34: 734409914 | T34: GE000094-2 | U34: 9541418847 | W34: PC000603-8 | X34: 1 | Y34: Laguna Verde TG | AB34: PC000603-8
A35: 96505760 | B35: 9 | C35: COMPLEJO TERMOELECTRICO SANTA MARIA | D35: IN001433-1 | E35: 6608.41 | F35: 852.03 | G35: 3657093 | H35: 212660128 | I35: 202004 | J35: 2020-04-01 | K35: 1 | O35: =+Unidades!B35 -> CTM3 | P35: 1 | Q35: =+VLOOKUP(O35,TablaGxN_NTH1[],14,0) -> 791656218.1 | R35: 1316739585 | T35: IN001433-1 | U35: 5630563.572 | W35: GE000116-7 | X35: 1 | Y35: Laja | AB35: GE000116-7 | AC35: 4194492.568
A36: 76008306 | B36: 2 | C36: CENTRAL TERMOELECTRICA CAMPICHE | D36: GE000124-8 | E36: 7477245.82 | F36: 852.03 | G36: 3657095 | H36: 212660130 | I36: 202004 | J36: 2020-04-01 | K36: 1 | O36: =+Unidades!B36 -> CTTAR | P36: 1 | Q36: =+VLOOKUP(O36,TablaGxN_NTH1[],14,0) -> 614085753.7 | R36: 3254504972 | T36: GE000124-8 | U36: 6370837756 | W36: GE000114-0 | X36: 1 | Y36: Lautaro-Comasa | AB36: GE000114-0 | AC36: 84776652.71
A37: 96665000 | B37: 1 | C37: EAGON LAUTARO S.A. | D37: IN000373-9 | E37: 100454.82 | F37: 852.03 | G37: 3657097 | H37: 212660132 | I37: 202004 | J37: 2020-04-01 | K37: 0 | O37: =+Unidades!B37 -> Diego de Almagro | P37: 1 | Q37: =+VLOOKUP(O37,TablaGxN_NTH1[],14,0) -> 159438.013 | R37: 1309936.48 | T37: IN000373-9 | U37: 0 | W37: GE000203-8 | X37: 1 | Y37: Lautaro-Comasa 2 | AB37: GE000203-8 | AC37: 68877602.5
A38: 96665000 | B38: 1 | C38: EAGON LAUTARO S.A. | D38: IN003176-3 | E38: 97411.16 | F38: 852.03 | G38: 3657099 | H38: 212660134 | I38: 202004 | J38: 2020-04-01 | K38: 0 | O38: =+Unidades!B38 -> El Salvador | P38: 1 | Q38: =+VLOOKUP(O38,TablaGxN_NTH1[],14,0) -> 112731.219 | R38: 1040925.05 | T38: IN003176-3 | U38: 0 | W38: PC003468-1 | X38: 1 | Y38: Los Guindos | AB38: PC003468-1 | AC38: 0
A39: 96989120 | B39: 4 | C39: CERVECERA CCU CHILE LTDA. (2) | D39: IN001253-3 | E39: 40394.99 | F39: 852.03 | G39: 3657101 | H39: 212660140 | I39: 202004 | J39: 2020-04-01 | K39: 0 | O39: =+Unidades!B39 -> Emelda U1 | P39: 1 | Q39: =+VLOOKUP(O39,TablaGxN_NTH1[],14,0) -> 198569 | R39: 1038070.75 | T39: IN001253-3 | U39: 0 | W39: PC000507-4 | X39: 1 | Y39: Los Pinos | AB39: PC000507-4 | AC39: 32001871.91
A40: 96989120 | B40: 4 | C40: CERVECERA CCU CHILE LTDA. (2) | D40: IN001251-7 | E40: 12524.66 | F40: 852.03 | G40: 3657103 | H40: 212660142 | I40: 202004 | J40: 2020-04-01 | K40: 0 | O40: =+Unidades!B40 -> Emelda U2 | P40: 1 | Q40: =+VLOOKUP(O40,TablaGxN_NTH1[],14,0) -> 610280.992 | R40: 2601187.95 | T40: IN001251-7 | U40: 0 | W40: PC000023-4 | X40: 1 | Y40: Los Vientos | AB40: PC000023-4 | AC40: 356490826
A41: 96989120 | B41: 4 | C41: CERVECERA CCU CHILE LTDA. (2) | D41: IN003583-1 | E41: 44785.12 | F41: 852.03 | G41: 3657105 | H41: 212660144 | I41: 202004 | J41: 2020-04-01 | K41: 0 | O41: =+Unidades!B41 -> Energía Pacífico | P41: 1 | Q41: =+VLOOKUP(O41,TablaGxN_NTH1[],14,0) -> 113384792.4 | R41: 34547780.15 | T41: IN003583-1 | U41: 0 | W41: GE000005-5 | X41: 1 | Y41: NTO1 | AB41: GE000005-5 | AC41: 3665085883
A42: 96893820 | B42: 7 | C42: PLANTA SUR | D42: CA001493-4 | E42: 23702.05 | F42: 852.03 | G42: 3657107 | H42: 212660146 | I42: 202004 | J42: 2020-04-01 | K42: 0 | O42: =+Unidades!B42 -> Escuadrón | P42: 2 | Q42: =+VLOOKUP(O42,TablaGxN_NTH1[],14,0) -> 24602223.73 | R42: 28068552.09 | T42: CA001493-4 | U42: 0 | W42: GE000006-3 | X42: 1 | Y42: NTO2 | AB42: GE000006-3 | AC42: 3736848766
A43: 96893820 | B43: 7 | C43: PLANTA SUR | D43: IN000386-0 | E43: 21210.17 | F43: 852.03 | G43: 3657109 | H43: 212660148 | I43: 202004 | J43: 2020-04-01 | K43: 0 | O43: =+Unidades!B43 -> Esperanza TG | P43: 1 | Q43: =+VLOOKUP(O43,TablaGxN_NTH1[],14,0) -> 161074.703 | R43: 784702.59 | T43: IN000386-0 | U43: 0 | W43: GE000072-1 | X43: 1 | Y43: Nueva Ventanas | AB43: GE000072-1 | AC43: 6805550670
A44: 96893820 | B44: 7 | C44: PLANTA SUR | D44: IN000385-2 | E44: 55169.19 | F44: 852.03 | G44: 3657111 | H44: 212660150 | I44: 202004 | J44: 2020-04-01 | K44: 0 | O44: =+Unidades!B44 -> Guacolda 1 | P44: 1 | Q44: =+VLOOKUP(O44,TablaGxN_NTH1[],14,0) -> 952399871.7 | R44: 4943516689 | T44: IN000385-2 | U44: 0 | W44: GE000010-1 | X44: 1 | Y44: Petropower | AB44: GE000010-1 | AC44: 3038016793
A45: 96893820 | B45: 7 | C45: PLANTA SUR | D45: IN000387-9 | E45: 210903.78 | F45: 852.03 | G45: 3657113 | H45: 212660152 | I45: 202004 | J45: 2020-04-01 | K45: 0 | O45: =+Unidades!B45 -> Guacolda 2 | P45: 1 | Q45: =+VLOOKUP(O45,TablaGxN_NTH1[],14,0) -> 854328741 | R45: 4434469717 | T45: IN000387-9 | U45: 0 | W45: IN001131-6 | X45: 1 | Y45: Renca U1 | AB45: IN001131-6
A46: 96893820 | B46: 7 | C46: PLANTA MEJILLONES | D46: IN000357-7 | E46: 18730.94 | F46: 852.03 | G46: 3657115 | H46: 212660154 | I46: 202004 | J46: 2020-04-01 | K46: 0 | O46: =+Unidades!B46 -> Guacolda 3 | P46: 1 | Q46: =+VLOOKUP(O46,TablaGxN_NTH1[],14,0) -> 942221326.1 | R46: 3876669198 | T46: IN000357-7 | U46: 0 | W46: IN001132-4 | X46: 1 | Y46: Renca U2 | AB46: IN001132-4
A47: 96893820 | B47: 7 | C47: PLANTA MEJILLONES | D47: IN000358-5 | E47: 12642.81 | F47: 852.03 | G47: 3657117 | H47: 212660156 | I47: 202004 | J47: 2020-04-01 | K47: 0 | O47: =+Unidades!B47 -> Guacolda 4 | P47: 1 | Q47: =+VLOOKUP(O47,TablaGxN_NTH1[],14,0) -> 877726589.3 | R47: 4228110076 | T47: IN000358-5 | U47: 0 | W47: PC000569-4 | X47: 1 | Y47: San Lorenzo de D. de Almagro U1 | AB47: PC000569-4
A48: 96893820 | B48: 7 | C48: PLANTA MEJILLONES | D48: IN000359-3 | E48: 28873.77 | F48: 852.03 | G48: 3657119 | H48: 212660158 | I48: 202004 | J48: 2020-04-01 | K48: 0 | O48: =+Unidades!B48 -> Guacolda 5 | P48: 1 | Q48: =+VLOOKUP(O48,TablaGxN_NTH1[],14,0) -> 1000014318 | R48: 4288915240 | T48: IN000359-3 | U48: 0 | W48: PC000570-8 | X48: 1 | Y48: San Lorenzo de D. de Almagro U2 | AB48: PC000570-8
A49: 96893820 | B49: 7 | C49: PLANTA MEJILLONES | D49: IN002751-4 | E49: 25771.98 | F49: 852.03 | G49: 3657121 | H49: 212660164 | I49: 202004 | J49: 2020-04-01 | K49: 0 | O49: =+Unidades!B49 -> Horcones | P49: 1 | Q49: =+VLOOKUP(O49,TablaGxN_NTH1[],14,0) -> 45538.752 | R49: 679340.56 | T49: IN002751-4 | U49: 0 | W49: PC000846-4 | X49: 1 | Y49: Santa Lidia | AB49: PC000846-4 | AC49: 7973816.478
A50: 96893820 | B50: 7 | C50: PLANTA MEJILLONES | D50: IN000361-5 | E50: 11901.7 | F50: 852.03 | G50: 3657123 | H50: 212660166 | I50: 202004 | J50: 2020-04-01 | K50: 0 | O50: =+Unidades!B50 -> Huasco TG | P50: 2 | Q50: =+VLOOKUP(O50,TablaGxN_NTH1[],14,0) -> 78479.466 | R50: 1241279.91 | T50: IN000361-5 | U50: 0 | W50: PC003591-2 | X50: 1 | Y50: TG1 | AB50: PC003591-2
A51: 96893820 | B51: 7 | C51: PLANTA MEJILLONES | D51: CA010810-3 | E51: 6195.44 | F51: 852.03 | G51: 3657125 | H51: 212660168 | I51: 202004 | J51: 2020-04-01 | K51: 0 | O51: =+Unidades!B51 -> IEM | P51: 1 | Q51: =+VLOOKUP(O51,TablaGxN_NTH1[],14,0) -> 1195722241 | R51: 5501904708 | T51: CA010810-3 | U51: 0 | W51: PC003592-0 | X51: 1 | Y51: TG2 | AB51: PC003592-0
A52: 96893820 | B52: 7 | C52: PLANTA SUR | D52: IN001087-5 | E52: 28036.9 | F52: 852.03 | G52: 3657129 | H52: 212660172 | I52: 202004 | J52: 2020-04-01 | K52: 0 | O52: =+Unidades!B52 -> Laguna Verde TG | P52: 1 | Q52: =+VLOOKUP(O52,TablaGxN_NTH1[],14,0) -> 0 | R52: 0 | T52: IN001087-5 | U52: 0 | W52: PC003593-9 | X52: 1 | Y52: TG3 | AB52: PC003593-9 | AC52: 31548924.24
A53: 96893820 | B53: 7 | C53: PLANTA SUR | D53: IN001088-3 | E53: 27320.02 | F53: 852.03 | G53: 3657131 | H53: 212660174 | I53: 202004 | J53: 2020-04-01 | K53: 0 | O53: =+Unidades!B53 -> Laguna Verde TV | P53: 2 | Q53: =+VLOOKUP(O53,TablaGxN_NTH1[],14,0) -> 0 | R53: 0 | T53: IN001088-3 | U53: 0 | W53: PC000103-6 | X53: 1 | Y53: TGTAR | AB53: PC000103-6 | AC53: 883060.9326
A54: 96893820 | B54: 7 | C54: PLANTA SUR | D54: IN001089-1 | E54: 15965.47 | F54: 852.03 | G54: 3657133 | H54: 212660176 | I54: 202004 | J54: 2020-04-01 | K54: 0 | O54: =+Unidades!B54 -> Laja | P54: 1 | Q54: =+VLOOKUP(O54,TablaGxN_NTH1[],14,0) -> 26856261.47 | R54: 4194492.57 | T54: IN001089-1 | U54: 0 | W54: GE000025-k | X54: =+COUNTA(Y54:Z54) -> 0 | AB54: GE000025-k
A55: 96893820 | B55: 7 | C55: PLANTA SUR | D55: IN001091-3 | E55: 127749.78 | F55: 852.03 | G55: 3657135 | H55: 212660178 | I55: 202004 | J55: 2020-04-01 | K55: 0 | O55: =+Unidades!B55 -> Lautaro-Comasa | P55: 1 | Q55: =+VLOOKUP(O55,TablaGxN_NTH1[],14,0) -> 175025188.7 | R55: 84776652.71 | T55: IN001091-3 | U55: 0 | W55: GE000024-1 | X55: 2 | Y55: U13 | Z55: U12 | AB55: GE000024-1 | AC55: 0 | AD55: 64823302.95
A56: 96893820 | B56: 7 | C56: PLANTA SUR | D56: IN001092-1 | E56: 73485.69 | F56: 852.03 | G56: 3657137 | H56: 212660180 | I56: 202004 | J56: 2020-04-01 | K56: 0 | O56: =+Unidades!B56 -> Lautaro-Comasa 2 | P56: 1 | Q56: =+VLOOKUP(O56,TablaGxN_NTH1[],14,0) -> 102780321.3 | R56: 68877602.5 | T56: IN001092-1 | U56: 0 | W56: GE000023-3 | X56: 0 | AB56: GE000023-3
A57: 96893820 | B57: 7 | C57: PLANTA SUR | D57: IN001979-1 | E57: 3794.69 | F57: 852.03 | G57: 3657139 | H57: 212660182 | I57: 202004 | J57: 2020-04-01 | K57: 0 | O57: =+Unidades!B57 -> Licantén | P57: 2 | Q57: =+VLOOKUP(O57,TablaGxN_NTH1[],14,0) -> 19243998.33 | R57: 121635462 | T57: IN001979-1 | U57: 0 | W57: GE000022-5 | X57: 2 | Y57: U15 | Z57: U14 | AB57: GE000022-5 | AC57: 517662974.8 | AD57: 189818210.1
A58: 96893820 | B58: 7 | C58: PLANTA SUR | D58: IN003567-K | E58: 44497.8 | F58: 852.03 | G58: 3657141 | H58: 212660184 | I58: 202004 | J58: 2020-04-01 | K58: 0 | O58: =+Unidades!B58 -> Los Guindos | P58: 1 | Q58: =+VLOOKUP(O58,TablaGxN_NTH1[],14,0) -> 73198.011 | R58: 0 | T58: IN003567-K | U58: 0 | W58: PC003594-7 | X58: 1 | Y58: U16 | AB58: PC003594-7 | AC58: 1657478276
A59: 96893820 | B59: 7 | C59: PLANTA NORTE | D59: IN001106-5 | E59: 7636.39 | F59: 852.03 | G59: 3657143 | H59: 212660186 | I59: 202004 | J59: 2020-04-01 | K59: 0 | O59: =+Unidades!B59 -> Los Pinos | P59: 1 | Q59: =+VLOOKUP(O59,TablaGxN_NTH1[],14,0) -> 13414669.94 | R59: 32001871.91 | T59: IN001106-5 | U59: 0 | W59: GE000035-7 | X59: 1 | Y59: Ventanas 1 | AB59: GE000035-7 | AC59: 928894506.2
A60: 96893820 | B60: 7 | C60: PLANTA NORTE | D60: IN001107-3 | E60: 13000.22 | F60: 852.03 | G60: 3657145 | H60: 212660188 | I60: 202004 | J60: 2020-04-01 | K60: 0 | O60: =+Unidades!B60 -> Los Vientos | P60: 1 | Q60: =+VLOOKUP(O60,TablaGxN_NTH1[],14,0) -> 76372880.46 | R60: 356490826 | T60: IN001107-3 | U60: 0 | W60: GE000036-5 | X60: 1 | Y60: Ventanas 2 | AB60: GE000036-5 | AC60: 3556662194
A61: 96893820 | B61: 7 | C61: PLANTA NORTE | D61: IN001109-K | E61: 366.61 | F61: 852.03 | G61: 3657147 | H61: 212660190 | I61: 202004 | J61: 2020-04-01 | K61: 0 | O61: =+Unidades!B61 -> Masisa (Cabrero) | P61: 2 | Q61: =+VLOOKUP(O61,TablaGxN_NTH1[],14,0) -> 51469138.03 | R61: 37180373.92 | T61: IN001109-K | U61: 0 | W61: GE000085-3 | X61: 1 | Y61: Viñales | AB61: GE000085-3 | AC61: 122629499.8
A62: 96893820 | B62: 7 | C62: PLANTA NORTE | D62: PC000689-5 | E62: 1222.92 | F62: 852.03 | G62: 3657149 | H62: 212660192 | I62: 202004 | J62: 2020-04-01 | K62: 0 | O62: =+Unidades!B62 -> Nehuenco | P62: 2 | Q62: =+VLOOKUP(O62,TablaGxN_NTH1[],14,0) -> 1646345888 | R62: 2858769874 | T62: PC000689-5 | U62: 0 | W62: PC000952-5 | X62: 1 | Y62: Yungay 4 ca | AB62: PC000952-5 | AC62: 235151.7597
A63: 96893820 | B63: 7 | C63: PLANTA NORTE | D63: PC000690-9 | E63: 896.07 | F63: 852.03 | G63: 3657151 | H63: 212660194 | I63: 202004 | J63: 2020-04-01 | K63: 0 | O63: =+Unidades!B63 -> Nehuenco II | P63: 1 | Q63: =+VLOOKUP(O63,TablaGxN_NTH1[],14,0) -> 2697708688 | R63: 4990081110 | T63: PC000690-9 | U63: 0 | W63: IN000611-8 | X63: 1 | Y63: Cholguán | AB63: IN000611-8 | AC63: 144961206.1
A64: 96893820 | B64: 7 | C64: PLANTA ORIENTE | D64: IN000377-1 | E64: 173732.56 | F64: 852.03 | G64: 3657153 | H64: 212660196 | I64: 202004 | J64: 2020-04-01 | K64: 0 | O64: =+Unidades!B64 -> Nehuenco TG 9B | P64: 1 | Q64: =+VLOOKUP(O64,TablaGxN_NTH1[],14,0) -> 2373616.764 | R64: 7566179.77 | T64: IN000377-1 | U64: 0 | W64: IN003325-1 | X64: 1 | Y64: Cholguán | AB64: IN003325-1 | AC64: 13760693.47
A65: 96893820 | B65: 7 | C65: PLANTA ORIENTE | D65: IN000378-K | E65: 108942.3 | F65: 852.03 | G65: 3657155 | H65: 212660198 | I65: 202004 | J65: 2020-04-01 | K65: 0 | O65: =+Unidades!B65 -> NTO1 | P65: 1 | Q65: =+VLOOKUP(O65,TablaGxN_NTH1[],14,0) -> 817980049.2 | R65: 3665085883 | T65: IN000378-K | U65: 0 | W65: IN003326-k | X65: 1 | Y65: Cholguán | AB65: IN003326-k | AC65: 2467998.618
A66: 96893820 | B66: 7 | C66: PLANTA ORIENTE | D66: IN000379-8 | E66: 6810.12 | F66: 852.03 | G66: 3657157 | H66: 212660200 | I66: 202004 | J66: 2020-04-01 | K66: 0 | O66: =+Unidades!B66 -> NTO2 | P66: 1 | Q66: =+VLOOKUP(O66,TablaGxN_NTH1[],14,0) -> 854673270.9 | R66: 3736848766 | T66: IN000379-8 | U66: 0 | W66: PC000335-7 | X66: 1 | Y66: Huasco TG | AB66: PC000335-7 | AC66: 607957.4862
A67: 96893820 | B67: 7 | C67: PLANTA ORIENTE | D67: IN000380-1 | E67: 49936.62 | F67: 852.03 | G67: 3657159 | H67: 212660202 | I67: 202004 | J67: 2020-04-01 | K67: 0 | O67: =+Unidades!B67 -> Nueva Aldea I | P67: 3 | Q67: =+VLOOKUP(O67,TablaGxN_NTH1[],14,0) -> 33072867.45 | R67: 43952545.86 | T67: IN000380-1 | U67: 0 | W67: PC000336-5 | X67: 1 | Y67: Huasco TG | AB67: PC000336-5 | AC67: 319945.7853
A68: 96893820 | B68: 7 | C68: PLANTA ORIENTE | D68: CA001482-9 | E68: 28542.68 | F68: 852.03 | G68: 3657161 | H68: 212660204 | I68: 202004 | J68: 2020-04-01 | K68: 0 | O68: =+Unidades!B68 -> Nueva Aldea III | P68: 3 | Q68: =+VLOOKUP(O68,TablaGxN_NTH1[],14,0) -> 218976931.5 | R68: 291011767.8 | T68: CA001482-9 | U68: 0 | W68: PC000337-3 | X68: 1 | Y68: Huasco TG | AB68: PC000337-3 | AC68: 313376.634
A69: 96893820 | B69: 7 | C69: PLANTA ORIENTE | D69: CA001483-7 | E69: 14607.35 | F69: 852.03 | G69: 3657163 | H69: 212660210 | I69: 202004 | J69: 2020-04-01 | K69: 0 | O69: =+Unidades!B69 -> Nueva Renca | P69: 1 | Q69: =+VLOOKUP(O69,TablaGxN_NTH1[],14,0) -> 1728028973 | R69: 4113464490 | T69: CA001483-7 | U69: 0 | W69: IN000473-5 | X69: 1 | Y69: Nehuenco | AB69: IN000473-5 | AC69: 1943361.146
A70: 76326949 | B70: 3 | C70: CENTRAL COLMITO | D70: PC003323-5 | E70: 252061.91 | F70: 852.03 | G70: 3657165 | H70: 212660212 | I70: 202004 | J70: 2020-04-01 | K70: 1 | O70: =+Unidades!B70 -> Nueva Ventanas | P70: 1 | Q70: =+VLOOKUP(O70,TablaGxN_NTH1[],14,0) -> 1529053921 | R70: 6805550670 | T70: PC003323-5 | U70: 214764309.2 | W70: PC001510-0 | X70: 1 | Y70: Nehuenco | AB70: PC001510-0 | AC70: 2856826513
A71: 76004337 | B71: 0 | C71: EMPRESA ELECTRICA DIEGO DE ALMAGRO | D71: EL029919-7 | E71: 1218.35 | F71: 852.03 | G71: 3657167 | H71: 212660214 | I71: 202004 | J71: 2020-04-01 | K71: 1 | O71: =+Unidades!B71 -> Petropower | P71: 1 | Q71: =+VLOOKUP(O71,TablaGxN_NTH1[],14,0) -> 80710093.69 | R71: 3038016793 | T71: =+D71 -> EL029919-7 | U71: =+K71*F71*E71 -> 1038070.75 | W71: EL019740-9 | X71: =+COUNTA(Y71:Z71) -> 2 | Y71: Nueva Aldea I | Z71: Nueva Aldea III | AB71: =+W71 -> EL019740-9 | AC71: 151409.1262 | AD71: 1002486.582
A72: 76004337 | B72: 0 | C72: EMPRESA ELECTRICA DIEGO DE ALMAGRO | D72: EL029922-7 | E72: 3052.93 | F72: 852.03 | G72: 3657169 | H72: 212660216 | I72: 202004 | J72: 2020-04-01 | K72: 1 | O72: =+Unidades!B72 -> Quintero A | P72: 1 | Q72: =+VLOOKUP(O72,TablaGxN_NTH1[],14,0) -> 135139173.5 | R72: 427470224.6 | T72: EL029922-7 | U72: 2601187.948 | W72: IN000218-k | X72: 2 | Y72: Nueva Aldea I | Z72: Nueva Aldea III | AB72: IN000218-k | AC72: 40010842.93 | AD72: 264913576.8
A73: 96591040 | B73: 9 | C73: PLANTA AGROZZI TENO | D73: IN000522-7 | E73: 69265.32 | F73: 852.03 | G73: 3657171 | H73: 212660218 | I73: 202004 | J73: 2020-04-01 | K73: 0 | O73: =+Unidades!B73 -> Quintero B | P73: 1 | Q73: =+VLOOKUP(O73,TablaGxN_NTH1[],14,0) -> 127253709.3 | R73: 430713834.7 | T73: IN000522-7 | U73: 0 | W73: IN002622-4 | X73: 2 | Y73: Nueva Aldea I | Z73: Nueva Aldea III | AB73: IN002622-4 | AC73: 3790293.798 | AD73: 25095704.4
A74: 96591040 | B74: 9 | C74: PLANTA AGROZZI TENO | D74: IN000523-5 | E74: 102702.14 | F74: 852.03 | G74: 3657173 | H74: 212660220 | I74: 202004 | J74: 2020-04-01 | K74: 0 | O74: =+Unidades!B74 -> Renca U1 | P74: 1 | Q74: =+VLOOKUP(O74,TablaGxN_NTH1[],14,0) -> 0 | R74: 0 | T74: IN000523-5 | U74: 0 | W74: IN000219-8 | X74: 1 | Y74: Valdivia | AB74: IN000219-8 | AC74: 257550154.4
A75: 96591040 | B75: 9 | C75: PLANTA AGROZZI TENO | D75: IN000525-1 | E75: 30769.48 | F75: 852.03 | G75: 3657175 | H75: 212660222 | I75: 202004 | J75: 2020-04-01 | K75: 0 | O75: =+Unidades!B75 -> Renca U2 | P75: 1 | Q75: =+VLOOKUP(O75,TablaGxN_NTH1[],14,0) -> 0 | R75: 0 | T75: IN000525-1 | U75: 0 | W75: IN000220-1 | X75: 1 | Y75: Valdivia | AB75: IN000220-1 | AC75: 125089651.3
A76: 96591040 | B76: 9 | C76: PLANTA AGROZZI TENO | D76: IN000526-K | E76: 27327.83 | F76: 852.03 | G76: 3657177 | H76: 212660224 | I76: 202004 | J76: 2020-04-01 | K76: 0 | O76: =+Unidades!B76 -> San Isidro | P76: 1 | Q76: =+VLOOKUP(O76,TablaGxN_NTH1[],14,0) -> 1274158682 | R76: 2118915060 | T76: IN000526-K | U76: 0 | W76: PC000444-2 | X76: 1 | Y76: Yungay 1 | AB76: PC000444-2 | AC76: 237196.6317
A77: 96591040 | B77: 9 | C77: PLANTA AGROZZI TENO | D77: IN000527-8 | E77: 16903.84 | F77: 852.03 | G77: 3657179 | H77: 212660226 | I77: 202004 | J77: 2020-04-01 | K77: 0 | O77: =+Unidades!B77 -> San Isidro II | P77: 1 | Q77: =+VLOOKUP(O77,TablaGxN_NTH1[],14,0) -> 2261974134 | R77: 4018812383 | T77: IN000527-8 | U77: 0 | W77: PC000445-0 | X77: 1 | Y77: Yungay 1 | AB77: PC000445-0 | AC77: 237196.6317
A78: 96591040 | B78: 9 | C78: PLANTA AGROZZI TENO | D78: IN003413-4 | E78: 26982.78 | F78: 852.03 | G78: 3657181 | H78: 212660232 | I78: 202004 | J78: 2020-04-01 | K78: 0 | O78: =+Unidades!B78 -> San Lorenzo de D. de Almagro U1 | P78: 1 | Q78: =+VLOOKUP(O78,TablaGxN_NTH1[],14,0) -> 0 | R78: 0 | T78: IN003413-4 | U78: 0 | W78: PC000446-9 | X78: 1 | Y78: Yungay 2 | AB78: PC000446-9 | AC78: 259698.744
A79: 85145500 | B79: 0 | C79: ENERGIAS INDUSTRIALES SA | D79: IN001047-6 | E79: 22001.86 | F79: 852.03 | G79: 3657183 | H79: 212660234 | I79: 202004 | J79: 2020-04-01 | K79: 0 | O79: =+Unidades!B79 -> San Lorenzo de D. de Almagro U2 | P79: 1 | Q79: =+VLOOKUP(O79,TablaGxN_NTH1[],14,0) -> 0 | R79: 0 | T79: IN001047-6 | U79: 0 | W79: PC000447-7 | X79: 1 | Y79: Yungay 2 | AB79: PC000447-7 | AC79: 156850.2027
A80: 85145500 | B80: 0 | C80: ENERGIAS INDUSTRIALES SA | D80: IN000411-5 | E80: 22001.86 | F80: 852.03 | G80: 3657185 | H80: 212660236 | I80: 202004 | J80: 2020-04-01 | K80: 0 | O80: =+Unidades!B80 -> Santa Lidia | P80: 1 | Q80: =+VLOOKUP(O80,TablaGxN_NTH1[],14,0) -> 1782926.384 | R80: 7973816.48 | T80: IN000411-5 | U80: 0 | W80: PC000448-5 | X80: 1 | Y80: Yungay 3 | AB80: PC000448-5 | AC80: 368434.8126
A81: 85145500 | B81: 0 | C81: ENERGIAS INDUSTRIALES SA | D81: IN000412-3 | E81: 4158.14 | F81: 852.03 | G81: 3657187 | H81: 212660238 | I81: 202004 | J81: 2020-04-01 | K81: 0 | O81: =+Unidades!B81 -> Santa María | P81: 2 | Q81: =+VLOOKUP(O81,TablaGxN_NTH1[],14,0) -> 1756723870 | R81: 9547049410 | T81: IN000412-3 | U81: 0 | W81: PC000449-3 | X81: 1 | Y81: Yungay 3 | AB81: PC000449-3 | AC81: 316495.0638
A82: 85145500 | B82: 0 | C82: ENERGIAS INDUSTRIALES SA | D82: IN000413-1 | E82: 4158.14 | F82: 852.03 | G82: 3657189 | H82: 212660240 | I82: 202004 | J82: 2020-04-01 | K82: 0 | O82: =+Unidades!B82 -> Taltal 1 | P82: 1 | Q82: =+VLOOKUP(O82,TablaGxN_NTH1[],14,0) -> 2630667.392 | R82: 28570414.81 | T82: IN000413-1 | U82: 0 | W82: PC001511-0 | X82: 1 | Y82: Nehuenco II | AB82: PC001511-0 | AC82: 4990081110
A83: 96903720 | B83: 3 | C83: UGE EL SALVADOR TG | D83: PC003725-7 | E83: 1221.7 | F83: 852.03 | G83: 3657191 | H83: 212660242 | I83: 202004 | J83: 2020-04-01 | K83: 1 | O83: =+Unidades!B83 -> Taltal 2 | P83: 1 | Q83: =+VLOOKUP(O83,TablaGxN_NTH1[],14,0) -> 7776840.984 | R83: 104917866.6 | T83: PC003725-7 | U83: 1040925.051 | W83: PC001512-0 | X83: 1 | Y83: Nehuenco TG 9B | AB83: PC001512-0 | AC83: 7566179.765
A84: 96814370 | B84: 0 | C84: CENTRAL TERMOELÉCTRICA NUEVA VENTANAS | D84: GE000072-1 | E84: 7987454.28 | F84: 852.03 | G84: 3657193 | H84: 212660244 | I84: 202004 | J84: 2020-04-01 | K84: 1 | O84: =+Unidades!B84 -> TG_Coronel | P84: 3 | Q84: =+VLOOKUP(O84,TablaGxN_NTH1[],14,0) -> 1145257.335 | R84: 45577700.43 | T84: GE000072-1 | U84: 6805550670 | W84: IN001115-4 | X84: 1 | Y84: Nueva Renca | AB84: IN001115-4 | AC84: 4113464490
A85: 76101812 | B85: 4 | C85: SOPROLE | D85: IN003122-4 | E85: 111626.4 | F85: 852.03 | G85: 3657195 | H85: 212660246 | I85: 202004 | J85: 2020-04-01 | K85: 0 | O85: =+Unidades!B85 -> TG1 | P85: 1 | Q85: =+VLOOKUP(O85,TablaGxN_NTH1[],14,0) -> 0 | R85: 0 | T85: IN003122-4 | U85: 0 | W85: PC000620-8 | X85: 1 | Y85: Quintero A | AB85: PC000620-8 | AC85: 427470224.6
A86: 76101812 | B86: 4 | C86: SOPROLE | D86: IN002335-7 | E86: 24498.25 | F86: 852.03 | G86: 3657197 | H86: 212660248 | I86: 202004 | J86: 2020-04-01 | K86: 0 | O86: =+Unidades!B86 -> TG2 | P86: 1 | Q86: =+VLOOKUP(O86,TablaGxN_NTH1[],14,0) -> 0 | R86: 0 | T86: IN002335-7 | U86: 0 | W86: PC000621-6 | X86: 1 | Y86: Quintero B | AB86: PC000621-6 | AC86: 430713834.7
A87: 76030472 | B87: 7 | C87: METHANEX CHILE S.A. | D87: IN000902-8 | E87: 192185.41 | F87: 852.03 | G87: 3657199 | H87: 212660250 | I87: 202004 | J87: 2020-04-01 | K87: 0 | O87: =+Unidades!B87 -> TG3 | P87: 1 | Q87: =+VLOOKUP(O87,TablaGxN_NTH1[],14,0) -> 21531839.24 | R87: 31548924.24 | T87: IN000902-8 | U87: 0 | W87: PC000312-8 | X87: 1 | Y87: Taltal 1 | AB87: PC000312-8 | AC87: 28570414.81
A88: 76030472 | B88: 7 | C88: METHANEX CHILE S.A. | D88: IN000901-K | E88: 190551.37 | F88: 852.03 | G88: 3657201 | H88: 212660252 | I88: 202004 | J88: 2020-04-01 | K88: 0 | O88: =+Unidades!B88 -> TGTAR | P88: 1 | Q88: =+VLOOKUP(O88,TablaGxN_NTH1[],14,0) -> 50284.19 | R88: 883060.93 | T88: IN000901-K | U88: 0 | W88: PC000313-6 | X88: 1 | Y88: Taltal 2 | AB88: PC000313-6 | AC88: 104917866.6
A89: 76030472 | B89: 7 | C89: METHANEX CHILE S.A. | D89: EL003401-1 | E89: 123095.15 | F89: 852.03 | G89: 3657203 | H89: 212660254 | I89: 202004 | J89: 2020-04-01 | K89: 0 | O89: =+Unidades!B89 -> U12 | P89: 1 | Q89: =+VLOOKUP(O89,TablaGxN_NTH1[],14,0) -> 7437850.911 | R89: 64823302.95 | T89: EL003401-1 | U89: 0 | W89: PC000146-k | X89: 1 | Y89: TG_Coronel | AB89: PC000146-k | AC89: 45577700.43
A90: 76030472 | B90: 7 | C90: METHANEX CHILE S.A. | D90: IN003456-8 | E90: 235237.68 | F90: 852.03 | G90: 3657205 | H90: 212660256 | I90: 202004 | J90: 2020-04-01 | K90: 0 | O90: =+Unidades!B90 -> U13 | P90: 1 | Q90: =+VLOOKUP(O90,TablaGxN_NTH1[],14,0) -> 0 | R90: 0 | T90: IN003456-8 | U90: 0 | W90: PC000387-k | X90: 1 | Y90: Candelaria 1 | AB90: PC000387-k | AC90: 149792122.5
A91: 76030472 | B91: 7 | C91: METHANEX CHILE S.A. | D91: IN003455-K | E91: 682036.83 | F91: 852.03 | G91: 3657207 | H91: 212660258 | I91: 202004 | J91: 2020-04-01 | K91: 0 | O91: =+Unidades!B91 -> U14 | P91: 1 | Q91: =+VLOOKUP(O91,TablaGxN_NTH1[],14,0) -> 37631461.11 | R91: 189818210.1 | T91: IN003455-K | U91: 0 | W91: PC000388-8 | X91: 1 | Y91: Candelaria 2 | AB91: PC000388-8 | AC91: 108844199.7
A92: 76418918 | B92: 3 | C92: GUACOLDA | D92: GE000016-0 | E92: 11006638.74 | F92: 852.03 | G92: 3657209 | H92: 212660260 | I92: 202004 | J92: 2020-04-01 | K92: 1 | O92: =+Unidades!B92 -> U15 | P92: 1 | Q92: =+VLOOKUP(O92,TablaGxN_NTH1[],14,0) -> 102626687.4 | R92: 517662974.8 | T92: GE000016-0 | U92: 9377986406 | W92: PC003323-5 | X92: 1 | Y92: Colmito | AB92: PC003323-5 | AC92: 214764309.2
A93: 76418918 | B93: 3 | C93: GUACOLDA | D93: GE000079-9 | E93: 4549921.01 | F93: 852.03 | G93: 3657211 | H93: 212660262 | I93: 202004 | J93: 2020-04-01 | K93: 1 | O93: =+Unidades!B93 -> U16 | P93: 1 | Q93: =+VLOOKUP(O93,TablaGxN_NTH1[],14,0) -> 1049302560 | R93: 1657478276 | T93: GE000079-9 | U93: 3876669198 | W93: CA000124-7 | X93: 1 | Y93: Antilhue TG U1 | AB93: CA000124-7 | AC93: 2274.9201
A94: 76418918 | B94: 3 | C94: GUACOLDA | D94: GE000080-2 | E94: 4962395.78 | F94: 852.03 | G94: 3657213 | H94: 212660264 | I94: 202004 | J94: 2020-04-01 | K94: 1 | O94: =+Unidades!B94 -> Valdivia | P94: 2 | Q94: =+VLOOKUP(O94,TablaGxN_NTH1[],14,0) -> 139086327.9 | R94: 382639805.6 | T94: GE000080-2 | U94: 4228110076 | W94: PC001400-1 | X94: 1 | Y94: Antilhue TG U1 | AB94: PC001400-1 | AC94: 121231523.1
A95: 76418918 | B95: 3 | C95: GUACOLDA | D95: GE000215-1 | E95: 5033760.83 | F95: 852.03 | G95: 3657215 | H95: 212660266 | I95: 202004 | J95: 2020-04-01 | K95: 1 | O95: =+Unidades!B95 -> Ventanas 1 | P95: 1 | Q95: =+VLOOKUP(O95,TablaGxN_NTH1[],14,0) -> 180014662 | R95: 928894506.2 | T95: GE000215-1 | U95: 4288915240 | W95: CA000125-5 | X95: 1 | Y95: Antilhue TG U2 | AB95: CA000125-5 | AC95: 20312.3952
A96: 96565750 | B96: 9 | C96: ASERRADEROS VALDIVIA | D96: CA010881-2 | E96: 611.87 | F96: 852.03 | G96: 3657217 | H96: 212660268 | I96: 202004 | J96: 2020-04-01 | K96: 0 | O96: =+Unidades!B96 -> Ventanas 2 | P96: 1 | Q96: =+VLOOKUP(O96,TablaGxN_NTH1[],14,0) -> 828018681.8 | R96: 3556662194 | T96: CA010881-2 | U96: 0 | W96: PC001401-1 | X96: 1 | Y96: Antilhue TG U2 | AB96: PC001401-1 | AC96: 117389021.2
A97: 96565750 | B97: 9 | C97: ASERRADEROS VALDIVIA | D97: IN000862-5 | E97: 28251.7 | F97: 852.03 | G97: 3657219 | H97: 212660270 | I97: 202004 | J97: 2020-04-01 | K97: 0 | O97: =+Unidades!B97 -> Viñales | P97: 1 | Q97: =+VLOOKUP(O97,TablaGxN_NTH1[],14,0) -> 235952677.4 | R97: 122629499.8 | T97: IN000862-5 | U97: 0 | W97: IN000213-9 | X97: 1 | Y97: Arauco | AB97: IN000213-9 | AC97: 817361146.4
A98: 96565750 | B98: 9 | C98: ASERRADEROS VALDIVIA | D98: IN000863-3 | E98: 59215.58 | F98: 852.03 | G98: 3657221 | H98: 212660272 | I98: 202004 | J98: 2020-04-01 | K98: 0 | O98: =+Unidades!B98 -> Yungay 1 | P98: 2 | Q98: =+VLOOKUP(O98,TablaGxN_NTH1[],14,0) -> 119902.607 | R98: 474393.26 | T98: IN000863-3 | U98: 0 | W98: IN000214-7 | X98: 1 | Y98: Arauco | AB98: IN000214-7 | AC98: 144617369.4
A99: 96565750 | B99: 9 | C99: PLANTA VIÑALES | D99: GE000085-3 | E99: 143926.27 | F99: 852.03 | G99: 3657223 | H99: 212660274 | I99: 202004 | J99: 2020-04-01 | K99: 1 | O99: =+Unidades!B99 -> Yungay 2 | P99: 2 | Q99: =+VLOOKUP(O99,TablaGxN_NTH1[],14,0) -> 122942.341 | R99: 416548.94 | T99: GE000085-3 | U99: 122629499.8 | W99: IN000215-5 | X99: 1 | Y99: Arauco | AB99: IN000215-5 | AC99: 0
A100: 96532330 | B100: 9 | C100: CMPC CELULOSA PLANTA LAJA | D100: IN002371-3 | E100: 17464.54 | F100: 852.03 | G100: 3657225 | H100: 212660276 | I100: 202004 | J100: 2020-04-01 | K100: 1 | O100: =+Unidades!B100 -> Yungay 3 | P100: 2 | Q100: =+VLOOKUP(O100,TablaGxN_NTH1[],14,0) -> 183715.64 | R100: 684929.87 | T100: IN002371-3 | U100: 14880312.02 | W100: IN000216-3 | X100: 1 | Y100: Arauco | AB100: IN000216-3 | AC100: 310179527.7
A101: 96532330 | B101: 9 | C101: CMPC CELULOSA PLANTA LAJA | D101: IN001988-0 | E101: 100273.76 | F101: 852.03 | G101: 3657227 | H101: 212660278 | I101: 202004 | J101: 2020-04-01 | K101: 1 | O101: =+Unidades!B101 -> Yungay 4 ca | P101: 1 | Q101: =+VLOOKUP(O101,TablaGxN_NTH1[],14,0) -> 50715.07 | R101: 235151.76 | T101: IN001988-0 | U101: 85436251.73 | W101: IN000217-1 | X101: 1 | Y101: Arauco | AB101: IN000217-1 | AC101: 470327342.2
A102: 96532330 | B102: 9 | C102: CMPC CELULOSA PLANTA SANTA FE | D102: IN000638-K | E102: 65436.87 | F102: 852.03 | G102: 3657229 | H102: 212660280 | I102: 202004 | J102: 2020-04-01 | K102: 1 | O102: =+Unidades!B102 -> Los Guindos 2 | P102: 1 | Q102: =+VLOOKUP(O102,TablaGxN_NTH1[],14,0) -> 102215.613 | R102: 0 | T102: IN000638-K | U102: 55754176.35 | W102: IN001365-3 | X102: 1 | Y102: Arauco | AB102: IN001365-3 | AC102: 223351289
A103: 96532330 | B103: 9 | C103: CMPC CELULOSA PLANTA SANTA FE | D103: IN000640-1 | E103: 239235.93 | F103: 852.03 | G103: 3657231 | H103: 212660282 | I103: 202004 | J103: 2020-04-01 | K103: 1 | T103: IN000640-1 | U103: 203836189.4 | W103: PC003576-9 | X103: 1 | Y103: CC KELAR | AB103: PC003576-9 | AC103: 1424555614
A104: 96532330 | B104: 9 | C104: CMPC CELULOSA PLANTA SANTA FE | D104: IN000639-8 | E104: 11629.4 | F104: 852.03 | G104: 3657233 | H104: 212660284 | I104: 202004 | J104: 2020-04-01 | K104: 1 | T104: IN000639-8 | U104: 9908597.682 | W104: PC003577-7 | X104: 1 | Y104: CC KELAR | AB104: PC003577-7 | AC104: 1388194706
A105: 96532330 | B105: 9 | C105: CMPC CELULOSA PLANTA SANTA FE | D105: IN002012-9 | E105: 15958.65 | F105: 852.03 | G105: 3657235 | H105: 212660286 | I105: 202004 | J105: 2020-04-01 | K105: 0 | T105: IN002012-9 | U105: 0 | W105: PC003571-8 | X105: 1 | Y105: CC1 | AB105: PC003571-8 | AC105: 459469719.4
A106: 96532330 | B106: 9 | C106: CMPC PULP SA PLANTA PACIFICO | D106: IN000336-4 | E106: 500532.31 | F106: 852.03 | G106: 3657237 | H106: 212660288 | I106: 202004 | J106: 2020-04-01 | K106: 1 | T106: IN000336-4 | U106: 426468544.1 | W106: PC003572-6 | X106: 1 | Y106: CC1 | AB106: PC003572-6 | AC106: 90348613.66
A107: 96532330 | B107: 9 | C107: CMPC PULP SA PLANTA PACIFICO | D107: GE000015-2 | E107: 21387.05 | F107: 852.03 | G107: 3657239 | H107: 212660290 | I107: 202004 | J107: 2020-04-01 | K107: 1 | T107: GE000015-2 | U107: 18222408.21 | W107: PC003573-4 | X107: 1 | Y107: CC2 | AB107: PC003573-4 | AC107: 58735753.09
A108: 96532330 | B108: 9 | C108: CMPC PULP SA PLANTA PACIFICO | D108: IN000334-8 | E108: 15572.49 | F108: 852.03 | G108: 3657241 | H108: 212660292 | I108: 202004 | J108: 2020-04-01 | K108: 1 | T108: IN000334-8 | U108: 13268228.65 | W108: PC003574-2 | X108: 1 | Y108: CC2 | AB108: PC003574-2 | AC108: 154737313.1
A109: 96532330 | B109: 9 | C109: CMPC PULP SA PLANTA PACIFICO | D109: IN000335-6 | E109: 13442.5 | F109: 852.03 | G109: 3657243 | H109: 212660294 | I109: 202004 | J109: 2020-04-01 | K109: 1 | T109: IN000335-6 | U109: 11453413.28 | W109: IN000211-2 | X109: 1 | Y109: Celco | AB109: IN000211-2 | AC109: 53377157.49
A110: 78932860 | B110: 9 | C110: CENTRAL ATACAMA | D110: PC003571-8 | E110: 539264.72 | F110: 852.03 | G110: 3657245 | H110: 212660296 | I110: 202004 | J110: 2020-04-01 | K110: 1 | T110: PC003571-8 | U110: 459469719.4 | W110: IN000212-0 | X110: 1 | Y110: Celco | AB110: IN000212-0 | AC110: 498204588
A111: 78932860 | B111: 9 | C111: CENTRAL ATACAMA | D111: PC003572-6 | E111: 106039.24 | F111: 852.03 | G111: 3657247 | H111: 212660298 | I111: 202004 | J111: 2020-04-01 | K111: 1 | T111: PC003572-6 | U111: 90348613.66 | W111: IN001148-0 | X111: 1 | Y111: CMPC Cordillera | AB111: IN001148-0 | AC111: 166305827.2
A112: 78932860 | B112: 9 | C112: CENTRAL ATACAMA | D112: PC003573-4 | E112: 68936.25 | F112: 852.03 | G112: 3657249 | H112: 212660300 | I112: 202004 | J112: 2020-04-01 | K112: 1 | T112: PC003573-4 | U112: 58735753.09 | W112: IN001149-9 | X112: 1 | Y112: CMPC Cordillera | AB112: IN001149-9 | AC112: 468546480.2
A113: 78932860 | B113: 9 | C113: CENTRAL ATACAMA | D113: PC003574-2 | E113: 181610.17 | F113: 852.03 | G113: 3657251 | H113: 212660302 | I113: 202004 | J113: 2020-04-01 | K113: 1 | T113: PC003574-2 | U113: 154737313.1 | W113: IN001150-2 | X113: 1 | Y113: CMPC Cordillera | AB113: IN001150-2 | AC113: 210701642.7
A114: 79587210 | B114: 8 | C114: MINA 0 | D114: CA001578-7 | E114: 97763.12 | F114: 852.03 | G114: 3657253 | H114: 212660304 | I114: 202004 | J114: 2020-04-01 | K114: 0 | T114: CA001578-7 | U114: 0 | W114: PC003526-2 | X114: 1 | Y114: CMPC Cordillera | AB114: PC003526-2 | AC114: 30341998.18
A115: 79587210 | B115: 8 | C115: MINA 0 | D115: CA001579-5 | E115: 81112.61 | F115: 852.03 | G115: 3657255 | H115: 212660306 | I115: 202004 | J115: 2020-04-01 | K115: 0 | T115: CA001579-5 | U115: 0 | W115: IN001988-0 | X115: 1 | Y115: CMPC Laja | AB115: IN001988-0 | AC115: 85436251.73
A116: 79587210 | B116: 8 | C116: MINA 0 | D116: CA001580-9 | E116: 101528.03 | F116: 852.03 | G116: 3657257 | H116: 212660308 | I116: 202004 | J116: 2020-04-01 | K116: 0 | T116: CA001580-9 | U116: 0 | W116: IN002371-3 | X116: 1 | Y116: CMPC Laja | AB116: IN002371-3 | AC116: 14880312.02
A117: 79587210 | B117: 8 | C117: MINA 0 | D117: CA001641-4 | E117: 5446.11 | F117: 852.03 | G117: 3657259 | H117: 212660310 | I117: 202004 | J117: 2020-04-01 | K117: 0 | T117: CA001641-4 | U117: 0 | W117: GE000015-2 | X117: 1 | Y117: CMPC Pacífico | AB117: GE000015-2 | AC117: 18222408.21
A118: 79587210 | B118: 8 | C118: MINA 0 | D118: CA011065-5 | E118: 34838.22 | F118: 852.03 | G118: 3657261 | H118: 212660312 | I118: 202004 | J118: 2020-04-01 | K118: 0 | T118: CA011065-5 | U118: 0 | W118: IN000334-8 | X118: 1 | Y118: CMPC Pacífico | AB118: IN000334-8 | AC118: 13268228.65
A119: 79587210 | B119: 8 | C119: MINA 0 | D119: CA011066-3 | E119: 70810.55 | F119: 852.03 | G119: 3657263 | H119: 212660314 | I119: 202004 | J119: 2020-04-01 | K119: 0 | T119: CA011066-3 | U119: 0 | W119: IN000335-6 | X119: 1 | Y119: CMPC Pacífico | AB119: IN000335-6 | AC119: 11453413.28
A120: 79587210 | B120: 8 | C120: MINA 0 | D120: CA011067-1 | E120: 31817.81 | F120: 852.03 | G120: 3657265 | H120: 212660316 | I120: 202004 | J120: 2020-04-01 | K120: 0 | T120: CA011067-1 | U120: 0 | W120: IN000336-4 | X120: 1 | Y120: CMPC Pacífico | AB120: IN000336-4 | AC120: 426468544.1
A121: 79587210 | B121: 8 | C121: MINA 0 | D121: CA011068-K | E121: 64496.84 | F121: 852.03 | G121: 3657267 | H121: 212660318 | I121: 202004 | J121: 2020-04-01 | K121: 0 | T121: CA011068-K | U121: 0 | W121: PC001041-8 | X121: 1 | Y121: CMPC Pacífico | AB121: PC001041-8 | AC121: 0
A122: 96717620 | B122: 6 | C122: RENCA NUEVA RENCA | D122: IN001115-4 | E122: 4827839.97 | F122: 852.03 | G122: 3657269 | H122: 212660320 | I122: 202004 | J122: 2020-04-01 | K122: 1 | T122: IN001115-4 | U122: 4113464490 | W122: IN000638-k | X122: 1 | Y122: CMPC Santa Fe | AB122: IN000638-k | AC122: 55754176.35
A123: 96717620 | B123: 6 | C123: LOS VIENTOS | D123: PC000023-4 | E123: 418401.73 | F123: 852.03 | G123: 3657271 | H123: 212660322 | I123: 202004 | J123: 2020-04-01 | K123: 1 | T123: PC000023-4 | U123: 356490826 | W123: IN000639-8 | X123: 1 | Y123: CMPC Santa Fe | AB123: IN000639-8 | AC123: 9908597.682
A124: 96717620 | B124: 6 | C124: SANTA LIDIA | D124: PC000846-4 | E124: 9358.61 | F124: 852.03 | G124: 3657273 | H124: 212660324 | I124: 202004 | J124: 2020-04-01 | K124: 1 | T124: PC000846-4 | U124: 7973816.478 | W124: IN000640-1 | X124: 1 | Y124: CMPC Santa Fe | AB124: IN000640-1 | AC124: 203836189.4
A125: 96529310 | B125: 8 | C125: PLANTA TISSUE TALAGANTE | D125: IN002463-9 | E125: 11658.06 | F125: 852.03 | G125: 3657275 | H125: 212660326 | I125: 202004 | J125: 2020-04-01 | K125: 1 | T125: IN002463-9 | U125: 9933016.862 | W125: IN002012-9 | X125: 0 | AB125: IN002012-9
A126: 96529310 | B126: 8 | C126: PLANTA TISSUE TALAGANTE | D126: PC003087-7 | E126: 406441.88 | F126: 852.03 | G126: 3657277 | H126: 212660328 | I126: 202004 | J126: 2020-04-01 | K126: 1 | T126: PC003087-7 | U126: 346300675 | W126: GE000037-3 | X126: 1 | Y126: Laguna Verde TV | AB126: GE000037-3
A127: 91081000 | B127: 6 | C127: HUASCO | D127: PC000335-7 | E127: 713.54 | F127: 852.03 | G127: 3657279 | H127: 212660330 | I127: 202004 | J127: 2020-04-01 | K127: 1 | T127: PC000335-7 | U127: 607957.4862 | W127: GE000038-1 | X127: 1 | Y127: Laguna Verde TV | AB127: GE000038-1
A128: 91081000 | B128: 6 | C128: HUASCO | D128: PC000336-5 | E128: 375.51 | F128: 852.03 | G128: 3657281 | H128: 212660332 | I128: 202004 | J128: 2020-04-01 | K128: 1 | T128: PC000336-5 | U128: 319945.7853 | W128: GE000039-k | X128: 1 | Y128: Laguna Verde TV | AB128: GE000039-k
A129: 91081000 | B129: 6 | C129: HUASCO | D129: PC000337-3 | E129: 367.8 | F129: 852.03 | G129: 3657283 | H129: 212660334 | I129: 202004 | J129: 2020-04-01 | K129: 1 | T129: PC000337-3 | U129: 313376.634 | W129: GE000040-3 | X129: 1 | Y129: Laguna Verde TV | AB129: GE000040-3
A130: 91081000 | B130: 6 | C130: CENTRAL TALTAL | D130: PC000312-8 | E130: 33532.17 | F130: 852.03 | G130: 3657285 | H130: 212660336 | I130: 202004 | J130: 2020-04-01 | K130: 1 | T130: PC000312-8 | U130: 28570414.81 | W130: IN000224-4 | X130: 1 | Y130: Licantén | AB130: IN000224-4 | AC130: 103201682.2
A131: 91081000 | B131: 6 | C131: CENTRAL TALTAL | D131: PC000313-6 | E131: 123138.7 | F131: 852.03 | G131: 3657287 | H131: 212660338 | I131: 202004 | J131: 2020-04-01 | K131: 1 | T131: PC000313-6 | U131: 104917866.6 | W131: IN000225-2 | X131: 1 | Y131: Licantén | AB131: IN000225-2 | AC131: 18433779.81
A132: 91081000 | B132: 6 | C132: SAN ISIDRO 2 | D132: PC000318-7 | E132: 4716749.86 | F132: 852.03 | G132: 3657289 | H132: 212660340 | I132: 202004 | J132: 2020-04-01 | K132: 1 | T132: PC000318-7 | U132: 4018812383 | W132: GE000094-2 | X132: 1 | Y132: Santa María | AB132: GE000094-2 | AC132: 9541418847
A133: 91081000 | B133: 6 | C133: DIEGO DE ALMAGRO | D133: PC000355-1 | E133: 1537.43 | F133: 852.03 | G133: 3657291 | H133: 212660342 | I133: 202004 | J133: 2020-04-01 | K133: 1 | T133: PC000355-1 | U133: 1309936.483 | W133: IN001433-1 | X133: 1 | Y133: Santa María | AB133: IN001433-1 | AC133: 5630563.572
A134: 91081000 | B134: 6 | C134: CENTRAL QUINTERO | D134: PC000620-8 | E134: 501707.95 | F134: 852.03 | G134: 3657293 | H134: 212660344 | I134: 202004 | J134: 2020-04-01 | K134: 1 | T134: PC000620-8 | U134: 427470224.6 | W134: CA010879-0 | X134: 1 | Y134: Masisa (Cabrero) | AB134: CA010879-0 | AC134: 137236.4721
A135: 91081000 | B135: 6 | C135: CENTRAL QUINTERO | D135: PC000621-6 | E135: 505514.87 | F135: 852.03 | G135: 3657295 | H135: 212660346 | I135: 202004 | J135: 2020-04-01 | K135: 1 | T135: =+D135 -> PC000621-6 | U135: =+K135*F135*E135 -> 430713834.7 | W135: CA010880-4 | X135: =+COUNTA(Y135:Z135) -> 1 | Y135: Masisa (Cabrero) | AB135: =+W135 -> CA010880-4 | AC135: 105285.3471
A136: 91081000 | B136: 6 | C136: CENTRAL TERMOELECTRICA BOCAMINA U1 | D136: GE000043-8 | E136: 2982966.2 | F136: 852.03 | G136: 3657297 | H136: 212660348 | I136: 202004 | J136: 2020-04-01 | K136: 1 | T136: GE000043-8 | U136: 2541576691 | W136: GE000130-2 | X136: 1 | Y136: Masisa (Cabrero) | AB136: GE000130-2 | AC136: 25390732.57
A137: 91081000 | B137: 6 | C137: CENTRAL TERMOELECTRICA BOCAMINA U1 | D137: GE000106-K | E137: 12363582.44 | F137: 852.03 | G137: 3657299 | H137: 212660350 | I137: 202004 | J137: 2020-04-01 | K137: 1 | T137: GE000106-K | U137: 1.053414315e+10 | W137: IN002647-k | X137: 1 | Y137: Masisa (Cabrero) | AB137: IN002647-k | AC137: 6276964.652
A138: 96546010 | B138: 1 | C138: COMASA SA | D138: GE000114-0 | E138: 99499.61 | F138: 852.03 | G138: 3657301 | H138: 212660352 | I138: 202004 | J138: 2020-04-01 | K138: 1 | T138: GE000114-0 | U138: 84776652.71 | W138: IN002653-4 | X138: 1 | Y138: Masisa (Cabrero) | AB138: IN002653-4 | AC138: 5270154.882
A139: 96546010 | B139: 1 | C139: COMASA SA | D139: GE000203-8 | E139: 80839.41 | F139: 852.03 | G139: 3657303 | H139: 212660354 | I139: 202004 | J139: 2020-04-01 | K139: 1 | T139: GE000203-8 | U139: 68877602.5 | W139: PC000319-5 | X139: 1 | Y139: San Isidro | AB139: PC000319-5 | AC139: 2118915060
A140: 76550580 | B140: 1 | C140: CENTRAL CARDONES | D140: PC001834-6 | E140: 179.3 | F140: 852.03 | G140: 3657305 | H140: 212660356 | I140: 202004 | J140: 2020-04-01 | K140: 1 | T140: PC001834-6 | U140: 152768.979 | W140: PC000318-7 | X140: 1 | Y140: San Isidro II | AB140: PC000318-7 | AC140: 4018812383
A141: 95304000 | B141: K | C141: ASERRADERO MULCHEN | D141: IN002233-4 | E141: 86382.3 | F141: 852.03 | G141: 3657307 | H141: 212660358 | I141: 202004 | J141: 2020-04-01 | K141: 0 | T141: IN002233-4 | U141: 0 | W141: GE000257-7 | X141: 1 | Y141: Escuadrón | AB141: GE000257-7 | AC141: 28068552.09
A142: 95304000 | B142: K | C142: ASERRADERO MULCHEN | D142: IN002232-6 | E142: 115451.52 | F142: 852.03 | G142: 3657309 | H142: 212660360 | I142: 202004 | J142: 2020-04-01 | K142: 0 | T142: IN002232-6 | U142: 0 | W142: IN002847-2 | X142: 1 | Y142: Escuadrón | AB142: IN002847-2 | AC142: 0
A143: 77894990 | B143: 3 | C143: ORAFTI CHILE S A | D143: IN001655-5 | E143: 16831.91 | F143: 852.03 | G143: 3657311 | H143: 212660362 | I143: 202004 | J143: 2020-04-01 | K143: 0 | T143: IN001655-5 | U143: 0
A144: 77894990 | B144: 3 | C144: ORAFTI CHILE S A | D144: IN001615-6 | E144: 77556.03 | F144: 852.03 | G144: 3657313 | H144: 212660364 | I144: 202004 | J144: 2020-04-01 | K144: 0 | T144: IN001615-6 | U144: 0
A145: 77894990 | B145: 3 | C145: ORAFTI CHILE S A | D145: GE000256-9 | E145: 3675.14 | F145: 852.03 | G145: 3657315 | H145: 212660366 | I145: 202004 | J145: 2020-04-01 | K145: 0 | T145: GE000256-9 | U145: 0
A146: 96929960 | B146: 7 | C146: PLANTA PONIENTE ORIZON | D146: IN000254-6 | E146: 53690.52 | F146: 852.03 | G146: 3657317 | H146: 212660368 | I146: 202004 | J146: 2020-04-01 | K146: 0 | T146: IN000254-6 | U146: 0
A147: 96929960 | B147: 7 | C147: PLANTA PONIENTE ORIZON | D147: IN000255-4 | E147: 71767.21 | F147: 852.03 | G147: 3657319 | H147: 212660370 | I147: 202004 | J147: 2020-04-01 | K147: 0 | T147: IN000255-4 | U147: 0
A148: 96929960 | B148: 7 | C148: PLANTA PONIENTE ORIZON | D148: IN000256-2 | E148: 102522.16 | F148: 852.03 | G148: 3657321 | H148: 212660372 | I148: 202004 | J148: 2020-04-01 | K148: 0 | T148: IN000256-2 | U148: 0
A149: 96929960 | B149: 7 | C149: PLANTA PONIENTE ORIZON | D149: IN003579-3 | E149: 47904.83 | F149: 852.03 | G149: 3657323 | H149: 212660374 | I149: 202004 | J149: 2020-04-01 | K149: 0 | T149: IN003579-3 | U149: 0
A150: 96929960 | B150: 7 | C150: PLANTA PONIENTE ORIZON | D150: IN003580-7 | E150: 7869.73 | F150: 852.03 | G150: 3657325 | H150: 212660376 | I150: 202004 | J150: 2020-04-01 | K150: 0 | T150: IN003580-7 | U150: 0
A151: 76009904 | B151: K | C151: CENTRAL TERMOELÉCTRICA ANTILHUE | D151: PC001400-1 | E151: 142285.51 | F151: 852.03 | G151: 3657327 | H151: 212660378 | I151: 202004 | J151: 2020-04-01 | K151: 1 | T151: PC001400-1 | U151: 121231523.1
A152: 76009904 | B152: K | C152: CENTRAL TERMOELÉCTRICA ANTILHUE | D152: PC001401-1 | E152: 137775.69 | F152: 852.03 | G152: 3657329 | H152: 212660380 | I152: 202004 | J152: 2020-04-01 | K152: 1 | T152: PC001401-1 | U152: 117389021.2
A153: 76009904 | B153: K | C153: CENTRAL TERMOELÉCTRICA ANTILHUE | D153: CA000124-7 | E153: 2.67 | F153: 852.03 | G153: 3657331 | H153: 212660382 | I153: 202004 | J153: 2020-04-01 | K153: 1 | T153: CA000124-7 | U153: 2274.9201
A154: 76009904 | B154: K | C154: CENTRAL TERMOELÉCTRICA ANTILHUE | D154: CA000125-5 | E154: 23.84 | F154: 852.03 | G154: 3657333 | H154: 212660384 | I154: 202004 | J154: 2020-04-01 | K154: 1 | T154: CA000125-5 | U154: 20312.3952
A155: 96547510 | B155: 9 | C155: CENTRAL HORCONES | D155: PC002440-0 | E155: 797.32 | F155: 852.03 | G155: 3657335 | H155: 212660386 | I155: 202004 | J155: 2020-04-01 | K155: 1 | T155: PC002440-0 | U155: 679340.5596
A156: 76708710 | B156: 1 | C156: CENTRAL TERMICA ANDINA | D156: GE000251-8 | E156: 3627084.5 | F156: 852.03 | G156: 3657337 | H156: 212660388 | I156: 202004 | J156: 2020-04-01 | K156: 1 | T156: GE000251-8 | U156: 3090384807
A157: 76708710 | B157: 1 | C157: CENTRAL TERMICA ANDINA | D157: GE000100-0 | E157: 4801129.99 | F157: 852.03 | G157: 3657339 | H157: 212660390 | I157: 202004 | J157: 2020-04-01 | K157: 1 | T157: GE000100-0 | U157: 4090706785
A158: 76004976 | B158: K | C158: CENTRAL TERMOELÉCTRICA ANGAMOS | D158: GE000103-5 | E158: 16949576.21 | F158: 852.03 | G158: 3657341 | H158: 212660392 | I158: 202004 | J158: 2020-04-01 | K158: 1 | T158: GE000103-5 | U158: 1.444154742e+10
A159: 99579230 | B159: 3 | C159: INDUSTRIAS ISLA QUIHUA SA | D159: IN001046-8 | E159: 56302.05 | F159: 852.03 | G159: 3657343 | H159: 212660394 | I159: 202004 | J159: 2020-04-01 | K159: 0 | T159: IN001046-8 | U159: 0
A160: 99579230 | B160: 3 | C160: INDUSTRIAS ISLA QUIHUA SA | D160: IN002071-4 | E160: 27421.27 | F160: 852.03 | G160: 3657345 | H160: 212660396 | I160: 202004 | J160: 2020-04-01 | K160: 0 | T160: IN002071-4 | U160: 0
A161: 99579230 | B161: 3 | C161: INDUSTRIAS ISLA QUIHUA SA | D161: IN001763-2 | E161: 19369.11 | F161: 852.03 | G161: 3657347 | H161: 212660398 | I161: 202004 | J161: 2020-04-01 | K161: 0 | T161: IN001763-2 | U161: 0
A162: 99579230 | B162: 3 | C162: INDUSTRIAS ISLA QUIHUA SA | D162: IN000112-4 | E162: 3098.35 | F162: 852.03 | G162: 3657349 | H162: 212660400 | I162: 202004 | J162: 2020-04-01 | K162: 0 | T162: IN000112-4 | U162: 0
A163: 96554890 | B163: 4 | C163: COMPANIA PAPELERA PACIFICO | D163: IN003211-5 | E163: 152.71 | F163: 852.03 | G163: 3657351 | H163: 212660402 | I163: 202004 | J163: 2020-04-01 | K163: 0 | T163: IN003211-5 | U163: 0
A164: 96554890 | B164: 4 | C164: COMPANIA PAPELERA PACIFICO | D164: IN003212-3 | E164: 152.71 | F164: 852.03 | G164: 3657353 | H164: 212660404 | I164: 202004 | J164: 2020-04-01 | K164: 0 | T164: IN003212-3 | U164: 0
A165: 93458000 | B165: 1 | C165: PLANTA CONSTITUCION | D165: IN000211-2 | E165: 62647.04 | F165: 852.03 | G165: 3657355 | H165: 212660406 | I165: 202004 | J165: 2020-04-01 | K165: 1 | T165: IN000211-2 | U165: 53377157.49
A166: 93458000 | B166: 1 | C166: PLANTA CONSTITUCION | D166: IN000212-0 | E166: 584726.58 | F166: 852.03 | G166: 3657357 | H166: 212660408 | I166: 202004 | J166: 2020-04-01 | K166: 1 | T166: IN000212-0 | U166: 498204588
A167: 93458000 | B167: 1 | C167: PLANTA ARAUCO | D167: IN000213-9 | E167: 959310.29 | F167: 852.03 | G167: 3657359 | H167: 212660410 | I167: 202004 | J167: 2020-04-01 | K167: 1 | T167: IN000213-9 | U167: 817361146.4
A168: 93458000 | B168: 1 | C168: PLANTA ARAUCO | D168: IN000216-3 | E168: 364047.66 | F168: 852.03 | G168: 3657361 | H168: 212660412 | I168: 202004 | J168: 2020-04-01 | K168: 1 | T168: IN000216-3 | U168: 310179527.7
A169: 93458000 | B169: 1 | C169: PLANTA ARAUCO | D169: IN001365-3 | E169: 262140.17 | F169: 852.03 | G169: 3657363 | H169: 212660414 | I169: 202004 | J169: 2020-04-01 | K169: 1 | T169: IN001365-3 | U169: 223351289
A170: 93458000 | B170: 1 | C170: PLANTA ARAUCO | D170: IN000214-7 | E170: 169732.72 | F170: 852.03 | G170: 3657365 | H170: 212660416 | I170: 202004 | J170: 2020-04-01 | K170: 1 | T170: IN000214-7 | U170: 144617369.4
A171: 93458000 | B171: 1 | C171: PLANTA ARAUCO | D171: IN000217-1 | E171: 552007.96 | F171: 852.03 | G171: 3657367 | H171: 212660418 | I171: 202004 | J171: 2020-04-01 | K171: 1 | T171: IN000217-1 | U171: 470327342.2
A172: 93458000 | B172: 1 | C172: PLANTA LICANCEL | D172: IN000225-2 | E172: 21635.13 | F172: 852.03 | G172: 3657369 | H172: 212660420 | I172: 202004 | J172: 2020-04-01 | K172: 1 | T172: IN000225-2 | U172: 18433779.81
A173: 93458000 | B173: 1 | C173: PLANTA LICANCEL | D173: IN000224-4 | E173: 121124.47 | F173: 852.03 | G173: 3657371 | H173: 212660422 | I173: 202004 | J173: 2020-04-01 | K173: 1 | T173: IN000224-4 | U173: 103201682.2
A174: 93458000 | B174: 1 | C174: NUEVA ALDEA | D174: IN002622-4 | E174: 33902.56 | F174: 852.03 | G174: 3657373 | H174: 212660424 | I174: 202004 | J174: 2020-04-01 | K174: 1 | T174: IN002622-4 | U174: 28885998.2
A175: 93458000 | B175: 1 | C175: NUEVA ALDEA | D175: IN000218-K | E175: 357879.91 | F175: 852.03 | G175: 3657375 | H175: 212660426 | I175: 202004 | J175: 2020-04-01 | K175: 1 | T175: IN000218-K | U175: 304924419.7
A176: 93458000 | B176: 1 | C176: NUEVA ALDEA | D176: EL019740-9 | E176: 1354.29 | F176: 852.03 | G176: 3657377 | H176: 212660428 | I176: 202004 | J176: 2020-04-01 | K176: 1 | T176: EL019740-9 | U176: 1153895.709
A177: 93458000 | B177: 1 | C177: PLANTA VALDIVIA | D177: IN000219-8 | E177: 302278.27 | F177: 852.03 | G177: 3657379 | H177: 212660430 | I177: 202004 | J177: 2020-04-01 | K177: 1 | T177: IN000219-8 | U177: 257550154.4
A178: 93458000 | B178: 1 | C178: PLANTA VALDIVIA | D178: IN000220-1 | E178: 146813.67 | F178: 852.03 | G178: 3657381 | H178: 212660432 | I178: 202004 | J178: 2020-04-01 | K178: 1 | T178: IN000220-1 | U178: 125089651.3
A179: 76143821 | B179: 2 | C179: PLANTA CORONEL | D179: IN000245-7 | E179: 27525.08 | F179: 852.03 | G179: 3657383 | H179: 212660434 | I179: 202004 | J179: 2020-04-01 | K179: 0 | T179: IN000245-7 | U179: 0
A180: 76143821 | B180: 2 | C180: PLANTA CORONEL | D180: IN003308-1 | E180: 13829.71 | F180: 852.03 | G180: 3657385 | H180: 212660436 | I180: 202004 | J180: 2020-04-01 | K180: 0 | T180: IN003308-1 | U180: 0
A181: 76143821 | B181: 2 | C181: PLANTA CORONEL | D181: IN003307-3 | E181: 51436.57 | F181: 852.03 | G181: 3657387 | H181: 212660438 | I181: 202004 | J181: 2020-04-01 | K181: 0 | T181: IN003307-3 | U181: 0
A182: 76143821 | B182: 2 | C182: PLANTA CORONEL | D182: IN000249-K | E182: 12071.65 | F182: 852.03 | G182: 3657389 | H182: 212660440 | I182: 202004 | J182: 2020-04-01 | K182: 0 | T182: IN000249-K | U182: 0
A183: 76143821 | B183: 2 | C183: PLANTA CORONEL | D183: IN003557-2 | E183: 17422.47 | F183: 852.03 | G183: 3657391 | H183: 212660442 | I183: 202004 | J183: 2020-04-01 | K183: 0 | T183: IN003557-2 | U183: 0
A184: 76629030 | B184: 2 | C184: CENTRAL A GAS CICLO COMBINADO KELAR | D184: PC003576-9 | E184: 1671954.76 | F184: 852.03 | G184: 3657393 | H184: 212660444 | I184: 202004 | J184: 2020-04-01 | K184: 1 | T184: PC003576-9 | U184: 1424555614
A185: 76629030 | B185: 2 | C185: CENTRAL A GAS CICLO COMBINADO KELAR | D185: PC003577-7 | E185: 1629279.14 | F185: 852.03 | G185: 3657395 | H185: 212660446 | I185: 202004 | J185: 2020-04-01 | K185: 1 | T185: PC003577-7 | U185: 1388194706
A186: 87756500 | B186: 9 | C186: EMPRESA NACIONAL DEL PETRÓLEO (ENAP) | D186: IN000649-5 | E186: 313025.37 | F186: 852.03 | G186: 3657397 | H186: 212660448 | I186: 202004 | J186: 2020-04-01 | K186: 0 | T186: IN000649-5 | U186: 0
A187: 87756500 | B187: 9 | C187: EMPRESA NACIONAL DEL PETRÓLEO (ENAP) | D187: IN000650-9 | E187: 281508.06 | F187: 852.03 | G187: 3657399 | H187: 212660450 | I187: 202004 | J187: 2020-04-01 | K187: 0 | T187: IN000650-9 | U187: 0
A188: 87756500 | B188: 9 | C188: EMPRESA NACIONAL DEL PETRÓLEO (ENAP) | D188: IN000651-7 | E188: 296625.59 | F188: 852.03 | G188: 3657401 | H188: 212660452 | I188: 202004 | J188: 2020-04-01 | K188: 0 | T188: IN000651-7 | U188: 0
A189: 87756500 | B189: 9 | C189: EMPRESA NACIONAL DEL PETRÓLEO (ENAP) | D189: IN001036-0 | E189: 301626.05 | F189: 852.03 | G189: 3657403 | H189: 212660454 | I189: 202004 | J189: 2020-04-01 | K189: 0 | T189: IN001036-0 | U189: 0
A190: 87756500 | B190: 9 | C190: EMPRESA NACIONAL DEL PETRÓLEO (ENAP) | D190: IN000652-5 | E190: 266294.67 | F190: 852.03 | G190: 3657405 | H190: 212660456 | I190: 202004 | J190: 2020-04-01 | K190: 0 | T190: IN000652-5 | U190: 0
A191: 87756500 | B191: 9 | C191: EMPRESA NACIONAL DEL PETRÓLEO (ENAP) | D191: PC003440-1 | E191: 571.08 | F191: 852.03 | G191: 3657407 | H191: 212660458 | I191: 202004 | J191: 2020-04-01 | K191: 0 | T191: PC003440-1 | U191: 0
A192: 87756500 | B192: 9 | C192: REFINERIA BIO BIO | D192: IN000555-3 | E192: 5548.47 | F192: 852.03 | G192: 3657409 | H192: 212660460 | I192: 202004 | J192: 2020-04-01 | K192: 0 | T192: IN000555-3 | U192: 0
A193: 87756500 | B193: 9 | C193: REFINERIA BIO BIO | D193: IN000560-K | E193: 86702.58 | F193: 852.03 | G193: 3657411 | H193: 212660462 | I193: 202004 | J193: 2020-04-01 | K193: 0 | T193: IN000560-K | U193: 0
A194: 87756500 | B194: 9 | C194: REFINERIA BIO BIO | D194: IN000559-6 | E194: 33955.52 | F194: 852.03 | G194: 3657413 | H194: 212660464 | I194: 202004 | J194: 2020-04-01 | K194: 0 | T194: IN000559-6 | U194: 0
A195: 87756500 | B195: 9 | C195: REFINERIA BIO BIO | D195: IN000558-8 | E195: 83848.49 | F195: 852.03 | G195: 3657415 | H195: 212660466 | I195: 202004 | J195: 2020-04-01 | K195: 0 | T195: IN000558-8 | U195: 0
A196: 87756500 | B196: 9 | C196: REFINERIA BIO BIO | D196: IN000557-K | E196: 73063.68 | F196: 852.03 | G196: 3657417 | H196: 212660468 | I196: 202004 | J196: 2020-04-01 | K196: 0 | T196: IN000557-K | U196: 0
A197: 87756500 | B197: 9 | C197: REFINERIA BIO BIO | D197: IN000556-1 | E197: 117938.73 | F197: 852.03 | G197: 3657419 | H197: 212660470 | I197: 202004 | J197: 2020-04-01 | K197: 0 | T197: IN000556-1 | U197: 0
A198: 87756500 | B198: 9 | C198: COGENERADORA PETROPOWER | D198: GE000010-1 | E198: 3565621.86 | F198: 852.03 | G198: 3657421 | H198: 212660472 | I198: 202004 | J198: 2020-04-01 | K198: 1 | T198: GE000010-1 | U198: 3038016793
A199: 87756500 | B199: 9 | C199: PLANTA CO GENERADORA | D199: PC003861-K | E199: 113520.37 | F199: 852.03 | G199: 3657423 | H199: 212660474 | I199: 202004 | J199: 2020-04-01 | K199: 0 | T199: =+D199 -> PC003861-K | U199: =+K199*F199*E199 -> 0
A200: 87756500 | B200: 9 | C200: PLANTA CO GENERADORA | D200: IN003466-5 | E200: 25576.28 | F200: 852.03 | G200: 3657425 | H200: 212660476 | I200: 202004 | J200: 2020-04-01 | K200: 0 | T200: IN003466-5 | U200: 0
A201: 79947100 | B201: 0 | C201: FAENA COYA SUR | D201: CA002705-K | E201: 30113.59 | F201: 852.03 | G201: 3657427 | H201: 212660478 | I201: 202004 | J201: 2020-04-01 | K201: 0 | T201: CA002705-K | U201: 0
A202: 79947100 | B202: 0 | C202: FAENA COYA SUR | D202: CA002708-4 | E202: 34498.74 | F202: 852.03 | G202: 3657429 | H202: 212660480 | I202: 202004 | J202: 2020-04-01 | K202: 0 | T202: CA002708-4 | U202: 0
... 74 more rows

Sheet Empresas
B3: Empresas
B4: AASA_ENERGIA
B5: ABASTIBLE
B6: ACCIONA_ENERGIA
B7: AELA_GENERACION
B8: AES_GENER
B9: AGSA
B10: ALBA
B11: ALLIPEN
B12: ALMEYDA
B13: ANDINA
B14: ANGAMOS
B15: ARAUCO BIO
B16: ARRAYAN_EOLICO
B17: ATACAMA_GX_CHILE
B18: ATRIA_ENERGIA
B19: BE FORESTALES
B20: BESALCO
B21: CABO_LEONES
B22: CARBOMET
B23: CARDONES SA
B24: CAREN
B25: CCAMPESINO
B26: CERRO_DOMINADOR_CSP
B27: CHACAYES
B28: CHUNGUNGO
B29: COCHRANE
B30: COLBUN
B31: COLMITO
B32: COMASA
B33: CONEJO_SOLAR
B34: COYANCO
B35: CUMPEO
B36: DUQUECO
B37: EGP_SUR
B38: EL_CAMPESINO_I
B39: EL_MORADO
B40: EL_PELICANO
B41: ELECTRICA CENIZAS
B42: EMBALSE_ANCOA
B43: EMELDA
B44: ENEL_GENERACION
B45: ENERGIA PACIFICO
B46: ENERGIA_LEON
B47: ENGIE
B48: ENLASA
B49: ENORCHILE
B50: EOLICA_ESPERANZA
B51: ERNC1
B52: ERSA
B53: ESTANCILLA SPA
B54: GAS SUR
B55: GASATACAMA
B56: GM_HOLDINGS
B57: GMETROPOLITANA
B58: GUACOLDA
B59: HELIO_ATACAMA_TRES
B60: HIDROLIRCAY
B61: HORNITOS
B62: HUAJACHE
B63: IMELSA_ENERGIA
B64: JAVIERA
B65: KALTEMP
B66: KDM_ENERGIA
B67: LA ARENA SPA
B68: LA CONFLUENCIA
B69: LA HIGUERA
B70: LIPIGAS
B71: LOS_CURUROS
B72: LOS_GUINDOS
B73: LUZ_DEL_NORTE
B74: MALLARAUCO
B75: MONTE REDONDO
B76: NEOMAS
B77: NORACID
B78: NORVIND
B79: NUEVA ENERGIA
B80: ON GROUP
B81: ORAZUL_CHILE
B82: ORAZUL_DUQUECO
B83: PACIFIC HYDRO
B84: PANGUIPULLI
B85: PARQUE_EOLICO_LEBU
B86: PEHUENCHE
B87: POZO_ALMONTE_SOLAR_2
B88: POZO_ALMONTE_SOLAR_3
B89: PUCLARO
B90: PUNTILLA
B91: RAKI
B92: RIO_COLORADO
B93: RUCATAYO
B94: SAFIRA_ENERGIA_CHILE
B95: SAN_JUAN_LAP
B96: SANTIAGO_SOLAR
B97: SGA
B98: SPVP4
B99: SWO
B100: TACORA_ENERGY
B101: TAMAKAYA_ENERGIA
B102: TECNORED
B103: UCUQUER_DOS

Sheet CVP-pre
B2: Costos variables Promedio (numeradores)
B4: Nombre unidad TCV | C4: Enero | D4: Febrero | E4: Marzo | F4: Abril | G4: Mayo | H4: Junio | I4: Julio | J4: Agosto | K4: Septiembre | L4: Octubre | M4: Noviembre | N4: Diciembre | O4: Total
B5: =+Unidades!B6 -> ANG1 | C5: 2218325307 | D5: 4566350128 | E5: 4280977425 | F5: 2027505.02 | G5: 241210241.9 | H5: 79159275.01 | I5: 96207154.93 | J5: 23581271.56 | K5: 831940142 | L5: 1526697082 | M5: 2490541848 | N5: 2333740304 | O5: =+SUM(TablaCVP_pre[[#This Row],[Enero]:[Diciembre]]) -> 1.869075768e+10
B6: =+Unidades!B7 -> ANG2 | C6: 5268604380 | D6: 4511782696 | E6: 4591983423 | F6: 3644988732 | G6: 5091540010 | H6: 4869407023 | I6: 4200315684 | J6: 4405598712 | K6: 4163041794 | L6: 3706187606 | M6: 3621753993 | N6: 3559063751 | O6: =+SUM(TablaCVP_pre[[#This Row],[Enero]:[Diciembre]]) -> 5.16342678e+10
B7: =+Unidades!B8 -> Antilhue TG U1 | C7: 577875293.2 | D7: 1930925658 | E7: 685675089.4 | F7: 32457731.19 | G7: 45907293.63 | H7: 13446198.3 | I7: 4399800.488 | J7: 0 | K7: 0 | L7: 43804951.43 | M7: 0 | N7: 40655412.22 | O7: =+SUM(TablaCVP_pre[[#This Row],[Enero]:[Diciembre]]) -> 3375147427
B8: =+Unidades!B9 -> Antilhue TG U2 | C8: 38437996.23 | D8: 1420420155 | E8: 347115077.2 | F8: 377586902.1 | G8: 0 | H8: 0 | I8: 0 | J8: 0 | K8: 0 | L8: 136485550.6 | M8: 0 | N8: 16880155.42 | O8: =+SUM(TablaCVP_pre[[#This Row],[Enero]:[Diciembre]]) -> 2336925837
B9: =+Unidades!B10 -> Arauco | C9: 90793109.76 | D9: 63435056.44 | E9: 26638116.2 | F9: 73004731.45 | G9: 65342868.08 | H9: 42137391.52 | I9: 35072966.01 | J9: 32963453.45 | K9: 62538376.85 | L9: 82366602.66 | M9: 100612200.7 | N9: 77308103.09 | O9: =+SUM(TablaCVP_pre[[#This Row],[Enero]:[Diciembre]]) -> 752212976.2
B10: =+Unidades!B11 -> Bocamina | C10: 844358060.9 | D10: 2059460427 | E10: 2428137445 | F10: 2423993725 | G10: 2019163997 | H10: 882532802 | I10: 1309725485 | J10: 1282602142 | K10: 1471079774 | L10: 1440309972 | M10: 2103881722 | N10: 370685130.9 | O10: =+SUM(TablaCVP_pre[[#This Row],[Enero]:[Diciembre]]) -> 1.863593068e+10
B11: =+Unidades!B12 -> Bocamina II | C11: 4328968076 | D11: 5936143060 | E11: 5619050184 | F11: 5806146505 | G11: 5526395558 | H11: 1662863640 | I11: 5561960676 | J11: 5845980694 | K11: 4945685282 | L11: 4030793662 | M11: 740217054.9 | N11: 1772706475 | O11: =+SUM(TablaCVP_pre[[#This Row],[Enero]:[Diciembre]]) -> 5.177691087e+10
B12: =+Unidades!B13 -> Campiche | C12: 4296803832 | D12: 4536584250 | E12: 4718461056 | F12: 5683740710 | G12: 5408609724 | H12: 4827077053 | I12: 3202680278 | J12: 4279822509 | K12: 1717128302 | L12: 2123962015 | M12: 2041851289 | N12: 3384051601 | O12: =+SUM(TablaCVP_pre[[#This Row],[Enero]:[Diciembre]]) -> 4.622077262e+10
B13: =+Unidades!B14 -> Candelaria 1 | C13: 0 | D13: 0 | E13: 30575554.9 | F13: 18249893.97 | G13: 38728422.1 | H13: 98132111.08 | I13: 0 | J13: 24811912.82 | K13: 27232791.56 | L13: 220478.0183 | M13: 0 | N13: 0 | O13: =+SUM(TablaCVP_pre[[#This Row],[Enero]:[Diciembre]]) -> 237951164.4
B14: =+Unidades!B15 -> Candelaria 2 | C14: 0 | D14: 0 | E14: 19693737.16 | F14: 86423956.38 | G14: 17574911.91 | H14: 100431142.3 | I14: 0 | J14: 22401283.22 | K14: 24862632.38 | L14: 0 | M14: 11816148.74 | N14: 0 | O14: =+SUM(TablaCVP_pre[[#This Row],[Enero]:[Diciembre]]) -> 283203812.1
B15: =+Unidades!B16 -> Cardones | C15: 0 | D15: 0 | E15: 0 | F15: 0 | G15: 0 | H15: 510.2953696 | I15: 0 | J15: 0 | K15: 0 | L15: 0 | M15: 0 | N15: 0 | O15: =+SUM(TablaCVP_pre[[#This Row],[Enero]:[Diciembre]]) -> 510.2953696
B16: =+Unidades!B17 -> CC KELAR | C16: 1649646971 | D16: 4174951440 | E16: 1935150088 | F16: 2902392455 | G16: 2460643119 | H16: 1071316273 | I16: 104976682 | J16: 1138781201 | K16: 395716016.8 | L16: 576729473.6 | M16: 82134496.36 | N16: 0 | O16: =+SUM(TablaCVP_pre[[#This Row],[Enero]:[Diciembre]]) -> 1.649243822e+10
B17: =+Unidades!B18 -> CC1 | C17: 1310862623 | D17: 666757347.3 | E17: 233026683.2 | F17: 605427675.7 | G17: 310299018.1 | H17: 1030993466 | I17: 0 | J17: 382924473.6 | K17: 423653272.2 | L17: 425291761 | M17: 651902187.6 | N17: 6056918.944 | O17: =+SUM(TablaCVP_pre[[#This Row],[Enero]:[Diciembre]]) -> 6047195426
B18: =+Unidades!B19 -> CC2 | C18: 826199054.5 | D18: 176149753.2 | E18: 306790576.5 | F18: 627903957.1 | G18: 336120112.8 | H18: 449074683.5 | I18: 10823122.65 | J18: 0 | K18: 234247050.8 | L18: 439495395.6 | M18: 125349639 | N18: 4012656.687 | O18: =+SUM(TablaCVP_pre[[#This Row],[Enero]:[Diciembre]]) -> 3536166002
B19: =+Unidades!B20 -> CCH1 | C19: 4029251988 | D19: 3379435148 | E19: 2984336788 | F19: 2956785674 | G19: 3750030556 | H19: 3414518056 | I19: 2836392067 | J19: 1626716246 | K19: 3337151908 | L19: 3179149053 | M19: 3083984643 | N19: 3545718125 | O19: =+SUM(TablaCVP_pre[[#This Row],[Enero]:[Diciembre]]) -> 3.812347025e+10
B20: =+Unidades!B21 -> CCH2 | C20: 4036280217 | D20: 3381055334 | E20: 3009904467 | F20: 3271456762 | G20: 3640065241 | H20: 3260264793 | I20: 2019155438 | J20: 2577079735 | K20: 3319619863 | L20: 3177560216 | M20: 3081228511 | N20: 3548757409 | O20: =+SUM(TablaCVP_pre[[#This Row],[Enero]:[Diciembre]]) -> 3.832242798e+10
B21: =+Unidades!B22 -> CD Iquique | C21: 0 | D21: 0 | E21: 0 | F21: 0 | G21: 0 | H21: 0 | I21: 0 | J21: 0 | K21: 0 | L21: 0 | M21: 0 | N21: 0 | O21: =+SUM(TablaCVP_pre[[#This Row],[Enero]:[Diciembre]]) -> 0
B22: =+Unidades!B23 -> Celco | C22: 84052584.89 | D22: 88972246.86 | E22: 74267825.06 | F22: 55224167.6 | G22: 99795957.49 | H22: 58314868.71 | I22: 72642224.91 | J22: 69286020.25 | K22: 71647613.21 | L22: 68080679.72 | M22: 110610217.6 | N22: 98658805.59 | O22: =+SUM(TablaCVP_pre[[#This Row],[Enero]:[Diciembre]]) -> 951553211.9
B23: =+Unidades!B24 -> Cholguán | C23: 125266102.6 | D23: 87586672.3 | E23: 182313186.2 | F23: 221100289.6 | G23: 136332753.9 | H23: 132464704.8 | I23: 0 | J23: 0 | K23: 0 | L23: 0 | M23: 26151539.73 | N23: 18936056.8 | O23: =+SUM(TablaCVP_pre[[#This Row],[Enero]:[Diciembre]]) -> 930151306
B24: =+Unidades!B25 -> CMPC Cordillera | C24: 0 | D24: 0 | E24: 0 | F24: 0 | G24: 0 | H24: 0 | I24: 0 | J24: 0 | K24: 0 | L24: 36052.41734 | M24: 163779.8824 | N24: 612654.5116 | O24: =+SUM(TablaCVP_pre[[#This Row],[Enero]:[Diciembre]]) -> 812486.8113
B25: =+Unidades!B26 -> CMPC Laja | C25: 254075144.6 | D25: 238957639.2 | E25: 216859619.7 | F25: 289999780.3 | G25: 263690502 | H25: 269910040.9 | I25: 258231968.6 | J25: 282199268 | K25: 5551599.939 | L25: 21917082.08 | M25: 0 | N25: 0 | O25: =+SUM(TablaCVP_pre[[#This Row],[Enero]:[Diciembre]]) -> 2101392645
B26: =+Unidades!B27 -> CMPC Pacífico | C26: 0 | D26: 72297.27174 | E26: 2374388.995 | F26: 151318069.4 | G26: 341405623.3 | H26: 196040991.6 | I26: 249644740.5 | J26: 252724632.3 | K26: 47737973.4 | L26: 14737917 | M26: 3280140.611 | N26: 0 | O26: =+SUM(TablaCVP_pre[[#This Row],[Enero]:[Diciembre]]) -> 1259336774
B27: =+Unidades!B28 -> CMPC Santa Fe | C27: 0 | D27: 0 | E27: 0 | F27: 0 | G27: 0 | H27: 0 | I27: 0 | J27: 0 | K27: 0 | L27: 0 | M27: 0 | N27: 0 | O27: =+SUM(TablaCVP_pre[[#This Row],[Enero]:[Diciembre]]) -> 0
B28: =+Unidades!B29 -> CMPC TISSUE | C28: 41711896.89 | D28: 74500283.04 | E28: 35045494.7 | F28: 58027902.38 | G28: 57532681.04 | H28: 49418061.73 | I28: 50857745.51 | J28: 48295163.02 | K28: 45924053.68 | L28: 41445855.22 | M28: 21512416.79 | N28: 24480726.79 | O28: =+SUM(TablaCVP_pre[[#This Row],[Enero]:[Diciembre]]) -> 548752280.8
B29: =+Unidades!B30 -> Colmito | C29: 36196925.99 | D29: 49785626.2 | E29: 1319996818 | F29: 1564338585 | G29: 1695440696 | H29: 348132907.5 | I29: 784535164.5 | J29: 894661086.8 | K29: 116185850.8 | L29: 20939317.55 | M29: 8181334.848 | N29: 0 | O29: =+SUM(TablaCVP_pre[[#This Row],[Enero]:[Diciembre]]) -> 6838394313
B30: =+Unidades!B31 -> CTA | C30: 2829492193 | D30: 1028314016 | E30: 434019899.1 | F30: 962830158.3 | G30: 2472963169 | H30: 1075685878 | I30: 0 | J30: 639905633 | K30: 2028851787 | L30: 2006288508 | M30: 1717571633 | N30: 2213552145 | O30: =+SUM(TablaCVP_pre[[#This Row],[Enero]:[Diciembre]]) -> 1.740947502e+10
B31: =+Unidades!B32 -> CTH | C31: 2669530375 | D31: 1637973001 | E31: 2250066877 | F31: 2765480306 | G31: 2665182886 | H31: 1085690375 | I31: 722066121.4 | J31: 2449205835 | K31: 1264045635 | L31: 1109490354 | M31: 1800694231 | N31: 1244841164 | O31: =+SUM(TablaCVP_pre[[#This Row],[Enero]:[Diciembre]]) -> 2.166426716e+10
B32: =+Unidades!B33 -> CTM1 | C32: 134586821.2 | D32: 560215914.3 | E32: 690435220 | F32: 1004457510 | G32: 1516058054 | H32: 0 | I32: 223444410.5 | J32: 1818059075 | K32: 790397203.2 | L32: 1119871031 | M32: 465605840 | N32: 0 | O32: =+SUM(TablaCVP_pre[[#This Row],[Enero]:[Diciembre]]) -> 8323131080
B33: =+Unidades!B34 -> CTM2 | C33: 689078370.1 | D33: 1352301307 | E33: 884722247.2 | F33: 33890644.96 | G33: 46465025.69 | H33: 335267673.2 | I33: 514991847.4 | J33: 1734201935 | K33: 398548256.8 | L33: 144458.2808 | M33: 728579244.9 | N33: 128694110 | O33: =+SUM(TablaCVP_pre[[#This Row],[Enero]:[Diciembre]]) -> 6846885121
B34: =+Unidades!B35 -> CTM3 | C34: 0 | D34: 1958447458 | E34: 1045561750 | F34: 1695188797 | G34: 1538754473 | H34: 2697812217 | I34: 338254916.5 | J34: 1059740401 | K34: 1184353444 | L34: 1019958795 | M34: 1853867428 | N34: 231355177.5 | O34: =+SUM(TablaCVP_pre[[#This Row],[Enero]:[Diciembre]]) -> 1.462329486e+10
B35: =+Unidades!B36 -> CTTAR | C35: 1891166580 | D35: 1637621477 | E35: 1742005148 | F35: 1549075775 | G35: 1895413503 | H35: 1544331367 | I35: 1939358848 | J35: 986376125.9 | K35: 316723938.3 | L35: 615188397.3 | M35: 1181704000 | N35: 1459282762 | O35: =+SUM(TablaCVP_pre[[#This Row],[Enero]:[Diciembre]]) -> 1.675824792e+10
B36: =+Unidades!B37 -> Diego de Almagro | C36: 0 | D36: 0 | E36: 0 | F36: 26019286.37 | G36: 0 | H36: 0 | I36: 0 | J36: 0 | K36: 0 | L36: 0 | M36: 0 | N36: 0 | O36: =+SUM(TablaCVP_pre[[#This Row],[Enero]:[Diciembre]]) -> 26019286.37
B37: =+Unidades!B38 -> El Salvador | C37: 0 | D37: 0 | E37: 0 | F37: 22923368.37 | G37: 0 | H37: 0 | I37: 0 | J37: 0 | K37: 0 | L37: 0 | M37: 0 | N37: 0 | O37: =+SUM(TablaCVP_pre[[#This Row],[Enero]:[Diciembre]]) -> 22923368.37
B38: =+Unidades!B39 -> Emelda U1 | C38: 0 | D38: 656971.505 | E38: 0 | F38: 28927697.82 | G38: 0 | H38: 214303.1984 | I38: 180652.8826 | J38: 0 | K38: 161300.2789 | L38: 0 | M38: 0 | N38: 197406.6692 | O38: =+SUM(TablaCVP_pre[[#This Row],[Enero]:[Diciembre]]) -> 30338332.35
B39: =+Unidades!B40 -> Emelda U2 | C39: 3761094.587 | D39: 0 | E39: 76748253.45 | F39: 9278645.163 | G39: 0 | H39: 210163.7573 | I39: 209003.2336 | J39: 0 | K39: 197039.314 | L39: 0 | M39: 2593486.935 | N39: 172756.8018 | O39: =+SUM(TablaCVP_pre[[#This Row],[Enero]:[Diciembre]]) -> 93170443.24
B40: =+Unidades!B41 -> Energía Pacífico | C40: 0 | D40: 28890575.66 | E40: 99125576.42 | F40: 92769747.47 | G40: 53270022.26 | H40: 6867639.481 | I40: 18296013.51 | J40: 32337897.59 | K40: 15469903.03 | L40: 9986943.766 | M40: 1420507.322 | N40: 333901560 | O40: =+SUM(TablaCVP_pre[[#This Row],[Enero]:[Diciembre]]) -> 692336386.5
B41: =+Unidades!B42 -> Escuadrón | C41: 82721436.57 | D41: 92048478.36 | E41: 119437935 | F41: 134272369.4 | G41: 142978594.9 | H41: 34002957.93 | I41: 30764083.15 | J41: 38361005.13 | K41: 1470258.696 | L41: 38240.08528 | M41: 150253.2416 | N41: 0 | O41: =+SUM(TablaCVP_pre[[#This Row],[Enero]:[Diciembre]]) -> 676245612.5
B42: =+Unidades!B43 -> Esperanza TG | C42: 0 | D42: 0 | E42: 0 | F42: 0 | G42: 10691163.13 | H42: 18450398.97 | I42: 0 | J42: 0 | K42: 0 | L42: 0 | M42: 0 | N42: 0 | O42: =+SUM(TablaCVP_pre[[#This Row],[Enero]:[Diciembre]]) -> 29141562.1
B43: =+Unidades!B44 -> Guacolda 1 | C43: 2215349760 | D43: 2041638868 | E43: 1649871562 | F43: 2161372748 | G43: 2345618903 | H43: 1337588469 | I43: 2061534217 | J43: 1806833506 | K43: 1930580323 | L43: 1853091728 | M43: 1789775031 | N43: 2002503007 | O43: =+SUM(TablaCVP_pre[[#This Row],[Enero]:[Diciembre]]) -> 2.319575812e+10
B44: =+Unidades!B45 -> Guacolda 2 | C44: 1575840088 | D44: 1702877733 | E44: 1814176917 | F44: 1983714107 | G44: 1182263653 | H44: 1955852910 | I44: 1885779541 | J44: 1742694625 | K44: 1804406463 | L44: 1712108861 | M44: 1156739955 | N44: 1909601048 | O44: =+SUM(TablaCVP_pre[[#This Row],[Enero]:[Diciembre]]) -> 2.04260559e+10
B45: =+Unidades!B46 -> Guacolda 3 | C45: 2192404816 | D45: 1456335283 | E45: 1733220350 | F45: 1849488756 | G45: 2247925381 | H45: 2213705658 | I45: 1809928206 | J45: 1758015830 | K45: 1957948917 | L45: 670380921.8 | M45: 774564933 | N45: 1764578866 | O45: =+SUM(TablaCVP_pre[[#This Row],[Enero]:[Diciembre]]) -> 2.042849792e+10
B46: =+Unidades!B47 -> Guacolda 4 | C46: 2225240555 | D46: 2160096841 | E46: 1792030673 | F46: 1490437192 | G46: 2239267485 | H46: 2380442659 | I46: 2107370929 | J46: 1506667567 | K46: 1910301204 | L46: 1687412323 | M46: 1197982011 | N46: 1197422722 | O46: =+SUM(TablaCVP_pre[[#This Row],[Enero]:[Diciembre]]) -> 2.189467216e+10
B47: =+Unidades!B48 -> Guacolda 5 | C47: 2276593196 | D47: 2204997723 | E47: 1818381773 | F47: 1477180974 | G47: 2343148297 | H47: 2313765860 | I47: 1876364826 | J47: 1709962305 | K47: 1406614816 | L47: 1096589094 | M47: 1705661717 | N47: 1563206733 | O47: =+SUM(TablaCVP_pre[[#This Row],[Enero]:[Diciembre]]) -> 2.179246731e+10
B48: =+Unidades!B49 -> Horcones | C48: 0 | D48: 0 | E48: 273163.268 | F48: 1998580.159 | G48: 0 | H48: 118095.6662 | I48: 0 | J48: 0 | K48: 0 | L48: 0 | M48: 0 | N48: 6015484.537 | O48: =+SUM(TablaCVP_pre[[#This Row],[Enero]:[Diciembre]]) -> 8405323.63
B49: =+Unidades!B50 -> Huasco TG | C49: 0 | D49: 0 | E49: 0 | F49: 0 | G49: 0 | H49: 0 | I49: 0 | J49: 380722.6687 | K49: 3126552.98 | L49: 8308713.597 | M49: 0 | N49: 1497025.071 | O49: =+SUM(TablaCVP_pre[[#This Row],[Enero]:[Diciembre]]) -> 13313014.32
B50: =+Unidades!B51 -> IEM | C50: 0 | D50: 0 | E50: 0 | F50: 0 | G50: 2914285239 | H50: 4862191690 | I50: 4556708457 | J50: 830495384.4 | K50: 2140117589 | L50: 2279978805 | M50: 4058734545 | N50: 4712073923 | O50: =+SUM(TablaCVP_pre[[#This Row],[Enero]:[Diciembre]]) -> 2.635458563e+10
B51: =+Unidades!B52 -> Laguna Verde TG | C51: 0 | D51: 0 | E51: 0 | F51: 0 | G51: 0 | H51: 0 | I51: 0 | J51: 0 | K51: 0 | L51: 0 | M51: 0 | N51: 0 | O51: =+SUM(TablaCVP_pre[[#This Row],[Enero]:[Diciembre]]) -> 0
B52: =+Unidades!B53 -> Laguna Verde TV | C52: 0 | D52: 0 | E52: 0 | F52: 0 | G52: 0 | H52: 0 | I52: 0 | J52: 0 | K52: 0 | L52: 0 | M52: 0 | N52: 0 | O52: =+SUM(TablaCVP_pre[[#This Row],[Enero]:[Diciembre]]) -> 0
B53: =+Unidades!B54 -> Laja | C53: 115798433.8 | D53: 82880640.4 | E53: 108825497.6 | F53: 114804280.4 | G53: 107206905.3 | H53: 72836063.37 | I53: 16058561.28 | J53: 31144591.7 | K53: 0 | L53: 0 | M53: 98188.54113 | N53: 0 | O53: =+SUM(TablaCVP_pre[[#This Row],[Enero]:[Diciembre]]) -> 649653162.4
B54: =+Unidades!B55 -> Lautaro-Comasa | C54: 630226486.2 | D54: 458296697.9 | E54: 522642117.5 | F54: 553561411.5 | G54: 643628324.2 | H54: 392635615.8 | I54: 285956837.3 | J54: 404963539 | K54: 356291789.2 | L54: 208568023.4 | M54: 162725533.9 | N54: 376520102.5 | O54: =+SUM(TablaCVP_pre[[#This Row],[Enero]:[Diciembre]]) -> 4996016478
B55: =+Unidades!B56 -> Lautaro-Comasa 2 | C55: 41276088.1 | D55: 311510932.9 | E55: 251680071.1 | F55: 256742312.9 | G55: 314341482.2 | H55: 293974261.1 | I55: 256795557 | J55: 354458151.4 | K55: 193125723.4 | L55: 166244132.5 | M55: 8484932.9 | N55: 0 | O55: =+SUM(TablaCVP_pre[[#This Row],[Enero]:[Diciembre]]) -> 2448633646
B56: =+Unidades!B57 -> Licantén | C56: 58137942.66 | D56: 33379708.08 | E56: 92864.18302 | F56: 54399410.97 | G56: 45751568.15 | H56: 9157572.814 | I56: 7392980.295 | J56: 5379363.436 | K56: 1601774.203 | L56: 2155058.428 | M56: 2374417.411 | N56: 2211491.833 | O56: =+SUM(TablaCVP_pre[[#This Row],[Enero]:[Diciembre]]) -> 222034152.5
B57: =+Unidades!B58 -> Los Guindos | C57: 0 | D57: 0 | E57: 0 | F57: 0 | G57: 18791003.78 | H57: 0 | I57: 0 | J57: 0 | K57: 0 | L57: 0 | M57: 0 | N57: 0 | O57: =+SUM(TablaCVP_pre[[#This Row],[Enero]:[Diciembre]]) -> 18791003.78
B58: =+Unidades!B59 -> Los Pinos | C58: 253925016.9 | D58: 149723697.3 | E58: 39094737.74 | F58: 644810016.5 | G58: 155248733.5 | H58: 5332319.134 | I58: 0 | J58: 0 | K58: 0 | L58: 0 | M58: 4717674.351 | N58: 0 | O58: =+SUM(TablaCVP_pre[[#This Row],[Enero]:[Diciembre]]) -> 1252852195
B59: =+Unidades!B60 -> Los Vientos | C59: 88665998.58 | D59: 126275155.2 | E59: 3211924895 | F59: 2094558120 | G59: 3463645296 | H59: 135924191.9 | I59: 887282620.9 | J59: 802190974.8 | K59: 71844223.48 | L59: 0 | M59: 47308189.11 | N59: 0 | O59: =+SUM(TablaCVP_pre[[#This Row],[Enero]:[Diciembre]]) -> 1.092961966e+10
B60: =+Unidades!B61 -> Masisa (Cabrero) | C60: 56212615.34 | D60: 80231112.71 | E60: 160111093.5 | F60: 176179353.9 | G60: 159283561.9 | H60: 146377167.3 | I60: 108668967.8 | J60: 90501059.95 | K60: 28774084.32 | L60: 5462719.137 | M60: 5191068.648 | N60: 0 | O60: =+SUM(TablaCVP_pre[[#This Row],[Enero]:[Diciembre]]) -> 1016992805
B61: =+Unidades!B62 -> Nehuenco | C61: 371860190.3 | D61: 336186715.7 | E61: 358510164.1 | F61: 473320378.1 | G61: 1320006633 | H61: 343021555.5 | I61: 15018699.7 | J61: 744774635.6 | K61: 1444249488 | L61: 5220443611 | M61: 2415966953 | N61: 281834916.4 | O61: =+SUM(TablaCVP_pre[[#This Row],[Enero]:[Diciembre]]) -> 1.332519394e+10
B62: =+Unidades!B63 -> Nehuenco II | C62: 643204630.9 | D62: 364623579.2 | E62: 1089724169 | F62: 606196705 | G62: 6031054365 | H62: 2031710732 | I62: 4097770599 | J62: 7041201486 | K62: 6129830750 | L62: 5840672341 | M62: 907699397.5 | N62: 6455889793 | O62: =+SUM(TablaCVP_pre[[#This Row],[Enero]:[Diciembre]]) -> 4.123957855e+10
B63: =+Unidades!B64 -> Nehuenco TG 9B | C63: 0 | D63: 0 | E63: 566.9900316 | F63: 27334803.06 | G63: 0 | H63: 0 | I63: 0 | J63: 21944022.66 | K63: 22688873.61 | L63: 0 | M63: 0 | N63: 24551741.93 | O63: =+SUM(TablaCVP_pre[[#This Row],[Enero]:[Diciembre]]) -> 96520008.25
B64: =+Unidades!B65 -> NTO1 | C64: 2172362907 | D64: 1514494232 | E64: 1645529764 | F64: 2122142277 | G64: 2025740011 | H64: 1505833383 | I64: 1891383422 | J64: 1889547904 | K64: 1435945949 | L64: 950878203.5 | M64: 1047583233 | N64: 609920219.8 | O64: =+SUM(TablaCVP_pre[[#This Row],[Enero]:[Diciembre]]) -> 1.88113615e+10
B65: =+Unidades!B66 -> NTO2 | C65: 2206769717 | D65: 590297338.7 | E65: 1252787498 | F65: 2008509323 | G65: 1993155517 | H65: 1829808915 | I65: 1776378423 | J65: 1493756037 | K65: 1693997100 | L65: 1652351048 | M65: 1597657203 | N65: 929020072.7 | O65: =+SUM(TablaCVP_pre[[#This Row],[Enero]:[Diciembre]]) -> 1.902448819e+10
B66: =+Unidades!B67 -> Nueva Aldea I | C66: 61471657.25 | D66: 68011016.16 | E66: 41878367.3 | F66: 65363952.03 | G66: 56151013.67 | H66: 27696702.04 | I66: 362432.47 | J66: 18286067.3 | K66: 24884593.96 | L66: 19050781.57 | M66: 21241678.77 | N66: 27248791.3 | O66: =+SUM(TablaCVP_pre[[#This Row],[Enero]:[Diciembre]]) -> 431647053.8
B67: =+Unidades!B68 -> Nueva Aldea III | C67: 0 | D67: 0 | E67: 0 | F67: 0 | G67: 0 | H67: 0 | I67: 0 | J67: 0 | K67: 0 | L67: 0 | M67: 0 | N67: 0 | O67: =+SUM(TablaCVP_pre[[#This Row],[Enero]:[Diciembre]]) -> 0
B68: =+Unidades!B69 -> Nueva Renca | C68: 6976025051 | D68: 4968517353 | E68: 3578793021 | F68: 8093422474 | G68: 5939682985 | H68: 5623233136 | I68: 5159984161 | J68: 1333613.193 | K68: 3295810819 | L68: 4795809151 | M68: 3862135028 | N68: 3841875163 | O68: =+SUM(TablaCVP_pre[[#This Row],[Enero]:[Diciembre]]) -> 5.613662196e+10
B69: =+Unidades!B70 -> Nueva Ventanas | C69: 0 | D69: 2966743690 | E69: 4555713431 | F69: 4282511810 | G69: 5025214506 | H69: 4852313422 | I69: 3015014762 | J69: 4567471760 | K69: 3551491905 | L69: 2543700009 | M69: 2910967204 | N69: 3629029103 | O69: =+SUM(TablaCVP_pre[[#This Row],[Enero]:[Diciembre]]) -> 4.19001716e+10
B70: =+Unidades!B71 -> Petropower | C70: 20919779.85 | D70: 12791408.29 | E70: 19885551.82 | F70: 22564481.5 | G70: 20647537.55 | H70: 20820061.08 | I70: 22223353.06 | J70: 19297231.49 | K70: 12041369.62 | L70: 14127359.49 | M70: 7645595.796 | N70: 23809285.25 | O70: =+SUM(TablaCVP_pre[[#This Row],[Enero]:[Diciembre]]) -> 216773014.8
B71: =+Unidades!B72 -> Quintero A | C71: 991139341.6 | D71: 927463847.5 | E71: 809884478.5 | F71: 1458803082 | G71: 1223429195 | H71: 0 | I71: 5136837.863 | J71: 74619424.57 | K71: 0 | L71: 128378325.9 | M71: 12621617.07 | N71: 0 | O71: =+SUM(TablaCVP_pre[[#This Row],[Enero]:[Diciembre]]) -> 5631476150
B72: =+Unidades!B73 -> Quintero B | C72: 913202242.8 | D72: 815912819.9 | E72: 737326008.8 | F72: 1568653186 | G72: 1143894114 | H72: 0 | I72: 6068753.989 | J72: 75748316.97 | K72: 110045276.6 | L72: 140721409.6 | M72: 14230621.33 | N72: 0 | O72: =+SUM(TablaCVP_pre[[#This Row],[Enero]:[Diciembre]]) -> 5525802749
B73: =+Unidades!B74 -> Renca U1 | C73: 0 | D73: 0 | E73: 0 | F73: 0 | G73: 0 | H73: 0 | I73: 0 | J73: 0 | K73: 0 | L73: 0 | M73: 0 | N73: 0 | O73: =+SUM(TablaCVP_pre[[#This Row],[Enero]:[Diciembre]]) -> 0
B74: =+Unidades!B75 -> Renca U2 | C74: 0 | D74: 0 | E74: 0 | F74: 0 | G74: 0 | H74: 0 | I74: 0 | J74: 0 | K74: 0 | L74: 0 | M74: 0 | N74: 0 | O74: =+SUM(TablaCVP_pre[[#This Row],[Enero]:[Diciembre]]) -> 0
B75: =+Unidades!B76 -> San Isidro | C75: 383370494.2 | D75: 6013335681 | E75: 4913012345 | F75: 8241558571 | G75: 8130073471 | H75: 3042839849 | I75: 1439064631 | J75: 4086756137 | K75: 220137709.3 | L75: 2819159526 | M75: 262006559.5 | N75: 161940065.2 | O75: =+SUM(TablaCVP_pre[[#This Row],[Enero]:[Diciembre]]) -> 3.971325504e+10
B76: =+Unidades!B77 -> San Isidro II | C76: 7698513982 | D76: 6694953172 | E76: 7140585579 | F76: 6928802132 | G76: 9044842779 | H76: 7019994493 | I76: 2637889374 | J76: 7170220583 | K76: 837699770.3 | L76: 787231327.4 | M76: 4145941287 | N76: 5266123128 | O76: =+SUM(TablaCVP_pre[[#This Row],[Enero]:[Diciembre]]) -> 6.537279761e+10
B77: =+Unidades!B78 -> San Lorenzo de D. de Almagro U1 | C77: 0 | D77: 0 | E77: 0 | F77: 0 | G77: 0 | H77: 0 | I77: 0 | J77: 0 | K77: 0 | L77: 0 | M77: 0 | N77: 0 | O77: =+SUM(TablaCVP_pre[[#This Row],[Enero]:[Diciembre]]) -> 0
B78: =+Unidades!B79 -> San Lorenzo de D. de Almagro U2 | C78: 0 | D78: 0 | E78: 0 | F78: 0 | G78: 0 | H78: 0 | I78: 0 | J78: 0 | K78: 0 | L78: 0 | M78: 0 | N78: 0 | O78: =+SUM(TablaCVP_pre[[#This Row],[Enero]:[Diciembre]]) -> 0
B79: =+Unidades!B80 -> Santa Lidia | C79: 0 | D79: 0 | E79: 0 | F79: 0 | G79: 238645238.9 | H79: 0 | I79: 0 | J79: 0 | K79: 0 | L79: 0 | M79: 0 | N79: 0 | O79: =+SUM(TablaCVP_pre[[#This Row],[Enero]:[Diciembre]]) -> 238645238.9
B80: =+Unidades!B81 -> Santa María | C80: 5365210825 | D80: 5512732882 | E80: 5604994679 | F80: 4944525364 | G80: 6522886520 | H80: 5853242296 | I80: 4730118537 | J80: 0 | K80: 0 | L80: 0 | M80: 2493784081 | N80: 6516195354 | O80: =+SUM(TablaCVP_pre[[#This Row],[Enero]:[Diciembre]]) -> 4.754369054e+10
B81: =+Unidades!B82 -> Taltal 1 | C81: 0 | D81: 0 | E81: 45090650.29 | F81: 77188683.25 | G81: 0 | H81: 0 | I81: 0 | J81: 0 | K81: 2768518.439 | L81: 28499260.05 | M81: 5612122.867 | N81: 0 | O81: =+SUM(TablaCVP_pre[[#This Row],[Enero]:[Diciembre]]) -> 159159234.9
B82: =+Unidades!B83 -> Taltal 2 | C82: 0 | D82: 0 | E82: 359461264.3 | F82: 183036729.1 | G82: 0 | H82: 0 | I82: 0 | J82: 0 | K82: 0 | L82: 6405337.219 | M82: 1206204.936 | N82: 0 | O82: =+SUM(TablaCVP_pre[[#This Row],[Enero]:[Diciembre]]) -> 550109535.6
B83: =+Unidades!B84 -> TG_Coronel | C83: 0 | D83: 0 | E83: 91094677.71 | F83: 0 | G83: 0 | H83: 20609585.03 | I83: 0 | J83: 0 | K83: 0 | L83: 5654405.327 | M83: 0 | N83: 0 | O83: =+SUM(TablaCVP_pre[[#This Row],[Enero]:[Diciembre]]) -> 117358668.1
B84: =+Unidades!B85 -> TG1 | C84: 0 | D84: 0 | E84: 0 | F84: 0 | G84: 0 | H84: 0 | I84: 0 | J84: 0 | K84: 0 | L84: 0 | M84: 0 | N84: 0 | O84: =+SUM(TablaCVP_pre[[#This Row],[Enero]:[Diciembre]]) -> 0
B85: =+Unidades!B86 -> TG2 | C85: 0 | D85: 0 | E85: 0 | F85: 0 | G85: 0 | H85: 0 | I85: 0 | J85: 0 | K85: 0 | L85: 0 | M85: 0 | N85: 0 | O85: =+SUM(TablaCVP_pre[[#This Row],[Enero]:[Diciembre]]) -> 0
B86: =+Unidades!B87 -> TG3 | C86: 31216619.66 | D86: 20770627.05 | E86: 15516078.29 | F86: 29850161.27 | G86: 24471488.87 | H86: 0 | I86: 16864849.74 | J86: 14111545.45 | K86: 48970707.54 | L86: 33442158.31 | M86: 8446248.987 | N86: 12951285.88 | O86: =+SUM(TablaCVP_pre[[#This Row],[Enero]:[Diciembre]]) -> 256611771
B87: =+Unidades!B88 -> TGTAR | C87: 0 | D87: 0 | E87: 0 | F87: 13089449.18 | G87: 0 | H87: 0 | I87: 0 | J87: 0 | K87: 0 | L87: 0 | M87: 0 | N87: 32031.39758 | O87: =+SUM(TablaCVP_pre[[#This Row],[Enero]:[Diciembre]]) -> 13121480.58
B88: =+Unidades!B89 -> U12 | C88: 0 | D88: 192173600.5 | E88: 148542550.8 | F88: 0 | G88: 0 | H88: 0 | I88: 0 | J88: 0 | K88: 0 | L88: 0 | M88: 0 | N88: 0 | O88: =+SUM(TablaCVP_pre[[#This Row],[Enero]:[Diciembre]]) -> 340716151.3
B89: =+Unidades!B90 -> U13 | C89: 0 | D89: 0 | E89: 0 | F89: 0 | G89: 0 | H89: 0 | I89: 0 | J89: 0 | K89: 0 | L89: 0 | M89: 0 | N89: 0 | O89: =+SUM(TablaCVP_pre[[#This Row],[Enero]:[Diciembre]]) -> 0
B90: =+Unidades!B91 -> U14 | C90: 512536327 | D90: 79143671.62 | E90: 415337115.6 | F90: 0 | G90: 50305.9266 | H90: 53618463.35 | I90: 0 | J90: 389735635.6 | K90: 53088339.71 | L90: 145784017 | M90: 0 | N90: 0 | O90: =+SUM(TablaCVP_pre[[#This Row],[Enero]:[Diciembre]]) -> 1649293876
B91: =+Unidades!B92 -> U15 | C91: 1117422625 | D91: 83478837.03 | E91: 404461344.9 | F91: 1315026436 | G91: 762028670.3 | H91: 0 | I91: 0 | J91: 322417005.3 | K91: 0 | L91: 68170857.39 | M91: 0 | N91: 63445216 | O91: =+SUM(TablaCVP_pre[[#This Row],[Enero]:[Diciembre]]) -> 4136450992
B92: =+Unidades!B93 -> U16 | C92: 1267157369 | D92: 1532092045 | E92: 2790822871 | F92: 2971574624 | G92: 2560673968 | H92: 1846996329 | I92: 816979867.4 | J92: 3094824692 | K92: 3302668351 | L92: 1227811316 | M92: 0 | N92: 0 | O92: =+SUM(TablaCVP_pre[[#This Row],[Enero]:[Diciembre]]) -> 2.141160143e+10
B93: =+Unidades!B94 -> Valdivia | C93: 139615193.4 | D93: 140256618.8 | E93: 106338080.3 | F93: 182321086.9 | G93: 90206718.56 | H93: 51592020.91 | I93: 89986358.02 | J93: 58255443.24 | K93: 13059043.55 | L93: 0 | M93: 0 | N93: 1140219.709 | O93: =+SUM(TablaCVP_pre[[#This Row],[Enero]:[Diciembre]]) -> 872770783.4
B94: =+Unidades!B95 -> Ventanas 1 | C94: 1224520705 | D94: 1258768913 | E94: 1906007566 | F94: 2266783248 | G94: 0 | H94: 0 | I94: 0 | J94: 0 | K94: 2251574.853 | L94: 55393046.56 | M94: 0 | N94: 0 | O94: =+SUM(TablaCVP_pre[[#This Row],[Enero]:[Diciembre]]) -> 6713725053
B95: =+Unidades!B96 -> Ventanas 2 | C95: 3283712543 | D95: 2915210130 | E95: 512763967.4 | F95: 0 | G95: 1861397192 | H95: 3593890157 | I95: 3548799884 | J95: 3065215114 | K95: 3043730795 | L95: 2870629591 | M95: 2515061043 | N95: 2648698774 | O95: =+SUM(TablaCVP_pre[[#This Row],[Enero]:[Diciembre]]) -> 2.985910919e+10
B96: =+Unidades!B97 -> Viñales | C96: 366351768 | D96: 332208514.1 | E96: 341728157.2 | F96: 371586561.9 | G96: 388958251.2 | H96: 378877321.6 | I96: 356868349.6 | J96: 309528942.1 | K96: 229280356.2 | L96: 279909910.8 | M96: 203270332.7 | N96: 333617134.6 | O96: =+SUM(TablaCVP_pre[[#This Row],[Enero]:[Diciembre]]) -> 3892185600
B97: =+Unidades!B98 -> Yungay 1 | C97: 0 | D97: 0 | E97: 0 | F97: 0 | G97: 0 | H97: 0 | I97: 0 | J97: 0 | K97: 0 | L97: 85426.67481 | M97: 0 | N97: 120027.1312 | O97: =+SUM(TablaCVP_pre[[#This Row],[Enero]:[Diciembre]]) -> 205453.806
B98: =+Unidades!B99 -> Yungay 2 | C98: 0 | D98: 0 | E98: 0 | F98: 0 | G98: 0 | H98: 0 | I98: 0 | J98: 0 | K98: 0 | L98: 7713744.148 | M98: 0 | N98: 9217343.352 | O98: =+SUM(TablaCVP_pre[[#This Row],[Enero]:[Diciembre]]) -> 16931087.5
B99: =+Unidades!B100 -> Yungay 3 | C99: 0 | D99: 0 | E99: 0 | F99: 0 | G99: 0 | H99: 0 | I99: 0 | J99: 0 | K99: 0 | L99: 4774816.386 | M99: 0 | N99: 23119557.05 | O99: =+SUM(TablaCVP_pre[[#This Row],[Enero]:[Diciembre]]) -> 27894373.44
B100: =+Unidades!B101 -> Yungay 4 ca | C100: 0 | D100: 0 | E100: 0 | F100: 0 | G100: 0 | H100: 0 | I100: 0 | J100: 0 | K100: 0 | L100: 2865395.323 | M100: 0 | N100: 6520949.375 | O100: =+SUM(TablaCVP_pre[[#This Row],[Enero]:[Diciembre]]) -> 9386344.698
B101: =+Unidades!B102 -> Los Guindos 2 | C101: 0 | D101: 0 | E101: 0 | F101: 0 | G101: 0 | H101: 0 | I101: 0 | J101: 0 | K101: 0 | L101: 14848840.35 | M101: 0 | N101: 0 | O101: =+SUM(TablaCVP_pre[[#This Row],[Enero]:[Diciembre]]) -> 14848840.35

Sheet CMgP-pre
B2: Costos Marginales Promedio (numeradores)
B4: Nombre unidad TCV | C4: Enero | D4: Febrero | E4: Marzo | F4: Abril | G4: Mayo | H4: Junio | I4: Julio | J4: Agosto | K4: Septiembre | L4: Octubre | M4: Noviembre | N4: Diciembre | O4: Total
B5: =+TablaCVP_pre[[#This Row],[Nombre unidad TCV]] -> ANG1 | C5: 2755911959 | D5: 5526590736 | E5: 5588731298 | F5: 2103674.912 | G5: 293606859 | H5: 104527478.5 | I5: 112664873.4 | J5: 35469981.95 | K5: 1119601292 | L5: 2166807326 | M5: 3257026026 | N5: 2956827917 | O5: =+SUM(TablaCMgP_pre[[#This Row],[Enero]:[Diciembre]]) -> 2.391986942e+10
B6: =+TablaCVP_pre[[#This Row],[Nombre unidad TCV]] -> ANG2 | C6: 6290162279 | D6: 5273532049 | E6: 5937248452 | F6: 4406154527 | G6: 6952933860 | H6: 6275403736 | I6: 5464121683 | J6: 7011511897 | K6: 5602638483 | L6: 4941959535 | M6: 4626907656 | N6: 4585549510 | O6: =+SUM(TablaCMgP_pre[[#This Row],[Enero]:[Diciembre]]) -> 6.736812367e+10
B7: =+TablaCVP_pre[[#This Row],[Nombre unidad TCV]] -> Antilhue TG U1 | C7: 591391820.4 | D7: 2040978796 | E7: 762284613.4 | F7: 32457731.19 | G7: 45910338.44 | H7: 13446198.3 | I7: 4399800.488 | J7: 0 | K7: 0 | L7: 45330302.07 | M7: 0 | N7: 40655412.22 | O7: =+SUM(TablaCMgP_pre[[#This Row],[Enero]:[Diciembre]]) -> 3576855013
B8: =+TablaCVP_pre[[#This Row],[Nombre unidad TCV]] -> Antilhue TG U2 | C8: 38477358.33 | D8: 1488810557 | E8: 348033418.3 | F8: 378415475.5 | G8: 0 | H8: 0 | I8: 0 | J8: 0 | K8: 0 | L8: 141688927.9 | M8: 0 | N8: 16880155.42 | O8: =+SUM(TablaCMgP_pre[[#This Row],[Enero]:[Diciembre]]) -> 2412305892
B9: =+TablaCVP_pre[[#This Row],[Nombre unidad TCV]] -> Arauco | C9: 242920911.3 | D9: 170957908.9 | E9: 77319670.67 | F9: 227345161.9 | G9: 189014518 | H9: 94046610.04 | I9: 75442251.07 | J9: 75142172.42 | K9: 109952019.3 | L9: 118703441.6 | M9: 150572955.1 | N9: 122465827.5 | O9: =+SUM(TablaCMgP_pre[[#This Row],[Enero]:[Diciembre]]) -> 1653883448
B10: =+TablaCVP_pre[[#This Row],[Nombre unidad TCV]] -> Bocamina | C10: 1147795783 | D10: 2381817292 | E10: 3371480542 | F10: 3539701211 | G10: 3064414636 | H10: 1088379984 | I10: 1581544037 | J10: 1630431786 | K10: 1556049216 | L10: 1506898469 | M10: 2116617266 | N10: 370685130.9 | O10: =+SUM(TablaCMgP_pre[[#This Row],[Enero]:[Diciembre]]) -> 2.335581535e+10
B11: =+TablaCVP_pre[[#This Row],[Nombre unidad TCV]] -> Bocamina II | C11: 5636764866 | D11: 7585667148 | E11: 8355367375 | F11: 8960412766 | G11: 8660707375 | H11: 2146649863 | I11: 7349909898 | J11: 8113047271 | K11: 5582520675 | L11: 4433976062 | M11: 757035264.8 | N11: 1776127860 | O11: =+SUM(TablaCMgP_pre[[#This Row],[Enero]:[Diciembre]]) -> 6.935818642e+10
B12: =+TablaCVP_pre[[#This Row],[Nombre unidad TCV]] -> Campiche | C12: 5556628664 | D12: 6000303518 | E12: 7013511455 | F12: 8079129238 | G12: 8165580247 | H12: 5496457682 | I12: 4012064565 | J12: 5767107109 | K12: 2047339261 | L12: 2304333011 | M12: 2219037319 | N12: 3554488434 | O12: =+SUM(TablaCMgP_pre[[#This Row],[Enero]:[Diciembre]]) -> 6.02159805e+10
B13: =+TablaCVP_pre[[#This Row],[Nombre unidad TCV]] -> Candelaria 1 | C13: 0 | D13: 0 | E13: 985164573.8 | F13: 419932764.1 | G13: 691549629.9 | H13: 117812515.1 | I13: 171607941.8 | J13: 26976420 | K13: 27232791.56 | L13: 220478.0183 | M13: 17659692.4 | N13: 0 | O13: =+SUM(TablaCMgP_pre[[#This Row],[Enero]:[Diciembre]]) -> 2458156807
B14: =+TablaCVP_pre[[#This Row],[Nombre unidad TCV]] -> Candelaria 2 | C14: 0 | D14: 0 | E14: 498735854.9 | F14: 515822871.7 | G14: 562666974.6 | H14: 121164286.8 | I14: 112892217.1 | J14: 24386892.32 | K14: 24862632.38 | L14: 0 | M14: 26208306.62 | N14: 0 | O14: =+SUM(TablaCMgP_pre[[#This Row],[Enero]:[Diciembre]]) -> 1886740036
B15: =+TablaCVP_pre[[#This Row],[Nombre unidad TCV]] -> Cardones | C15: 0 | D15: 0 | E15: 0 | F15: 0 | G15: 0 | H15: 510.2953696 | I15: 0 | J15: 0 | K15: 0 | L15: 0 | M15: 0 | N15: 0 | O15: =+SUM(TablaCMgP_pre[[#This Row],[Enero]:[Diciembre]]) -> 510.2953696
B16: =+TablaCVP_pre[[#This Row],[Nombre unidad TCV]] -> CC KELAR | C16: 1737940789 | D16: 6184561386 | E16: 7155450769 | F16: 5926946890 | G16: 3263599283 | H16: 5784894071 | I16: 5794461914 | J16: 5678727980 | K16: 3343175179 | L16: 1019094449 | M16: 3795310317 | N16: 2399901763 | O16: =+SUM(TablaCMgP_pre[[#This Row],[Enero]:[Diciembre]]) -> 5.208406479e+10
B17: =+TablaCVP_pre[[#This Row],[Nombre unidad TCV]] -> CC1 | C17: 1379327021 | D17: 690156076.5 | E17: 252178316.5 | F17: 630665203.7 | G17: 532181235.9 | H17: 1822900885 | I17: 1379797738 | J17: 412540507 | K17: 429756074 | L17: 428907660.5 | M17: 764590899.4 | N17: 405899636.9 | O17: =+SUM(TablaCMgP_pre[[#This Row],[Enero]:[Diciembre]]) -> 9128901254
B18: =+TablaCVP_pre[[#This Row],[Nombre unidad TCV]] -> CC2 | C18: 899512722.4 | D18: 185950897.5 | E18: 307310722.1 | F18: 647353712.1 | G18: 337917386.4 | H18: 575167071.1 | I18: 986419374.3 | J18: 0 | K18: 239303307.4 | L18: 439495395.6 | M18: 141901842 | N18: 4012656.687 | O18: =+SUM(TablaCMgP_pre[[#This Row],[Enero]:[Diciembre]]) -> 4764345088
B19: =+TablaCVP_pre[[#This Row],[Nombre unidad TCV]] -> CCH1 | C19: 4619354630 | D19: 3862273187 | E19: 3424545598 | F19: 3395338047 | G19: 4633973885 | H19: 4429146480 | I19: 3586022650 | J19: 2299599616 | K19: 4340355629 | L19: 4109116508 | M19: 3719733903 | N19: 4048918015 | O19: =+SUM(TablaCMgP_pre[[#This Row],[Enero]:[Diciembre]]) -> 4.646837815e+10
B20: =+TablaCVP_pre[[#This Row],[Nombre unidad TCV]] -> CCH2 | C20: 4624243287 | D20: 3862233345 | E20: 3441586119 | F20: 3722480285 | G20: 4506311901 | H20: 4228943165 | I20: 2413549914 | J20: 3643744639 | K20: 4346405698 | L20: 4102493388 | M20: 3714842274 | N20: 4052322811 | O20: =+SUM(TablaCMgP_pre[[#This Row],[Enero]:[Diciembre]]) -> 4.665915682e+10
B21: =+TablaCVP_pre[[#This Row],[Nombre unidad TCV]] -> CD Iquique | C21: 0 | D21: 0 | E21: 0 | F21: 0 | G21: 0 | H21: 0 | I21: 0 | J21: 0 | K21: 0 | L21: 0 | M21: 0 | N21: 0 | O21: =+SUM(TablaCMgP_pre[[#This Row],[Enero]:[Diciembre]]) -> 0
B22: =+TablaCVP_pre[[#This Row],[Nombre unidad TCV]] -> Celco | C22: 174961580 | D22: 181972636.2 | E22: 157848915.9 | F22: 153835079.8 | G22: 237424458.7 | H22: 110653131.4 | I22: 128433515 | J22: 127930040.2 | K22: 104677917.3 | L22: 108196200.7 | M22: 153789460 | N22: 134795600.6 | O22: =+SUM(TablaCMgP_pre[[#This Row],[Enero]:[Diciembre]]) -> 1774518536
B23: =+TablaCVP_pre[[#This Row],[Nombre unidad TCV]] -> Cholguán | C23: 214161297.5 | D23: 154527162.7 | E23: 364196675.6 | F23: 391464455.6 | G23: 246968828.7 | H23: 191306760.5 | I23: 0 | J23: 0 | K23: 0 | L23: 0 | M23: 40502595.65 | N23: 65344818.83 | O23: =+SUM(TablaCMgP_pre[[#This Row],[Enero]:[Diciembre]]) -> 1668472595
B24: =+TablaCVP_pre[[#This Row],[Nombre unidad TCV]] -> CMPC Cordillera | C24: 0 | D24: 0 | E24: 0 | F24: 0 | G24: 0 | H24: 0 | I24: 0 | J24: 0 | K24: 0 | L24: 36052.41734 | M24: 4703908.101 | N24: 15107092.04 | O24: =+SUM(TablaCMgP_pre[[#This Row],[Enero]:[Diciembre]]) -> 19847052.56
B25: =+TablaCVP_pre[[#This Row],[Nombre unidad TCV]] -> CMPC Laja | C25: 592612071.3 | D25: 584147072.6 | E25: 566086678.6 | F25: 751041870.3 | G25: 678400914.6 | H25: 533473538.6 | I25: 409275492.4 | J25: 485700235.1 | K25: 412453474.3 | L25: 347810597.1 | M25: 145631522.9 | N25: 293440006.2 | O25: =+SUM(TablaCMgP_pre[[#This Row],[Enero]:[Diciembre]]) -> 5800073474
B26: =+TablaCVP_pre[[#This Row],[Nombre unidad TCV]] -> CMPC Pacífico | C26: 129064310.5 | D26: 111871606.7 | E26: 65189438.46 | F26: 507093739.5 | G26: 878343260 | H26: 436688998.6 | I26: 430848533.1 | J26: 370001810.6 | K26: 269350988.2 | L26: 397967459.8 | M26: 320471999 | N26: 281193251.1 | O26: =+SUM(TablaCMgP_pre[[#This Row],[Enero]:[Diciembre]]) -> 4198085396
B27: =+TablaCVP_pre[[#This Row],[Nombre unidad TCV]] -> CMPC Santa Fe | C27: 0 | D27: 0 | E27: 0 | F27: 0 | G27: 0 | H27: 0 | I27: 0 | J27: 0 | K27: 0 | L27: 0 | M27: 0 | N27: 0 | O27: =+SUM(TablaCMgP_pre[[#This Row],[Enero]:[Diciembre]]) -> 0
B28: =+TablaCVP_pre[[#This Row],[Nombre unidad TCV]] -> CMPC TISSUE | C28: 84910860.35 | D28: 152541740.4 | E28: 69549045.84 | F28: 115298014.7 | G28: 115118342.7 | H28: 76040971.19 | I28: 72907756.64 | J28: 73817015.51 | K28: 55610720.02 | L28: 47090681.67 | M28: 22183372.68 | N28: 24651482.46 | O28: =+SUM(TablaCMgP_pre[[#This Row],[Enero]:[Diciembre]]) -> 909720004.1
B29: =+TablaCVP_pre[[#This Row],[Nombre unidad TCV]] -> Colmito | C29: 36257986.36 | D29: 49785626.2 | E29: 1393483841 | F29: 1564338585 | G29: 1699871652 | H29: 348132907.5 | I29: 784535164.5 | J29: 900969661.8 | K29: 116188078 | L29: 20939317.55 | M29: 8181334.848 | N29: 0 | O29: =+SUM(TablaCMgP_pre[[#This Row],[Enero]:[Diciembre]]) -> 6922684155
B30: =+TablaCVP_pre[[#This Row],[Nombre unidad TCV]] -> CTA | C30: 3254379608 | D30: 1074325991 | E30: 459239787.6 | F30: 1185983902 | G30: 3096906661 | H30: 1383165574 | I30: 0 | J30: 976912649.4 | K30: 2728522837 | L30: 2605851697 | M30: 1978690510 | N30: 2496999346 | O30: =+SUM(TablaCMgP_pre[[#This Row],[Enero]:[Diciembre]]) -> 2.124097856e+10
B31: =+TablaCVP_pre[[#This Row],[Nombre unidad TCV]] -> CTH | C31: 2992637290 | D31: 1870836149 | E31: 2683889260 | F31: 3174569691 | G31: 3335659395 | H31: 1268641742 | I31: 1073024346 | J31: 3641608306 | K31: 1617800864 | L31: 1466037814 | M31: 2100762245 | N31: 1428632171 | O31: =+SUM(TablaCMgP_pre[[#This Row],[Enero]:[Diciembre]]) -> 2.665409927e+10
B32: =+TablaCVP_pre[[#This Row],[Nombre unidad TCV]] -> CTM1 | C32: 140650133.6 | D32: 590410379 | E32: 726861858.1 | F32: 1059927271 | G32: 1646684231 | H32: 0 | I32: 248783137.9 | J32: 1884313444 | K32: 841709922.9 | L32: 1213843781 | M32: 469700352.8 | N32: 0 | O32: =+SUM(TablaCMgP_pre[[#This Row],[Enero]:[Diciembre]]) -> 8822884511
B33: =+TablaCVP_pre[[#This Row],[Nombre unidad TCV]] -> CTM2 | C33: 768239160.1 | D33: 1542538159 | E33: 931599807.2 | F33: 35484161.88 | G33: 48327674.92 | H33: 354355863.3 | I33: 543099737.4 | J33: 1925243113 | K33: 406483453.1 | L33: 144458.2808 | M33: 749479041.3 | N33: 129192255.1 | O33: =+SUM(TablaCMgP_pre[[#This Row],[Enero]:[Diciembre]]) -> 7434186884
B34: =+TablaCVP_pre[[#This Row],[Nombre unidad TCV]] -> CTM3 | C34: 0 | D34: 2388668160 | E34: 1598912201 | F34: 2756114811 | G34: 1925169183 | H34: 3563276517 | I34: 2836773895 | J34: 2222091818 | K34: 1323527867 | L34: 1113455910 | M34: 2643188717 | N34: 4015165557 | O34: =+SUM(TablaCMgP_pre[[#This Row],[Enero]:[Diciembre]]) -> 2.638634463e+10
B35: =+TablaCVP_pre[[#This Row],[Nombre unidad TCV]] -> CTTAR | C35: 2328223729 | D35: 1851424590 | E35: 2330756025 | F35: 1818116794 | G35: 2489009394 | H35: 1881990619 | I35: 2441414202 | J35: 1446853010 | K35: 410741137.3 | L35: 647173254 | M35: 1333536961 | N35: 1542914403 | O35: =+SUM(TablaCMgP_pre[[#This Row],[Enero]:[Diciembre]]) -> 2.052215412e+10
B36: =+TablaCVP_pre[[#This Row],[Nombre unidad TCV]] -> Diego de Almagro | C36: 0 | D36: 0 | E36: 0 | F36: 27250598.07 | G36: 0 | H36: 0 | I36: 0 | J36: 0 | K36: 0 | L36: 0 | M36: 0 | N36: 0 | O36: =+SUM(TablaCMgP_pre[[#This Row],[Enero]:[Diciembre]]) -> 27250598.07
B37: =+TablaCVP_pre[[#This Row],[Nombre unidad TCV]] -> El Salvador | C37: 0 | D37: 0 | E37: 0 | F37: 22923368.37 | G37: 0 | H37: 0 | I37: 0 | J37: 0 | K37: 0 | L37: 0 | M37: 0 | N37: 0 | O37: =+SUM(TablaCMgP_pre[[#This Row],[Enero]:[Diciembre]]) -> 22923368.37
B38: =+TablaCVP_pre[[#This Row],[Nombre unidad TCV]] -> Emelda U1 | C38: 0 | D38: 656971.505 | E38: 0 | F38: 28927697.82 | G38: 0 | H38: 214303.1984 | I38: 180652.8826 | J38: 0 | K38: 161300.2789 | L38: 0 | M38: 0 | N38: 197406.6692 | O38: =+SUM(TablaCMgP_pre[[#This Row],[Enero]:[Diciembre]]) -> 30338332.35
B39: =+TablaCVP_pre[[#This Row],[Nombre unidad TCV]] -> Emelda U2 | C39: 3761094.587 | D39: 0 | E39: 76748253.45 | F39: 9278645.163 | G39: 0 | H39: 210163.7573 | I39: 209003.2336 | J39: 0 | K39: 197039.314 | L39: 0 | M39: 2593486.935 | N39: 172756.8018 | O39: =+SUM(TablaCMgP_pre[[#This Row],[Enero]:[Diciembre]]) -> 93170443.24
B40: =+TablaCVP_pre[[#This Row],[Nombre unidad TCV]] -> Energía Pacífico | C40: 318949840.5 | D40: 403389640.1 | E40: 491532843 | F40: 425428151.9 | G40: 501801001.2 | H40: 387827936 | I40: 374119756.1 | J40: 350875766.6 | K40: 302176475.8 | L40: 291590201.6 | M40: 213710398.2 | N40: 405046560.9 | O40: =+SUM(TablaCMgP_pre[[#This Row],[Enero]:[Diciembre]]) -> 4466448572
B41: =+TablaCVP_pre[[#This Row],[Nombre unidad TCV]] -> Escuadrón | C41: 119429398.5 | D41: 145297425.5 | E41: 213760876.6 | F41: 210665268.1 | G41: 239102242.8 | H41: 45077803.92 | I41: 58397214.09 | J41: 60031690.1 | K41: 5161375.801 | L41: 38240.08528 | M41: 150253.2416 | N41: 0 | O41: =+SUM(TablaCMgP_pre[[#This Row],[Enero]:[Diciembre]]) -> 1097111789
B42: =+TablaCVP_pre[[#This Row],[Nombre unidad TCV]] -> Esperanza TG | C42: 0 | D42: 0 | E42: 0 | F42: 0 | G42: 10691163.13 | H42: 18450398.97 | I42: 0 | J42: 0 | K42: 0 | L42: 0 | M42: 0 | N42: 0 | O42: =+SUM(TablaCMgP_pre[[#This Row],[Enero]:[Diciembre]]) -> 29141562.1
B43: =+TablaCVP_pre[[#This Row],[Nombre unidad TCV]] -> Guacolda 1 | C43: 2554418884 | D43: 2371882449 | E43: 2115150955 | F43: 2518030046 | G43: 3036498999 | H43: 1635717713 | I43: 3053487443 | J43: 2986652895 | K43: 2722782739 | L43: 2405083465 | M43: 2188401205 | N43: 2352908757 | O43: =+SUM(TablaCMgP_pre[[#This Row],[Enero]:[Diciembre]]) -> 2.994101555e+10
B44: =+TablaCVP_pre[[#This Row],[Nombre unidad TCV]] -> Guacolda 2 | C44: 1818294209 | D44: 1988169922 | E44: 2246892419 | F44: 2309364375 | G44: 1503140999 | H44: 2595222168 | I44: 2849495526 | J44: 3023466213 | K44: 2647000051 | L44: 2309414919 | M44: 1473994856 | N44: 2324159810 | O44: =+SUM(TablaCMgP_pre[[#This Row],[Enero]:[Diciembre]]) -> 2.708861547e+10
B45: =+TablaCVP_pre[[#This Row],[Nombre unidad TCV]] -> Guacolda 3 | C45: 2748730199 | D45: 1862145818 | E45: 2379373274 | F45: 2371340238 | G45: 3233333611 | H45: 3348366895 | I45: 3131266568 | J45: 3198323877 | K45: 2693660911 | L45: 970300311.5 | M45: 920460264.4 | N45: 2041170172 | O45: =+SUM(TablaCMgP_pre[[#This Row],[Enero]:[Diciembre]]) -> 2.889847214e+10
B46: =+TablaCVP_pre[[#This Row],[Nombre unidad TCV]] -> Guacolda 4 | C46: 2603102899 | D46: 2565781828 | E46: 2266488634 | F46: 1634686996 | G46: 2906180646 | H46: 3061371348 | I46: 3081930807 | J46: 2535458530 | K46: 2689905877 | L46: 2176395588 | M46: 1394366027 | N46: 1286889305 | O46: =+SUM(TablaCMgP_pre[[#This Row],[Enero]:[Diciembre]]) -> 2.820255848e+10
B47: =+TablaCVP_pre[[#This Row],[Nombre unidad TCV]] -> Guacolda 5 | C47: 2840858731 | D47: 2870065897 | E47: 2431290246 | F47: 1868252021 | G47: 3250974240 | H47: 3321624136 | I47: 3142568203 | J47: 3355721488 | K47: 2243441695 | L47: 1533753933 | M47: 2333806661 | N47: 2077136284 | O47: =+SUM(TablaCMgP_pre[[#This Row],[Enero]:[Diciembre]]) -> 3.126949353e+10
B48: =+TablaCVP_pre[[#This Row],[Nombre unidad TCV]] -> Horcones | C48: 0 | D48: 0 | E48: 273163.268 | F48: 1998580.159 | G48: 0 | H48: 118095.6662 | I48: 0 | J48: 0 | K48: 0 | L48: 0 | M48: 0 | N48: 6015484.537 | O48: =+SUM(TablaCMgP_pre[[#This Row],[Enero]:[Diciembre]]) -> 8405323.63
B49: =+TablaCVP_pre[[#This Row],[Nombre unidad TCV]] -> Huasco TG | C49: 0 | D49: 0 | E49: 0 | F49: 0 | G49: 0 | H49: 0 | I49: 0 | J49: 380722.6687 | K49: 3126552.98 | L49: 8308713.597 | M49: 0 | N49: 1497025.071 | O49: =+SUM(TablaCMgP_pre[[#This Row],[Enero]:[Diciembre]]) -> 13313014.32
B50: =+TablaCVP_pre[[#This Row],[Nombre unidad TCV]] -> IEM | C50: 0 | D50: 0 | E50: 0 | F50: 0 | G50: 3933396274 | H50: 6835277970 | I50: 6632544154 | J50: 1273558156 | K50: 3088017326 | L50: 2759414818 | M50: 5096522800 | N50: 5704710528 | O50: =+SUM(TablaCMgP_pre[[#This Row],[Enero]:[Diciembre]]) -> 3.532344203e+10
B51: =+TablaCVP_pre[[#This Row],[Nombre unidad TCV]] -> Laguna Verde TG | C51: 0 | D51: 0 | E51: 0 | F51: 0 | G51: 0 | H51: 0 | I51: 0 | J51: 0 | K51: 0 | L51: 0 | M51: 0 | N51: 0 | O51: =+SUM(TablaCMgP_pre[[#This Row],[Enero]:[Diciembre]]) -> 0
B52: =+TablaCVP_pre[[#This Row],[Nombre unidad TCV]] -> Laguna Verde TV | C52: 0 | D52: 0 | E52: 0 | F52: 0 | G52: 0 | H52: 0 | I52: 0 | J52: 0 | K52: 0 | L52: 0 | M52: 0 | N52: 0 | O52: =+SUM(TablaCMgP_pre[[#This Row],[Enero]:[Diciembre]]) -> 0
B53: =+TablaCVP_pre[[#This Row],[Nombre unidad TCV]] -> Laja | C53: 160157649.5 | D53: 136268203.7 | E53: 167896804.4 | F53: 166071169 | G53: 160955928.8 | H53: 98950301.67 | I53: 49169547.29 | J53: 67737201.08 | K53: 28189012.81 | L53: 29405984.5 | M53: 6091000.278 | N53: 23523251.56 | O53: =+SUM(TablaCMgP_pre[[#This Row],[Enero]:[Diciembre]]) -> 1094416055
B54: =+TablaCVP_pre[[#This Row],[Nombre unidad TCV]] -> Lautaro-Comasa | C54: 873889057.9 | D54: 594439462.6 | E54: 794128996 | F54: 753694867.1 | G54: 857500213.9 | H54: 480615158.9 | I54: 340774014.5 | J54: 471898547.8 | K54: 462799609.9 | L54: 385014886 | M54: 265334020.8 | N54: 464052559 | O54: =+SUM(TablaCMgP_pre[[#This Row],[Enero]:[Diciembre]]) -> 6744141394
B55: =+TablaCVP_pre[[#This Row],[Nombre unidad TCV]] -> Lautaro-Comasa 2 | C55: 104132187.3 | D55: 576846511.5 | E55: 521433017.3 | F55: 505345941.8 | G55: 618354027.9 | H55: 437407110 | I55: 355149710.7 | J55: 492273444.9 | K55: 243236729.9 | L55: 209754519.6 | M55: 28799988.06 | N55: 0 | O55: =+SUM(TablaCMgP_pre[[#This Row],[Enero]:[Diciembre]]) -> 4092733189
B56: =+TablaCVP_pre[[#This Row],[Nombre unidad TCV]] -> Licantén | C56: 91502118.99 | D56: 55147958.76 | E56: 7243265.989 | F56: 103513000.9 | G56: 115168301.8 | H56: 58695005.82 | I56: 73742712.99 | J56: 72490313.46 | K56: 47518360.49 | L56: 45771258.09 | M56: 46844234.95 | N56: 45132668.87 | O56: =+SUM(TablaCMgP_pre[[#This Row],[Enero]:[Diciembre]]) -> 762769201.1
B57: =+TablaCVP_pre[[#This Row],[Nombre unidad TCV]] -> Los Guindos | C57: 0 | D57: 0 | E57: 0 | F57: 0 | G57: 18791003.78 | H57: 0 | I57: 0 | J57: 0 | K57: 0 | L57: 0 | M57: 0 | N57: 0 | O57: =+SUM(TablaCMgP_pre[[#This Row],[Enero]:[Diciembre]]) -> 18791003.78
B58: =+TablaCVP_pre[[#This Row],[Nombre unidad TCV]] -> Los Pinos | C58: 261484628 | D58: 154933623.2 | E58: 41505786.41 | F58: 667920546.1 | G58: 159825373.6 | H58: 5332319.134 | I58: 0 | J58: 0 | K58: 0 | L58: 0 | M58: 4717674.351 | N58: 0 | O58: =+SUM(TablaCMgP_pre[[#This Row],[Enero]:[Diciembre]]) -> 1295719951
B59: =+TablaCVP_pre[[#This Row],[Nombre unidad TCV]] -> Los Vientos | C59: 88665998.58 | D59: 126275155.2 | E59: 3257817464 | F59: 2094558120 | G59: 3463982075 | H59: 135924191.9 | I59: 887282620.9 | J59: 802200512 | K59: 71844223.48 | L59: 0 | M59: 47308189.11 | N59: 0 | O59: =+SUM(TablaCMgP_pre[[#This Row],[Enero]:[Diciembre]]) -> 1.097585855e+10
B60: =+TablaCVP_pre[[#This Row],[Nombre unidad TCV]] -> Masisa (Cabrero) | C60: 121883060.8 | D60: 115387383.2 | E60: 257341663.8 | F60: 294758411.8 | G60: 288816778 | H60: 205183687.1 | I60: 151071664.3 | J60: 126858364.5 | K60: 117984542.3 | L60: 58162595.06 | M60: 105061233.4 | N60: 112746876 | O60: =+SUM(TablaCMgP_pre[[#This Row],[Enero]:[Diciembre]]) -> 1955256260
B61: =+TablaCVP_pre[[#This Row],[Nombre unidad TCV]] -> Nehuenco | C61: 8096334437 | D61: 7251914165 | E61: 8716952261 | F61: 8567226912 | G61: 9926244148 | H61: 3225469801 | I61: 3316395317 | J61: 837519247.1 | K61: 1635454015 | L61: 6018700004 | M61: 5146554457 | N61: 288110648.8 | O61: =+SUM(TablaCMgP_pre[[#This Row],[Enero]:[Diciembre]]) -> 6.302687541e+10
B62: =+TablaCVP_pre[[#This Row],[Nombre unidad TCV]] -> Nehuenco II | C62: 1.095464854e+10 | D62: 9429866238 | E62: 1.024352841e+10 | F62: 1.074841263e+10 | G62: 1.086835161e+10 | H62: 6958006399 | I62: 8979993404 | J62: 9981525243 | K62: 7149211957 | L62: 6500863395 | M62: 1543026438 | N62: 7171225051 | O62: =+SUM(TablaCMgP_pre[[#This Row],[Enero]:[Diciembre]]) -> 1.005286593e+11
B63: =+TablaCVP_pre[[#This Row],[Nombre unidad TCV]] -> Nehuenco TG 9B | C63: 0 | D63: 0 | E63: 10117.74449 | F63: 59005559.87 | G63: 0 | H63: 0 | I63: 0 | J63: 23495985.39 | K63: 22688873.61 | L63: 0 | M63: 0 | N63: 24551741.93 | O63: =+SUM(TablaCMgP_pre[[#This Row],[Enero]:[Diciembre]]) -> 129752278.6
B64: =+TablaCVP_pre[[#This Row],[Nombre unidad TCV]] -> NTO1 | C64: 2462881542 | D64: 1692546328 | E64: 1986692457 | F64: 2619680718 | G64: 2787066616 | H64: 2111458884 | I64: 2784601877 | J64: 2966661830 | K64: 1877830319 | L64: 1190103526 | M64: 1219000109 | N64: 630748741.4 | O64: =+SUM(TablaCMgP_pre[[#This Row],[Enero]:[Diciembre]]) -> 2.432927295e+10
B65: =+TablaCVP_pre[[#This Row],[Nombre unidad TCV]] -> NTO2 | C65: 2543787692 | D65: 616454113.3 | E65: 1548876010 | F65: 2535316943 | G65: 2797148485 | H65: 2718899386 | I65: 2672991630 | J65: 2689514662 | K65: 2305040885 | L65: 2190945197 | M65: 1898498105 | N65: 1089145674 | O65: =+SUM(TablaCMgP_pre[[#This Row],[Enero]:[Diciembre]]) -> 2.560661878e+10
B66: =+TablaCVP_pre[[#This Row],[Nombre unidad TCV]] -> Nueva Aldea I | C66: 181802749.7 | D66: 210668125.1 | E66: 120129473.4 | F66: 187241938.6 | G66: 159251604.5 | H66: 60148245.23 | I66: 68769148.49 | J66: 61204617.82 | K66: 67908984.36 | L66: 49613319.1 | M66: 54670370.59 | N66: 76416311.67 | O66: =+SUM(TablaCMgP_pre[[#This Row],[Enero]:[Diciembre]]) -> 1297824889
B67: =+TablaCVP_pre[[#This Row],[Nombre unidad TCV]] -> Nueva Aldea III | C67: 145295719 | D67: 235765727.8 | E67: 944392569 | F67: 1019978974 | G67: 1025367225 | H67: 745004470.4 | I67: 684197017.9 | J67: 742893877.8 | K67: 574196467 | L67: 470963342.2 | M67: 578230279.4 | N67: 543796466.3 | O67: =+SUM(TablaCMgP_pre[[#This Row],[Enero]:[Diciembre]]) -> 7710082136
B68: =+TablaCVP_pre[[#This Row],[Nombre unidad TCV]] -> Nueva Renca | C68: 9476153065 | D68: 6170916638 | E68: 4707568614 | F68: 1.161709892e+10 | G68: 5943503209 | H68: 5623233136 | I68: 5445737550 | J68: 1333613.193 | K68: 3655579914 | L68: 5084010027 | M68: 3899037149 | N68: 3897730889 | O68: =+SUM(TablaCMgP_pre[[#This Row],[Enero]:[Diciembre]]) -> 6.552190273e+10
B69: =+TablaCVP_pre[[#This Row],[Nombre unidad TCV]] -> Nueva Ventanas | C69: 0 | D69: 3986479399 | E69: 6790561825 | F69: 5794847165 | G69: 7621889560 | H69: 5535335585 | I69: 4330042216 | J69: 6361874789 | K69: 4338392402 | L69: 2731581935 | M69: 3309464613 | N69: 3921122776 | O69: =+SUM(TablaCMgP_pre[[#This Row],[Enero]:[Diciembre]]) -> 5.472159226e+10
B70: =+TablaCVP_pre[[#This Row],[Nombre unidad TCV]] -> Petropower | C70: 328759304.9 | D70: 202698367.8 | E70: 382938601.5 | F70: 384959508 | G70: 353766853.6 | H70: 273520444.4 | I70: 277121880.6 | J70: 249741471.1 | K70: 124380340.5 | L70: 147207123.4 | M70: 73672356.21 | N70: 213305694.2 | O70: =+SUM(TablaCMgP_pre[[#This Row],[Enero]:[Diciembre]]) -> 3012071946
B71: =+TablaCVP_pre[[#This Row],[Nombre unidad TCV]] -> Quintero A | C71: 1060504939 | D71: 988020335.7 | E71: 1711537861 | F71: 1808485526 | G71: 1472135014 | H71: 0 | I71: 496632933.2 | J71: 77618652.59 | K71: 110709882.7 | L71: 129528798.4 | M71: 12630924.64 | N71: 0 | O71: =+SUM(TablaCMgP_pre[[#This Row],[Enero]:[Diciembre]]) -> 7867804867
B72: =+TablaCVP_pre[[#This Row],[Nombre unidad TCV]] -> Quintero B | C72: 979021105.7 | D72: 875798344.5 | E72: 1642867152 | F72: 1914227299 | G72: 1393671153 | H72: 0 | I72: 361009955.5 | J72: 77250659.62 | K72: 115706745.2 | L72: 141998895.6 | M72: 14255558.61 | N72: 0 | O72: =+SUM(TablaCMgP_pre[[#This Row],[Enero]:[Diciembre]]) -> 7515806869
B73: =+TablaCVP_pre[[#This Row],[Nombre unidad TCV]] -> Renca U1 | C73: 0 | D73: 0 | E73: 0 | F73: 0 | G73: 0 | H73: 0 | I73: 0 | J73: 0 | K73: 0 | L73: 0 | M73: 0 | N73: 0 | O73: =+SUM(TablaCMgP_pre[[#This Row],[Enero]:[Diciembre]]) -> 0
B74: =+TablaCVP_pre[[#This Row],[Nombre unidad TCV]] -> Renca U2 | C74: 0 | D74: 0 | E74: 0 | F74: 0 | G74: 0 | H74: 0 | I74: 0 | J74: 0 | K74: 0 | L74: 0 | M74: 0 | N74: 0 | O74: =+SUM(TablaCMgP_pre[[#This Row],[Enero]:[Diciembre]]) -> 0
B75: =+TablaCVP_pre[[#This Row],[Nombre unidad TCV]] -> San Isidro | C75: 449192729.5 | D75: 7644480425 | E75: 8671235478 | F75: 1.078738127e+10 | G75: 1.00983611e+10 | H75: 3533705612 | I75: 3744187116 | J75: 4405659455 | K75: 2267064676 | L75: 2963664026 | M75: 262006559.5 | N75: 161940065.2 | O75: =+SUM(TablaCMgP_pre[[#This Row],[Enero]:[Diciembre]]) -> 5.498887852e+10
B76: =+TablaCVP_pre[[#This Row],[Nombre unidad TCV]] -> San Isidro II | C76: 1.052984464e+10 | D76: 8846151352 | E76: 1.045441217e+10 | F76: 9007363742 | G76: 1.098974424e+10 | H76: 7939806807 | I76: 8302159722 | J76: 8852522981 | K76: 3339302466 | L76: 794700897.6 | M76: 4249230038 | N76: 5318414212 | O76: =+SUM(TablaCMgP_pre[[#This Row],[Enero]:[Diciembre]]) -> 8.862365326e+10
B77: =+TablaCVP_pre[[#This Row],[Nombre unidad TCV]] -> San Lorenzo de D. de Almagro U1 | C77: 0 | D77: 0 | E77: 0 | F77: 0 | G77: 0 | H77: 0 | I77: 0 | J77: 0 | K77: 0 | L77: 0 | M77: 0 | N77: 0 | O77: =+SUM(TablaCMgP_pre[[#This Row],[Enero]:[Diciembre]]) -> 0
B78: =+TablaCVP_pre[[#This Row],[Nombre unidad TCV]] -> San Lorenzo de D. de Almagro U2 | C78: 0 | D78: 0 | E78: 0 | F78: 0 | G78: 0 | H78: 0 | I78: 0 | J78: 0 | K78: 0 | L78: 0 | M78: 0 | N78: 0 | O78: =+SUM(TablaCMgP_pre[[#This Row],[Enero]:[Diciembre]]) -> 0
B79: =+TablaCVP_pre[[#This Row],[Nombre unidad TCV]] -> Santa Lidia | C79: 0 | D79: 0 | E79: 0 | F79: 0 | G79: 238645238.9 | H79: 0 | I79: 0 | J79: 0 | K79: 0 | L79: 0 | M79: 0 | N79: 0 | O79: =+SUM(TablaCMgP_pre[[#This Row],[Enero]:[Diciembre]]) -> 238645238.9
B80: =+TablaCVP_pre[[#This Row],[Nombre unidad TCV]] -> Santa María | C80: 8102294788 | D80: 8559682572 | E80: 9674850460 | F80: 8181019471 | G80: 1.080498015e+10 | H80: 7766813365 | I80: 6003904153 | J80: 0 | K80: 0 | L80: 0 | M80: 2518069775 | N80: 6618912519 | O80: =+SUM(TablaCMgP_pre[[#This Row],[Enero]:[Diciembre]]) -> 6.823052725e+10
B81: =+TablaCVP_pre[[#This Row],[Nombre unidad TCV]] -> Taltal 1 | C81: 0 | D81: 0 | E81: 45090650.29 | F81: 89396409.09 | G81: 0 | H81: 0 | I81: 0 | J81: 0 | K81: 2768518.439 | L81: 28499917.69 | M81: 8150765.979 | N81: 0 | O81: =+SUM(TablaCMgP_pre[[#This Row],[Enero]:[Diciembre]]) -> 173906261.5
B82: =+TablaCVP_pre[[#This Row],[Nombre unidad TCV]] -> Taltal 2 | C82: 0 | D82: 0 | E82: 374434178 | F82: 195911835.7 | G82: 0 | H82: 0 | I82: 0 | J82: 0 | K82: 0 | L82: 6626035.799 | M82: 1206204.936 | N82: 0 | O82: =+SUM(TablaCMgP_pre[[#This Row],[Enero]:[Diciembre]]) -> 578178254.5
B83: =+TablaCVP_pre[[#This Row],[Nombre unidad TCV]] -> TG_Coronel | C83: 0 | D83: 0 | E83: 98294708.43 | F83: 0 | G83: 0 | H83: 20609585.03 | I83: 0 | J83: 0 | K83: 0 | L83: 5654405.327 | M83: 0 | N83: 0 | O83: =+SUM(TablaCMgP_pre[[#This Row],[Enero]:[Diciembre]]) -> 124558698.8
B84: =+TablaCVP_pre[[#This Row],[Nombre unidad TCV]] -> TG1 | C84: 0 | D84: 0 | E84: 0 | F84: 0 | G84: 0 | H84: 0 | I84: 0 | J84: 0 | K84: 0 | L84: 0 | M84: 0 | N84: 0 | O84: =+SUM(TablaCMgP_pre[[#This Row],[Enero]:[Diciembre]]) -> 0
B85: =+TablaCVP_pre[[#This Row],[Nombre unidad TCV]] -> TG2 | C85: 0 | D85: 0 | E85: 0 | F85: 0 | G85: 0 | H85: 0 | I85: 0 | J85: 0 | K85: 0 | L85: 0 | M85: 0 | N85: 0 | O85: =+SUM(TablaCMgP_pre[[#This Row],[Enero]:[Diciembre]]) -> 0
B86: =+TablaCVP_pre[[#This Row],[Nombre unidad TCV]] -> TG3 | C86: 35769089.68 | D86: 40151488.02 | E86: 18472391.13 | F86: 31849846.38 | G86: 26458675.6 | H86: 0 | I86: 146838528.8 | J86: 54462497.23 | K86: 51515458.59 | L86: 35153562.83 | M86: 76612315.86 | N86: 226180707.5 | O86: =+SUM(TablaCMgP_pre[[#This Row],[Enero]:[Diciembre]]) -> 743464561.6
B87: =+TablaCVP_pre[[#This Row],[Nombre unidad TCV]] -> TGTAR | C87: 0 | D87: 0 | E87: 0 | F87: 13089449.18 | G87: 0 | H87: 0 | I87: 0 | J87: 0 | K87: 0 | L87: 0 | M87: 0 | N87: 32031.39758 | O87: =+SUM(TablaCMgP_pre[[#This Row],[Enero]:[Diciembre]]) -> 13121480.58
B88: =+TablaCVP_pre[[#This Row],[Nombre unidad TCV]] -> U12 | C88: 0 | D88: 202260085.5 | E88: 154240612.7 | F88: 0 | G88: 0 | H88: 0 | I88: 0 | J88: 0 | K88: 0 | L88: 0 | M88: 0 | N88: 0 | O88: =+SUM(TablaCMgP_pre[[#This Row],[Enero]:[Diciembre]]) -> 356500698.2
B89: =+TablaCVP_pre[[#This Row],[Nombre unidad TCV]] -> U13 | C89: 0 | D89: 0 | E89: 0 | F89: 0 | G89: 0 | H89: 0 | I89: 0 | J89: 0 | K89: 0 | L89: 0 | M89: 0 | N89: 0 | O89: =+SUM(TablaCMgP_pre[[#This Row],[Enero]:[Diciembre]]) -> 0
B90: =+TablaCVP_pre[[#This Row],[Nombre unidad TCV]] -> U14 | C90: 535407499.5 | D90: 83247938.69 | E90: 433511127.5 | F90: 0 | G90: 50305.9266 | H90: 53618463.35 | I90: 0 | J90: 400836717.1 | K90: 53088339.71 | L90: 145784017 | M90: 0 | N90: 0 | O90: =+SUM(TablaCMgP_pre[[#This Row],[Enero]:[Diciembre]]) -> 1705544409
B91: =+TablaCVP_pre[[#This Row],[Nombre unidad TCV]] -> U15 | C91: 1214080754 | D91: 90355441.24 | E91: 421006542.4 | F91: 1421806971 | G91: 833404112.9 | H91: 0 | I91: 0 | J91: 357009803.4 | K91: 0 | L91: 68170857.39 | M91: 0 | N91: 63445216 | O91: =+SUM(TablaCMgP_pre[[#This Row],[Enero]:[Diciembre]]) -> 4469279698
B92: =+TablaCVP_pre[[#This Row],[Nombre unidad TCV]] -> U16 | C92: 1370942912 | D92: 2554571468 | E92: 3813752229 | F92: 5075344834 | G92: 3352814010 | H92: 2999771605 | I92: 5519963049 | J92: 5924071090 | K92: 3897305072 | L92: 1482989803 | M92: 0 | N92: 0 | O92: =+SUM(TablaCMgP_pre[[#This Row],[Enero]:[Diciembre]]) -> 3.599152607e+10
B93: =+TablaCVP_pre[[#This Row],[Nombre unidad TCV]] -> Valdivia | C93: 667334429.6 | D93: 1505301130 | E93: 849287945.1 | F93: 1345346306 | G93: 577626534.1 | H93: 493637861.8 | I93: 443062086.2 | J93: 389714738.3 | K93: 207344911.4 | L93: 0 | M93: 121015938.9 | N93: 251005758.9 | O93: =+SUM(TablaCMgP_pre[[#This Row],[Enero]:[Diciembre]]) -> 6850677640
B94: =+TablaCVP_pre[[#This Row],[Nombre unidad TCV]] -> Ventanas 1 | C94: 1475780526 | D94: 1442317279 | E94: 2513807918 | F94: 2706843654 | G94: 0 | H94: 0 | I94: 0 | J94: 0 | K94: 2251574.853 | L94: 55420874.9 | M94: 0 | N94: 0 | O94: =+SUM(TablaCMgP_pre[[#This Row],[Enero]:[Diciembre]]) -> 8196421826
B95: =+TablaCVP_pre[[#This Row],[Nombre unidad TCV]] -> Ventanas 2 | C95: 4023348201 | D95: 3538946499 | E95: 513181965.2 | F95: 0 | G95: 2380030064 | H95: 3683299223 | I95: 4071929766 | J95: 3710900150 | K95: 3212370600 | L95: 2895476923 | M95: 2521941983 | N95: 2650407842 | O95: =+SUM(TablaCMgP_pre[[#This Row],[Enero]:[Diciembre]]) -> 3.320183322e+10
B96: =+TablaCVP_pre[[#This Row],[Nombre unidad TCV]] -> Viñales | C96: 812788827.3 | D96: 782058266 | E96: 917084318.5 | F96: 1051098109 | G96: 1046048973 | H96: 785825962 | I96: 714385506 | J96: 644688791.4 | K96: 399633102.6 | L96: 458354801.5 | M96: 274609701.3 | N96: 477241497.7 | O96: =+SUM(TablaCMgP_pre[[#This Row],[Enero]:[Diciembre]]) -> 8363817857
B97: =+TablaCVP_pre[[#This Row],[Nombre unidad TCV]] -> Yungay 1 | C97: 0 | D97: 0 | E97: 0 | F97: 0 | G97: 0 | H97: 0 | I97: 0 | J97: 0 | K97: 0 | L97: 85426.67481 | M97: 0 | N97: 120027.1312 | O97: =+SUM(TablaCMgP_pre[[#This Row],[Enero]:[Diciembre]]) -> 205453.806
B98: =+TablaCVP_pre[[#This Row],[Nombre unidad TCV]] -> Yungay 2 | C98: 0 | D98: 0 | E98: 0 | F98: 0 | G98: 0 | H98: 0 | I98: 0 | J98: 0 | K98: 0 | L98: 7713744.148 | M98: 0 | N98: 9217343.352 | O98: =+SUM(TablaCMgP_pre[[#This Row],[Enero]:[Diciembre]]) -> 16931087.5
B99: =+TablaCVP_pre[[#This Row],[Nombre unidad TCV]] -> Yungay 3 | C99: 0 | D99: 0 | E99: 0 | F99: 0 | G99: 0 | H99: 0 | I99: 0 | J99: 0 | K99: 0 | L99: 4774816.386 | M99: 0 | N99: 23119557.05 | O99: =+SUM(TablaCMgP_pre[[#This Row],[Enero]:[Diciembre]]) -> 27894373.44
B100: =+TablaCVP_pre[[#This Row],[Nombre unidad TCV]] -> Yungay 4 ca | C100: 0 | D100: 0 | E100: 0 | F100: 0 | G100: 0 | H100: 0 | I100: 0 | J100: 0 | K100: 0 | L100: 2865395.323 | M100: 0 | N100: 6520949.375 | O100: =+SUM(TablaCMgP_pre[[#This Row],[Enero]:[Diciembre]]) -> 9386344.698
B101: =+TablaCVP_pre[[#This Row],[Nombre unidad TCV]] -> Los Guindos 2 | C101: 0 | D101: 0 | E101: 0 | F101: 0 | G101: 0 | H101: 0 | I101: 0 | J101: 0 | K101: 0 | L101: 14848840.35 | M101: 0 | N101: 0 | O101: =+SUM(TablaCMgP_pre[[#This Row],[Enero]:[Diciembre]]) -> 14848840.35

Sheet NTH1
B2: NTH1 (numero de horas con Gx)
B4: Nombre unidad TCV | C4: Enero | D4: Febrero | E4: Marzo | F4: Abril | G4: Mayo | H4: Junio | I4: Julio | J4: Agosto | K4: Septiembre | L4: Octubre | M4: Noviembre | N4: Diciembre | O4: Total
B5: =+TablaCVP_pre[[#This Row],[Nombre unidad TCV]] -> ANG1 | C5: 744 | D5: 672 | E5: 731 | F5: 721 | G5: 744 | H5: 720 | I5: 737 | J5: 585 | K5: 719 | L5: 744 | M5: 720 | N5: 744 | O5: =+SUM(TablaNTH1[[#This Row],[Enero]:[Diciembre]]) -> 8581
B6: =+TablaCVP_pre[[#This Row],[Nombre unidad TCV]] -> ANG2 | C6: 719 | D6: 667 | E6: 744 | F6: 609 | G6: 744 | H6: 720 | I6: 702 | J6: 744 | K6: 719 | L6: 706 | M6: 720 | N6: 744 | O6: =+SUM(TablaNTH1[[#This Row],[Enero]:[Diciembre]]) -> 8538
B7: =+TablaCVP_pre[[#This Row],[Nombre unidad TCV]] -> Antilhue TG U1 | C7: 89 | D7: 268 | E7: 173 | F7: 12 | G7: 7 | H7: 4 | I7: 1 | J7: 0 | K7: 0 | L7: 11 | M7: 0 | N7: 10 | O7: =+SUM(TablaNTH1[[#This Row],[Enero]:[Diciembre]]) -> 575
B8: =+TablaCVP_pre[[#This Row],[Nombre unidad TCV]] -> Antilhue TG U2 | C8: 13 | D8: 262 | E8: 52 | F8: 67 | G8: 0 | H8: 0 | I8: 0 | J8: 0 | K8: 0 | L8: 30 | M8: 0 | N8: 5 | O8: =+SUM(TablaNTH1[[#This Row],[Enero]:[Diciembre]]) -> 429
B9: =+TablaCVP_pre[[#This Row],[Nombre unidad TCV]] -> Arauco | C9: 725 | D9: 646 | E9: 472 | F9: 674 | G9: 698 | H9: 684 | I9: 679 | J9: 610 | K9: 699 | L9: 576 | M9: 716 | N9: 710 | O9: =+SUM(TablaNTH1[[#This Row],[Enero]:[Diciembre]]) -> 7889
B10: =+TablaCVP_pre[[#This Row],[Nombre unidad TCV]] -> Bocamina | C10: 223 | D10: 662 | E10: 744 | F10: 721 | G10: 646 | H10: 490 | I10: 713 | J10: 744 | K10: 696 | L10: 580 | M10: 720 | N10: 116 | O10: =+SUM(TablaNTH1[[#This Row],[Enero]:[Diciembre]]) -> 7055
B11: =+TablaCVP_pre[[#This Row],[Nombre unidad TCV]] -> Bocamina II | C11: 430 | D11: 672 | E11: 744 | F11: 721 | G11: 661 | H11: 720 | I11: 740 | J11: 744 | K11: 709 | L11: 724 | M11: 146 | N11: 481 | O11: =+SUM(TablaNTH1[[#This Row],[Enero]:[Diciembre]]) -> 7492
B12: =+TablaCVP_pre[[#This Row],[Nombre unidad TCV]] -> Campiche | C12: 584 | D12: 672 | E12: 744 | F12: 721 | G12: 744 | H12: 697 | I12: 593 | J12: 671 | K12: 407 | L12: 519 | M12: 474 | N12: 739 | O12: =+SUM(TablaNTH1[[#This Row],[Enero]:[Diciembre]]) -> 7565
B13: =+TablaCVP_pre[[#This Row],[Nombre unidad TCV]] -> Candelaria 1 | C13: 0 | D13: 0 | E13: 184 | F13: 88 | G13: 105 | H13: 20 | I13: 43 | J13: 5 | K13: 6 | L13: 1 | M13: 6 | N13: 0 | O13: =+SUM(TablaNTH1[[#This Row],[Enero]:[Diciembre]]) -> 458
B14: =+TablaCVP_pre[[#This Row],[Nombre unidad TCV]] -> Candelaria 2 | C14: 0 | D14: 0 | E14: 109 | F14: 97 | G14: 84 | H14: 20 | I14: 26 | J14: 5 | K14: 5 | L14: 0 | M14: 9 | N14: 0 | O14: =+SUM(TablaNTH1[[#This Row],[Enero]:[Diciembre]]) -> 355
B15: =+TablaCVP_pre[[#This Row],[Nombre unidad TCV]] -> Cardones | C15: 0 | D15: 0 | E15: 0 | F15: 0 | G15: 0 | H15: 1 | I15: 0 | J15: 0 | K15: 0 | L15: 0 | M15: 0 | N15: 0 | O15: =+SUM(TablaNTH1[[#This Row],[Enero]:[Diciembre]]) -> 1
B16: =+TablaCVP_pre[[#This Row],[Nombre unidad TCV]] -> CC KELAR | C16: 204 | D16: 522 | E16: 551 | F16: 549 | G16: 368 | H16: 365 | I16: 444 | J16: 359 | K16: 311 | L16: 159 | M16: 486 | N16: 391 | O16: =+SUM(TablaNTH1[[#This Row],[Enero]:[Diciembre]]) -> 4709
B17: =+TablaCVP_pre[[#This Row],[Nombre unidad TCV]] -> CC1 | C17: 266 | D17: 148 | E17: 55 | F17: 121 | G17: 102 | H17: 349 | I17: 327 | J17: 65 | K17: 86 | L17: 84 | M17: 211 | N17: 126 | O17: =+SUM(TablaNTH1[[#This Row],[Enero]:[Diciembre]]) -> 1940
B18: =+TablaCVP_pre[[#This Row],[Nombre unidad TCV]] -> CC2 | C18: 163 | D18: 47 | E18: 70 | F18: 58 | G18: 30 | H18: 75 | I18: 252 | J18: 0 | K18: 50 | L18: 24 | M18: 50 | N18: 3 | O18: =+SUM(TablaNTH1[[#This Row],[Enero]:[Diciembre]]) -> 822
B19: =+TablaCVP_pre[[#This Row],[Nombre unidad TCV]] -> CCH1 | C19: 744 | D19: 672 | E19: 744 | F19: 565 | G19: 744 | H19: 720 | I19: 744 | J19: 310 | K19: 719 | L19: 744 | M19: 720 | N19: 744 | O19: =+SUM(TablaNTH1[[#This Row],[Enero]:[Diciembre]]) -> 8170
B20: =+TablaCVP_pre[[#This Row],[Nombre unidad TCV]] -> CCH2 | C20: 744 | D20: 672 | E20: 744 | F20: 721 | G20: 707 | H20: 650 | I20: 418 | J20: 592 | K20: 719 | L20: 744 | M20: 720 | N20: 744 | O20: =+SUM(TablaNTH1[[#This Row],[Enero]:[Diciembre]]) -> 8175
B21: =+TablaCVP_pre[[#This Row],[Nombre unidad TCV]] -> CD Iquique | C21: 0 | D21: 0 | E21: 0 | F21: 0 | G21: 0 | H21: 0 | I21: 0 | J21: 0 | K21: 0 | L21: 0 | M21: 0 | N21: 0 | O21: =+SUM(TablaNTH1[[#This Row],[Enero]:[Diciembre]]) -> 0
B22: =+TablaCVP_pre[[#This Row],[Nombre unidad TCV]] -> Celco | C22: 717 | D22: 672 | E22: 630 | F22: 522 | G22: 742 | H22: 713 | I22: 742 | J22: 742 | K22: 692 | L22: 744 | M22: 613 | N22: 728 | O22: =+SUM(TablaNTH1[[#This Row],[Enero]:[Diciembre]]) -> 8257
B23: =+TablaCVP_pre[[#This Row],[Nombre unidad TCV]] -> Cholguán | C23: 555 | D23: 431 | E23: 660 | F23: 721 | G23: 737 | H23: 651 | I23: 0 | J23: 0 | K23: 0 | L23: 0 | M23: 332 | N23: 642 | O23: =+SUM(TablaNTH1[[#This Row],[Enero]:[Diciembre]]) -> 4729
B24: =+TablaCVP_pre[[#This Row],[Nombre unidad TCV]] -> CMPC Cordillera | C24: 0 | D24: 0 | E24: 0 | F24: 0 | G24: 0 | H24: 0 | I24: 0 | J24: 0 | K24: 0 | L24: 5 | M24: 19 | N24: 69 | O24: =+SUM(TablaNTH1[[#This Row],[Enero]:[Diciembre]]) -> 93
B25: =+TablaCVP_pre[[#This Row],[Nombre unidad TCV]] -> CMPC Laja | C25: 716 | D25: 644 | E25: 664 | F25: 696 | G25: 732 | H25: 718 | I25: 691 | J25: 702 | K25: 711 | L25: 669 | M25: 358 | N25: 671 | O25: =+SUM(TablaNTH1[[#This Row],[Enero]:[Diciembre]]) -> 7972
B26: =+TablaCVP_pre[[#This Row],[Nombre unidad TCV]] -> CMPC Pacífico | C26: 719 | D26: 647 | E26: 377 | F26: 717 | G26: 744 | H26: 663 | I26: 725 | J26: 729 | K26: 698 | L26: 739 | M26: 691 | N26: 744 | O26: =+SUM(TablaNTH1[[#This Row],[Enero]:[Diciembre]]) -> 8193
B27: =+TablaCVP_pre[[#This Row],[Nombre unidad TCV]] -> CMPC Santa Fe | C27: 0 | D27: 0 | E27: 0 | F27: 0 | G27: 0 | H27: 0 | I27: 0 | J27: 0 | K27: 0 | L27: 0 | M27: 0 | N27: 0 | O27: =+SUM(TablaNTH1[[#This Row],[Enero]:[Diciembre]]) -> 0
B28: =+TablaCVP_pre[[#This Row],[Nombre unidad TCV]] -> CMPC TISSUE | C28: 551 | D28: 601 | E28: 470 | F28: 650 | G28: 697 | H28: 681 | I28: 728 | J28: 707 | K28: 661 | L28: 595 | M28: 403 | N28: 480 | O28: =+SUM(TablaNTH1[[#This Row],[Enero]:[Diciembre]]) -> 7224
B29: =+TablaCVP_pre[[#This Row],[Nombre unidad TCV]] -> Colmito | C29: 10 | D29: 17 | E29: 322 | F29: 315 | G29: 360 | H29: 79 | I29: 174 | J29: 206 | K29: 34 | L29: 10 | M29: 5 | N29: 0 | O29: =+SUM(TablaNTH1[[#This Row],[Enero]:[Diciembre]]) -> 1532
B30: =+TablaCVP_pre[[#This Row],[Nombre unidad TCV]] -> CTA | C30: 744 | D30: 466 | E30: 209 | F30: 278 | G30: 706 | H30: 342 | I30: 0 | J30: 246 | K30: 670 | L30: 744 | M30: 664 | N30: 744 | O30: =+SUM(TablaNTH1[[#This Row],[Enero]:[Diciembre]]) -> 5813
B31: =+TablaCVP_pre[[#This Row],[Nombre unidad TCV]] -> CTH | C31: 744 | D31: 452 | E31: 725 | F31: 721 | G31: 744 | H31: 425 | I31: 269 | J31: 731 | K31: 436 | L31: 411 | M31: 646 | N31: 457 | O31: =+SUM(TablaNTH1[[#This Row],[Enero]:[Diciembre]]) -> 6761
B32: =+TablaCVP_pre[[#This Row],[Nombre unidad TCV]] -> CTM1 | C32: 51 | D32: 231 | E32: 278 | F32: 321 | G32: 457 | H32: 0 | I32: 79 | J32: 545 | K32: 283 | L32: 463 | M32: 243 | N32: 0 | O32: =+SUM(TablaNTH1[[#This Row],[Enero]:[Diciembre]]) -> 2951
B33: =+TablaCVP_pre[[#This Row],[Nombre unidad TCV]] -> CTM2 | C33: 257 | D33: 440 | E33: 339 | F33: 16 | G33: 25 | H33: 102 | I33: 183 | J33: 457 | K33: 160 | L33: 2 | M33: 297 | N33: 57 | O33: =+SUM(TablaNTH1[[#This Row],[Enero]:[Diciembre]]) -> 2335
B34: =+TablaCVP_pre[[#This Row],[Nombre unidad TCV]] -> CTM3 | C34: 0 | D34: 419 | E34: 355 | F34: 489 | G34: 405 | H34: 667 | I34: 513 | J34: 461 | K34: 309 | L34: 311 | M34: 604 | N34: 734 | O34: =+SUM(TablaNTH1[[#This Row],[Enero]:[Diciembre]]) -> 5267
B35: =+TablaCVP_pre[[#This Row],[Nombre unidad TCV]] -> CTTAR | C35: 569 | D35: 577 | E35: 562 | F35: 443 | G35: 531 | H35: 548 | I35: 676 | J35: 524 | K35: 165 | L35: 344 | M35: 475 | N35: 616 | O35: =+SUM(TablaNTH1[[#This Row],[Enero]:[Diciembre]]) -> 6030
B36: =+TablaCVP_pre[[#This Row],[Nombre unidad TCV]] -> Diego de Almagro | C36: 0 | D36: 0 | E36: 0 | F36: 17 | G36: 0 | H36: 0 | I36: 0 | J36: 0 | K36: 0 | L36: 0 | M36: 0 | N36: 1 | O36: =+SUM(TablaNTH1[[#This Row],[Enero]:[Diciembre]]) -> 18
B37: =+TablaCVP_pre[[#This Row],[Nombre unidad TCV]] -> El Salvador | C37: 0 | D37: 0 | E37: 0 | F37: 17 | G37: 0 | H37: 0 | I37: 0 | J37: 0 | K37: 0 | L37: 0 | M37: 0 | N37: 0 | O37: =+SUM(TablaNTH1[[#This Row],[Enero]:[Diciembre]]) -> 17
B38: =+TablaCVP_pre[[#This Row],[Nombre unidad TCV]] -> Emelda U1 | C38: 0 | D38: 1 | E38: 0 | F38: 19 | G38: 0 | H38: 2 | I38: 1 | J38: 0 | K38: 1 | L38: 0 | M38: 0 | N38: 1 | O38: =+SUM(TablaNTH1[[#This Row],[Enero]:[Diciembre]]) -> 25
B39: =+TablaCVP_pre[[#This Row],[Nombre unidad TCV]] -> Emelda U2 | C39: 4 | D39: 0 | E39: 21 | F39: 8 | G39: 0 | H39: 1 | I39: 1 | J39: 0 | K39: 1 | L39: 0 | M39: 1 | N39: 1 | O39: =+SUM(TablaNTH1[[#This Row],[Enero]:[Diciembre]]) -> 38
B40: =+TablaCVP_pre[[#This Row],[Nombre unidad TCV]] -> Energía Pacífico | C40: 458 | D40: 637 | E40: 744 | F40: 616 | G40: 659 | H40: 694 | I40: 744 | J40: 614 | K40: 704 | L40: 717 | M40: 545 | N40: 677 | O40: =+SUM(TablaNTH1[[#This Row],[Enero]:[Diciembre]]) -> 7809
B41: =+TablaCVP_pre[[#This Row],[Nombre unidad TCV]] -> Escuadrón | C41: 732 | D41: 642 | E41: 743 | F41: 702 | G41: 617 | H41: 454 | I41: 743 | J41: 681 | K41: 62 | L41: 1 | M41: 2 | N41: 0 | O41: =+SUM(TablaNTH1[[#This Row],[Enero]:[Diciembre]]) -> 5379
B42: =+TablaCVP_pre[[#This Row],[Nombre unidad TCV]] -> Esperanza TG | C42: 0 | D42: 0 | E42: 0 | F42: 0 | G42: 7 | H42: 14 | I42: 0 | J42: 0 | K42: 0 | L42: 0 | M42: 0 | N42: 0 | O42: =+SUM(TablaNTH1[[#This Row],[Enero]:[Diciembre]]) -> 21
B43: =+TablaCVP_pre[[#This Row],[Nombre unidad TCV]] -> Guacolda 1 | C43: 739 | D43: 646 | E43: 677 | F43: 721 | G43: 744 | H43: 426 | I43: 726 | J43: 712 | K43: 719 | L43: 744 | M43: 720 | N43: 744 | O43: =+SUM(TablaNTH1[[#This Row],[Enero]:[Diciembre]]) -> 8318
B44: =+TablaCVP_pre[[#This Row],[Nombre unidad TCV]] -> Guacolda 2 | C44: 581 | D44: 594 | E44: 744 | F44: 720 | G44: 444 | H44: 666 | I44: 707 | J44: 744 | K44: 719 | L44: 743 | M44: 482 | N44: 742 | O44: =+SUM(TablaNTH1[[#This Row],[Enero]:[Diciembre]]) -> 7886
B45: =+TablaCVP_pre[[#This Row],[Nombre unidad TCV]] -> Guacolda 3 | C45: 723 | D45: 475 | E45: 744 | F45: 616 | G45: 744 | H45: 720 | I45: 710 | J45: 744 | K45: 719 | L45: 304 | M45: 695 | N45: 740 | O45: =+SUM(TablaNTH1[[#This Row],[Enero]:[Diciembre]]) -> 7934
B46: =+TablaCVP_pre[[#This Row],[Nombre unidad TCV]] -> Guacolda 4 | C46: 744 | D46: 672 | E46: 725 | F46: 555 | G46: 733 | H46: 720 | I46: 744 | J46: 560 | K46: 717 | L46: 744 | M46: 567 | N46: 545 | O46: =+SUM(TablaNTH1[[#This Row],[Enero]:[Diciembre]]) -> 8026
B47: =+TablaCVP_pre[[#This Row],[Nombre unidad TCV]] -> Guacolda 5 | C47: 733 | D47: 672 | E47: 744 | F47: 514 | G47: 744 | H47: 720 | I47: 727 | J47: 744 | K47: 575 | L47: 524 | M47: 720 | N47: 612 | O47: =+SUM(TablaNTH1[[#This Row],[Enero]:[Diciembre]]) -> 8029
B48: =+TablaCVP_pre[[#This Row],[Nombre unidad TCV]] -> Horcones | C48: 0 | D48: 0 | E48: 1 | F48: 4 | G48: 0 | H48: 1 | I48: 0 | J48: 0 | K48: 0 | L48: 0 | M48: 0 | N48: 9 | O48: =+SUM(TablaNTH1[[#This Row],[Enero]:[Diciembre]]) -> 15
B49: =+TablaCVP_pre[[#This Row],[Nombre unidad TCV]] -> Huasco TG | C49: 0 | D49: 0 | E49: 0 | F49: 0 | G49: 0 | H49: 0 | I49: 0 | J49: 1 | K49: 2 | L49: 6 | M49: 0 | N49: 3 | O49: =+SUM(TablaNTH1[[#This Row],[Enero]:[Diciembre]]) -> 12
B50: =+TablaCVP_pre[[#This Row],[Nombre unidad TCV]] -> IEM | C50: 0 | D50: 0 | E50: 0 | F50: 0 | G50: 385 | H50: 698 | I50: 726 | J50: 198 | K50: 413 | L50: 427 | M50: 674 | N50: 732 | O50: =+SUM(TablaNTH1[[#This Row],[Enero]:[Diciembre]]) -> 4253
B51: =+TablaCVP_pre[[#This Row],[Nombre unidad TCV]] -> Laguna Verde TG | C51: 0 | D51: 0 | E51: 0 | F51: 0 | G51: 0 | H51: 0 | I51: 0 | J51: 0 | K51: 0 | L51: 0 | M51: 0 | N51: 0 | O51: =+SUM(TablaNTH1[[#This Row],[Enero]:[Diciembre]]) -> 0
B52: =+TablaCVP_pre[[#This Row],[Nombre unidad TCV]] -> Laguna Verde TV | C52: 0 | D52: 0 | E52: 0 | F52: 0 | G52: 0 | H52: 0 | I52: 0 | J52: 0 | K52: 0 | L52: 0 | M52: 0 | N52: 0 | O52: =+SUM(TablaNTH1[[#This Row],[Enero]:[Diciembre]]) -> 0
B53: =+TablaCVP_pre[[#This Row],[Nombre unidad TCV]] -> Laja | C53: 744 | D53: 618 | E53: 744 | F53: 688 | G53: 744 | H53: 717 | I53: 714 | J53: 701 | K53: 676 | L53: 715 | M53: 195 | N53: 563 | O53: =+SUM(TablaNTH1[[#This Row],[Enero]:[Diciembre]]) -> 7819
B54: =+TablaCVP_pre[[#This Row],[Nombre unidad TCV]] -> Lautaro-Comasa | C54: 707 | D54: 574 | E54: 705 | F54: 632 | G54: 714 | H54: 621 | I54: 522 | J54: 585 | K54: 719 | L54: 700 | M54: 465 | N54: 707 | O54: =+SUM(TablaNTH1[[#This Row],[Enero]:[Diciembre]]) -> 7651
B55: =+TablaCVP_pre[[#This Row],[Nombre unidad TCV]] -> Lautaro-Comasa 2 | C55: 81 | D55: 643 | E55: 602 | F55: 601 | G55: 641 | H55: 574 | I55: 556 | J55: 740 | K55: 463 | L55: 403 | M55: 72 | N55: 0 | O55: =+SUM(TablaNTH1[[#This Row],[Enero]:[Diciembre]]) -> 5376
B56: =+TablaCVP_pre[[#This Row],[Nombre unidad TCV]] -> Licantén | C56: 728 | D56: 421 | E56: 75 | F56: 837 | G56: 966 | H56: 951 | I56: 1321 | J56: 1116 | K56: 723 | L56: 675 | M56: 720 | N56: 732 | O56: =+SUM(TablaNTH1[[#This Row],[Enero]:[Diciembre]]) -> 9265
B57: =+TablaCVP_pre[[#This Row],[Nombre unidad TCV]] -> Los Guindos | C57: 0 | D57: 0 | E57: 0 | F57: 0 | G57: 3 | H57: 0 | I57: 0 | J57: 0 | K57: 0 | L57: 0 | M57: 0 | N57: 0 | O57: =+SUM(TablaNTH1[[#This Row],[Enero]:[Diciembre]]) -> 3
B58: =+TablaCVP_pre[[#This Row],[Nombre unidad TCV]] -> Los Pinos | C58: 40 | D58: 27 | E58: 6 | F58: 97 | G58: 26 | H58: 2 | I58: 0 | J58: 0 | K58: 0 | L58: 0 | M58: 2 | N58: 0 | O58: =+SUM(TablaNTH1[[#This Row],[Enero]:[Diciembre]]) -> 200
B59: =+TablaCVP_pre[[#This Row],[Nombre unidad TCV]] -> Los Vientos | C59: 8 | D59: 19 | E59: 358 | F59: 265 | G59: 347 | H59: 21 | I59: 115 | J59: 97 | K59: 13 | L59: 0 | M59: 9 | N59: 0 | O59: =+SUM(TablaNTH1[[#This Row],[Enero]:[Diciembre]]) -> 1252
B60: =+TablaCVP_pre[[#This Row],[Nombre unidad TCV]] -> Masisa (Cabrero) | C60: 399 | D60: 341 | E60: 693 | F60: 720 | G60: 730 | H60: 675 | I60: 617 | J60: 504 | K60: 681 | L60: 424 | M60: 685 | N60: 744 | O60: =+SUM(TablaNTH1[[#This Row],[Enero]:[Diciembre]]) -> 7213
B61: =+TablaCVP_pre[[#This Row],[Nombre unidad TCV]] -> Nehuenco | C61: 714 | D61: 672 | E61: 744 | F61: 682 | G61: 743 | H61: 312 | I61: 342 | J61: 105 | K61: 185 | L61: 745 | M61: 646 | N61: 57 | O61: =+SUM(TablaNTH1[[#This Row],[Enero]:[Diciembre]]) -> 5947
B62: =+TablaCVP_pre[[#This Row],[Nombre unidad TCV]] -> Nehuenco II | C62: 744 | D62: 663 | E62: 697 | F62: 667 | G62: 706 | H62: 546 | I62: 743 | J62: 744 | K62: 719 | L62: 711 | M62: 199 | N62: 744 | O62: =+SUM(TablaNTH1[[#This Row],[Enero]:[Diciembre]]) -> 7883
B63: =+TablaCVP_pre[[#This Row],[Nombre unidad TCV]] -> Nehuenco TG 9B | C63: 0 | D63: 0 | E63: 1 | F63: 10 | G63: 0 | H63: 0 | I63: 0 | J63: 8 | K63: 8 | L63: 0 | M63: 0 | N63: 9 | O63: =+SUM(TablaNTH1[[#This Row],[Enero]:[Diciembre]]) -> 36
B64: =+TablaCVP_pre[[#This Row],[Nombre unidad TCV]] -> NTO1 | C64: 744 | D64: 578 | E64: 744 | F64: 721 | G64: 675 | H64: 569 | I64: 744 | J64: 742 | K64: 608 | L64: 497 | M64: 720 | N64: 695 | O64: =+SUM(TablaNTH1[[#This Row],[Enero]:[Diciembre]]) -> 8037
B65: =+TablaCVP_pre[[#This Row],[Nombre unidad TCV]] -> NTO2 | C65: 744 | D65: 240 | E65: 630 | F65: 711 | G65: 695 | H65: 714 | I65: 744 | J65: 744 | K65: 708 | L65: 744 | M65: 701 | N65: 744 | O65: =+SUM(TablaNTH1[[#This Row],[Enero]:[Diciembre]]) -> 8119
B66: =+TablaCVP_pre[[#This Row],[Nombre unidad TCV]] -> Nueva Aldea I | C66: 705 | D66: 642 | E66: 661 | F66: 713 | G66: 685 | H66: 646 | I66: 621 | J66: 650 | K66: 691 | L66: 625 | M66: 450 | N66: 728 | O66: =+SUM(TablaNTH1[[#This Row],[Enero]:[Diciembre]]) -> 7817
B67: =+TablaCVP_pre[[#This Row],[Nombre unidad TCV]] -> Nueva Aldea III | C67: 245 | D67: 261 | E67: 714 | F67: 721 | G67: 744 | H67: 711 | I67: 744 | J67: 744 | K67: 719 | L67: 744 | M67: 705 | N67: 690 | O67: =+SUM(TablaNTH1[[#This Row],[Enero]:[Diciembre]]) -> 7742
B68: =+TablaCVP_pre[[#This Row],[Nombre unidad TCV]] -> Nueva Renca | C68: 1070 | D68: 752 | E68: 568 | F68: 1151 | G68: 575 | H68: 575 | I68: 580 | J68: 1 | K68: 470 | L68: 750 | M68: 605 | N68: 531 | O68: =+SUM(TablaNTH1[[#This Row],[Enero]:[Diciembre]]) -> 7628
B69: =+TablaCVP_pre[[#This Row],[Nombre unidad TCV]] -> Nueva Ventanas | C69: 0 | D69: 487 | E69: 744 | F69: 584 | G69: 744 | H69: 720 | I69: 553 | J69: 744 | K69: 632 | L69: 722 | M69: 631 | N69: 724 | O69: =+SUM(TablaNTH1[[#This Row],[Enero]:[Diciembre]]) -> 7285
B70: =+TablaCVP_pre[[#This Row],[Nombre unidad TCV]] -> Petropower | C70: 743 | D70: 458 | E70: 744 | F70: 721 | G70: 744 | H70: 720 | I70: 744 | J70: 744 | K70: 553 | L70: 444 | M70: 258 | N70: 744 | O70: =+SUM(TablaNTH1[[#This Row],[Enero]:[Diciembre]]) -> 7617
B71: =+TablaCVP_pre[[#This Row],[Nombre unidad TCV]] -> Quintero A | C71: 147 | D71: 151 | E71: 312 | F71: 268 | G71: 226 | H71: 0 | I71: 127 | J71: 19 | K71: 27 | L71: 28 | M71: 3 | N71: 0 | O71: =+SUM(TablaNTH1[[#This Row],[Enero]:[Diciembre]]) -> 1308
B72: =+TablaCVP_pre[[#This Row],[Nombre unidad TCV]] -> Quintero B | C72: 138 | D72: 138 | E72: 300 | F72: 294 | G72: 211 | H72: 0 | I72: 94 | J72: 17 | K72: 28 | L72: 31 | M72: 3 | N72: 0 | O72: =+SUM(TablaNTH1[[#This Row],[Enero]:[Diciembre]]) -> 1254
B73: =+TablaCVP_pre[[#This Row],[Nombre unidad TCV]] -> Renca U1 | C73: 0 | D73: 0 | E73: 0 | F73: 0 | G73: 0 | H73: 0 | I73: 0 | J73: 0 | K73: 0 | L73: 0 | M73: 0 | N73: 0 | O73: =+SUM(TablaNTH1[[#This Row],[Enero]:[Diciembre]]) -> 0
B74: =+TablaCVP_pre[[#This Row],[Nombre unidad TCV]] -> Renca U2 | C74: 0 | D74: 0 | E74: 0 | F74: 0 | G74: 0 | H74: 0 | I74: 0 | J74: 0 | K74: 0 | L74: 0 | M74: 0 | N74: 0 | O74: =+SUM(TablaNTH1[[#This Row],[Enero]:[Diciembre]]) -> 0
B75: =+TablaCVP_pre[[#This Row],[Nombre unidad TCV]] -> San Isidro | C75: 48 | D75: 658 | E75: 673 | F75: 721 | G75: 702 | H75: 337 | I75: 391 | J75: 381 | K75: 274 | L75: 328 | M75: 20 | N75: 22 | O75: =+SUM(TablaNTH1[[#This Row],[Enero]:[Diciembre]]) -> 4555
B76: =+TablaCVP_pre[[#This Row],[Nombre unidad TCV]] -> San Isidro II | C76: 739 | D76: 671 | E76: 744 | F76: 630 | G76: 743 | H76: 699 | I76: 743 | J76: 744 | K76: 335 | L76: 137 | M76: 562 | N76: 675 | O76: =+SUM(TablaNTH1[[#This Row],[Enero]:[Diciembre]]) -> 7422
B77: =+TablaCVP_pre[[#This Row],[Nombre unidad TCV]] -> San Lorenzo de D. de Almagro U1 | C77: 0 | D77: 0 | E77: 0 | F77: 0 | G77: 0 | H77: 0 | I77: 0 | J77: 0 | K77: 0 | L77: 0 | M77: 0 | N77: 0 | O77: =+SUM(TablaNTH1[[#This Row],[Enero]:[Diciembre]]) -> 0
B78: =+TablaCVP_pre[[#This Row],[Nombre unidad TCV]] -> San Lorenzo de D. de Almagro U2 | C78: 0 | D78: 0 | E78: 0 | F78: 0 | G78: 0 | H78: 0 | I78: 0 | J78: 0 | K78: 0 | L78: 0 | M78: 0 | N78: 0 | O78: =+SUM(TablaNTH1[[#This Row],[Enero]:[Diciembre]]) -> 0
B79: =+TablaCVP_pre[[#This Row],[Nombre unidad TCV]] -> Santa Lidia | C79: 0 | D79: 0 | E79: 0 | F79: 0 | G79: 23 | H79: 0 | I79: 0 | J79: 0 | K79: 0 | L79: 0 | M79: 0 | N79: 0 | O79: =+SUM(TablaNTH1[[#This Row],[Enero]:[Diciembre]]) -> 23
B80: =+TablaCVP_pre[[#This Row],[Nombre unidad TCV]] -> Santa María | C80: 644 | D80: 672 | E80: 744 | F80: 573 | G80: 744 | H80: 713 | I80: 607 | J80: 0 | K80: 0 | L80: 0 | M80: 266 | N80: 744 | O80: =+SUM(TablaNTH1[[#This Row],[Enero]:[Diciembre]]) -> 5707
B81: =+TablaCVP_pre[[#This Row],[Nombre unidad TCV]] -> Taltal 1 | C81: 0 | D81: 0 | E81: 12 | F81: 20 | G81: 0 | H81: 0 | I81: 0 | J81: 0 | K81: 3 | L81: 10 | M81: 3 | N81: 0 | O81: =+SUM(TablaNTH1[[#This Row],[Enero]:[Diciembre]]) -> 48
B82: =+TablaCVP_pre[[#This Row],[Nombre unidad TCV]] -> Taltal 2 | C82: 0 | D82: 0 | E82: 88 | F82: 39 | G82: 0 | H82: 0 | I82: 0 | J82: 0 | K82: 0 | L82: 7 | M82: 2 | N82: 0 | O82: =+SUM(TablaNTH1[[#This Row],[Enero]:[Diciembre]]) -> 136
B83: =+TablaCVP_pre[[#This Row],[Nombre unidad TCV]] -> TG_Coronel | C83: 0 | D83: 0 | E83: 41 | F83: 0 | G83: 0 | H83: 6 | I83: 0 | J83: 0 | K83: 0 | L83: 3 | M83: 0 | N83: 0 | O83: =+SUM(TablaNTH1[[#This Row],[Enero]:[Diciembre]]) -> 50
B84: =+TablaCVP_pre[[#This Row],[Nombre unidad TCV]] -> TG1 | C84: 0 | D84: 0 | E84: 0 | F84: 0 | G84: 0 | H84: 0 | I84: 0 | J84: 0 | K84: 0 | L84: 0 | M84: 0 | N84: 0 | O84: =+SUM(TablaNTH1[[#This Row],[Enero]:[Diciembre]]) -> 0
B85: =+TablaCVP_pre[[#This Row],[Nombre unidad TCV]] -> TG2 | C85: 0 | D85: 0 | E85: 0 | F85: 0 | G85: 0 | H85: 0 | I85: 0 | J85: 0 | K85: 0 | L85: 0 | M85: 0 | N85: 0 | O85: =+SUM(TablaNTH1[[#This Row],[Enero]:[Diciembre]]) -> 0
B86: =+TablaCVP_pre[[#This Row],[Nombre unidad TCV]] -> TG3 | C86: 27 | D86: 33 | E86: 17 | F86: 47 | G86: 26 | H86: 0 | I86: 216 | J86: 67 | K86: 51 | L86: 24 | M86: 104 | N86: 322 | O86: =+SUM(TablaNTH1[[#This Row],[Enero]:[Diciembre]]) -> 934
B87: =+TablaCVP_pre[[#This Row],[Nombre unidad TCV]] -> TGTAR | C87: 0 | D87: 0 | E87: 0 | F87: 5 | G87: 0 | H87: 0 | I87: 0 | J87: 0 | K87: 0 | L87: 0 | M87: 0 | N87: 2 | O87: =+SUM(TablaNTH1[[#This Row],[Enero]:[Diciembre]]) -> 7
B88: =+TablaCVP_pre[[#This Row],[Nombre unidad TCV]] -> U12 | C88: 0 | D88: 136 | E88: 81 | F88: 0 | G88: 0 | H88: 0 | I88: 0 | J88: 0 | K88: 0 | L88: 0 | M88: 0 | N88: 0 | O88: =+SUM(TablaNTH1[[#This Row],[Enero]:[Diciembre]]) -> 217
B89: =+TablaCVP_pre[[#This Row],[Nombre unidad TCV]] -> U13 | C89: 0 | D89: 0 | E89: 0 | F89: 0 | G89: 0 | H89: 0 | I89: 0 | J89: 0 | K89: 0 | L89: 0 | M89: 0 | N89: 0 | O89: =+SUM(TablaNTH1[[#This Row],[Enero]:[Diciembre]]) -> 0
B90: =+TablaCVP_pre[[#This Row],[Nombre unidad TCV]] -> U14 | C90: 220 | D90: 34 | E90: 170 | F90: 0 | G90: 1 | H90: 22 | I90: 0 | J90: 122 | K90: 15 | L90: 53 | M90: 0 | N90: 0 | O90: =+SUM(TablaNTH1[[#This Row],[Enero]:[Diciembre]]) -> 637
B91: =+TablaCVP_pre[[#This Row],[Nombre unidad TCV]] -> U15 | C91: 462 | D91: 34 | E91: 178 | F91: 460 | G91: 230 | H91: 0 | I91: 0 | J91: 98 | K91: 0 | L91: 23 | M91: 0 | N91: 22 | O91: =+SUM(TablaNTH1[[#This Row],[Enero]:[Diciembre]]) -> 1507
B92: =+TablaCVP_pre[[#This Row],[Nombre unidad TCV]] -> U16 | C92: 195 | D92: 308 | E92: 551 | F92: 630 | G92: 429 | H92: 346 | I92: 624 | J92: 628 | K92: 569 | L92: 227 | M92: 0 | N92: 0 | O92: =+SUM(TablaNTH1[[#This Row],[Enero]:[Diciembre]]) -> 4507
B93: =+TablaCVP_pre[[#This Row],[Nombre unidad TCV]] -> Valdivia | C93: 1466 | D93: 1321 | E93: 1474 | F93: 1441 | G93: 1488 | H93: 1197 | I93: 1434 | J93: 1162 | K93: 777 | L93: 0 | M93: 458 | N93: 745 | O93: =+SUM(TablaNTH1[[#This Row],[Enero]:[Diciembre]]) -> 12963
B94: =+TablaCVP_pre[[#This Row],[Nombre unidad TCV]] -> Ventanas 1 | C94: 606 | D94: 585 | E94: 658 | F94: 619 | G94: 0 | H94: 0 | I94: 0 | J94: 0 | K94: 60 | L94: 53 | M94: 0 | N94: 0 | O94: =+SUM(TablaNTH1[[#This Row],[Enero]:[Diciembre]]) -> 2581
B95: =+TablaCVP_pre[[#This Row],[Nombre unidad TCV]] -> Ventanas 2 | C95: 744 | D95: 666 | E95: 129 | F95: 0 | G95: 369 | H95: 700 | I95: 744 | J95: 617 | K95: 719 | L95: 744 | M95: 698 | N95: 744 | O95: =+SUM(TablaNTH1[[#This Row],[Enero]:[Diciembre]]) -> 6874
B96: =+TablaCVP_pre[[#This Row],[Nombre unidad TCV]] -> Viñales | C96: 723 | D96: 665 | E96: 744 | F96: 707 | G96: 742 | H96: 720 | I96: 720 | J96: 742 | K96: 719 | L96: 744 | M96: 438 | N96: 691 | O96: =+SUM(TablaNTH1[[#This Row],[Enero]:[Diciembre]]) -> 8355
B97: =+TablaCVP_pre[[#This Row],[Nombre unidad TCV]] -> Yungay 1 | C97: 0 | D97: 0 | E97: 0 | F97: 0 | G97: 0 | H97: 0 | I97: 0 | J97: 0 | K97: 0 | L97: 4 | M97: 0 | N97: 5 | O97: =+SUM(TablaNTH1[[#This Row],[Enero]:[Diciembre]]) -> 9
B98: =+TablaCVP_pre[[#This Row],[Nombre unidad TCV]] -> Yungay 2 | C98: 0 | D98: 0 | E98: 0 | F98: 0 | G98: 0 | H98: 0 | I98: 0 | J98: 0 | K98: 0 | L98: 4 | M98: 0 | N98: 6 | O98: =+SUM(TablaNTH1[[#This Row],[Enero]:[Diciembre]]) -> 10
B99: =+TablaCVP_pre[[#This Row],[Nombre unidad TCV]] -> Yungay 3 | C99: 0 | D99: 0 | E99: 0 | F99: 0 | G99: 0 | H99: 0 | I99: 0 | J99: 0 | K99: 0 | L99: 2 | M99: 0 | N99: 16 | O99: =+SUM(TablaNTH1[[#This Row],[Enero]:[Diciembre]]) -> 18
B100: =+TablaCVP_pre[[#This Row],[Nombre unidad TCV]] -> Yungay 4 ca | C100: 0 | D100: 0 | E100: 0 | F100: 0 | G100: 0 | H100: 0 | I100: 0 | J100: 0 | K100: 0 | L100: 3 | M100: 0 | N100: 3 | O100: =+SUM(TablaNTH1[[#This Row],[Enero]:[Diciembre]]) -> 6
B101: =+TablaCVP_pre[[#This Row],[Nombre unidad TCV]] -> Los Guindos 2 | C101: 0 | D101: 0 | E101: 0 | F101: 0 | G101: 0 | H101: 0 | I101: 0 | J101: 0 | K101: 0 | L101: 2 | M101: 0 | N101: 0 | O101: =+SUM(TablaNTH1[[#This Row],[Enero]:[Diciembre]]) -> 2

Sheet GxN_NTH1
B2: Generación Neta NTH1 (denominadores CVP)
B4: Nombre unidad TCV | C4: Enero | D4: Febrero | E4: Marzo | F4: Abril | G4: Mayo | H4: Junio | I4: Julio | J4: Agosto | K4: Septiembre | L4: Octubre | M4: Noviembre | N4: Diciembre | O4: Total
B5: =+TablaCVP_pre[[#This Row],[Nombre unidad TCV]] -> ANG1 | C5: 173437031.3 | D5: 153934493.4 | E5: 164896679.4 | F5: 156104066.4 | G5: 179685047.1 | H5: 185537613.7 | I5: 174234036.8 | J5: 150463556.6 | K5: 191476130 | L5: 188322451.4 | M5: 177517675.1 | N5: 172730550.3 | O5: =+SUM(TablaGxN_NTH1[[#This Row],[Enero]:[Diciembre]]) -> 2068339331
B6: =+TablaCVP_pre[[#This Row],[Nombre unidad TCV]] -> ANG2 | C6: 171135884.6 | D6: 147121093.3 | E6: 175965532.8 | F6: 135727709.4 | G6: 193637663.9 | H6: 189895520.7 | I6: 169551027.7 | J6: 195882643.1 | K6: 193223428.9 | L6: 182782957.7 | M6: 184646392.1 | N6: 181128577.6 | O6: =+SUM(TablaGxN_NTH1[[#This Row],[Enero]:[Diciembre]]) -> 2120698432
B7: =+TablaCVP_pre[[#This Row],[Nombre unidad TCV]] -> Antilhue TG U1 | C7: 5456810.024 | D7: 18023905.43 | E7: 6259665.297 | F7: 242346.304 | G7: 362444.474 | H7: 122526.702 | I7: 33390.7 | J7: 0 | K7: 0 | L7: 364165.393 | M7: 0 | N7: 347375.645 | O7: =+SUM(TablaGxN_NTH1[[#This Row],[Enero]:[Diciembre]]) -> 31212629.97
B8: =+TablaCVP_pre[[#This Row],[Nombre unidad TCV]] -> Antilhue TG U2 | C8: 363039.762 | D8: 13041289.85 | E8: 2991985.133 | F8: 3017333.721 | G8: 0 | H8: 0 | I8: 0 | J8: 0 | K8: 0 | L8: 1151736.533 | M8: 0 | N8: 145260.634 | O8: =+SUM(TablaGxN_NTH1[[#This Row],[Enero]:[Diciembre]]) -> 20710645.63
B9: =+TablaCVP_pre[[#This Row],[Nombre unidad TCV]] -> Arauco | C9: 5568495.792 | D9: 3967983.521 | E9: 1991382.86 | F9: 4668914.44 | G9: 4194229.999 | H9: 2710112.244 | I9: 2329766.626 | J9: 2087466 | K9: 3562305.321 | L9: 4635699.56 | M9: 5314672.077 | N9: 4272228.487 | O9: =+SUM(TablaGxN_NTH1[[#This Row],[Enero]:[Diciembre]]) -> 45303256.93
B10: =+TablaCVP_pre[[#This Row],[Nombre unidad TCV]] -> Bocamina | C10: 18802261.98 | D10: 45692637.81 | E10: 72230898.27 | F10: 79065720.17 | G10: 67970065.39 | H10: 31086892.92 | I10: 44729609.69 | J10: 45996109.06 | K10: 44174713.11 | L10: 42126786.91 | M10: 49171268.08 | N10: 8213446.344 | O10: =+SUM(TablaGxN_NTH1[[#This Row],[Enero]:[Diciembre]]) -> 549260409.7
B11: =+TablaCVP_pre[[#This Row],[Nombre unidad TCV]] -> Bocamina II | C11: 118676098.6 | D11: 175355233.1 | E11: 216900852.2 | F11: 227544992.9 | G11: 205138175.6 | H11: 225629000.9 | I11: 225790505.3 | J11: 231016754.6 | K11: 194407461.9 | L11: 158169481.1 | M11: 36365756.31 | N11: 108740077.3 | O11: =+SUM(TablaGxN_NTH1[[#This Row],[Enero]:[Diciembre]]) -> 2123734390
B12: =+TablaCVP_pre[[#This Row],[Nombre unidad TCV]] -> Campiche | C12: 123211709.6 | D12: 141072648.7 | E12: 175143131 | F12: 173470654.2 | G12: 177067371.9 | H12: 148014460.3 | I12: 123123454.3 | J12: 156943316.4 | K12: 69585278.18 | L12: 68712189.33 | M12: 78305970.42 | N12: 131863046.1 | O12: =+SUM(TablaGxN_NTH1[[#This Row],[Enero]:[Diciembre]]) -> 1566513230
B13: =+TablaCVP_pre[[#This Row],[Nombre unidad TCV]] -> Candelaria 1 | C13: 0 | D13: 0 | E13: 19158776.69 | F13: 9570950.746 | G13: 11406449.57 | H13: 1588664.458 | I13: 4435987.925 | J13: 504104.265 | K13: 516503.57 | L13: 4310.764 | M13: 591810.408 | N13: 0 | O13: =+SUM(TablaGxN_NTH1[[#This Row],[Enero]:[Diciembre]]) -> 47777558.4
B14: =+TablaCVP_pre[[#This Row],[Nombre unidad TCV]] -> Candelaria 2 | C14: 0 | D14: 0 | E14: 11326166.51 | F14: 9996231.352 | G14: 9029096.798 | H14: 1706301.287 | I14: 2909921.704 | J14: 455127.442 | K14: 470051.797 | L14: 0 | M14: 738924.203 | N14: 0 | O14: =+SUM(TablaGxN_NTH1[[#This Row],[Enero]:[Diciembre]]) -> 36631821.09
B15: =+TablaCVP_pre[[#This Row],[Nombre unidad TCV]] -> Cardones | C15: 0 | D15: 0 | E15: 0 | F15: 0 | G15: 0 | H15: 4.163 | I15: 0 | J15: 0 | K15: 0 | L15: 0 | M15: 0 | N15: 0 | O15: =+SUM(TablaGxN_NTH1[[#This Row],[Enero]:[Diciembre]]) -> 4.163
B16: =+TablaCVP_pre[[#This Row],[Nombre unidad TCV]] -> CC KELAR | C16: 26552336.71 | D16: 141122532 | E16: 201503732.4 | F16: 155264108.3 | G16: 68291822.38 | H16: 180704724.2 | I16: 202025149.2 | J16: 159224488.8 | K16: 115434645.6 | L16: 29249138.77 | M16: 161239507.2 | N16: 99489290.3 | O16: =+SUM(TablaGxN_NTH1[[#This Row],[Enero]:[Diciembre]]) -> 1540101476
B17: =+TablaCVP_pre[[#This Row],[Nombre unidad TCV]] -> CC1 | C17: 24262336 | D17: 12692062.11 | E17: 4283784.998 | F17: 10741988.52 | G17: 11706184.98 | H17: 46222103.02 | I17: 49469933.6 | J17: 6776102.198 | K17: 8683720.5 | L17: 6292591.671 | M17: 24509412.47 | N17: 16234864.48 | O17: =+SUM(TablaGxN_NTH1[[#This Row],[Enero]:[Diciembre]]) -> 221875084.6
B18: =+TablaCVP_pre[[#This Row],[Nombre unidad TCV]] -> CC2 | C18: 14809697.29 | D18: 3429068.578 | E18: 4729737.863 | F18: 5438053.505 | G18: 2167211.508 | H18: 8312831.011 | I18: 34984197.87 | J18: 0 | K18: 5143922.836 | L18: 2064041.151 | M18: 4199455.242 | N18: 35130.678 | O18: =+SUM(TablaGxN_NTH1[[#This Row],[Enero]:[Diciembre]]) -> 85313347.54
B19: =+TablaCVP_pre[[#This Row],[Nombre unidad TCV]] -> CCH1 | C19: 120121347.5 | D19: 101955913.9 | E19: 94628087.16 | F19: 91534653.54 | G19: 122005181.4 | H19: 132295626.7 | I19: 111680298.8 | J19: 64429234.54 | K19: 149105112.7 | L19: 145588393.1 | M19: 139598294.4 | N19: 155719120.3 | O19: =+SUM(TablaGxN_NTH1[[#This Row],[Enero]:[Diciembre]]) -> 1428661264
B20: =+TablaCVP_pre[[#This Row],[Nombre unidad TCV]] -> CCH2 | C20: 119921205.4 | D20: 101796987.6 | E20: 94469282.51 | F20: 100765245.5 | G20: 117857659.6 | H20: 125944228.4 | I20: 79189709.74 | J20: 101856055.2 | K20: 149429114.3 | L20: 145390024.1 | M20: 139366194.2 | N20: 155592145 | O20: =+SUM(TablaGxN_NTH1[[#This Row],[Enero]:[Diciembre]]) -> 1431577852
B21: =+TablaCVP_pre[[#This Row],[Nombre unidad TCV]] -> CD Iquique | C21: 0 | D21: 0 | E21: 0 | F21: 0 | G21: 0 | H21: 0 | I21: 0 | J21: 0 | K21: 0 | L21: 0 | M21: 0 | N21: 0 | O21: =+SUM(TablaGxN_NTH1[[#This Row],[Enero]:[Diciembre]]) -> 0
B22: =+TablaCVP_pre[[#This Row],[Nombre unidad TCV]] -> Celco | C22: 4666173.45 | D22: 4663103.563 | E22: 4253088.784 | F22: 2874788.754 | G22: 5091150.592 | H22: 3141473.425 | I22: 3885334.05 | J22: 3660762.811 | K22: 3850816.257 | L22: 4358575.692 | M22: 4131941.927 | N22: 4940767.505 | O22: =+SUM(TablaGxN_NTH1[[#This Row],[Enero]:[Diciembre]]) -> 49517976.81
B23: =+TablaCVP_pre[[#This Row],[Nombre unidad TCV]] -> Cholguán | C23: 4519197.321 | D23: 3165819.734 | E23: 7452043.936 | F23: 7719103.393 | G23: 4746987.373 | H23: 4645309.799 | I23: 0 | J23: 0 | K23: 0 | L23: 0 | M23: 1225434.684 | N23: 2244474.549 | O23: =+SUM(TablaGxN_NTH1[[#This Row],[Enero]:[Diciembre]]) -> 35718370.79
B24: =+TablaCVP_pre[[#This Row],[Nombre unidad TCV]] -> CMPC Cordillera | C24: 0 | D24: 0 | E24: 0 | F24: 0 | G24: 0 | H24: 0 | I24: 0 | J24: 0 | K24: 0 | L24: 73624.315 | M24: 332741.172 | N24: 918079.737 | O24: =+SUM(TablaGxN_NTH1[[#This Row],[Enero]:[Diciembre]]) -> 1324445.224
B25: =+TablaCVP_pre[[#This Row],[Nombre unidad TCV]] -> CMPC Laja | C25: 14434236.49 | D25: 14098181.04 | E25: 14130131.39 | F25: 16135885.46 | G25: 14663763.02 | H25: 14943427.36 | I25: 12290237.26 | J25: 13470786.07 | K25: 13814555.52 | L25: 12999077.01 | M25: 5842989.194 | N25: 11228751.36 | O25: =+SUM(TablaGxN_NTH1[[#This Row],[Enero]:[Diciembre]]) -> 158052021.2
B26: =+TablaCVP_pre[[#This Row],[Nombre unidad TCV]] -> CMPC Pacífico | C26: 3085176.946 | D26: 2690277.476 | E26: 1424488.372 | F26: 9837267.987 | G26: 18790287.8 | H26: 12321145.41 | I26: 12924030.02 | J26: 10234626.14 | K26: 9074719.068 | L26: 15159693.86 | M26: 11940727.81 | N26: 10547106.97 | O26: =+SUM(TablaGxN_NTH1[[#This Row],[Enero]:[Diciembre]]) -> 118029547.8
B27: =+TablaCVP_pre[[#This Row],[Nombre unidad TCV]] -> CMPC Santa Fe | C27: 0 | D27: 0 | E27: 0 | F27: 0 | G27: 0 | H27: 0 | I27: 0 | J27: 0 | K27: 0 | L27: 0 | M27: 0 | N27: 0 | O27: =+SUM(TablaGxN_NTH1[[#This Row],[Enero]:[Diciembre]]) -> 0
B28: =+TablaCVP_pre[[#This Row],[Nombre unidad TCV]] -> CMPC TISSUE | C28: 1730594.492 | D28: 3056398.044 | E28: 1569363.19 | F28: 2049700.9 | G28: 2100174.434 | H28: 1928018.17 | I28: 1963131.156 | J28: 1834243.548 | K28: 1689370.438 | L28: 1570430.762 | M28: 749959.986 | N28: 810578.356 | O28: =+SUM(TablaGxN_NTH1[[#This Row],[Enero]:[Diciembre]]) -> 21051963.48
B29: =+TablaCVP_pre[[#This Row],[Nombre unidad TCV]] -> Colmito | C29: 302261.184 | D29: 412820.532 | E29: 12711477.89 | F29: 12217151.5 | G29: 14911875.4 | H29: 3060036.208 | I29: 6256391.497 | J29: 7064898.425 | K29: 892606.957 | L29: 139028.474 | M29: 53667.481 | N29: 0 | O29: =+SUM(TablaGxN_NTH1[[#This Row],[Enero]:[Diciembre]]) -> 58022215.54
B30: =+TablaCVP_pre[[#This Row],[Nombre unidad TCV]] -> CTA | C30: 84345127.61 | D30: 27386857.81 | E30: 11645709.04 | F30: 30136457.4 | G30: 80724881.61 | H30: 39887065.72 | I30: 0 | J30: 28418567.51 | K30: 91790762.86 | L30: 93143405.43 | M30: 72493900.11 | N30: 94482216.94 | O30: =+SUM(TablaGxN_NTH1[[#This Row],[Enero]:[Diciembre]]) -> 654454952
B31: =+TablaCVP_pre[[#This Row],[Nombre unidad TCV]] -> CTH | C31: 77108703.71 | D31: 49457422.51 | E31: 74865119.47 | F31: 86607409.8 | G31: 88527268.95 | H31: 36687681.11 | I31: 28215540.9 | J31: 101678518.2 | K31: 53022884.7 | L31: 49105356.39 | M31: 77659119.33 | N31: 54133018.06 | O31: =+SUM(TablaGxN_NTH1[[#This Row],[Enero]:[Diciembre]]) -> 777068043.1
B32: =+TablaCVP_pre[[#This Row],[Nombre unidad TCV]] -> CTM1 | C32: 3536523.575 | D32: 14735330.9 | E32: 18185464.51 | F32: 25975694.85 | G32: 38031475.39 | H32: 0 | I32: 6212751.07 | J32: 44959801.32 | K32: 25959017.29 | L32: 36743455.29 | M32: 14183731.16 | N32: 0 | O32: =+SUM(TablaGxN_NTH1[[#This Row],[Enero]:[Diciembre]]) -> 228523245.4
B33: =+TablaCVP_pre[[#This Row],[Nombre unidad TCV]] -> CTM2 | C33: 18908938.56 | D33: 39775033.46 | E33: 25745410.39 | F33: 842430.156 | G33: 1198218.55 | H33: 9740605.95 | I33: 15288672.55 | J33: 47769580.81 | K33: 13661146.84 | L33: 3306.425 | M33: 23142499.64 | N33: 3891127.577 | O33: =+SUM(TablaGxN_NTH1[[#This Row],[Enero]:[Diciembre]]) -> 199966970.9
B34: =+TablaCVP_pre[[#This Row],[Nombre unidad TCV]] -> CTM3 | C34: 0 | D34: 55916983.16 | E34: 44330896.51 | F34: 72833049.49 | G34: 48964763.35 | H34: 100550864.3 | I34: 92122020.4 | J34: 59971188.41 | K34: 42227269.34 | L34: 33724764.19 | M34: 87288361.87 | N34: 153726057.1 | O34: =+SUM(TablaGxN_NTH1[[#This Row],[Enero]:[Diciembre]]) -> 791656218.1
B35: =+TablaCVP_pre[[#This Row],[Nombre unidad TCV]] -> CTTAR | C35: 61818742.53 | D35: 51051997.66 | E35: 69599715.96 | F35: 55069445.02 | G35: 68288285.03 | H35: 55765834.63 | I35: 76149177.09 | J35: 40231167.84 | K35: 12858267.4 | L35: 24504486.55 | M35: 44713036.3 | N35: 54035597.73 | O35: =+SUM(TablaGxN_NTH1[[#This Row],[Enero]:[Diciembre]]) -> 614085753.7
B36: =+TablaCVP_pre[[#This Row],[Nombre unidad TCV]] -> Diego de Almagro | C36: 0 | D36: 0 | E36: 0 | F36: 147744.912 | G36: 0 | H36: 0 | I36: 0 | J36: 0 | K36: 0 | L36: 0 | M36: 0 | N36: 11693.101 | O36: =+SUM(TablaGxN_NTH1[[#This Row],[Enero]:[Diciembre]]) -> 159438.013
B37: =+TablaCVP_pre[[#This Row],[Nombre unidad TCV]] -> El Salvador | C37: 0 | D37: 0 | E37: 0 | F37: 112731.219 | G37: 0 | H37: 0 | I37: 0 | J37: 0 | K37: 0 | L37: 0 | M37: 0 | N37: 0 | O37: =+SUM(TablaGxN_NTH1[[#This Row],[Enero]:[Diciembre]]) -> 112731.219
B38: =+TablaCVP_pre[[#This Row],[Nombre unidad TCV]] -> Emelda U1 | C38: 0 | D38: 4771.5 | E38: 0 | F38: 188479.5 | G38: 0 | H38: 1475 | I38: 1375.5 | J38: 0 | K38: 1149 | L38: 0 | M38: 0 | N38: 1318.5 | O38: =+SUM(TablaGxN_NTH1[[#This Row],[Enero]:[Diciembre]]) -> 198569
B39: =+TablaCVP_pre[[#This Row],[Nombre unidad TCV]] -> Emelda U2 | C39: 25229.87 | D39: 0 | E39: 506052.25 | F39: 57220.622 | G39: 0 | H39: 1351.75 | I39: 1520.25 | J39: 0 | K39: 1340.88 | L39: 0 | M39: 16463.12 | N39: 1102.25 | O39: =+SUM(TablaGxN_NTH1[[#This Row],[Enero]:[Diciembre]]) -> 610280.992
B40: =+TablaCVP_pre[[#This Row],[Nombre unidad TCV]] -> Energía Pacífico | C40: 6659366.629 | D40: 9329552.499 | E40: 11182747.89 | F40: 9004895.185 | G40: 9786244.817 | H40: 10015991.61 | I40: 10572521.04 | J40: 9060143.583 | K40: 9412753.906 | L40: 10501824.89 | M40: 7981327.636 | N40: 9877422.748 | O40: =+SUM(TablaGxN_NTH1[[#This Row],[Enero]:[Diciembre]]) -> 113384792.4
B41: =+TablaCVP_pre[[#This Row],[Nombre unidad TCV]] -> Escuadrón | C41: 2706208.175 | D41: 3235363.839 | E41: 4706305.471 | F41: 4189872.388 | G41: 4965123.777 | H41: 1247286.77 | I41: 1749852.785 | J41: 1651135.609 | K41: 146122.776 | L41: 1092.151 | M41: 3859.99 | N41: 0 | O41: =+SUM(TablaGxN_NTH1[[#This Row],[Enero]:[Diciembre]]) -> 24602223.73
B42: =+TablaCVP_pre[[#This Row],[Nombre unidad TCV]] -> Esperanza TG | C42: 0 | D42: 0 | E42: 0 | F42: 0 | G42: 58822.506 | H42: 102252.197 | I42: 0 | J42: 0 | K42: 0 | L42: 0 | M42: 0 | N42: 0 | O42: =+SUM(TablaGxN_NTH1[[#This Row],[Enero]:[Diciembre]]) -> 161074.703
B43: =+TablaCVP_pre[[#This Row],[Nombre unidad TCV]] -> Guacolda 1 | C43: 66923032.7 | D43: 65986782.76 | E43: 64709403.56 | F43: 73298920.53 | G43: 83279735.58 | H43: 52804416.09 | I43: 97259168.22 | J43: 88442942.09 | K43: 94368296.31 | L43: 89874476.36 | M43: 83496953.64 | N43: 91955743.86 | O43: =+SUM(TablaGxN_NTH1[[#This Row],[Enero]:[Diciembre]]) -> 952399871.7
B44: =+TablaCVP_pre[[#This Row],[Nombre unidad TCV]] -> Guacolda 2 | C44: 46983501.57 | D44: 54582886.06 | E44: 64469245.06 | F44: 65042568.56 | G44: 44162516.36 | H44: 75910009.97 | I44: 90573463.17 | J44: 87559025.41 | K44: 92155176.82 | L44: 86113590.86 | M44: 55126278.03 | N44: 91650479.16 | O44: =+SUM(TablaGxN_NTH1[[#This Row],[Enero]:[Diciembre]]) -> 854328741
B45: =+TablaCVP_pre[[#This Row],[Nombre unidad TCV]] -> Guacolda 3 | C45: 72374404.47 | D45: 50964128.99 | E45: 75463011.99 | F45: 68562726.14 | G45: 92983156.92 | H45: 101160147.8 | I45: 100302010.3 | J45: 98034455.78 | K45: 91511659.51 | L45: 38925413.23 | M45: 71212476.25 | N45: 80727734.65 | O45: =+SUM(TablaGxN_NTH1[[#This Row],[Enero]:[Diciembre]]) -> 942221326.1
B46: =+TablaCVP_pre[[#This Row],[Nombre unidad TCV]] -> Guacolda 4 | C46: 67755947.44 | D46: 70454264.82 | E46: 69356684.33 | F46: 48059209.14 | G46: 81346482.38 | H46: 92740049.07 | I46: 97612863.18 | J46: 73908481.07 | K46: 93380455.4 | L46: 78181843.62 | M46: 51642274.58 | N46: 53288034.26 | O46: =+SUM(TablaGxN_NTH1[[#This Row],[Enero]:[Diciembre]]) -> 877726589.3
B47: =+TablaCVP_pre[[#This Row],[Nombre unidad TCV]] -> Guacolda 5 | C47: 75904243.5 | D47: 81793933.25 | E47: 77342991.1 | F47: 57048104.85 | G47: 90078106.57 | H47: 100537304.2 | I47: 100043303 | J47: 100955504.5 | K47: 77617101.54 | L47: 63942112.72 | M47: 91682862.16 | N47: 83068750.88 | O47: =+SUM(TablaGxN_NTH1[[#This Row],[Enero]:[Diciembre]]) -> 1000014318
B48: =+TablaCVP_pre[[#This Row],[Nombre unidad TCV]] -> Horcones | C48: 0 | D48: 0 | E48: 1520.414 | F48: 10547.111 | G48: 0 | H48: 672.13 | I48: 0 | J48: 0 | K48: 0 | L48: 0 | M48: 0 | N48: 32799.097 | O48: =+SUM(TablaGxN_NTH1[[#This Row],[Enero]:[Diciembre]]) -> 45538.752
B49: =+TablaCVP_pre[[#This Row],[Nombre unidad TCV]] -> Huasco TG | C49: 0 | D49: 0 | E49: 0 | F49: 0 | G49: 0 | H49: 0 | I49: 0 | J49: 2340.459 | K49: 19485.138 | L49: 48277.417 | M49: 0 | N49: 8376.452 | O49: =+SUM(TablaGxN_NTH1[[#This Row],[Enero]:[Diciembre]]) -> 78479.466
B50: =+TablaCVP_pre[[#This Row],[Nombre unidad TCV]] -> IEM | C50: 0 | D50: 0 | E50: 0 | F50: 0 | G50: 104622058.5 | H50: 204629727.6 | I50: 213320512.5 | J50: 37476169.91 | K50: 108071261.6 | L50: 108327426.7 | M50: 196013222.6 | N50: 223261862 | O50: =+SUM(TablaGxN_NTH1[[#This Row],[Enero]:[Diciembre]]) -> 1195722241
B51: =+TablaCVP_pre[[#This Row],[Nombre unidad TCV]] -> Laguna Verde TG | C51: 0 | D51: 0 | E51: 0 | F51: 0 | G51: 0 | H51: 0 | I51: 0 | J51: 0 | K51: 0 | L51: 0 | M51: 0 | N51: 0 | O51: =+SUM(TablaGxN_NTH1[[#This Row],[Enero]:[Diciembre]]) -> 0
B52: =+TablaCVP_pre[[#This Row],[Nombre unidad TCV]] -> Laguna Verde TV | C52: 0 | D52: 0 | E52: 0 | F52: 0 | G52: 0 | H52: 0 | I52: 0 | J52: 0 | K52: 0 | L52: 0 | M52: 0 | N52: 0 | O52: =+SUM(TablaGxN_NTH1[[#This Row],[Enero]:[Diciembre]]) -> 0
B53: =+TablaCVP_pre[[#This Row],[Nombre unidad TCV]] -> Laja | C53: 3714938.873 | D53: 3141655.561 | E53: 3953662.518 | F53: 3517041.625 | G53: 3411180.72 | H53: 2693453.932 | I53: 1425710.456 | J53: 1791531.855 | K53: 943832.943 | L53: 1118266.895 | M53: 258887.342 | N53: 886098.747 | O53: =+SUM(TablaGxN_NTH1[[#This Row],[Enero]:[Diciembre]]) -> 26856261.47
B54: =+TablaCVP_pre[[#This Row],[Nombre unidad TCV]] -> Lautaro-Comasa | C54: 18119359.08 | D54: 14477482.01 | E54: 18011808.34 | F54: 16034123 | G54: 17996732.18 | H54: 13188700.85 | I54: 9994579.895 | J54: 12884074.33 | K54: 15072456.95 | L54: 13528992.79 | M54: 9614110.578 | N54: 16102768.73 | O54: =+SUM(TablaGxN_NTH1[[#This Row],[Enero]:[Diciembre]]) -> 175025188.7
B55: =+TablaCVP_pre[[#This Row],[Nombre unidad TCV]] -> Lautaro-Comasa 2 | C55: 1587112.373 | D55: 13487180.52 | E55: 12391258.31 | F55: 10619517.1 | G55: 12923729.32 | H55: 12041638.47 | I55: 10288586.23 | J55: 13439667.27 | K55: 7890531.242 | L55: 6904654.278 | M55: 1206446.205 | N55: 0 | O55: =+SUM(TablaGxN_NTH1[[#This Row],[Enero]:[Diciembre]]) -> 102780321.3
B56: =+TablaCVP_pre[[#This Row],[Nombre unidad TCV]] -> Licantén | C56: 1972847.037 | D56: 1170129.553 | E56: 151760.593 | F56: 2111024.638 | G56: 2258841.872 | H56: 1502463.376 | I56: 2025379.164 | J56: 1873806.206 | K56: 1473612.401 | L56: 1575552.678 | M56: 1622506.369 | N56: 1506074.443 | O56: =+SUM(TablaGxN_NTH1[[#This Row],[Enero]:[Diciembre]]) -> 19243998.33
B57: =+TablaCVP_pre[[#This Row],[Nombre unidad TCV]] -> Los Guindos | C57: 0 | D57: 0 | E57: 0 | F57: 0 | G57: 73198.011 | H57: 0 | I57: 0 | J57: 0 | K57: 0 | L57: 0 | M57: 0 | N57: 0 | O57: =+SUM(TablaGxN_NTH1[[#This Row],[Enero]:[Diciembre]]) -> 73198.011
B58: =+TablaCVP_pre[[#This Row],[Nombre unidad TCV]] -> Los Pinos | C58: 2953217.746 | D58: 1707587.446 | E58: 435256.938 | F58: 6661488.809 | G58: 1547416.367 | H58: 60902.859 | I58: 0 | J58: 0 | K58: 0 | L58: 0 | M58: 48799.777 | N58: 0 | O58: =+SUM(TablaGxN_NTH1[[#This Row],[Enero]:[Diciembre]]) -> 13414669.94
B59: =+TablaCVP_pre[[#This Row],[Nombre unidad TCV]] -> Los Vientos | C59: 757384.036 | D59: 884696.969 | E59: 25107597.28 | F59: 13134688.65 | G59: 23410147.81 | H59: 960979.757 | I59: 6177463.721 | J59: 5338754.655 | K59: 342415.769 | L59: 0 | M59: 258751.816 | N59: 0 | O59: =+SUM(TablaGxN_NTH1[[#This Row],[Enero]:[Diciembre]]) -> 76372880.46
B60: =+TablaCVP_pre[[#This Row],[Nombre unidad TCV]] -> Masisa (Cabrero) | C60: 3191179.985 | D60: 2718041.743 | E60: 6006596.518 | F60: 6115049.081 | G60: 6052559.302 | H60: 5515259.798 | I60: 4324001.577 | J60: 3354941.587 | K60: 3839983.706 | L60: 2360462.163 | M60: 3826670.021 | N60: 4164392.55 | O60: =+SUM(TablaGxN_NTH1[[#This Row],[Enero]:[Diciembre]]) -> 51469138.03
B61: =+TablaCVP_pre[[#This Row],[Nombre unidad TCV]] -> Nehuenco | C61: 188974251.2 | D61: 176368833.3 | E61: 210715357.7 | F61: 181579461.7 | G61: 214133379 | H61: 89416891.44 | I61: 98852872.37 | J61: 19433204.45 | K61: 53389942.93 | L61: 213095019.6 | M61: 190834785.6 | N61: 9551889.142 | O61: =+SUM(TablaGxN_NTH1[[#This Row],[Enero]:[Diciembre]]) -> 1646345888
B62: =+TablaCVP_pre[[#This Row],[Nombre unidad TCV]] -> Nehuenco II | C62: 257887984.7 | D62: 228224978.7 | E62: 247373199.6 | F62: 226262701.8 | G62: 233118967.4 | H62: 189240287.4 | I62: 264398117.3 | J62: 271900535.8 | K62: 232124052.6 | L62: 221178568.5 | M62: 59120636.29 | N62: 266878658.5 | O62: =+SUM(TablaGxN_NTH1[[#This Row],[Enero]:[Diciembre]]) -> 2697708688
B63: =+TablaCVP_pre[[#This Row],[Nombre unidad TCV]] -> Nehuenco TG 9B | C63: 0 | D63: 0 | E63: 298.8 | F63: 705492.199 | G63: 0 | H63: 0 | I63: 0 | J63: 471944.419 | K63: 581054.84 | L63: 0 | M63: 0 | N63: 614826.506 | O63: =+SUM(TablaGxN_NTH1[[#This Row],[Enero]:[Diciembre]]) -> 2373616.764
B64: =+TablaCVP_pre[[#This Row],[Nombre unidad TCV]] -> NTO1 | C64: 70248992.93 | D64: 43015743.86 | E64: 56489672.72 | F64: 80238882.68 | G64: 79536836.72 | H64: 66088545.89 | I64: 88174548.22 | J64: 87378030.99 | K64: 65187059.48 | L64: 45709828.74 | M64: 69648738.41 | N64: 66263168.55 | O64: =+SUM(TablaGxN_NTH1[[#This Row],[Enero]:[Diciembre]]) -> 817980049.2
B65: =+TablaCVP_pre[[#This Row],[Nombre unidad TCV]] -> NTO2 | C65: 69614690.71 | D65: 17463385.84 | E65: 48993109.33 | F65: 77843259.73 | G65: 80232014.53 | H65: 83009007.55 | I65: 85674206.51 | J65: 85870364.13 | K65: 80595721.78 | L65: 78252802.7 | M65: 72746759.27 | N65: 74377948.84 | O65: =+SUM(TablaGxN_NTH1[[#This Row],[Enero]:[Diciembre]]) -> 854673270.9
B66: =+TablaCVP_pre[[#This Row],[Nombre unidad TCV]] -> Nueva Aldea I | C66: 3818506.156 | D66: 4203994.781 | E66: 2959900.952 | F66: 3887732.839 | G66: 3342386.087 | H66: 1671355.623 | I66: 2016794.83 | J66: 1746222.446 | K66: 2396582.444 | L66: 2011904.616 | M66: 2104395.824 | N66: 2913090.849 | O66: =+SUM(TablaGxN_NTH1[[#This Row],[Enero]:[Diciembre]]) -> 33072867.45
B67: =+TablaCVP_pre[[#This Row],[Nombre unidad TCV]] -> Nueva Aldea III | C67: 3926035.086 | D67: 6892648.582 | E67: 22357771.07 | F67: 21245259.82 | G67: 22067924.22 | H67: 20848245.47 | I67: 20345057.98 | J67: 20592772.78 | K67: 19711882.72 | L67: 18297467.29 | M67: 21877837.48 | N67: 20814028.96 | O67: =+SUM(TablaGxN_NTH1[[#This Row],[Enero]:[Diciembre]]) -> 218976931.5
B68: =+TablaCVP_pre[[#This Row],[Nombre unidad TCV]] -> Nueva Renca | C68: 214280673.2 | D68: 146686511.8 | E68: 115931536.8 | F68: 239085331.8 | G68: 178323947.2 | H68: 167407633.3 | I68: 163821527.9 | J68: 39799.794 | K68: 112534533.9 | L68: 153391869.8 | M68: 105688520.9 | N68: 130837086.5 | O68: =+SUM(TablaGxN_NTH1[[#This Row],[Enero]:[Diciembre]]) -> 1728028973
B69: =+TablaCVP_pre[[#This Row],[Nombre unidad TCV]] -> Nueva Ventanas | C69: 0 | D69: 97590683.27 | E69: 171127469.4 | F69: 135650264.5 | G69: 172160751.2 | H69: 149890672 | I69: 130792930.9 | J69: 175119415.9 | K69: 145583243.6 | L69: 87009614.53 | M69: 117191054.6 | N69: 146937821.4 | O69: =+SUM(TablaGxN_NTH1[[#This Row],[Enero]:[Diciembre]]) -> 1529053921
B70: =+TablaCVP_pre[[#This Row],[Nombre unidad TCV]] -> Petropower | C70: 7895106.245 | D70: 4999889.282 | E70: 8999518.109 | F70: 8404563.75 | G70: 7672683.933 | H70: 7700733.195 | I70: 8378479.022 | J70: 6953678.835 | K70: 4308551.573 | L70: 5028230.715 | M70: 2456010.018 | N70: 7912649.01 | O70: =+SUM(TablaGxN_NTH1[[#This Row],[Enero]:[Diciembre]]) -> 80710093.69
B71: =+TablaCVP_pre[[#This Row],[Nombre unidad TCV]] -> Quintero A | C71: 15328905.21 | D71: 14271871.09 | E71: 33792246.72 | F71: 27184325.76 | G71: 22959093.63 | H71: 0 | I71: 14879637.52 | J71: 1287506.984 | K71: 2896425.167 | L71: 2310254.019 | M71: 228907.4078 | N71: 0 | O71: =+SUM(TablaGxN_NTH1[[#This Row],[Enero]:[Diciembre]]) -> 135139173.5
B72: =+TablaCVP_pre[[#This Row],[Nombre unidad TCV]] -> Quintero B | C72: 14075444.25 | D72: 12546094.75 | E72: 32850324.29 | F72: 29055474.66 | G72: 21279753.98 | H72: 0 | I72: 10877496.46 | J72: 1327806.362 | K72: 2328366.023 | L72: 2614986.522 | M72: 297962.0302 | N72: 0 | O72: =+SUM(TablaGxN_NTH1[[#This Row],[Enero]:[Diciembre]]) -> 127253709.3
B73: =+TablaCVP_pre[[#This Row],[Nombre unidad TCV]] -> Renca U1 | C73: 0 | D73: 0 | E73: 0 | F73: 0 | G73: 0 | H73: 0 | I73: 0 | J73: 0 | K73: 0 | L73: 0 | M73: 0 | N73: 0 | O73: =+SUM(TablaGxN_NTH1[[#This Row],[Enero]:[Diciembre]]) -> 0
B74: =+TablaCVP_pre[[#This Row],[Nombre unidad TCV]] -> Renca U2 | C74: 0 | D74: 0 | E74: 0 | F74: 0 | G74: 0 | H74: 0 | I74: 0 | J74: 0 | K74: 0 | L74: 0 | M74: 0 | N74: 0 | O74: =+SUM(TablaGxN_NTH1[[#This Row],[Enero]:[Diciembre]]) -> 0
B75: =+TablaCVP_pre[[#This Row],[Nombre unidad TCV]] -> San Isidro | C75: 9636645.301 | D75: 173942384.7 | E75: 199855144.9 | F75: 220488034 | G75: 205673222.2 | H75: 92357639.1 | I75: 107945058.7 | J75: 107244738 | K75: 68120104.07 | L75: 80195965.23 | M75: 3897015.56 | N75: 4802730.295 | O75: =+SUM(TablaGxN_NTH1[[#This Row],[Enero]:[Diciembre]]) -> 1274158682
B76: =+TablaCVP_pre[[#This Row],[Nombre unidad TCV]] -> San Isidro II | C76: 248437569 | D76: 214836349.6 | E76: 253278961.8 | F76: 190686544.4 | G76: 230606652.8 | H76: 212753211.8 | I76: 246625719.6 | J76: 232434623 | K76: 102377459.5 | L76: 26267186.99 | M76: 124378853 | N76: 179291002.9 | O76: =+SUM(TablaGxN_NTH1[[#This Row],[Enero]:[Diciembre]]) -> 2261974134
B77: =+TablaCVP_pre[[#This Row],[Nombre unidad TCV]] -> San Lorenzo de D. de Almagro U1 | C77: 0 | D77: 0 | E77: 0 | F77: 0 | G77: 0 | H77: 0 | I77: 0 | J77: 0 | K77: 0 | L77: 0 | M77: 0 | N77: 0 | O77: =+SUM(TablaGxN_NTH1[[#This Row],[Enero]:[Diciembre]]) -> 0
B78: =+TablaCVP_pre[[#This Row],[Nombre unidad TCV]] -> San Lorenzo de D. de Almagro U2 | C78: 0 | D78: 0 | E78: 0 | F78: 0 | G78: 0 | H78: 0 | I78: 0 | J78: 0 | K78: 0 | L78: 0 | M78: 0 | N78: 0 | O78: =+SUM(TablaGxN_NTH1[[#This Row],[Enero]:[Diciembre]]) -> 0
B79: =+TablaCVP_pre[[#This Row],[Nombre unidad TCV]] -> Santa Lidia | C79: 0 | D79: 0 | E79: 0 | F79: 0 | G79: 1782926.384 | H79: 0 | I79: 0 | J79: 0 | K79: 0 | L79: 0 | M79: 0 | N79: 0 | O79: =+SUM(TablaGxN_NTH1[[#This Row],[Enero]:[Diciembre]]) -> 1782926.384
B80: =+TablaCVP_pre[[#This Row],[Nombre unidad TCV]] -> Santa María | C80: 195429469.5 | D80: 207123757.6 | E80: 233871986.9 | F80: 176604532.7 | G80: 234279946.1 | H80: 216472688.1 | I80: 179683245.1 | J80: 0 | K80: 0 | L80: 0 | M80: 81577258.03 | N80: 231680985.7 | O80: =+SUM(TablaGxN_NTH1[[#This Row],[Enero]:[Diciembre]]) -> 1756723870
B81: =+TablaCVP_pre[[#This Row],[Nombre unidad TCV]] -> Taltal 1 | C81: 0 | D81: 0 | E81: 637316.131 | F81: 1308601.862 | G81: 0 | H81: 0 | I81: 0 | J81: 0 | K81: 47324.921 | L81: 483909.188 | M81: 153515.29 | N81: 0 | O81: =+SUM(TablaGxN_NTH1[[#This Row],[Enero]:[Diciembre]]) -> 2630667.392
B82: =+TablaCVP_pre[[#This Row],[Nombre unidad TCV]] -> Taltal 2 | C82: 0 | D82: 0 | E82: 5133195.504 | F82: 2394076.033 | G82: 0 | H82: 0 | I82: 0 | J82: 0 | K82: 0 | L82: 161060.979 | M82: 88508.468 | N82: 0 | O82: =+SUM(TablaGxN_NTH1[[#This Row],[Enero]:[Diciembre]]) -> 7776840.984
B83: =+TablaCVP_pre[[#This Row],[Nombre unidad TCV]] -> TG_Coronel | C83: 0 | D83: 0 | E83: 933329.06 | F83: 0 | G83: 0 | H83: 171417.261 | I83: 0 | J83: 0 | K83: 0 | L83: 40511.014 | M83: 0 | N83: 0 | O83: =+SUM(TablaGxN_NTH1[[#This Row],[Enero]:[Diciembre]]) -> 1145257.335
B84: =+TablaCVP_pre[[#This Row],[Nombre unidad TCV]] -> TG1 | C84: 0 | D84: 0 | E84: 0 | F84: 0 | G84: 0 | H84: 0 | I84: 0 | J84: 0 | K84: 0 | L84: 0 | M84: 0 | N84: 0 | O84: =+SUM(TablaGxN_NTH1[[#This Row],[Enero]:[Diciembre]]) -> 0
B85: =+TablaCVP_pre[[#This Row],[Nombre unidad TCV]] -> TG2 | C85: 0 | D85: 0 | E85: 0 | F85: 0 | G85: 0 | H85: 0 | I85: 0 | J85: 0 | K85: 0 | L85: 0 | M85: 0 | N85: 0 | O85: =+SUM(TablaGxN_NTH1[[#This Row],[Enero]:[Diciembre]]) -> 0
B86: =+TablaCVP_pre[[#This Row],[Nombre unidad TCV]] -> TG3 | C86: 496655.8229 | D86: 597384.1211 | E86: 313430.0325 | F86: 499912.5499 | G86: 435869.5094 | H86: 0 | I86: 5268600.778 | J86: 1486864.95 | K86: 857954.5229 | L86: 578677.3081 | M86: 2794767.091 | N86: 8201722.56 | O86: =+SUM(TablaGxN_NTH1[[#This Row],[Enero]:[Diciembre]]) -> 21531839.24
B87: =+TablaCVP_pre[[#This Row],[Nombre unidad TCV]] -> TGTAR | C87: 0 | D87: 0 | E87: 0 | F87: 50217.836 | G87: 0 | H87: 0 | I87: 0 | J87: 0 | K87: 0 | L87: 0 | M87: 0 | N87: 66.354 | O87: =+SUM(TablaGxN_NTH1[[#This Row],[Enero]:[Diciembre]]) -> 50284.19
B88: =+TablaCVP_pre[[#This Row],[Nombre unidad TCV]] -> U12 | C88: 0 | D88: 4203353.424 | E88: 3234497.487 | F88: 0 | G88: 0 | H88: 0 | I88: 0 | J88: 0 | K88: 0 | L88: 0 | M88: 0 | N88: 0 | O88: =+SUM(TablaGxN_NTH1[[#This Row],[Enero]:[Diciembre]]) -> 7437850.911
B89: =+TablaCVP_pre[[#This Row],[Nombre unidad TCV]] -> U13 | C89: 0 | D89: 0 | E89: 0 | F89: 0 | G89: 0 | H89: 0 | I89: 0 | J89: 0 | K89: 0 | L89: 0 | M89: 0 | N89: 0 | O89: =+SUM(TablaGxN_NTH1[[#This Row],[Enero]:[Diciembre]]) -> 0
B90: =+TablaCVP_pre[[#This Row],[Nombre unidad TCV]] -> U14 | C90: 12005532.35 | D90: 1883063.814 | E90: 10006927.6 | F90: 0 | G90: 755.3732944 | H90: 1125696.325 | I90: 0 | J90: 8412486.961 | K90: 1155829.428 | L90: 3041169.256 | M90: 0 | N90: 0 | O90: =+SUM(TablaGxN_NTH1[[#This Row],[Enero]:[Diciembre]]) -> 37631461.11
B91: =+TablaCVP_pre[[#This Row],[Nombre unidad TCV]] -> U15 | C91: 28113018.22 | D91: 2147033.06 | E91: 10270637.56 | F91: 32724302.78 | G91: 18877269.3 | H91: 0 | I91: 0 | J91: 7599803.76 | K91: 0 | L91: 1516351.314 | M91: 0 | N91: 1378271.374 | O91: =+SUM(TablaGxN_NTH1[[#This Row],[Enero]:[Diciembre]]) -> 102626687.4
B92: =+TablaCVP_pre[[#This Row],[Nombre unidad TCV]] -> U16 | C92: 34053421.1 | D92: 73048896.83 | E92: 109736859.7 | F92: 149764143 | G92: 86421079.46 | H92: 84513138.05 | I92: 182050795.9 | J92: 161929116.5 | K92: 124764556.3 | L92: 43020552.72 | M92: 0 | N92: 0 | O92: =+SUM(TablaGxN_NTH1[[#This Row],[Enero]:[Diciembre]]) -> 1049302560
B93: =+TablaCVP_pre[[#This Row],[Nombre unidad TCV]] -> Valdivia | C93: 13429786.24 | D93: 16619552.04 | E93: 12768085.68 | F93: 24236046.6 | G93: 12240651.46 | H93: 13875789.37 | I93: 13535185.32 | J93: 11316175.59 | K93: 7414566.219 | L93: 0 | M93: 4474937.133 | N93: 9175552.278 | O93: =+SUM(TablaGxN_NTH1[[#This Row],[Enero]:[Diciembre]]) -> 139086327.9
B94: =+TablaCVP_pre[[#This Row],[Nombre unidad TCV]] -> Ventanas 1 | C94: 35369122.56 | D94: 31604565.57 | E94: 52939202.42 | F94: 53274348.03 | G94: 0 | H94: 0 | I94: 0 | J94: 0 | K94: 2941991.644 | L94: 3885431.743 | M94: 0 | N94: 0 | O94: =+SUM(TablaGxN_NTH1[[#This Row],[Enero]:[Diciembre]]) -> 180014662
B95: =+TablaCVP_pre[[#This Row],[Nombre unidad TCV]] -> Ventanas 2 | C95: 89873960.06 | D95: 82978794.79 | E95: 14356445.21 | F95: 0 | G95: 48837491.15 | H95: 95875238.84 | I95: 119932627.8 | J95: 81705390.51 | K95: 81448001.17 | L95: 79189522.45 | M95: 65994310.59 | N95: 67826899.26 | O95: =+SUM(TablaGxN_NTH1[[#This Row],[Enero]:[Diciembre]]) -> 828018681.8
